Workbook

Sheet Forside
B1: Navn på filen: | C1: EU - Gaspriser - Industri (2007-2017)
B3: Sidst opdateret | C3: 2016-12-08
B4: Opdateret af | C4: b014318
B6: Datakilder: | C6: =LEFT(B57,34) -> Danmarks Statistik, DNVALA: Valuta
C7: ="Eurostat: "&RIGHT('Baggrundsdata - BVT - deflator'!A61,15) -> Eurostat: s [nama_10_a10]
C8: ="Eurostat: "&RIGHT('Level 1'!A39,12) -> Eurostat: [nrg_pc_203]
B11: Kode til at låse arkene op: | C11: ens1256
B14: Oversigt over ark:
B15: Forside | C15: Formål, oversigt og smådata
B16: ='Udvalgte lande, 10 års oversigt'!E1 -> Udvalgte lande, 10 års oversigt | C16: Her findes sammenligning af relevante lande for en 10 års periode.
B17: ='Alle lande, valgt år'!F1 -> Alle lande, valgt år | C17: Her findes resultattabellerne for alle EU lande i de enheder du vælger.
B18: ='Baggrundstabeller for alle land'!E1 -> Baggrundstabeller for alle lande, valgt år | C18: Her findes baggrundstabeller for resultattabellerne.
B19: Baggrundsdata - BVT - deflator | C19: BVT deflatorerne der bruges i til beregning af priser i det valte år for resultattabellerne. Og kontrol af at man har hentet korrekt data
B20: Level 1 | C20: Rådata fra Eurostat og samling af dette
B21: Level 2 | C21: Rådata fra Eurostat og samling af dette
B22: Afgifter og moms | C22: Bearbejelse af rådata fra Eurostat
B23: Oversættelse af landenavne | C23: Lavpraktisk oversættelses-, hjælpe- og og kontrolark
B24: ='Sådan opdateres arket'!B3 -> Sådan foretages opdatering | C24: Her er en beskrivelse af hvordan og hvornår arkene skal opdateres.
B28: Arkene har farvekoder, de er opdelt således:
B29: Beskrivelser og forklaringer
B30: Resultattabeller
B31: Baggrundstabeller og rådata
B33: Formålet med dette ark er at give et overblik over gaspriserne for industrielle forbrugere i de europæiske lande. Særligt at kunne sammenligne den danske gaspris med de øvrige gaspriser. For ar gøre det mere overskueligt træffes valg omkring enheder i rullemenuer øverst i de to ark med resultattabeller. Når man vælger tilpasses tabeller og figurer til valgene. Rådata opdateres halvårligt, når eurostat opdaterer deres databank. På forsiden findes også tabeller med grundlæggende oplysninger, der bruges til enhedsomregning. Det drejer sig om de udvalgte sammenligningslande og valutakursomregning. Det er vigigt at hente data 10 år tilbage, dvs. at man skal have hele år, således at 20xx S1 som det første data, for halvårsopdateringer har man således kun data for fx 6,5 år mens man for årsopdateringerne har data for 7 år.
B36: Tabel 1
B37: Sammenligningslande
B38: Disse lande bruges til grundlag for sammenligning over tid. De er valgt på baggrund af Natinalbankens effektive kronekurs indeks og udgøres af de europæiske lande som danmark har mest samhandel med.
B39: EU-28
B40: Belgien
B41: Danmark
B42: Tyskland
B43: Frankrig
B44: Italien
B45: Holland
B46: Sverige
B47: UK
B48: Norge
B52: Tabel 2
B53: Valutakurser efter opgørelsesmetode, kurstype, valuta og tid
B54: Enhed: DKK pr. 100 enheder valuta og indekstal
E55: 2007 | F55: 2008 | G55: 2009 | H55: 2010 | I55: 2011 | J55: 2012 | K55: 2013 | L55: 2014 | M55: 2015 | N55: 2016 | O55: 2017
B56: Årsgennemsnit | C56: Valutakurser (DKK pr. 100 enheder valuta) | D56: Euro (Jan. 1999-) | E56: 745.5974 | F56: 744.6251 | G56: 744.6251 | H56: 744.7366 | I56: 745.0529 | J56: 744.3751 | K56: 745.7982 | L56: 745.4741 | M56: 745.6103 | N56: 744.7488444
B57: Danmarks Statistik, DNVALA: Valutakurser efter valuta, kurstype og opgørelsesmetode (årsobservationer)
B58: OBS! Årstallene skal være formateret som tal!
B59: Bemærk: Når der ikke er data for året bruges gennemsnit for de tilgængelige måneder.
B60: Tabel 3
B61: Brændværdier på naturgas | P61: Natural Gas: Calorific Values
C62: Enhed | E62: 2007 | F62: 2008 | G62: 2009 | H62: 2010 | I62: 2011 | J62: 2012 | K62: 2013 | L62: 2014 | M62: 2015 | N62: 2016 | O62: 2017
B63: - Nedre brændværdi | C63: GJ/1000 Nm3 | E63: =F63 -> 39.48 | F63: 39.48 | G63: 39.46 | H63: 39.46 | I63: 39.51 | J63: 39.55 | K63: 38.988 | L63: 39.532 | M63: =L63 -> 39.532 | N63: =M63 -> 39.532 | P63: - Net Calorific Value
B64: - Øvre brændværdi | C64: GJ/1000 Nm3 | E64: =F64 -> 43.6644 | F64: 43.6644 | G64: 43.6356 | H64: 43.6356 | I64: =I63/0.9 -> 43.9 | J64: =J63/0.9 -> 43.94444444 | K64: =K63/0.9 -> 43.32 | L64: =L63/0.9 -> 43.92444444 | M64: =L64 -> 43.92444444 | N64: =M64 -> 43.92444444 | P64: - Gross Calorific Value
B65: Kilde: Månedsstatistik for naturgas | E65: OBS 2007 værdierne er ikke hentet fra statistikken, men blot sat lig 2008. For 2015 er tallene sat lig 2014
B68: Tabel 4
B69: Enhedsomregner
E70: =E62 -> 2007 | F70: =F62 -> 2008 | G70: 2009 | H70: 2010 | I70: 2011 | J70: 2012 | K70: 2013 | L70: 2014 | M70: 2015 | N70: 2016 | O70: 2017
C71: GJ/Nm3 | E71: =IFERROR(E63/1000,"*") -> 0.03948 | F71: 0.03948 | G71: 0.03946 | H71: 0.03946 | I71: 0.03951 | J71: 0.03955 | K71: 0.038988 | L71: =IFERROR(L63/1000,"*") -> 0.039532 | M71: 0.039532 | N71: 0.039532 | O71: 0
C72: Nm3/GJ | E72: =IFERROR(1/E71,"*") -> 25.32928065 | F72: 25.32928065 | G72: 25.3421186 | H72: 25.3421186 | I72: 25.31004809 | J72: 25.28445006 | K72: 25.64891762 | L72: =IFERROR(1/L71,"*") -> 25.29596276 | M72: 25.29596276 | N72: 25.29596276 | O72: *
B73: Note: I nøgletalskataloget benyttes den nedre brændværdi.

Sheet Udvalgte lande, 10 års oversigt
D1: NAVN PÅ ARK: | E1: Udvalgte lande, 10 års oversigt
D2: Data hentes fra: | E2: 'Forside', 'Level 1', 'Level 2', 'Afgifter og moms' og 'Baggrundsdata -BVT-deflator'
D4: Sådan bruges arket:
D5: ="Arket 'Udvalgte lande, 10 års oversigt' viser figurer og tabeller (de grå-blå) for gasprisen på level 1 og 2 for hvert interval. Prisen vises for udvalgte lande for årene "&E47&" til "&M47&". Landene er valgt på baggrund af Natinalbankens effektive kronekursindeks og udgøres af de europæiske lande Danmark har mest samhandel med." -> Arket 'Udvalgte lande, 10 års oversigt' viser figurer og tabeller (de grå-blå) for gasprisen på level 1 og 2 for hvert interval. Prisen vises for udvalgte lande for årene 2007 til 2015. Landene er valgt på baggrund af Natinalbankens effektive kronekursindeks og udgøres af de europæiske lande Danmark har mest samhandel med.
D6: Pristypen, basisået, valuta og enhed kan ændres. Dette gøres i de farvede rullemenuer nedenfor. Rent teknisk styrer hver menu en tabel længere nede i tilsvarende farve. Disse tabeller ganges på rådata (arkene level 1 og 2) for hvert level, heraf fremkommer resultattabellerne med som følge af de valg man traf i rullemenuerne. Til hver resultattabel er tilkoblet en figur der viser prisudviklingen grafisk.
D10: Vælg | F10: Vises i
D11: År | E11: =E47&" til "&N47 -> 2007 til 2016 | F11: Resultattabeller
D12: Vælg pristype | E12: faste priser | F12: Tabel B
D13: Vælg Basisår (kun ved fast pris) | E13: 2015 | F13: Tabel B
D14: Vælg valuta | E14: DKK øre | F14: Tabel C
D15: Vælg enhed (NM3/GJ) | E15: Kwh | F15: Tabel D
D19: Resultattabeller:
D20: Valgene truffet ovenfor giver tabeller og figurer der er:
D21: ="Oppgjort i "&$E$12&" med basisår "&$E$13 -> Oppgjort i faste priser med basisår 2015
D22: ="Vist i "&E14&" / "&E15&"." -> Vist i DKK øre / Kwh.
D26: IA: < 1000 GJ | Q26: IB: 1 000 GJ < 10 000 GJ | AD26: IC: 10 000 GJ < 100 000 GJ | AQ26: ID: 100 000 GJ < 1 000 000 GJ | BD26: IE: 1 000 000 GJ < 4 000 000 GJ | BQ26: IF: > 4 000 000 GJ
B27: Level 1: Gaspris | D27: ="Figur XX: "&$B$27&" for intervalet "&D26&". Priserne er vist i "&$E$14&" / "&$E$15&" i "&$E$12&" med basisår "&$E$13&". " -> Figur XX: Level 1: Gaspris for intervalet IA: < 1000 GJ. Priserne er vist i DKK øre / Kwh i faste priser med basisår 2015. | Q27: ="Figur XX: "&$B$27&" for intervalet "&Q26&". Priserne er vist i "&$E$14&" / "&$E$15&" i "&$E$12&" med basisår "&$E$13&". " -> Figur XX: Level 1: Gaspris for intervalet IB: 1 000 GJ < 10 000 GJ. Priserne er vist i DKK øre / Kwh i faste priser med basisår 2015. | AD27: ="Figur XX: "&$B$27&" for intervalet "&AD26&". Priserne er vist i "&$E$14&" / "&$E$15&" i "&$E$12&" med basisår "&$E$13&". " -> Figur XX: Level 1: Gaspris for intervalet IC: 10 000 GJ < 100 000 GJ. Priserne er vist i DKK øre / Kwh i faste priser med basisår 2015. | AQ27: ="Figur XX: "&$B$27&" for intervalet "&AQ26&". Priserne er vist i "&$E$14&" / "&$E$15&" i "&$E$12&" med basisår "&$E$13&". " -> Figur XX: Level 1: Gaspris for intervalet ID: 100 000 GJ < 1 000 000 GJ. Priserne er vist i DKK øre / Kwh i faste priser med basisår 2015. | BD27: ="Figur XX: "&$B$27&" for intervalet "&BD26&". Priserne er vist i "&$E$14&" / "&$E$15&" i "&$E$12&" med basisår "&$E$13&". " -> Figur XX: Level 1: Gaspris for intervalet IE: 1 000 000 GJ < 4 000 000 GJ. Priserne er vist i DKK øre / Kwh i faste priser med basisår 2015. | BQ27: ="Figur XX: "&$B$27&" for intervalet "&BQ26&". Priserne er vist i "&$E$14&" / "&$E$15&" i "&$E$12&" med basisår "&$E$13&". " -> Figur XX: Level 1: Gaspris for intervalet IF: > 4 000 000 GJ. Priserne er vist i DKK øre / Kwh i faste priser med basisår 2015. | CD27: =B27 -> Level 1: Gaspris
D46: Kilde: Eurostat | Q46: Kilde: Eurostat | AD46: Kilde: Eurostat | AQ46: Kilde: Eurostat | BD46: Kilde: Eurostat | BQ46: Kilde: Eurostat
D47: =$E$14&"/"&$E$15 -> DKK øre/Kwh | E47: ='Level 1'!B5 -> 2007 | F47: ='Level 1'!C5 -> 2008 | G47: ='Level 1'!D5 -> 2009 | H47: ='Level 1'!E5 -> 2010 | I47: ='Level 1'!F5 -> 2011 | J47: ='Level 1'!G5 -> 2012 | K47: ='Level 1'!H5 -> 2013 | L47: ='Level 1'!I5 -> 2014 | M47: ='Level 1'!J5 -> 2015 | N47: ='Level 1'!K5 -> 2016 | O47: ='Level 1'!L5 -> 2017 | Q47: =$E$14&"/"&$E$15 -> DKK øre/Kwh | R47: ='Level 1'!O5 -> 2007 | S47: ='Level 1'!P5 -> 2008 | T47: ='Level 1'!Q5 -> 2009 | U47: ='Level 1'!R5 -> 2010 | V47: ='Level 1'!S5 -> 2011 | W47: ='Level 1'!T5 -> 2012 | X47: ='Level 1'!U5 -> 2013 | Y47: ='Level 1'!V5 -> 2014 | Z47: ='Level 1'!W5 -> 2015 | AA47: ='Level 1'!X5 -> 2016 | AB47: ='Level 1'!Y5 -> 2017 | AD47: =$E$14&"/"&$E$15 -> DKK øre/Kwh | AE47: ='Level 1'!AB5 -> 2007 | AF47: ='Level 1'!AC5 -> 2008 | AG47: ='Level 1'!AD5 -> 2009 | AH47: ='Level 1'!AE5 -> 2010 | AI47: ='Level 1'!AF5 -> 2011 | AJ47: ='Level 1'!AG5 -> 2012 | AK47: ='Level 1'!AH5 -> 2013 | AL47: ='Level 1'!AI5 -> 2014 | AM47: ='Level 1'!AJ5 -> 2015 | AN47: ='Level 1'!AK5 -> 2016 | AO47: ='Level 1'!AL5 -> 2017 | AQ47: =$E$14&"/"&$E$15 -> DKK øre/Kwh | AR47: ='Level 1'!AO5 -> 2007 | AS47: ='Level 1'!AP5 -> 2008 | AT47: ='Level 1'!AQ5 -> 2009 | AU47: ='Level 1'!AR5 -> 2010 | AV47: ='Level 1'!AS5 -> 2011 | AW47: ='Level 1'!AT5 -> 2012 | AX47: ='Level 1'!AU5 -> 2013 | AY47: ='Level 1'!AV5 -> 2014 | AZ47: ='Level 1'!AW5 -> 2015 | BA47: ='Level 1'!AX5 -> 2016 | BB47: ='Level 1'!AY5 -> 2017 | BD47: =$E$14&"/"&$E$15 -> DKK øre/Kwh | BE47: ='Level 1'!BB5 -> 2007 | BF47: ='Level 1'!BC5 -> 2008 | BG47: ='Level 1'!BD5 -> 2009 | BH47: ='Level 1'!BE5 -> 2010 | BI47: ='Level 1'!BF5 -> 2011 | BJ47: ='Level 1'!BG5 -> 2012 | BK47: ='Level 1'!BH5 -> 2013 | BL47: ='Level 1'!BI5 -> 2014 | BM47: ='Level 1'!BJ5 -> 2015 | BN47: ='Level 1'!BK5 -> 2016 | BO47: ='Level 1'!BL5 -> 2017 | BQ47: =$E$14&"/"&$E$15 -> DKK øre/Kwh | BR47: ='Level 1'!BO5 -> 2007 | BS47: ='Level 1'!BP5 -> 2008 | BT47: ='Level 1'!BQ5 -> 2009 | BU47: ='Level 1'!BR5 -> 2010 | BV47: ='Level 1'!BS5 -> 2011 | BW47: ='Level 1'!BT5 -> 2012 | BX47: ='Level 1'!BU5 -> 2013 | BY47: ='Level 1'!BV5 -> 2014 | BZ47: ='Level 1'!BW5 -> 2015 | CA47: ='Level 1'!BX5 -> 2016 | CB47: ='Level 1'!BY5 -> 2017
D48: ='Oversættelse af landenavne'!$B$6 -> EU-28 | E48: =IFERROR('Level 1'!B$6/E$109*R$109*AE$109,"*") -> 30.24055051 | F48: =IFERROR('Level 1'!C$6/F$109*S$109*AF$109,"*") -> 34.15706956 | G48: =IFERROR('Level 1'!D$6/G$109*T$109*AG$109,"*") -> 33.35419875 | H48: =IFERROR('Level 1'!E$6/H$109*U$109*AH$109,"*") -> 31.73809611 | I48: =IFERROR('Level 1'!F$6/I$109*V$109*AI$109,"*") -> 34.0836579 | J48: =IFERROR('Level 1'!G$6/J$109*W$109*AJ$109,"*") -> 37.90182085 | K48: =IFERROR('Level 1'!H$6/K$109*X$109*AK$109,"*") -> 38.70922348 | L48: =IFERROR('Level 1'!I$6/L$109*Y$109*AL$109,"*") -> 36.82592367 | M48: =IFERROR('Level 1'!J$6/M$109*Z$109*AM$109,"*") -> 34.5850533 | N48: =IFERROR('Level 1'!K$6/N$109*AA$109*AN$109,"*") -> 29.90783234 | O48: =IFERROR('Level 1'!L$6/O$109*AB$109*AO$109,"*") -> * | Q48: ='Oversættelse af landenavne'!$B$6 -> EU-28 | R48: =IFERROR('Level 1'!O$6/E$109*R$109*AE$109,"*") -> 27.03411082 | S48: =IFERROR('Level 1'!P$6/F$109*S$109*AF$109,"*") -> 31.31674744 | T48: =IFERROR('Level 1'!Q$6/G$109*T$109*AG$109,"*") -> 29.36233986 | U48: =IFERROR('Level 1'!R$6/H$109*U$109*AH$109,"*") -> 28.09220956 | V48: =IFERROR('Level 1'!S$6/I$109*V$109*AI$109,"*") -> 30.48529874 | W48: =IFERROR('Level 1'!T$6/J$109*W$109*AJ$109,"*") -> 32.4611663 | X48: =IFERROR('Level 1'!U$6/K$109*X$109*AK$109,"*") -> 34.47824791 | Y48: =IFERROR('Level 1'!V$6/L$109*Y$109*AL$109,"*") -> 32.00036272 | Z48: =IFERROR('Level 1'!W$6/M$109*Z$109*AM$109,"*") -> 28.57725808 | AA48: =IFERROR('Level 1'!X$6/N$109*AA$109*AN$109,"*") -> 23.70742807 | AB48: =IFERROR('Level 1'!Y$6/O$109*AB$109*AO$109,"*") -> * | AD48: ='Oversættelse af landenavne'!$B$6 -> EU-28 | AE48: =IFERROR('Level 1'!AB$6/E$109*R$109*AE$109,"*") -> 23.65116986 | AF48: =IFERROR('Level 1'!AC$6/F$109*S$109*AF$109,"*") -> 28.16896778 | AG48: =IFERROR('Level 1'!AD$6/G$109*T$109*AG$109,"*") -> 25.22263434 | AH48: =IFERROR('Level 1'!AE$6/H$109*U$109*AH$109,"*") -> 23.74910167 | AI48: =IFERROR('Level 1'!AF$6/I$109*V$109*AI$109,"*") -> 25.63471061 | AJ48: =IFERROR('Level 1'!AG$6/J$109*W$109*AJ$109,"*") -> 27.34385815 | AK48: =IFERROR('Level 1'!AH$6/K$109*X$109*AK$109,"*") -> 29.40668117 | AL48: =IFERROR('Level 1'!AI$6/L$109*Y$109*AL$109,"*") -> 26.88526812 | AM48: =IFERROR('Level 1'!AJ$6/M$109*Z$109*AM$109,"*") -> 24.05800141 | AN48: =IFERROR('Level 1'!AK$6/N$109*AA$109*AN$109,"*") -> 19.98197509 | AO48: =IFERROR('Level 1'!AL$6/O$109*AB$109*AO$109,"*") -> * | AQ48: ='Oversættelse af landenavne'!$B$6 -> EU-28 | AR48: =IFERROR('Level 1'!AO$6/E$109*R$109*AE$109,"*") -> 20.50356392 | AS48: =IFERROR('Level 1'!AP$6/F$109*S$109*AF$109,"*") -> 25.07975146 | AT48: =IFERROR('Level 1'!AQ$6/G$109*T$109*AG$109,"*") -> 22.08828588 | AU48: =IFERROR('Level 1'!AR$6/H$109*U$109*AH$109,"*") -> 20.81496189 | AV48: =IFERROR('Level 1'!AS$6/I$109*V$109*AI$109,"*") -> 22.62648235 | AW48: =IFERROR('Level 1'!AT$6/J$109*W$109*AJ$109,"*") -> 24.37750644 | AX48: =IFERROR('Level 1'!AU$6/K$109*X$109*AK$109,"*") -> 24.93753811 | AY48: =IFERROR('Level 1'!AV$6/L$109*Y$109*AL$109,"*") -> 22.76286034 | AZ48: =IFERROR('Level 1'!AW$6/M$109*Z$109*AM$109,"*") -> 20.32994991 | BA48: =IFERROR('Level 1'!AX$6/N$109*AA$109*AN$109,"*") -> 16.28257423 | BB48: =IFERROR('Level 1'!AY$6/O$109*AB$109*AO$109,"*") -> * | BD48: ='Oversættelse af landenavne'!$B$6 -> EU-28 | BE48: =IFERROR('Level 1'!BB$6/E$109*R$109*AE$109,"*") -> 18.35613183 | BF48: =IFERROR('Level 1'!BC$6/F$109*S$109*AF$109,"*") -> 23.43997787 | BG48: =IFERROR('Level 1'!BD$6/G$109*T$109*AG$109,"*") -> 19.63403189 | BH48: =IFERROR('Level 1'!BE$6/H$109*U$109*AH$109,"*") -> 19.086434 | BI48: =IFERROR('Level 1'!BF$6/I$109*V$109*AI$109,"*") -> 21.47500742 | BJ48: =IFERROR('Level 1'!BG$6/J$109*W$109*AJ$109,"*") -> 23.19658917 | BK48: =IFERROR('Level 1'!BH$6/K$109*X$109*AK$109,"*") -> 22.89209959 | BL48: =IFERROR('Level 1'!BI$6/L$109*Y$109*AL$109,"*") -> 20.95672182 | BM48: =IFERROR('Level 1'!BJ$6/M$109*Z$109*AM$109,"*") -> 18.38546261 | BN48: =IFERROR('Level 1'!BK$6/N$109*AA$109*AN$109,"*") -> 14.01603989 | BO48: =IFERROR('Level 1'!BL$6/O$109*AB$109*AO$109,"*") -> * | BQ48: ='Oversættelse af landenavne'!$B$6 -> EU-28 | BR48: =IFERROR('Level 1'!BO$6/E$109*R$109*AE$109,"*") -> * | BS48: =IFERROR('Level 1'!BP$6/F$109*S$109*AF$109,"*") -> * | BT48: =IFERROR('Level 1'!BQ$6/G$109*T$109*AG$109,"*") -> * | BU48: =IFERROR('Level 1'!BR$6/H$109*U$109*AH$109,"*") -> * | BV48: =IFERROR('Level 1'!BS$6/I$109*V$109*AI$109,"*") -> * | BW48: =IFERROR('Level 1'!BT$6/J$109*W$109*AJ$109,"*") -> * | BX48: =IFERROR('Level 1'!BU$6/K$109*X$109*AK$109,"*") -> * | BY48: =IFERROR('Level 1'!BV$6/L$109*Y$109*AL$109,"*") -> * | BZ48: =IFERROR('Level 1'!BW$6/M$109*Z$109*AM$109,"*") -> * | CA48: =IFERROR('Level 1'!BX$6/N$109*AA$109*AN$109,"*") -> * | CB48: =IFERROR('Level 1'!BY$6/O$109*AB$109*AO$109,"*") -> *
D49: ='Oversættelse af landenavne'!$B$7 -> Belgien | E49: =IFERROR('Level 1'!B$7/E$110*R$109*AE$109,"*") -> 32.24911096 | F49: =IFERROR('Level 1'!C$7/F$110*S$109*AF$109,"*") -> 41.93818961 | G49: =IFERROR('Level 1'!D$7/G$110*T$109*AG$109,"*") -> 33.78237718 | H49: =IFERROR('Level 1'!E$7/H$110*U$109*AH$109,"*") -> 34.07356397 | I49: =IFERROR('Level 1'!F$7/I$110*V$109*AI$109,"*") -> 39.11485563 | J49: =IFERROR('Level 1'!G$7/J$110*W$109*AJ$109,"*") -> 40.37164609 | K49: =IFERROR('Level 1'!H$7/K$110*X$109*AK$109,"*") -> 38.33379873 | L49: =IFERROR('Level 1'!I$7/L$110*Y$109*AL$109,"*") -> 36.05488132 | M49: =IFERROR('Level 1'!J$7/M$110*Z$109*AM$109,"*") -> 32.82830961 | N49: =IFERROR('Level 1'!K$7/N$110*AA$109*AN$109,"*") -> 28.73731215 | O49: =IFERROR('Level 1'!L$7/O$110*AB$109*AO$109,"*") -> * | Q49: ='Oversættelse af landenavne'!$B$7 -> Belgien | R49: =IFERROR('Level 1'!O$7/E$110*R$109*AE$109,"*") -> 28.47272808 | S49: =IFERROR('Level 1'!P$7/F$110*S$109*AF$109,"*") -> 34.23946263 | T49: =IFERROR('Level 1'!Q$7/G$110*T$109*AG$109,"*") -> 29.71273847 | U49: =IFERROR('Level 1'!R$7/H$110*U$109*AH$109,"*") -> 28.83367976 | V49: =IFERROR('Level 1'!S$7/I$110*V$109*AI$109,"*") -> 32.53242038 | W49: =IFERROR('Level 1'!T$7/J$110*W$109*AJ$109,"*") -> 30.33731412 | X49: =IFERROR('Level 1'!U$7/K$110*X$109*AK$109,"*") -> 32.77580659 | Y49: =IFERROR('Level 1'!V$7/L$110*Y$109*AL$109,"*") -> 26.77744374 | Z49: =IFERROR('Level 1'!W$7/M$110*Z$109*AM$109,"*") -> 25.1576425 | AA49: =IFERROR('Level 1'!X$7/N$110*AA$109*AN$109,"*") -> 22.6552008 | AB49: =IFERROR('Level 1'!Y$7/O$110*AB$109*AO$109,"*") -> * | AD49: ='Oversættelse af landenavne'!$B$7 -> Belgien | AE49: =IFERROR('Level 1'!AB$7/E$110*R$109*AE$109,"*") -> 23.07789539 | AF49: =IFERROR('Level 1'!AC$7/F$110*S$109*AF$109,"*") -> 28.6457413 | AG49: =IFERROR('Level 1'!AD$7/G$110*T$109*AG$109,"*") -> 24.50535132 | AH49: =IFERROR('Level 1'!AE$7/H$110*U$109*AH$109,"*") -> 21.87580073 | AI49: =IFERROR('Level 1'!AF$7/I$110*V$109*AI$109,"*") -> 24.6419371 | AJ49: =IFERROR('Level 1'!AG$7/J$110*W$109*AJ$109,"*") -> 25.5406829 | AK49: =IFERROR('Level 1'!AH$7/K$110*X$109*AK$109,"*") -> 27.05434409 | AL49: =IFERROR('Level 1'!AI$7/L$110*Y$109*AL$109,"*") -> 21.74653007 | AM49: =IFERROR('Level 1'!AJ$7/M$110*Z$109*AM$109,"*") -> 20.11538579 | AN49: =IFERROR('Level 1'!AK$7/N$110*AA$109*AN$109,"*") -> 17.60890754 | AO49: =IFERROR('Level 1'!AL$7/O$110*AB$109*AO$109,"*") -> * | AQ49: ='Oversættelse af landenavne'!$B$7 -> Belgien | AR49: =IFERROR('Level 1'!AO$7/E$110*R$109*AE$109,"*") -> 21.30958912 | AS49: =IFERROR('Level 1'!AP$7/F$110*S$109*AF$109,"*") -> 26.15800735 | AT49: =IFERROR('Level 1'!AQ$7/G$110*T$109*AG$109,"*") -> 23.0029399 | AU49: =IFERROR('Level 1'!AR$7/H$110*U$109*AH$109,"*") -> 18.54002745 | AV49: =IFERROR('Level 1'!AS$7/I$110*V$109*AI$109,"*") -> 20.59120771 | AW49: =IFERROR('Level 1'!AT$7/J$110*W$109*AJ$109,"*") -> 21.35052229 | AX49: =IFERROR('Level 1'!AU$7/K$110*X$109*AK$109,"*") -> 22.12298832 | AY49: =IFERROR('Level 1'!AV$7/L$110*Y$109*AL$109,"*") -> 19.58269623 | AZ49: =IFERROR('Level 1'!AW$7/M$110*Z$109*AM$109,"*") -> 18.09043696 | BA49: =IFERROR('Level 1'!AX$7/N$110*AA$109*AN$109,"*") -> 15.03264203 | BB49: =IFERROR('Level 1'!AY$7/O$110*AB$109*AO$109,"*") -> * | BD49: ='Oversættelse af landenavne'!$B$7 -> Belgien | BE49: =IFERROR('Level 1'!BB$7/E$110*R$109*AE$109,"*") -> 21.33956041 | BF49: =IFERROR('Level 1'!BC$7/F$110*S$109*AF$109,"*") -> 25.93720256 | BG49: =IFERROR('Level 1'!BD$7/G$110*T$109*AG$109,"*") -> 18.81660905 | BH49: =IFERROR('Level 1'!BE$7/H$110*U$109*AH$109,"*") -> 17.80987966 | BI49: =IFERROR('Level 1'!BF$7/I$110*V$109*AI$109,"*") -> 20.00047634 | BJ49: =IFERROR('Level 1'!BG$7/J$110*W$109*AJ$109,"*") -> 20.96458645 | BK49: =IFERROR('Level 1'!BH$7/K$110*X$109*AK$109,"*") -> 20.5563974 | BL49: =IFERROR('Level 1'!BI$7/L$110*Y$109*AL$109,"*") -> 18.52782723 | BM49: =IFERROR('Level 1'!BJ$7/M$110*Z$109*AM$109,"*") -> 15.24746243 | BN49: =IFERROR('Level 1'!BK$7/N$110*AA$109*AN$109,"*") -> 11.97830664 | BO49: =IFERROR('Level 1'!BL$7/O$110*AB$109*AO$109,"*") -> * | BQ49: ='Oversættelse af landenavne'!$B$7 -> Belgien | BR49: =IFERROR('Level 1'!BO$7/E$110*R$109*AE$109,"*") -> * | BS49: =IFERROR('Level 1'!BP$7/F$110*S$109*AF$109,"*") -> * | BT49: =IFERROR('Level 1'!BQ$7/G$110*T$109*AG$109,"*") -> * | BU49: =IFERROR('Level 1'!BR$7/H$110*U$109*AH$109,"*") -> * | BV49: =IFERROR('Level 1'!BS$7/I$110*V$109*AI$109,"*") -> * | BW49: =IFERROR('Level 1'!BT$7/J$110*W$109*AJ$109,"*") -> * | BX49: =IFERROR('Level 1'!BU$7/K$110*X$109*AK$109,"*") -> 21.00594088 | BY49: =IFERROR('Level 1'!BV$7/L$110*Y$109*AL$109,"*") -> 16.16113397 | BZ49: =IFERROR('Level 1'!BW$7/M$110*Z$109*AM$109,"*") -> 13.24933411 | CA49: =IFERROR('Level 1'!BX$7/N$110*AA$109*AN$109,"*") -> 9.906670456 | CB49: =IFERROR('Level 1'!BY$7/O$110*AB$109*AO$109,"*") -> *
D50: ='Oversættelse af landenavne'!$B$10 -> Danmark | E50: =IFERROR('Level 1'!B$10/E$111*R$109*AE$109,"*") -> 35.87090903 | F50: =IFERROR('Level 1'!C$10/F$111*S$109*AF$109,"*") -> 41.35872356 | G50: =IFERROR('Level 1'!D$10/G$111*T$109*AG$109,"*") -> 33.37040026 | H50: =IFERROR('Level 1'!E$10/H$111*U$109*AH$109,"*") -> 37.17485428 | I50: =IFERROR('Level 1'!F$10/I$111*V$109*AI$109,"*") -> 39.55930368 | J50: =IFERROR('Level 1'!G$10/J$111*W$109*AJ$109,"*") -> 33.5311692 | K50: =IFERROR('Level 1'!H$10/K$111*X$109*AK$109,"*") -> 29.73448862 | L50: =IFERROR('Level 1'!I$10/L$111*Y$109*AL$109,"*") -> 26.76595525 | M50: =IFERROR('Level 1'!J$10/M$111*Z$109*AM$109,"*") -> 24.48122912 | N50: =IFERROR('Level 1'!K$10/N$111*AA$109*AN$109,"*") -> 20.43779862 | O50: =IFERROR('Level 1'!L$10/O$111*AB$109*AO$109,"*") -> * | Q50: ='Oversættelse af landenavne'!$B$10 -> Danmark | R50: =IFERROR('Level 1'!O$10/E$111*R$109*AE$109,"*") -> 33.98191888 | S50: =IFERROR('Level 1'!P$10/F$111*S$109*AF$109,"*") -> 39.18218479 | T50: =IFERROR('Level 1'!Q$10/G$111*T$109*AG$109,"*") -> 30.58755159 | U50: =IFERROR('Level 1'!R$10/H$111*U$109*AH$109,"*") -> 34.22509242 | V50: =IFERROR('Level 1'!S$10/I$111*V$109*AI$109,"*") -> 36.49274759 | W50: =IFERROR('Level 1'!T$10/J$111*W$109*AJ$109,"*") -> 30.94471078 | X50: =IFERROR('Level 1'!U$10/K$111*X$109*AK$109,"*") -> 27.5997442 | Y50: =IFERROR('Level 1'!V$10/L$111*Y$109*AL$109,"*") -> 25.78072286 | Z50: =IFERROR('Level 1'!W$10/M$111*Z$109*AM$109,"*") -> 22.58622568 | AA50: =IFERROR('Level 1'!X$10/N$111*AA$109*AN$109,"*") -> 18.74375437 | AB50: =IFERROR('Level 1'!Y$10/O$111*AB$109*AO$109,"*") -> * | AD50: ='Oversættelse af landenavne'!$B$10 -> Danmark | AE50: =IFERROR('Level 1'!AB$10/E$111*R$109*AE$109,"*") -> 19.15225694 | AF50: =IFERROR('Level 1'!AC$10/F$111*S$109*AF$109,"*") -> 22.08277459 | AG50: =IFERROR('Level 1'!AD$10/G$111*T$109*AG$109,"*") -> 17.04953762 | AH50: =IFERROR('Level 1'!AE$10/H$111*U$109*AH$109,"*") -> 20.54877996 | AI50: =IFERROR('Level 1'!AF$10/I$111*V$109*AI$109,"*") -> 24.99140858 | AJ50: =IFERROR('Level 1'!AG$10/J$111*W$109*AJ$109,"*") -> 24.59858085 | AK50: =IFERROR('Level 1'!AH$10/K$111*X$109*AK$109,"*") -> 25.72443814 | AL50: =IFERROR('Level 1'!AI$10/L$111*Y$109*AL$109,"*") -> 20.21403085 | AM50: =IFERROR('Level 1'!AJ$10/M$111*Z$109*AM$109,"*") -> 19.65903474 | AN50: =IFERROR('Level 1'!AK$10/N$111*AA$109*AN$109,"*") -> 14.33654069 | AO50: =IFERROR('Level 1'!AL$10/O$111*AB$109*AO$109,"*") -> * | AQ50: ='Oversættelse af landenavne'!$B$10 -> Danmark | AR50: =IFERROR('Level 1'!AO$10/E$111*R$109*AE$109,"*") -> 18.0711772 | AS50: =IFERROR('Level 1'!AP$10/F$111*S$109*AF$109,"*") -> 20.83685871 | AT50: =IFERROR('Level 1'!AQ$10/G$111*T$109*AG$109,"*") -> 16.08733584 | AU50: =IFERROR('Level 1'!AR$10/H$111*U$109*AH$109,"*") -> 19.48045517 | AV50: =IFERROR('Level 1'!AS$10/I$111*V$109*AI$109,"*") -> 23.92117034 | AW50: =IFERROR('Level 1'!AT$10/J$111*W$109*AJ$109,"*") -> 23.62817277 | AX50: =IFERROR('Level 1'!AU$10/K$111*X$109*AK$109,"*") -> 24.6672131 | AY50: =IFERROR('Level 1'!AV$10/L$111*Y$109*AL$109,"*") -> 19.64029623 | AZ50: =IFERROR('Level 1'!AW$10/M$111*Z$109*AM$109,"*") -> 18.78347905 | BA50: =IFERROR('Level 1'!AX$10/N$111*AA$109*AN$109,"*") -> 13.51981187 | BB50: =IFERROR('Level 1'!AY$10/O$111*AB$109*AO$109,"*") -> * | BD50: ='Oversættelse af landenavne'!$B$10 -> Danmark | BE50: =IFERROR('Level 1'!BB$10/E$111*R$109*AE$109,"*") -> 16.57760081 | BF50: =IFERROR('Level 1'!BC$10/F$111*S$109*AF$109,"*") -> 19.11366581 | BG50: =IFERROR('Level 1'!BD$10/G$111*T$109*AG$109,"*") -> 14.75782361 | BH50: =IFERROR('Level 1'!BE$10/H$111*U$109*AH$109,"*") -> 18.10699748 | BI50: =IFERROR('Level 1'!BF$10/I$111*V$109*AI$109,"*") -> 22.48774397 | BJ50: =IFERROR('Level 1'!BG$10/J$111*W$109*AJ$109,"*") -> 22.36105818 | BK50: =IFERROR('Level 1'!BH$10/K$111*X$109*AK$109,"*") -> 23.72764034 | BL50: =IFERROR('Level 1'!BI$10/L$111*Y$109*AL$109,"*") -> 19.0721279 | BM50: =IFERROR('Level 1'!BJ$10/M$111*Z$109*AM$109,"*") -> 17.87184976 | BN50: =IFERROR('Level 1'!BK$10/N$111*AA$109*AN$109,"*") -> 12.642761 | BO50: =IFERROR('Level 1'!BL$10/O$111*AB$109*AO$109,"*") -> * | BQ50: ='Oversættelse af landenavne'!$B$10 -> Danmark | BR50: =IFERROR('Level 1'!BO$10/E$111*R$109*AE$109,"*") -> * | BS50: =IFERROR('Level 1'!BP$10/F$111*S$109*AF$109,"*") -> * | BT50: =IFERROR('Level 1'!BQ$10/G$111*T$109*AG$109,"*") -> * | BU50: =IFERROR('Level 1'!BR$10/H$111*U$109*AH$109,"*") -> * | BV50: =IFERROR('Level 1'!BS$10/I$111*V$109*AI$109,"*") -> * | BW50: =IFERROR('Level 1'!BT$10/J$111*W$109*AJ$109,"*") -> * | BX50: =IFERROR('Level 1'!BU$10/K$111*X$109*AK$109,"*") -> * | BY50: =IFERROR('Level 1'!BV$10/L$111*Y$109*AL$109,"*") -> * | BZ50: =IFERROR('Level 1'!BW$10/M$111*Z$109*AM$109,"*") -> * | CA50: =IFERROR('Level 1'!BX$10/N$111*AA$109*AN$109,"*") -> * | CB50: =IFERROR('Level 1'!BY$10/O$111*AB$109*AO$109,"*") -> *
D51: ='Oversættelse af landenavne'!$B$11 -> Tyskland | E51: =IFERROR('Level 1'!B$11/E$112*R$109*AE$109,"*") -> 35.82346112 | F51: =IFERROR('Level 1'!C$11/F$112*S$109*AF$109,"*") -> 40.93087728 | G51: =IFERROR('Level 1'!D$11/G$112*T$109*AG$109,"*") -> 33.01704357 | H51: =IFERROR('Level 1'!E$11/H$112*U$109*AH$109,"*") -> 32.65642117 | I51: =IFERROR('Level 1'!F$11/I$112*V$109*AI$109,"*") -> 35.11318524 | J51: =IFERROR('Level 1'!G$11/J$112*W$109*AJ$109,"*") -> 37.21211765 | K51: =IFERROR('Level 1'!H$11/K$112*X$109*AK$109,"*") -> 37.21057907 | L51: =IFERROR('Level 1'!I$11/L$112*Y$109*AL$109,"*") -> 34.53874466 | M51: =IFERROR('Level 1'!J$11/M$112*Z$109*AM$109,"*") -> 32.53328395 | N51: =IFERROR('Level 1'!K$11/N$112*AA$109*AN$109,"*") -> 30.00697999 | O51: =IFERROR('Level 1'!L$11/O$112*AB$109*AO$109,"*") -> * | Q51: ='Oversættelse af landenavne'!$B$11 -> Tyskland | R51: =IFERROR('Level 1'!O$11/E$112*R$109*AE$109,"*") -> 31.94410154 | S51: =IFERROR('Level 1'!P$11/F$112*S$109*AF$109,"*") -> 39.02257279 | T51: =IFERROR('Level 1'!Q$11/G$112*T$109*AG$109,"*") -> 31.58856309 | U51: =IFERROR('Level 1'!R$11/H$112*U$109*AH$109,"*") -> 31.32797489 | V51: =IFERROR('Level 1'!S$11/I$112*V$109*AI$109,"*") -> 32.64022203 | W51: =IFERROR('Level 1'!T$11/J$112*W$109*AJ$109,"*") -> 30.71566832 | X51: =IFERROR('Level 1'!U$11/K$112*X$109*AK$109,"*") -> 37.22454701 | Y51: =IFERROR('Level 1'!V$11/L$112*Y$109*AL$109,"*") -> 33.27780636 | Z51: =IFERROR('Level 1'!W$11/M$112*Z$109*AM$109,"*") -> 28.83205297 | AA51: =IFERROR('Level 1'!X$11/N$112*AA$109*AN$109,"*") -> 22.93109825 | AB51: =IFERROR('Level 1'!Y$11/O$112*AB$109*AO$109,"*") -> * | AD51: ='Oversættelse af landenavne'!$B$11 -> Tyskland | AE51: =IFERROR('Level 1'!AB$11/E$112*R$109*AE$109,"*") -> 29.88319176 | AF51: =IFERROR('Level 1'!AC$11/F$112*S$109*AF$109,"*") -> 36.01736888 | AG51: =IFERROR('Level 1'!AD$11/G$112*T$109*AG$109,"*") -> 28.4959765 | AH51: =IFERROR('Level 1'!AE$11/H$112*U$109*AH$109,"*") -> 26.94848166 | AI51: =IFERROR('Level 1'!AF$11/I$112*V$109*AI$109,"*") -> 28.61984909 | AJ51: =IFERROR('Level 1'!AG$11/J$112*W$109*AJ$109,"*") -> 26.81210008 | AK51: =IFERROR('Level 1'!AH$11/K$112*X$109*AK$109,"*") -> 33.997954 | AL51: =IFERROR('Level 1'!AI$11/L$112*Y$109*AL$109,"*") -> 29.30310955 | AM51: =IFERROR('Level 1'!AJ$11/M$112*Z$109*AM$109,"*") -> 25.76110407 | AN51: =IFERROR('Level 1'!AK$11/N$112*AA$109*AN$109,"*") -> 21.75178462 | AO51: =IFERROR('Level 1'!AL$11/O$112*AB$109*AO$109,"*") -> * | AQ51: ='Oversættelse af landenavne'!$B$11 -> Tyskland | AR51: =IFERROR('Level 1'!AO$11/E$112*R$109*AE$109,"*") -> 23.51861745 | AS51: =IFERROR('Level 1'!AP$11/F$112*S$109*AF$109,"*") -> 29.30073814 | AT51: =IFERROR('Level 1'!AQ$11/G$112*T$109*AG$109,"*") -> 24.82905239 | AU51: =IFERROR('Level 1'!AR$11/H$112*U$109*AH$109,"*") -> 23.64926343 | AV51: =IFERROR('Level 1'!AS$11/I$112*V$109*AI$109,"*") -> 25.20687063 | AW51: =IFERROR('Level 1'!AT$11/J$112*W$109*AJ$109,"*") -> 24.29045199 | AX51: =IFERROR('Level 1'!AU$11/K$112*X$109*AK$109,"*") -> 26.036231 | AY51: =IFERROR('Level 1'!AV$11/L$112*Y$109*AL$109,"*") -> 22.53241913 | AZ51: =IFERROR('Level 1'!AW$11/M$112*Z$109*AM$109,"*") -> 19.91423193 | BA51: =IFERROR('Level 1'!AX$11/N$112*AA$109*AN$109,"*") -> 16.37935589 | BB51: =IFERROR('Level 1'!AY$11/O$112*AB$109*AO$109,"*") -> * | BD51: ='Oversættelse af landenavne'!$B$11 -> Tyskland | BE51: =IFERROR('Level 1'!BB$11/E$112*R$109*AE$109,"*") -> 19.00280044 | BF51: =IFERROR('Level 1'!BC$11/F$112*S$109*AF$109,"*") -> 25.21366082 | BG51: =IFERROR('Level 1'!BD$11/G$112*T$109*AG$109,"*") -> 20.89704943 | BH51: =IFERROR('Level 1'!BE$11/H$112*U$109*AH$109,"*") -> 21.00696918 | BI51: =IFERROR('Level 1'!BF$11/I$112*V$109*AI$109,"*") -> 23.18222238 | BJ51: =IFERROR('Level 1'!BG$11/J$112*W$109*AJ$109,"*") -> 22.60935326 | BK51: =IFERROR('Level 1'!BH$11/K$112*X$109*AK$109,"*") -> 22.55821516 | BL51: =IFERROR('Level 1'!BI$11/L$112*Y$109*AL$109,"*") -> 19.99683669 | BM51: =IFERROR('Level 1'!BJ$11/M$112*Z$109*AM$109,"*") -> 17.68812924 | BN51: =IFERROR('Level 1'!BK$11/N$112*AA$109*AN$109,"*") -> 13.20831259 | BO51: =IFERROR('Level 1'!BL$11/O$112*AB$109*AO$109,"*") -> * | BQ51: ='Oversættelse af landenavne'!$B$11 -> Tyskland | BR51: =IFERROR('Level 1'!BO$11/E$112*R$109*AE$109,"*") -> * | BS51: =IFERROR('Level 1'!BP$11/F$112*S$109*AF$109,"*") -> * | BT51: =IFERROR('Level 1'!BQ$11/G$112*T$109*AG$109,"*") -> * | BU51: =IFERROR('Level 1'!BR$11/H$112*U$109*AH$109,"*") -> 21.37192695 | BV51: =IFERROR('Level 1'!BS$11/I$112*V$109*AI$109,"*") -> 22.11205117 | BW51: =IFERROR('Level 1'!BT$11/J$112*W$109*AJ$109,"*") -> 21.31291271 | BX51: =IFERROR('Level 1'!BU$11/K$112*X$109*AK$109,"*") -> 21.91569015 | BY51: =IFERROR('Level 1'!BV$11/L$112*Y$109*AL$109,"*") -> 18.65366329 | BZ51: =IFERROR('Level 1'!BW$11/M$112*Z$109*AM$109,"*") -> 16.48120609 | CA51: =IFERROR('Level 1'!BX$11/N$112*AA$109*AN$109,"*") -> 12.10761987 | CB51: =IFERROR('Level 1'!BY$11/O$112*AB$109*AO$109,"*") -> *
D52: ='Oversættelse af landenavne'!$B$16 -> Frankrig | E52: =IFERROR('Level 1'!B$16/E$113*R$109*AE$109,"*") -> 32.9978913 | F52: =IFERROR('Level 1'!C$16/F$113*S$109*AF$109,"*") -> 32.80603138 | G52: =IFERROR('Level 1'!D$16/G$113*T$109*AG$109,"*") -> 33.43095776 | H52: =IFERROR('Level 1'!E$16/H$113*U$109*AH$109,"*") -> 33.75162921 | I52: =IFERROR('Level 1'!F$16/I$113*V$109*AI$109,"*") -> 37.7593278 | J52: =IFERROR('Level 1'!G$16/J$113*W$109*AJ$109,"*") -> 44.01956566 | K52: =IFERROR('Level 1'!H$16/K$113*X$109*AK$109,"*") -> 45.19172151 | L52: =IFERROR('Level 1'!I$16/L$113*Y$109*AL$109,"*") -> 42.00986033 | M52: =IFERROR('Level 1'!J$16/M$113*Z$109*AM$109,"*") -> 37.81692529 | N52: =IFERROR('Level 1'!K$16/N$113*AA$109*AN$109,"*") -> 30.67013316 | O52: =IFERROR('Level 1'!L$16/O$113*AB$109*AO$109,"*") -> * | Q52: ='Oversættelse af landenavne'!$B$16 -> Frankrig | R52: =IFERROR('Level 1'!O$16/E$113*R$109*AE$109,"*") -> 27.72399252 | S52: =IFERROR('Level 1'!P$16/F$113*S$109*AF$109,"*") -> 29.8793814 | T52: =IFERROR('Level 1'!Q$16/G$113*T$109*AG$109,"*") -> 28.81930782 | U52: =IFERROR('Level 1'!R$16/H$113*U$109*AH$109,"*") -> 29.04500547 | V52: =IFERROR('Level 1'!S$16/I$113*V$109*AI$109,"*") -> 32.98071499 | W52: =IFERROR('Level 1'!T$16/J$113*W$109*AJ$109,"*") -> 36.72856861 | X52: =IFERROR('Level 1'!U$16/K$113*X$109*AK$109,"*") -> 36.70891268 | Y52: =IFERROR('Level 1'!V$16/L$113*Y$109*AL$109,"*") -> 35.073822 | Z52: =IFERROR('Level 1'!W$16/M$113*Z$109*AM$109,"*") -> 30.37423254 | AA52: =IFERROR('Level 1'!X$16/N$113*AA$109*AN$109,"*") -> 25.50992957 | AB52: =IFERROR('Level 1'!Y$16/O$113*AB$109*AO$109,"*") -> * | AD52: ='Oversættelse af landenavne'!$B$16 -> Frankrig | AE52: =IFERROR('Level 1'!AB$16/E$113*R$109*AE$109,"*") -> 24.03514528 | AF52: =IFERROR('Level 1'!AC$16/F$113*S$109*AF$109,"*") -> 27.6443317 | AG52: =IFERROR('Level 1'!AD$16/G$113*T$109*AG$109,"*") -> 25.59535802 | AH52: =IFERROR('Level 1'!AE$16/H$113*U$109*AH$109,"*") -> 25.4490894 | AI52: =IFERROR('Level 1'!AF$16/I$113*V$109*AI$109,"*") -> 27.67728343 | AJ52: =IFERROR('Level 1'!AG$16/J$113*W$109*AJ$109,"*") -> 29.2460632 | AK52: =IFERROR('Level 1'!AH$16/K$113*X$109*AK$109,"*") -> 29.2336927 | AL52: =IFERROR('Level 1'!AI$16/L$113*Y$109*AL$109,"*") -> 27.63556563 | AM52: =IFERROR('Level 1'!AJ$16/M$113*Z$109*AM$109,"*") -> 25.27833481 | AN52: =IFERROR('Level 1'!AK$16/N$113*AA$109*AN$109,"*") -> 20.95836537 | AO52: =IFERROR('Level 1'!AL$16/O$113*AB$109*AO$109,"*") -> * | AQ52: ='Oversættelse af landenavne'!$B$16 -> Frankrig | AR52: =IFERROR('Level 1'!AO$16/E$113*R$109*AE$109,"*") -> 21.06677602 | AS52: =IFERROR('Level 1'!AP$16/F$113*S$109*AF$109,"*") -> 24.42389216 | AT52: =IFERROR('Level 1'!AQ$16/G$113*T$109*AG$109,"*") -> 21.67054956 | AU52: =IFERROR('Level 1'!AR$16/H$113*U$109*AH$109,"*") -> 20.54809182 | AV52: =IFERROR('Level 1'!AS$16/I$113*V$109*AI$109,"*") -> 20.79939563 | AW52: =IFERROR('Level 1'!AT$16/J$113*W$109*AJ$109,"*") -> 22.69374128 | AX52: =IFERROR('Level 1'!AU$16/K$113*X$109*AK$109,"*") -> 23.93704321 | AY52: =IFERROR('Level 1'!AV$16/L$113*Y$109*AL$109,"*") -> 22.6269587 | AZ52: =IFERROR('Level 1'!AW$16/M$113*Z$109*AM$109,"*") -> 20.87977045 | BA52: =IFERROR('Level 1'!AX$16/N$113*AA$109*AN$109,"*") -> 15.82462436 | BB52: =IFERROR('Level 1'!AY$16/O$113*AB$109*AO$109,"*") -> * | BD52: ='Oversættelse af landenavne'!$B$16 -> Frankrig | BE52: =IFERROR('Level 1'!BB$16/E$113*R$109*AE$109,"*") -> 19.71227742 | BF52: =IFERROR('Level 1'!BC$16/F$113*S$109*AF$109,"*") -> 23.92065456 | BG52: =IFERROR('Level 1'!BD$16/G$113*T$109*AG$109,"*") -> 19.30164731 | BH52: =IFERROR('Level 1'!BE$16/H$113*U$109*AH$109,"*") -> 17.61860035 | BI52: =IFERROR('Level 1'!BF$16/I$113*V$109*AI$109,"*") -> 21.32421438 | BJ52: =IFERROR('Level 1'!BG$16/J$113*W$109*AJ$109,"*") -> 23.26826637 | BK52: =IFERROR('Level 1'!BH$16/K$113*X$109*AK$109,"*") -> 22.35757961 | BL52: =IFERROR('Level 1'!BI$16/L$113*Y$109*AL$109,"*") -> 20.55021924 | BM52: =IFERROR('Level 1'!BJ$16/M$113*Z$109*AM$109,"*") -> 18.1708985 | BN52: =IFERROR('Level 1'!BK$16/N$113*AA$109*AN$109,"*") -> 12.19925055 | BO52: =IFERROR('Level 1'!BL$16/O$113*AB$109*AO$109,"*") -> * | BQ52: ='Oversættelse af landenavne'!$B$16 -> Frankrig | BR52: =IFERROR('Level 1'!BO$16/E$113*R$109*AE$109,"*") -> * | BS52: =IFERROR('Level 1'!BP$16/F$113*S$109*AF$109,"*") -> * | BT52: =IFERROR('Level 1'!BQ$16/G$113*T$109*AG$109,"*") -> * | BU52: =IFERROR('Level 1'!BR$16/H$113*U$109*AH$109,"*") -> * | BV52: =IFERROR('Level 1'!BS$16/I$113*V$109*AI$109,"*") -> * | BW52: =IFERROR('Level 1'!BT$16/J$113*W$109*AJ$109,"*") -> * | BX52: =IFERROR('Level 1'!BU$16/K$113*X$109*AK$109,"*") -> * | BY52: =IFERROR('Level 1'!BV$16/L$113*Y$109*AL$109,"*") -> * | BZ52: =IFERROR('Level 1'!BW$16/M$113*Z$109*AM$109,"*") -> * | CA52: =IFERROR('Level 1'!BX$16/N$113*AA$109*AN$109,"*") -> * | CB52: =IFERROR('Level 1'!BY$16/O$113*AB$109*AO$109,"*") -> *
D53: ='Oversættelse af landenavne'!$B$18 -> Italien | E53: =IFERROR('Level 1'!B$18/E$114*R$109*AE$109,"*") -> 28.71532328 | F53: =IFERROR('Level 1'!C$18/F$114*S$109*AF$109,"*") -> 31.90099343 | G53: =IFERROR('Level 1'!D$18/G$114*T$109*AG$109,"*") -> 32.73628041 | H53: =IFERROR('Level 1'!E$18/H$114*U$109*AH$109,"*") -> 30.06804234 | I53: =IFERROR('Level 1'!F$18/I$114*V$109*AI$109,"*") -> 33.98944136 | J53: =IFERROR('Level 1'!G$18/J$114*W$109*AJ$109,"*") -> 39.47480684 | K53: =IFERROR('Level 1'!H$18/K$114*X$109*AK$109,"*") -> 40.44369991 | L53: =IFERROR('Level 1'!I$18/L$114*Y$109*AL$109,"*") -> 37.7757864 | M53: =IFERROR('Level 1'!J$18/M$114*Z$109*AM$109,"*") -> 36.48930983 | N53: =IFERROR('Level 1'!K$18/N$114*AA$109*AN$109,"*") -> 32.46436433 | O53: =IFERROR('Level 1'!L$18/O$114*AB$109*AO$109,"*") -> * | Q53: ='Oversættelse af landenavne'!$B$18 -> Italien | R53: =IFERROR('Level 1'!O$18/E$114*R$109*AE$109,"*") -> 28.28801192 | S53: =IFERROR('Level 1'!P$18/F$114*S$109*AF$109,"*") -> 31.63747905 | T53: =IFERROR('Level 1'!Q$18/G$114*T$109*AG$109,"*") -> 30.45404915 | U53: =IFERROR('Level 1'!R$18/H$114*U$109*AH$109,"*") -> 26.37399667 | V53: =IFERROR('Level 1'!S$18/I$114*V$109*AI$109,"*") -> 29.47879684 | W53: =IFERROR('Level 1'!T$18/J$114*W$109*AJ$109,"*") -> 34.64003579 | X53: =IFERROR('Level 1'!U$18/K$114*X$109*AK$109,"*") -> 34.7902795 | Y53: =IFERROR('Level 1'!V$18/L$114*Y$109*AL$109,"*") -> 31.55643717 | Z53: =IFERROR('Level 1'!W$18/M$114*Z$109*AM$109,"*") -> 29.85123251 | AA53: =IFERROR('Level 1'!X$18/N$114*AA$109*AN$109,"*") -> 27.17761432 | AB53: =IFERROR('Level 1'!Y$18/O$114*AB$109*AO$109,"*") -> * | AD53: ='Oversættelse af landenavne'!$B$18 -> Italien | AE53: =IFERROR('Level 1'!AB$18/E$114*R$109*AE$109,"*") -> 23.68483715 | AF53: =IFERROR('Level 1'!AC$18/F$114*S$109*AF$109,"*") -> 28.06428136 | AG53: =IFERROR('Level 1'!AD$18/G$114*T$109*AG$109,"*") -> 24.96716145 | AH53: =IFERROR('Level 1'!AE$18/H$114*U$109*AH$109,"*") -> 22.07434671 | AI53: =IFERROR('Level 1'!AF$18/I$114*V$109*AI$109,"*") -> 23.87171872 | AJ53: =IFERROR('Level 1'!AG$18/J$114*W$109*AJ$109,"*") -> 28.76139371 | AK53: =IFERROR('Level 1'!AH$18/K$114*X$109*AK$109,"*") -> 27.58760444 | AL53: =IFERROR('Level 1'!AI$18/L$114*Y$109*AL$109,"*") -> 25.12076275 | AM53: =IFERROR('Level 1'!AJ$18/M$114*Z$109*AM$109,"*") -> 23.42771932 | AN53: =IFERROR('Level 1'!AK$18/N$114*AA$109*AN$109,"*") -> 21.25326633 | AO53: =IFERROR('Level 1'!AL$18/O$114*AB$109*AO$109,"*") -> * | AQ53: ='Oversættelse af landenavne'!$B$18 -> Italien | AR53: =IFERROR('Level 1'!AO$18/E$114*R$109*AE$109,"*") -> 21.37146187 | AS53: =IFERROR('Level 1'!AP$18/F$114*S$109*AF$109,"*") -> 26.48319509 | AT53: =IFERROR('Level 1'!AQ$18/G$114*T$109*AG$109,"*") -> 22.20409153 | AU53: =IFERROR('Level 1'!AR$18/H$114*U$109*AH$109,"*") -> 20.13528888 | AV53: =IFERROR('Level 1'!AS$18/I$114*V$109*AI$109,"*") -> 21.95642966 | AW53: =IFERROR('Level 1'!AT$18/J$114*W$109*AJ$109,"*") -> 26.26159732 | AX53: =IFERROR('Level 1'!AU$18/K$114*X$109*AK$109,"*") -> 24.70653442 | AY53: =IFERROR('Level 1'!AV$18/L$114*Y$109*AL$109,"*") -> 22.3761369 | AZ53: =IFERROR('Level 1'!AW$18/M$114*Z$109*AM$109,"*") -> 20.71884737 | BA53: =IFERROR('Level 1'!AX$18/N$114*AA$109*AN$109,"*") -> 18.06527638 | BB53: =IFERROR('Level 1'!AY$18/O$114*AB$109*AO$109,"*") -> * | BD53: ='Oversættelse af landenavne'!$B$18 -> Italien | BE53: =IFERROR('Level 1'!BB$18/E$114*R$109*AE$109,"*") -> 20.67450231 | BF53: =IFERROR('Level 1'!BC$18/F$114*S$109*AF$109,"*") -> 26.18244498 | BG53: =IFERROR('Level 1'!BD$18/G$114*T$109*AG$109,"*") -> 21.65315978 | BH53: =IFERROR('Level 1'!BE$18/H$114*U$109*AH$109,"*") -> 20.09313545 | BI53: =IFERROR('Level 1'!BF$18/I$114*V$109*AI$109,"*") -> 21.78988278 | BJ53: =IFERROR('Level 1'!BG$18/J$114*W$109*AJ$109,"*") -> 26.53630022 | BK53: =IFERROR('Level 1'!BH$18/K$114*X$109*AK$109,"*") -> 24.35319565 | BL53: =IFERROR('Level 1'!BI$18/L$114*Y$109*AL$109,"*") -> 21.57843776 | BM53: =IFERROR('Level 1'!BJ$18/M$114*Z$109*AM$109,"*") -> 19.73989859 | BN53: =IFERROR('Level 1'!BK$18/N$114*AA$109*AN$109,"*") -> 17.18857915 | BO53: =IFERROR('Level 1'!BL$18/O$114*AB$109*AO$109,"*") -> * | BQ53: ='Oversættelse af landenavne'!$B$18 -> Italien | BR53: =IFERROR('Level 1'!BO$18/E$114*R$109*AE$109,"*") -> 19.57822765 | BS53: =IFERROR('Level 1'!BP$18/F$114*S$109*AF$109,"*") -> 25.50647331 | BT53: =IFERROR('Level 1'!BQ$18/G$114*T$109*AG$109,"*") -> 20.65783779 | BU53: =IFERROR('Level 1'!BR$18/H$114*U$109*AH$109,"*") -> 19.81211258 | BV53: =IFERROR('Level 1'!BS$18/I$114*V$109*AI$109,"*") -> 21.80376169 | BW53: =IFERROR('Level 1'!BT$18/J$114*W$109*AJ$109,"*") -> 25.62978064 | BX53: =IFERROR('Level 1'!BU$18/K$114*X$109*AK$109,"*") -> 23.02138026 | BY53: =IFERROR('Level 1'!BV$18/L$114*Y$109*AL$109,"*") -> 20.97002316 | BZ53: =IFERROR('Level 1'!BW$18/M$114*Z$109*AM$109,"*") -> 19.33759087 | CA53: =IFERROR('Level 1'!BX$18/N$114*AA$109*AN$109,"*") -> 16.52441457 | CB53: =IFERROR('Level 1'!BY$18/O$114*AB$109*AO$109,"*") -> *
D54: ='Oversættelse af landenavne'!$B$23 -> Holland | E54: =IFERROR('Level 1'!B$23/E$115*R$109*AE$109,"*") -> 33.6305861 | F54: =IFERROR('Level 1'!C$23/F$115*S$109*AF$109,"*") -> 33.91897456 | G54: =IFERROR('Level 1'!D$23/G$115*T$109*AG$109,"*") -> 33.80058659 | H54: =IFERROR('Level 1'!E$23/H$115*U$109*AH$109,"*") -> 29.11070343 | I54: =IFERROR('Level 1'!F$23/I$115*V$109*AI$109,"*") -> 30.45964178 | J54: =IFERROR('Level 1'!G$23/J$115*W$109*AJ$109,"*") -> 33.7308206 | K54: =IFERROR('Level 1'!H$23/K$115*X$109*AK$109,"*") -> 33.23947169 | L54: =IFERROR('Level 1'!I$23/L$115*Y$109*AL$109,"*") -> 32.1130127 | M54: =IFERROR('Level 1'!J$23/M$115*Z$109*AM$109,"*") -> 30.07920689 | N54: =IFERROR('Level 1'!K$23/N$115*AA$109*AN$109,"*") -> 27.05402229 | O54: =IFERROR('Level 1'!L$23/O$115*AB$109*AO$109,"*") -> * | Q54: ='Oversættelse af landenavne'!$B$23 -> Holland | R54: =IFERROR('Level 1'!O$23/E$115*R$109*AE$109,"*") -> 31.34445391 | S54: =IFERROR('Level 1'!P$23/F$115*S$109*AF$109,"*") -> 30.35298965 | T54: =IFERROR('Level 1'!Q$23/G$115*T$109*AG$109,"*") -> 31.78764843 | U54: =IFERROR('Level 1'!R$23/H$115*U$109*AH$109,"*") -> 26.55883614 | V54: =IFERROR('Level 1'!S$23/I$115*V$109*AI$109,"*") -> 27.79771587 | W54: =IFERROR('Level 1'!T$23/J$115*W$109*AJ$109,"*") -> 28.50472663 | X54: =IFERROR('Level 1'!U$23/K$115*X$109*AK$109,"*") -> 28.58214375 | Y54: =IFERROR('Level 1'!V$23/L$115*Y$109*AL$109,"*") -> 28.46105028 | Z54: =IFERROR('Level 1'!W$23/M$115*Z$109*AM$109,"*") -> 26.40479642 | AA54: =IFERROR('Level 1'!X$23/N$115*AA$109*AN$109,"*") -> 22.84265724 | AB54: =IFERROR('Level 1'!Y$23/O$115*AB$109*AO$109,"*") -> * | AD54: ='Oversættelse af landenavne'!$B$23 -> Holland | AE54: =IFERROR('Level 1'!AB$23/E$115*R$109*AE$109,"*") -> 24.58670467 | AF54: =IFERROR('Level 1'!AC$23/F$115*S$109*AF$109,"*") -> 24.28800744 | AG54: =IFERROR('Level 1'!AD$23/G$115*T$109*AG$109,"*") -> 24.36493897 | AH54: =IFERROR('Level 1'!AE$23/H$115*U$109*AH$109,"*") -> 20.31785637 | AI54: =IFERROR('Level 1'!AF$23/I$115*V$109*AI$109,"*") -> 21.47564183 | AJ54: =IFERROR('Level 1'!AG$23/J$115*W$109*AJ$109,"*") -> 22.69189104 | AK54: =IFERROR('Level 1'!AH$23/K$115*X$109*AK$109,"*") -> 22.83855857 | AL54: =IFERROR('Level 1'!AI$23/L$115*Y$109*AL$109,"*") -> 21.81744337 | AM54: =IFERROR('Level 1'!AJ$23/M$115*Z$109*AM$109,"*") -> 19.63261653 | AN54: =IFERROR('Level 1'!AK$23/N$115*AA$109*AN$109,"*") -> 16.76549756 | AO54: =IFERROR('Level 1'!AL$23/O$115*AB$109*AO$109,"*") -> * | AQ54: ='Oversættelse af landenavne'!$B$23 -> Holland | AR54: =IFERROR('Level 1'!AO$23/E$115*R$109*AE$109,"*") -> 21.25096462 | AS54: =IFERROR('Level 1'!AP$23/F$115*S$109*AF$109,"*") -> 22.98235155 | AT54: =IFERROR('Level 1'!AQ$23/G$115*T$109*AG$109,"*") -> 21.84876627 | AU54: =IFERROR('Level 1'!AR$23/H$115*U$109*AH$109,"*") -> 18.27913631 | AV54: =IFERROR('Level 1'!AS$23/I$115*V$109*AI$109,"*") -> 19.63170357 | AW54: =IFERROR('Level 1'!AT$23/J$115*W$109*AJ$109,"*") -> 21.21821441 | AX54: =IFERROR('Level 1'!AU$23/K$115*X$109*AK$109,"*") -> 22.29542995 | AY54: =IFERROR('Level 1'!AV$23/L$115*Y$109*AL$109,"*") -> 19.7152067 | AZ54: =IFERROR('Level 1'!AW$23/M$115*Z$109*AM$109,"*") -> 18.51956519 | BA54: =IFERROR('Level 1'!AX$23/N$115*AA$109*AN$109,"*") -> 15.11293659 | BB54: =IFERROR('Level 1'!AY$23/O$115*AB$109*AO$109,"*") -> * | BD54: ='Oversættelse af landenavne'!$B$23 -> Holland | BE54: =IFERROR('Level 1'!BB$23/E$115*R$109*AE$109,"*") -> 19.52558184 | BF54: =IFERROR('Level 1'!BC$23/F$115*S$109*AF$109,"*") -> 22.16807153 | BG54: =IFERROR('Level 1'!BD$23/G$115*T$109*AG$109,"*") -> 19.26269989 | BH54: =IFERROR('Level 1'!BE$23/H$115*U$109*AH$109,"*") -> 16.351367 | BI54: =IFERROR('Level 1'!BF$23/I$115*V$109*AI$109,"*") -> 18.10664186 | BJ54: =IFERROR('Level 1'!BG$23/J$115*W$109*AJ$109,"*") -> 19.1168607 | BK54: =IFERROR('Level 1'!BH$23/K$115*X$109*AK$109,"*") -> 20.58457479 | BL54: =IFERROR('Level 1'!BI$23/L$115*Y$109*AL$109,"*") -> 19.28397867 | BM54: =IFERROR('Level 1'!BJ$23/M$115*Z$109*AM$109,"*") -> 18.19771901 | BN54: =IFERROR('Level 1'!BK$23/N$115*AA$109*AN$109,"*") -> 14.57985241 | BO54: =IFERROR('Level 1'!BL$23/O$115*AB$109*AO$109,"*") -> * | BQ54: ='Oversættelse af landenavne'!$B$23 -> Holland | BR54: =IFERROR('Level 1'!BO$23/E$115*R$109*AE$109,"*") -> 17.73693502 | BS54: =IFERROR('Level 1'!BP$23/F$115*S$109*AF$109,"*") -> * | BT54: =IFERROR('Level 1'!BQ$23/G$115*T$109*AG$109,"*") -> * | BU54: =IFERROR('Level 1'!BR$23/H$115*U$109*AH$109,"*") -> * | BV54: =IFERROR('Level 1'!BS$23/I$115*V$109*AI$109,"*") -> * | BW54: =IFERROR('Level 1'!BT$23/J$115*W$109*AJ$109,"*") -> * | BX54: =IFERROR('Level 1'!BU$23/K$115*X$109*AK$109,"*") -> * | BY54: =IFERROR('Level 1'!BV$23/L$115*Y$109*AL$109,"*") -> * | BZ54: =IFERROR('Level 1'!BW$23/M$115*Z$109*AM$109,"*") -> * | CA54: =IFERROR('Level 1'!BX$23/N$115*AA$109*AN$109,"*") -> * | CB54: =IFERROR('Level 1'!BY$23/O$115*AB$109*AO$109,"*") -> *
D55: ='Oversættelse af landenavne'!$B$31 -> Sverige | E55: =IFERROR('Level 1'!B$31/E$116*R$109*AE$109,"*") -> 41.63678454 | F55: =IFERROR('Level 1'!C$31/F$116*S$109*AF$109,"*") -> 49.69642433 | G55: =IFERROR('Level 1'!D$31/G$116*T$109*AG$109,"*") -> 44.0035944 | H55: =IFERROR('Level 1'!E$31/H$116*U$109*AH$109,"*") -> 44.57685715 | I55: =IFERROR('Level 1'!F$31/I$116*V$109*AI$109,"*") -> 44.2655021 | J55: =IFERROR('Level 1'!G$31/J$116*W$109*AJ$109,"*") -> 47.16789057 | K55: =IFERROR('Level 1'!H$31/K$116*X$109*AK$109,"*") -> 47.21014166 | L55: =IFERROR('Level 1'!I$31/L$116*Y$109*AL$109,"*") -> 42.5526809 | M55: =IFERROR('Level 1'!J$31/M$116*Z$109*AM$109,"*") -> 44.32733695 | N55: =IFERROR('Level 1'!K$31/N$116*AA$109*AN$109,"*") -> 39.00104732 | O55: =IFERROR('Level 1'!L$31/O$116*AB$109*AO$109,"*") -> * | Q55: ='Oversættelse af landenavne'!$B$31 -> Sverige | R55: =IFERROR('Level 1'!O$31/E$116*R$109*AE$109,"*") -> 37.17051459 | S55: =IFERROR('Level 1'!P$31/F$116*S$109*AF$109,"*") -> 43.97976259 | T55: =IFERROR('Level 1'!Q$31/G$116*T$109*AG$109,"*") -> 39.59242659 | U55: =IFERROR('Level 1'!R$31/H$116*U$109*AH$109,"*") -> 37.73059317 | V55: =IFERROR('Level 1'!S$31/I$116*V$109*AI$109,"*") -> 38.98858775 | W55: =IFERROR('Level 1'!T$31/J$116*W$109*AJ$109,"*") -> 38.97325707 | X55: =IFERROR('Level 1'!U$31/K$116*X$109*AK$109,"*") -> 39.10989099 | Y55: =IFERROR('Level 1'!V$31/L$116*Y$109*AL$109,"*") -> 34.71589606 | Z55: =IFERROR('Level 1'!W$31/M$116*Z$109*AM$109,"*") -> 34.26267072 | AA55: =IFERROR('Level 1'!X$31/N$116*AA$109*AN$109,"*") -> 29.83402954 | AB55: =IFERROR('Level 1'!Y$31/O$116*AB$109*AO$109,"*") -> * | AD55: ='Oversættelse af landenavne'!$B$31 -> Sverige | AE55: =IFERROR('Level 1'!AB$31/E$116*R$109*AE$109,"*") -> 32.13967652 | AF55: =IFERROR('Level 1'!AC$31/F$116*S$109*AF$109,"*") -> 38.8193967 | AG55: =IFERROR('Level 1'!AD$31/G$116*T$109*AG$109,"*") -> 32.32824335 | AH55: =IFERROR('Level 1'!AE$31/H$116*U$109*AH$109,"*") -> 32.25428619 | AI55: =IFERROR('Level 1'!AF$31/I$116*V$109*AI$109,"*") -> 34.04561012 | AJ55: =IFERROR('Level 1'!AG$31/J$116*W$109*AJ$109,"*") -> 32.5328965 | AK55: =IFERROR('Level 1'!AH$31/K$116*X$109*AK$109,"*") -> 32.79680349 | AL55: =IFERROR('Level 1'!AI$31/L$116*Y$109*AL$109,"*") -> 28.31831967 | AM55: =IFERROR('Level 1'!AJ$31/M$116*Z$109*AM$109,"*") -> 25.74742561 | AN55: =IFERROR('Level 1'!AK$31/N$116*AA$109*AN$109,"*") -> 21.38916842 | AO55: =IFERROR('Level 1'!AL$31/O$116*AB$109*AO$109,"*") -> * | AQ55: ='Oversættelse af landenavne'!$B$31 -> Sverige | AR55: =IFERROR('Level 1'!AO$31/E$116*R$109*AE$109,"*") -> 26.82268125 | AS55: =IFERROR('Level 1'!AP$31/F$116*S$109*AF$109,"*") -> 33.29127358 | AT55: =IFERROR('Level 1'!AQ$31/G$116*T$109*AG$109,"*") -> 27.17021027 | AU55: =IFERROR('Level 1'!AR$31/H$116*U$109*AH$109,"*") -> 29.35592784 | AV55: =IFERROR('Level 1'!AS$31/I$116*V$109*AI$109,"*") -> 30.551981 | AW55: =IFERROR('Level 1'!AT$31/J$116*W$109*AJ$109,"*") -> 28.79127642 | AX55: =IFERROR('Level 1'!AU$31/K$116*X$109*AK$109,"*") -> 27.83188836 | AY55: =IFERROR('Level 1'!AV$31/L$116*Y$109*AL$109,"*") -> 24.20260675 | AZ55: =IFERROR('Level 1'!AW$31/M$116*Z$109*AM$109,"*") -> 23.27296495 | BA55: =IFERROR('Level 1'!AX$31/N$116*AA$109*AN$109,"*") -> 18.94365884 | BB55: =IFERROR('Level 1'!AY$31/O$116*AB$109*AO$109,"*") -> * | BD55: ='Oversættelse af landenavne'!$B$31 -> Sverige | BE55: =IFERROR('Level 1'!BB$31/E$116*R$109*AE$109,"*") -> 26.02906586 | BF55: =IFERROR('Level 1'!BC$31/F$116*S$109*AF$109,"*") -> 35.5580149 | BG55: =IFERROR('Level 1'!BD$31/G$116*T$109*AG$109,"*") -> 26.75501052 | BH55: =IFERROR('Level 1'!BE$31/H$116*U$109*AH$109,"*") -> 27.17350331 | BI55: =IFERROR('Level 1'!BF$31/I$116*V$109*AI$109,"*") -> 27.78268273 | BJ55: =IFERROR('Level 1'!BG$31/J$116*W$109*AJ$109,"*") -> 27.97244124 | BK55: =IFERROR('Level 1'!BH$31/K$116*X$109*AK$109,"*") -> 27.27299697 | BL55: =IFERROR('Level 1'!BI$31/L$116*Y$109*AL$109,"*") -> 23.75219692 | BM55: =IFERROR('Level 1'!BJ$31/M$116*Z$109*AM$109,"*") -> 22.41926798 | BN55: =IFERROR('Level 1'!BK$31/N$116*AA$109*AN$109,"*") -> 18.87403387 | BO55: =IFERROR('Level 1'!BL$31/O$116*AB$109*AO$109,"*") -> * | BQ55: ='Oversættelse af landenavne'!$B$31 -> Sverige | BR55: =IFERROR('Level 1'!BO$31/E$116*R$109*AE$109,"*") -> * | BS55: =IFERROR('Level 1'!BP$31/F$116*S$109*AF$109,"*") -> * | BT55: =IFERROR('Level 1'!BQ$31/G$116*T$109*AG$109,"*") -> * | BU55: =IFERROR('Level 1'!BR$31/H$116*U$109*AH$109,"*") -> * | BV55: =IFERROR('Level 1'!BS$31/I$116*V$109*AI$109,"*") -> * | BW55: =IFERROR('Level 1'!BT$31/J$116*W$109*AJ$109,"*") -> * | BX55: =IFERROR('Level 1'!BU$31/K$116*X$109*AK$109,"*") -> * | BY55: =IFERROR('Level 1'!BV$31/L$116*Y$109*AL$109,"*") -> * | BZ55: =IFERROR('Level 1'!BW$31/M$116*Z$109*AM$109,"*") -> * | CA55: =IFERROR('Level 1'!BX$31/N$116*AA$109*AN$109,"*") -> * | CB55: =IFERROR('Level 1'!BY$31/O$116*AB$109*AO$109,"*") -> *
D56: ='Oversættelse af landenavne'!$B$32 -> UK | E56: =IFERROR('Level 1'!B$32/E$117*R$109*AE$109,"*") -> 32.17741559 | F56: =IFERROR('Level 1'!C$32/F$117*S$109*AF$109,"*") -> 36.76009042 | G56: =IFERROR('Level 1'!D$32/G$117*T$109*AG$109,"*") -> 38.77531406 | H56: =IFERROR('Level 1'!E$32/H$117*U$109*AH$109,"*") -> 34.2597728 | I56: =IFERROR('Level 1'!F$32/I$117*V$109*AI$109,"*") -> 36.38028162 | J56: =IFERROR('Level 1'!G$32/J$117*W$109*AJ$109,"*") -> 42.41509957 | K56: =IFERROR('Level 1'!H$32/K$117*X$109*AK$109,"*") -> 43.59959927 | L56: =IFERROR('Level 1'!I$32/L$117*Y$109*AL$109,"*") -> 45.26845477 | M56: =IFERROR('Level 1'!J$32/M$117*Z$109*AM$109,"*") -> 43.31995843 | N56: =IFERROR('Level 1'!K$32/N$117*AA$109*AN$109,"*") -> 33.26535768 | O56: =IFERROR('Level 1'!L$32/O$117*AB$109*AO$109,"*") -> * | Q56: ='Oversættelse af landenavne'!$B$32 -> UK | R56: =IFERROR('Level 1'!O$32/E$117*R$109*AE$109,"*") -> 27.58532698 | S56: =IFERROR('Level 1'!P$32/F$117*S$109*AF$109,"*") -> 29.42365075 | T56: =IFERROR('Level 1'!Q$32/G$117*T$109*AG$109,"*") -> 27.66991075 | U56: =IFERROR('Level 1'!R$32/H$117*U$109*AH$109,"*") -> 25.09962795 | V56: =IFERROR('Level 1'!S$32/I$117*V$109*AI$109,"*") -> 27.3102466 | W56: =IFERROR('Level 1'!T$32/J$117*W$109*AJ$109,"*") -> 30.90546204 | X56: =IFERROR('Level 1'!U$32/K$117*X$109*AK$109,"*") -> 32.92536121 | Y56: =IFERROR('Level 1'!V$32/L$117*Y$109*AL$109,"*") -> 32.1485879 | Z56: =IFERROR('Level 1'!W$32/M$117*Z$109*AM$109,"*") -> 28.28183011 | AA56: =IFERROR('Level 1'!X$32/N$117*AA$109*AN$109,"*") -> 20.69435665 | AB56: =IFERROR('Level 1'!Y$32/O$117*AB$109*AO$109,"*") -> * | AD56: ='Oversættelse af landenavne'!$B$32 -> UK | AE56: =IFERROR('Level 1'!AB$32/E$117*R$109*AE$109,"*") -> 22.21806147 | AF56: =IFERROR('Level 1'!AC$32/F$117*S$109*AF$109,"*") -> 25.73421775 | AG56: =IFERROR('Level 1'!AD$32/G$117*T$109*AG$109,"*") -> 24.15248203 | AH56: =IFERROR('Level 1'!AE$32/H$117*U$109*AH$109,"*") -> 20.30327338 | AI56: =IFERROR('Level 1'!AF$32/I$117*V$109*AI$109,"*") -> 23.45046189 | AJ56: =IFERROR('Level 1'!AG$32/J$117*W$109*AJ$109,"*") -> 27.35785369 | AK56: =IFERROR('Level 1'!AH$32/K$117*X$109*AK$109,"*") -> 30.31767863 | AL56: =IFERROR('Level 1'!AI$32/L$117*Y$109*AL$109,"*") -> 28.47093857 | AM56: =IFERROR('Level 1'!AJ$32/M$117*Z$109*AM$109,"*") -> 25.08442249 | AN56: =IFERROR('Level 1'!AK$32/N$117*AA$109*AN$109,"*") -> 18.37782957 | AO56: =IFERROR('Level 1'!AL$32/O$117*AB$109*AO$109,"*") -> * | AQ56: ='Oversættelse af landenavne'!$B$32 -> UK | AR56: =IFERROR('Level 1'!AO$32/E$117*R$109*AE$109,"*") -> 18.82116596 | AS56: =IFERROR('Level 1'!AP$32/F$117*S$109*AF$109,"*") -> 24.81525692 | AT56: =IFERROR('Level 1'!AQ$32/G$117*T$109*AG$109,"*") -> 21.86938739 | AU56: =IFERROR('Level 1'!AR$32/H$117*U$109*AH$109,"*") -> 18.96147259 | AV56: =IFERROR('Level 1'!AS$32/I$117*V$109*AI$109,"*") -> 22.60801483 | AW56: =IFERROR('Level 1'!AT$32/J$117*W$109*AJ$109,"*") -> 25.12728325 | AX56: =IFERROR('Level 1'!AU$32/K$117*X$109*AK$109,"*") -> 26.89798269 | AY56: =IFERROR('Level 1'!AV$32/L$117*Y$109*AL$109,"*") -> 23.84139016 | AZ56: =IFERROR('Level 1'!AW$32/M$117*Z$109*AM$109,"*") -> 20.38949145 | BA56: =IFERROR('Level 1'!AX$32/N$117*AA$109*AN$109,"*") -> 14.26973946 | BB56: =IFERROR('Level 1'!AY$32/O$117*AB$109*AO$109,"*") -> * | BD56: ='Oversættelse af landenavne'!$B$32 -> UK | BE56: =IFERROR('Level 1'!BB$32/E$117*R$109*AE$109,"*") -> 14.89939729 | BF56: =IFERROR('Level 1'!BC$32/F$117*S$109*AF$109,"*") -> 23.37441915 | BG56: =IFERROR('Level 1'!BD$32/G$117*T$109*AG$109,"*") -> 16.32668509 | BH56: =IFERROR('Level 1'!BE$32/H$117*U$109*AH$109,"*") -> 17.27600457 | BI56: =IFERROR('Level 1'!BF$32/I$117*V$109*AI$109,"*") -> 21.92181576 | BJ56: =IFERROR('Level 1'!BG$32/J$117*W$109*AJ$109,"*") -> 22.58228695 | BK56: =IFERROR('Level 1'!BH$32/K$117*X$109*AK$109,"*") -> 23.74377117 | BL56: =IFERROR('Level 1'!BI$32/L$117*Y$109*AL$109,"*") -> 20.88397579 | BM56: =IFERROR('Level 1'!BJ$32/M$117*Z$109*AM$109,"*") -> 17.87654335 | BN56: =IFERROR('Level 1'!BK$32/N$117*AA$109*AN$109,"*") -> 11.79882534 | BO56: =IFERROR('Level 1'!BL$32/O$117*AB$109*AO$109,"*") -> * | BQ56: ='Oversættelse af landenavne'!$B$32 -> UK | BR56: =IFERROR('Level 1'!BO$32/E$117*R$109*AE$109,"*") -> * | BS56: =IFERROR('Level 1'!BP$32/F$117*S$109*AF$109,"*") -> * | BT56: =IFERROR('Level 1'!BQ$32/G$117*T$109*AG$109,"*") -> * | BU56: =IFERROR('Level 1'!BR$32/H$117*U$109*AH$109,"*") -> * | BV56: =IFERROR('Level 1'!BS$32/I$117*V$109*AI$109,"*") -> * | BW56: =IFERROR('Level 1'!BT$32/J$117*W$109*AJ$109,"*") -> * | BX56: =IFERROR('Level 1'!BU$32/K$117*X$109*AK$109,"*") -> * | BY56: =IFERROR('Level 1'!BV$32/L$117*Y$109*AL$109,"*") -> * | BZ56: =IFERROR('Level 1'!BW$32/M$117*Z$109*AM$109,"*") -> * | CA56: =IFERROR('Level 1'!BX$32/N$117*AA$109*AN$109,"*") -> * | CB56: =IFERROR('Level 1'!BY$32/O$117*AB$109*AO$109,"*") -> *
D57: Kilde: Eurostat | Q57: Kilde: Eurostat | AD57: Kilde: Eurostat | AQ57: Kilde: Eurostat | BD57: Kilde: Eurostat | BQ57: Kilde: Eurostat
B62: Level 2: Gaspris inkl. ikke-refunderbare afgifter | D62: ="Figur XX: "&$B$62&" for forbrugsinterval "&D26&". Priserne er vist i "&$E$14&" / "&$E$15&" i "&$E$12&" med basisår "&$E$13&". " -> Figur XX: Level 2: Gaspris inkl. ikke-refunderbare afgifter for forbrugsinterval IA: < 1000 GJ. Priserne er vist i DKK øre / Kwh i faste priser med basisår 2015. | Q62: ="Figur XX: "&$B$62&" for forbrugsinterval "&Q26&". Priserne er vist i "&$E$14&" / "&$E$15&" i "&$E$12&" med basisår "&$E$13&". " -> Figur XX: Level 2: Gaspris inkl. ikke-refunderbare afgifter for forbrugsinterval IB: 1 000 GJ < 10 000 GJ. Priserne er vist i DKK øre / Kwh i faste priser med basisår 2015. | AD62: ="Figur XX: "&$B$62&" for forbrugsinterval "&AD26&". Priserne er vist i "&$E$14&" / "&$E$15&" i "&$E$12&" med basisår "&$E$13&". " -> Figur XX: Level 2: Gaspris inkl. ikke-refunderbare afgifter for forbrugsinterval IC: 10 000 GJ < 100 000 GJ. Priserne er vist i DKK øre / Kwh i faste priser med basisår 2015. | AQ62: ="Figur XX: "&$B$62&" for forbrugsinterval "&AQ26&". Priserne er vist i "&$E$14&" / "&$E$15&" i "&$E$12&" med basisår "&$E$13&". " -> Figur XX: Level 2: Gaspris inkl. ikke-refunderbare afgifter for forbrugsinterval ID: 100 000 GJ < 1 000 000 GJ. Priserne er vist i DKK øre / Kwh i faste priser med basisår 2015. | BD62: ="Figur XX: "&$B$62&" for forbrugsinterval "&BD26&". Priserne er vist i "&$E$14&" / "&$E$15&" i "&$E$12&" med basisår "&$E$13&". " -> Figur XX: Level 2: Gaspris inkl. ikke-refunderbare afgifter for forbrugsinterval IE: 1 000 000 GJ < 4 000 000 GJ. Priserne er vist i DKK øre / Kwh i faste priser med basisår 2015. | BQ62: ="Figur XX: "&$B$62&" for forbrugsinterval "&BQ26&". Priserne er vist i "&$E$14&" / "&$E$15&" i "&$E$12&" med basisår "&$E$13&". " -> Figur XX: Level 2: Gaspris inkl. ikke-refunderbare afgifter for forbrugsinterval IF: > 4 000 000 GJ. Priserne er vist i DKK øre / Kwh i faste priser med basisår 2015. | CD62: =B62 -> Level 2: Gaspris inkl. ikke-refunderbare afgifter
D81: Kilde: Eurostat | Q81: Kilde: Eurostat | AD81: Kilde: Eurostat | AQ81: Kilde: Eurostat | BD81: Kilde: Eurostat | BQ81: Kilde: Eurostat
D82: =$E$14&"/"&$E$15 -> DKK øre/Kwh | E82: ='Level 1'!B5 -> 2007 | F82: ='Level 1'!C5 -> 2008 | G82: ='Level 1'!D5 -> 2009 | H82: ='Level 1'!E5 -> 2010 | I82: ='Level 1'!F5 -> 2011 | J82: ='Level 1'!G5 -> 2012 | K82: ='Level 1'!H5 -> 2013 | L82: ='Level 1'!I5 -> 2014 | M82: ='Level 1'!J5 -> 2015 | N82: ='Level 1'!K5 -> 2016 | O82: ='Level 1'!L5 -> 2017 | Q82: =$E$14&"/"&$E$15 -> DKK øre/Kwh | R82: ='Level 1'!O5 -> 2007 | S82: ='Level 1'!P5 -> 2008 | T82: ='Level 1'!Q5 -> 2009 | U82: ='Level 1'!R5 -> 2010 | V82: ='Level 1'!S5 -> 2011 | W82: ='Level 1'!T5 -> 2012 | X82: ='Level 1'!U5 -> 2013 | Y82: ='Level 1'!V5 -> 2014 | Z82: ='Level 1'!W5 -> 2015 | AA82: ='Level 1'!X5 -> 2016 | AB82: ='Level 1'!Y5 -> 2017 | AD82: =$E$14&"/"&$E$15 -> DKK øre/Kwh | AE82: ='Level 1'!AB5 -> 2007 | AF82: ='Level 1'!AC5 -> 2008 | AG82: ='Level 1'!AD5 -> 2009 | AH82: ='Level 1'!AE5 -> 2010 | AI82: ='Level 1'!AF5 -> 2011 | AJ82: ='Level 1'!AG5 -> 2012 | AK82: ='Level 1'!AH5 -> 2013 | AL82: ='Level 1'!AI5 -> 2014 | AM82: ='Level 1'!AJ5 -> 2015 | AN82: ='Level 1'!AK5 -> 2016 | AO82: ='Level 1'!AL5 -> 2017 | AQ82: =$E$14&"/"&$E$15 -> DKK øre/Kwh | AR82: ='Level 1'!AO5 -> 2007 | AS82: ='Level 1'!AP5 -> 2008 | AT82: ='Level 1'!AQ5 -> 2009 | AU82: ='Level 1'!AR5 -> 2010 | AV82: ='Level 1'!AS5 -> 2011 | AW82: ='Level 1'!AT5 -> 2012 | AX82: ='Level 1'!AU5 -> 2013 | AY82: ='Level 1'!AV5 -> 2014 | AZ82: ='Level 1'!AW5 -> 2015 | BA82: ='Level 1'!AX5 -> 2016 | BB82: ='Level 1'!AY5 -> 2017 | BD82: =$E$14&"/"&$E$15 -> DKK øre/Kwh | BE82: ='Level 1'!BB5 -> 2007 | BF82: ='Level 1'!BC5 -> 2008 | BG82: ='Level 1'!BD5 -> 2009 | BH82: ='Level 1'!BE5 -> 2010 | BI82: ='Level 1'!BF5 -> 2011 | BJ82: ='Level 1'!BG5 -> 2012 | BK82: ='Level 1'!BH5 -> 2013 | BL82: ='Level 1'!BI5 -> 2014 | BM82: ='Level 1'!BJ5 -> 2015 | BN82: ='Level 1'!BK5 -> 2016 | BO82: ='Level 1'!BL5 -> 2017 | BQ82: =$E$14&"/"&$E$15 -> DKK øre/Kwh | BR82: ='Level 1'!BO5 -> 2007 | BS82: ='Level 1'!BP5 -> 2008 | BT82: ='Level 1'!BQ5 -> 2009 | BU82: ='Level 1'!BR5 -> 2010 | BV82: ='Level 1'!BS5 -> 2011 | BW82: ='Level 1'!BT5 -> 2012 | BX82: ='Level 1'!BU5 -> 2013 | BY82: ='Level 1'!BV5 -> 2014 | BZ82: ='Level 1'!BW5 -> 2015 | CA82: ='Level 1'!BX5 -> 2016 | CB82: ='Level 1'!BY5 -> 2017
D83: ='Oversættelse af landenavne'!$B$6 -> EU-28 | E83: =IFERROR('Level 2'!B$6/E$109*R$109*AE$109,"*") -> 33.09398767 | F83: =IFERROR('Level 2'!C$6/F$109*S$109*AF$109,"*") -> 37.11451836 | G83: =IFERROR('Level 2'!D$6/G$109*T$109*AG$109,"*") -> 36.72510182 | H83: =IFERROR('Level 2'!E$6/H$109*U$109*AH$109,"*") -> 34.97727022 | I83: =IFERROR('Level 2'!F$6/I$109*V$109*AI$109,"*") -> 37.59565643 | J83: =IFERROR('Level 2'!G$6/J$109*W$109*AJ$109,"*") -> 41.50080681 | K83: =IFERROR('Level 2'!H$6/K$109*X$109*AK$109,"*") -> 42.5058936 | L83: =IFERROR('Level 2'!I$6/L$109*Y$109*AL$109,"*") -> 40.74152169 | M83: =IFERROR('Level 2'!J$6/M$109*Z$109*AM$109,"*") -> 38.47402789 | N83: =IFERROR('Level 2'!K$6/N$109*AA$109*AN$109,"*") -> 34.0240671 | O83: =IFERROR('Level 2'!L$6/O$109*AB$109*AO$109,"*") -> * | Q83: ='Oversættelse af landenavne'!$B$6 -> EU-28 | R83: =IFERROR('Level 2'!O$6/E$109*R$109*AE$109,"*") -> 29.41687793 | S83: =IFERROR('Level 2'!P$6/F$109*S$109*AF$109,"*") -> 33.64464031 | T83: =IFERROR('Level 2'!Q$6/G$109*T$109*AG$109,"*") -> 31.90530182 | U83: =IFERROR('Level 2'!R$6/H$109*U$109*AH$109,"*") -> 30.66321322 | V83: =IFERROR('Level 2'!S$6/I$109*V$109*AI$109,"*") -> 33.17687139 | W83: =IFERROR('Level 2'!T$6/J$109*W$109*AJ$109,"*") -> 35.45563509 | X83: =IFERROR('Level 2'!U$6/K$109*X$109*AK$109,"*") -> 37.82660275 | Y83: =IFERROR('Level 2'!V$6/L$109*Y$109*AL$109,"*") -> 35.50234124 | Z83: =IFERROR('Level 2'!W$6/M$109*Z$109*AM$109,"*") -> 32.06392495 | AA83: =IFERROR('Level 2'!X$6/N$109*AA$109*AN$109,"*") -> 27.53708953 | AB83: =IFERROR('Level 2'!Y$6/O$109*AB$109*AO$109,"*") -> * | AD83: ='Oversættelse af landenavne'!$B$6 -> EU-28 | AE83: =IFERROR('Level 2'!AB$6/E$109*R$109*AE$109,"*") -> 25.12201375 | AF83: =IFERROR('Level 2'!AC$6/F$109*S$109*AF$109,"*") -> 29.9844314 | AG83: =IFERROR('Level 2'!AD$6/G$109*T$109*AG$109,"*") -> 27.15942514 | AH83: =IFERROR('Level 2'!AE$6/H$109*U$109*AH$109,"*") -> 25.85529111 | AI83: =IFERROR('Level 2'!AF$6/I$109*V$109*AI$109,"*") -> 27.86569328 | AJ83: =IFERROR('Level 2'!AG$6/J$109*W$109*AJ$109,"*") -> 29.57916583 | AK83: =IFERROR('Level 2'!AH$6/K$109*X$109*AK$109,"*") -> 31.73231675 | AL83: =IFERROR('Level 2'!AI$6/L$109*Y$109*AL$109,"*") -> 29.27047396 | AM83: =IFERROR('Level 2'!AJ$6/M$109*Z$109*AM$109,"*") -> 26.60595027 | AN83: =IFERROR('Level 2'!AK$6/N$109*AA$109*AN$109,"*") -> 22.82165604 | AO83: =IFERROR('Level 2'!AL$6/O$109*AB$109*AO$109,"*") -> * | AQ83: ='Oversættelse af landenavne'!$B$6 -> EU-28 | AR83: =IFERROR('Level 2'!AO$6/E$109*R$109*AE$109,"*") -> * | AS83: =IFERROR('Level 2'!AP$6/F$109*S$109*AF$109,"*") -> * | AT83: =IFERROR('Level 2'!AQ$6/G$109*T$109*AG$109,"*") -> * | AU83: =IFERROR('Level 2'!AR$6/H$109*U$109*AH$109,"*") -> * | AV83: =IFERROR('Level 2'!AS$6/I$109*V$109*AI$109,"*") -> * | AW83: =IFERROR('Level 2'!AT$6/J$109*W$109*AJ$109,"*") -> * | AX83: =IFERROR('Level 2'!AU$6/K$109*X$109*AK$109,"*") -> * | AY83: =IFERROR('Level 2'!AV$6/L$109*Y$109*AL$109,"*") -> * | AZ83: =IFERROR('Level 2'!AW$6/M$109*Z$109*AM$109,"*") -> * | BA83: =IFERROR('Level 2'!AX$6/N$109*AA$109*AN$109,"*") -> * | BB83: =IFERROR('Level 2'!AY$6/O$109*AB$109*AO$109,"*") -> * | BD83: ='Oversættelse af landenavne'!$B$6 -> EU-28 | BE83: =IFERROR('Level 2'!BB$6/E$109*R$109*AE$109,"*") -> * | BF83: =IFERROR('Level 2'!BC$6/F$109*S$109*AF$109,"*") -> * | BG83: =IFERROR('Level 2'!BD$6/G$109*T$109*AG$109,"*") -> * | BH83: =IFERROR('Level 2'!BE$6/H$109*U$109*AH$109,"*") -> * | BI83: =IFERROR('Level 2'!BF$6/I$109*V$109*AI$109,"*") -> * | BJ83: =IFERROR('Level 2'!BG$6/J$109*W$109*AJ$109,"*") -> * | BK83: =IFERROR('Level 2'!BH$6/K$109*X$109*AK$109,"*") -> * | BL83: =IFERROR('Level 2'!BI$6/L$109*Y$109*AL$109,"*") -> * | BM83: =IFERROR('Level 2'!BJ$6/M$109*Z$109*AM$109,"*") -> * | BN83: =IFERROR('Level 2'!BK$6/N$109*AA$109*AN$109,"*") -> * | BO83: =IFERROR('Level 2'!BL$6/O$109*AB$109*AO$109,"*") -> * | BQ83: ='Oversættelse af landenavne'!$B$6 -> EU-28 | BR83: =IFERROR('Level 2'!BO$6/E$109*R$109*AE$109,"*") -> * | BS83: =IFERROR('Level 2'!BP$6/F$109*S$109*AF$109,"*") -> * | BT83: =IFERROR('Level 2'!BQ$6/G$109*T$109*AG$109,"*") -> * | BU83: =IFERROR('Level 2'!BR$6/H$109*U$109*AH$109,"*") -> * | BV83: =IFERROR('Level 2'!BS$6/I$109*V$109*AI$109,"*") -> * | BW83: =IFERROR('Level 2'!BT$6/J$109*W$109*AJ$109,"*") -> * | BX83: =IFERROR('Level 2'!BU$6/K$109*X$109*AK$109,"*") -> * | BY83: =IFERROR('Level 2'!BV$6/L$109*Y$109*AL$109,"*") -> * | BZ83: =IFERROR('Level 2'!BW$6/M$109*Z$109*AM$109,"*") -> * | CA83: =IFERROR('Level 2'!BX$6/N$109*AA$109*AN$109,"*") -> * | CB83: =IFERROR('Level 2'!BY$6/O$109*AB$109*AO$109,"*") -> *
D84: ='Oversættelse af landenavne'!$B$7 -> Belgien | E84: =IFERROR('Level 2'!B$7/E$110*R$109*AE$109,"*") -> 33.23816362 | F84: =IFERROR('Level 2'!C$7/F$110*S$109*AF$109,"*") -> 42.95389164 | G84: =IFERROR('Level 2'!D$7/G$110*T$109*AG$109,"*") -> 34.90553911 | H84: =IFERROR('Level 2'!E$7/H$110*U$109*AH$109,"*") -> 35.41932658 | I84: =IFERROR('Level 2'!F$7/I$110*V$109*AI$109,"*") -> 40.54948895 | J84: =IFERROR('Level 2'!G$7/J$110*W$109*AJ$109,"*") -> 41.98430659 | K84: =IFERROR('Level 2'!H$7/K$110*X$109*AK$109,"*") -> 39.68242918 | L84: =IFERROR('Level 2'!I$7/L$110*Y$109*AL$109,"*") -> 37.69128066 | M84: =IFERROR('Level 2'!J$7/M$110*Z$109*AM$109,"*") -> 34.27661739 | N84: =IFERROR('Level 2'!K$7/N$110*AA$109*AN$109,"*") -> 30.19808126 | O84: =IFERROR('Level 2'!L$7/O$110*AB$109*AO$109,"*") -> * | Q84: ='Oversættelse af landenavne'!$B$7 -> Belgien | R84: =IFERROR('Level 2'!O$7/E$110*R$109*AE$109,"*") -> 29.16206781 | S84: =IFERROR('Level 2'!P$7/F$110*S$109*AF$109,"*") -> 34.99019891 | T84: =IFERROR('Level 2'!Q$7/G$110*T$109*AG$109,"*") -> 30.55875656 | U84: =IFERROR('Level 2'!R$7/H$110*U$109*AH$109,"*") -> 30.23670887 | V84: =IFERROR('Level 2'!S$7/I$110*V$109*AI$109,"*") -> 33.88266351 | W84: =IFERROR('Level 2'!T$7/J$110*W$109*AJ$109,"*") -> 32.11537569 | X84: =IFERROR('Level 2'!U$7/K$110*X$109*AK$109,"*") -> 33.8792315 | Y84: =IFERROR('Level 2'!V$7/L$110*Y$109*AL$109,"*") -> 30.98339576 | Z84: =IFERROR('Level 2'!W$7/M$110*Z$109*AM$109,"*") -> 27.20941185 | AA84: =IFERROR('Level 2'!X$7/N$110*AA$109*AN$109,"*") -> 24.22220766 | AB84: =IFERROR('Level 2'!Y$7/O$110*AB$109*AO$109,"*") -> * | AD84: ='Oversættelse af landenavne'!$B$7 -> Belgien | AE84: =IFERROR('Level 2'!AB$7/E$110*R$109*AE$109,"*") -> * | AF84: =IFERROR('Level 2'!AC$7/F$110*S$109*AF$109,"*") -> * | AG84: =IFERROR('Level 2'!AD$7/G$110*T$109*AG$109,"*") -> * | AH84: =IFERROR('Level 2'!AE$7/H$110*U$109*AH$109,"*") -> * | AI84: =IFERROR('Level 2'!AF$7/I$110*V$109*AI$109,"*") -> * | AJ84: =IFERROR('Level 2'!AG$7/J$110*W$109*AJ$109,"*") -> * | AK84: =IFERROR('Level 2'!AH$7/K$110*X$109*AK$109,"*") -> * | AL84: =IFERROR('Level 2'!AI$7/L$110*Y$109*AL$109,"*") -> * | AM84: =IFERROR('Level 2'!AJ$7/M$110*Z$109*AM$109,"*") -> * | AN84: =IFERROR('Level 2'!AK$7/N$110*AA$109*AN$109,"*") -> * | AO84: =IFERROR('Level 2'!AL$7/O$110*AB$109*AO$109,"*") -> * | AQ84: ='Oversættelse af landenavne'!$B$7 -> Belgien | AR84: =IFERROR('Level 2'!AO$7/E$110*R$109*AE$109,"*") -> * | AS84: =IFERROR('Level 2'!AP$7/F$110*S$109*AF$109,"*") -> * | AT84: =IFERROR('Level 2'!AQ$7/G$110*T$109*AG$109,"*") -> * | AU84: =IFERROR('Level 2'!AR$7/H$110*U$109*AH$109,"*") -> * | AV84: =IFERROR('Level 2'!AS$7/I$110*V$109*AI$109,"*") -> * | AW84: =IFERROR('Level 2'!AT$7/J$110*W$109*AJ$109,"*") -> * | AX84: =IFERROR('Level 2'!AU$7/K$110*X$109*AK$109,"*") -> * | AY84: =IFERROR('Level 2'!AV$7/L$110*Y$109*AL$109,"*") -> * | AZ84: =IFERROR('Level 2'!AW$7/M$110*Z$109*AM$109,"*") -> * | BA84: =IFERROR('Level 2'!AX$7/N$110*AA$109*AN$109,"*") -> * | BB84: =IFERROR('Level 2'!AY$7/O$110*AB$109*AO$109,"*") -> * | BD84: ='Oversættelse af landenavne'!$B$7 -> Belgien | BE84: =IFERROR('Level 2'!BB$7/E$110*R$109*AE$109,"*") -> * | BF84: =IFERROR('Level 2'!BC$7/F$110*S$109*AF$109,"*") -> * | BG84: =IFERROR('Level 2'!BD$7/G$110*T$109*AG$109,"*") -> * | BH84: =IFERROR('Level 2'!BE$7/H$110*U$109*AH$109,"*") -> * | BI84: =IFERROR('Level 2'!BF$7/I$110*V$109*AI$109,"*") -> * | BJ84: =IFERROR('Level 2'!BG$7/J$110*W$109*AJ$109,"*") -> * | BK84: =IFERROR('Level 2'!BH$7/K$110*X$109*AK$109,"*") -> * | BL84: =IFERROR('Level 2'!BI$7/L$110*Y$109*AL$109,"*") -> * | BM84: =IFERROR('Level 2'!BJ$7/M$110*Z$109*AM$109,"*") -> * | BN84: =IFERROR('Level 2'!BK$7/N$110*AA$109*AN$109,"*") -> * | BO84: =IFERROR('Level 2'!BL$7/O$110*AB$109*AO$109,"*") -> * | BQ84: ='Oversættelse af landenavne'!$B$7 -> Belgien | BR84: =IFERROR('Level 2'!BO$7/E$110*R$109*AE$109,"*") -> * | BS84: =IFERROR('Level 2'!BP$7/F$110*S$109*AF$109,"*") -> * | BT84: =IFERROR('Level 2'!BQ$7/G$110*T$109*AG$109,"*") -> * | BU84: =IFERROR('Level 2'!BR$7/H$110*U$109*AH$109,"*") -> * | BV84: =IFERROR('Level 2'!BS$7/I$110*V$109*AI$109,"*") -> * | BW84: =IFERROR('Level 2'!BT$7/J$110*W$109*AJ$109,"*") -> * | BX84: =IFERROR('Level 2'!BU$7/K$110*X$109*AK$109,"*") -> * | BY84: =IFERROR('Level 2'!BV$7/L$110*Y$109*AL$109,"*") -> * | BZ84: =IFERROR('Level 2'!BW$7/M$110*Z$109*AM$109,"*") -> * | CA84: =IFERROR('Level 2'!BX$7/N$110*AA$109*AN$109,"*") -> * | CB84: =IFERROR('Level 2'!BY$7/O$110*AB$109*AO$109,"*") -> *
D85: ='Oversættelse af landenavne'!$B$10 -> Danmark | E85: =IFERROR('Level 2'!B$10/E$111*R$109*AE$109,"*") -> 52.48847438 | F85: =IFERROR('Level 2'!C$10/F$111*S$109*AF$109,"*") -> 57.52362207 | G85: =IFERROR('Level 2'!D$10/G$111*T$109*AG$109,"*") -> 49.64012781 | H85: =IFERROR('Level 2'!E$10/H$111*U$109*AH$109,"*") -> 57.33103279 | I85: =IFERROR('Level 2'!F$10/I$111*V$109*AI$109,"*") -> 59.96440641 | J85: =IFERROR('Level 2'!G$10/J$111*W$109*AJ$109,"*") -> 52.79333904 | K85: =IFERROR('Level 2'!H$10/K$111*X$109*AK$109,"*") -> 51.54801685 | L85: =IFERROR('Level 2'!I$10/L$111*Y$109*AL$109,"*") -> 48.86329102 | M85: =IFERROR('Level 2'!J$10/M$111*Z$109*AM$109,"*") -> 41.93736091 | N85: =IFERROR('Level 2'!K$10/N$111*AA$109*AN$109,"*") -> 37.7290615 | O85: =IFERROR('Level 2'!L$10/O$111*AB$109*AO$109,"*") -> * | Q85: ='Oversættelse af landenavne'!$B$10 -> Danmark | R85: =IFERROR('Level 2'!O$10/E$111*R$109*AE$109,"*") -> 46.67857195 | S85: =IFERROR('Level 2'!P$10/F$111*S$109*AF$109,"*") -> 51.53155941 | T85: =IFERROR('Level 2'!Q$10/G$111*T$109*AG$109,"*") -> 43.01635042 | U85: =IFERROR('Level 2'!R$10/H$111*U$109*AH$109,"*") -> 50.20867569 | V85: =IFERROR('Level 2'!S$10/I$111*V$109*AI$109,"*") -> 52.66886318 | W85: =IFERROR('Level 2'!T$10/J$111*W$109*AJ$109,"*") -> 46.38872904 | X85: =IFERROR('Level 2'!U$10/K$111*X$109*AK$109,"*") -> 44.99692392 | Y85: =IFERROR('Level 2'!V$10/L$111*Y$109*AL$109,"*") -> 43.06132165 | Z85: =IFERROR('Level 2'!W$10/M$111*Z$109*AM$109,"*") -> 36.51478931 | AA85: =IFERROR('Level 2'!X$10/N$111*AA$109*AN$109,"*") -> 32.52628464 | AB85: =IFERROR('Level 2'!Y$10/O$111*AB$109*AO$109,"*") -> * | AD85: ='Oversættelse af landenavne'!$B$10 -> Danmark | AE85: =IFERROR('Level 2'!AB$10/E$111*R$109*AE$109,"*") -> 15.72220313 | AF85: =IFERROR('Level 2'!AC$10/F$111*S$109*AF$109,"*") -> 19.66168931 | AG85: =IFERROR('Level 2'!AD$10/G$111*T$109*AG$109,"*") -> 21.85103299 | AH85: =IFERROR('Level 2'!AE$10/H$111*U$109*AH$109,"*") -> 21.68745364 | AI85: =IFERROR('Level 2'!AF$10/I$111*V$109*AI$109,"*") -> 24.08150565 | AJ85: =IFERROR('Level 2'!AG$10/J$111*W$109*AJ$109,"*") -> 29.36102591 | AK85: =IFERROR('Level 2'!AH$10/K$111*X$109*AK$109,"*") -> 27.03493098 | AL85: =IFERROR('Level 2'!AI$10/L$111*Y$109*AL$109,"*") -> 26.16276006 | AM85: =IFERROR('Level 2'!AJ$10/M$111*Z$109*AM$109,"*") -> 21.99617436 | AN85: =IFERROR('Level 2'!AK$10/N$111*AA$109*AN$109,"*") -> 16.88223705 | AO85: =IFERROR('Level 2'!AL$10/O$111*AB$109*AO$109,"*") -> * | AQ85: ='Oversættelse af landenavne'!$B$10 -> Danmark | AR85: =IFERROR('Level 2'!AO$10/E$111*R$109*AE$109,"*") -> * | AS85: =IFERROR('Level 2'!AP$10/F$111*S$109*AF$109,"*") -> * | AT85: =IFERROR('Level 2'!AQ$10/G$111*T$109*AG$109,"*") -> * | AU85: =IFERROR('Level 2'!AR$10/H$111*U$109*AH$109,"*") -> * | AV85: =IFERROR('Level 2'!AS$10/I$111*V$109*AI$109,"*") -> * | AW85: =IFERROR('Level 2'!AT$10/J$111*W$109*AJ$109,"*") -> * | AX85: =IFERROR('Level 2'!AU$10/K$111*X$109*AK$109,"*") -> * | AY85: =IFERROR('Level 2'!AV$10/L$111*Y$109*AL$109,"*") -> * | AZ85: =IFERROR('Level 2'!AW$10/M$111*Z$109*AM$109,"*") -> * | BA85: =IFERROR('Level 2'!AX$10/N$111*AA$109*AN$109,"*") -> * | BB85: =IFERROR('Level 2'!AY$10/O$111*AB$109*AO$109,"*") -> * | BD85: ='Oversættelse af landenavne'!$B$10 -> Danmark | BE85: =IFERROR('Level 2'!BB$10/E$111*R$109*AE$109,"*") -> * | BF85: =IFERROR('Level 2'!BC$10/F$111*S$109*AF$109,"*") -> * | BG85: =IFERROR('Level 2'!BD$10/G$111*T$109*AG$109,"*") -> * | BH85: =IFERROR('Level 2'!BE$10/H$111*U$109*AH$109,"*") -> * | BI85: =IFERROR('Level 2'!BF$10/I$111*V$109*AI$109,"*") -> * | BJ85: =IFERROR('Level 2'!BG$10/J$111*W$109*AJ$109,"*") -> * | BK85: =IFERROR('Level 2'!BH$10/K$111*X$109*AK$109,"*") -> * | BL85: =IFERROR('Level 2'!BI$10/L$111*Y$109*AL$109,"*") -> * | BM85: =IFERROR('Level 2'!BJ$10/M$111*Z$109*AM$109,"*") -> * | BN85: =IFERROR('Level 2'!BK$10/N$111*AA$109*AN$109,"*") -> * | BO85: =IFERROR('Level 2'!BL$10/O$111*AB$109*AO$109,"*") -> * | BQ85: ='Oversættelse af landenavne'!$B$10 -> Danmark | BR85: =IFERROR('Level 2'!BO$10/E$111*R$109*AE$109,"*") -> * | BS85: =IFERROR('Level 2'!BP$10/F$111*S$109*AF$109,"*") -> * | BT85: =IFERROR('Level 2'!BQ$10/G$111*T$109*AG$109,"*") -> * | BU85: =IFERROR('Level 2'!BR$10/H$111*U$109*AH$109,"*") -> * | BV85: =IFERROR('Level 2'!BS$10/I$111*V$109*AI$109,"*") -> * | BW85: =IFERROR('Level 2'!BT$10/J$111*W$109*AJ$109,"*") -> * | BX85: =IFERROR('Level 2'!BU$10/K$111*X$109*AK$109,"*") -> * | BY85: =IFERROR('Level 2'!BV$10/L$111*Y$109*AL$109,"*") -> * | BZ85: =IFERROR('Level 2'!BW$10/M$111*Z$109*AM$109,"*") -> * | CA85: =IFERROR('Level 2'!BX$10/N$111*AA$109*AN$109,"*") -> * | CB85: =IFERROR('Level 2'!BY$10/O$111*AB$109*AO$109,"*") -> *
D86: ='Oversættelse af landenavne'!$B$11 -> Tyskland | E86: =IFERROR('Level 2'!B$11/E$112*R$109*AE$109,"*") -> 38.88451829 | F86: =IFERROR('Level 2'!C$11/F$112*S$109*AF$109,"*") -> 44.29670566 | G86: =IFERROR('Level 2'!D$11/G$112*T$109*AG$109,"*") -> 36.3158026 | H86: =IFERROR('Level 2'!E$11/H$112*U$109*AH$109,"*") -> 36.64176001 | I86: =IFERROR('Level 2'!F$11/I$112*V$109*AI$109,"*") -> 39.07571109 | J86: =IFERROR('Level 2'!G$11/J$112*W$109*AJ$109,"*") -> 40.40335591 | K86: =IFERROR('Level 2'!H$11/K$112*X$109*AK$109,"*") -> 40.33939653 | L86: =IFERROR('Level 2'!I$11/L$112*Y$109*AL$109,"*") -> 37.60885529 | M86: =IFERROR('Level 2'!J$11/M$112*Z$109*AM$109,"*") -> 35.53718156 | N86: =IFERROR('Level 2'!K$11/N$112*AA$109*AN$109,"*") -> 32.94216057 | O86: =IFERROR('Level 2'!L$11/O$112*AB$109*AO$109,"*") -> * | Q86: ='Oversættelse af landenavne'!$B$11 -> Tyskland | R86: =IFERROR('Level 2'!O$11/E$112*R$109*AE$109,"*") -> 34.85362123 | S86: =IFERROR('Level 2'!P$11/F$112*S$109*AF$109,"*") -> 42.38840118 | T86: =IFERROR('Level 2'!Q$11/G$112*T$109*AG$109,"*") -> 34.88732213 | U86: =IFERROR('Level 2'!R$11/H$112*U$109*AH$109,"*") -> 35.31331373 | V86: =IFERROR('Level 2'!S$11/I$112*V$109*AI$109,"*") -> 36.60274788 | W86: =IFERROR('Level 2'!T$11/J$112*W$109*AJ$109,"*") -> 33.90690658 | X86: =IFERROR('Level 2'!U$11/K$112*X$109*AK$109,"*") -> 40.35336446 | Y86: =IFERROR('Level 2'!V$11/L$112*Y$109*AL$109,"*") -> 36.347917 | Z86: =IFERROR('Level 2'!W$11/M$112*Z$109*AM$109,"*") -> 31.83595058 | AA86: =IFERROR('Level 2'!X$11/N$112*AA$109*AN$109,"*") -> 25.86627882 | AB86: =IFERROR('Level 2'!Y$11/O$112*AB$109*AO$109,"*") -> * | AD86: ='Oversættelse af landenavne'!$B$11 -> Tyskland | AE86: =IFERROR('Level 2'!AB$11/E$112*R$109*AE$109,"*") -> 20.66031744 | AF86: =IFERROR('Level 2'!AC$11/F$112*S$109*AF$109,"*") -> 29.78728065 | AG86: =IFERROR('Level 2'!AD$11/G$112*T$109*AG$109,"*") -> 24.82051096 | AH86: =IFERROR('Level 2'!AE$11/H$112*U$109*AH$109,"*") -> 27.18862387 | AI86: =IFERROR('Level 2'!AF$11/I$112*V$109*AI$109,"*") -> 26.45217391 | AJ86: =IFERROR('Level 2'!AG$11/J$112*W$109*AJ$109,"*") -> 26.63928883 | AK86: =IFERROR('Level 2'!AH$11/K$112*X$109*AK$109,"*") -> 25.90102139 | AL86: =IFERROR('Level 2'!AI$11/L$112*Y$109*AL$109,"*") -> 23.59941964 | AM86: =IFERROR('Level 2'!AJ$11/M$112*Z$109*AM$109,"*") -> 22.00113616 | AN86: =IFERROR('Level 2'!AK$11/N$112*AA$109*AN$109,"*") -> 19.09492206 | AO86: =IFERROR('Level 2'!AL$11/O$112*AB$109*AO$109,"*") -> * | AQ86: ='Oversættelse af landenavne'!$B$11 -> Tyskland | AR86: =IFERROR('Level 2'!AO$11/E$112*R$109*AE$109,"*") -> * | AS86: =IFERROR('Level 2'!AP$11/F$112*S$109*AF$109,"*") -> * | AT86: =IFERROR('Level 2'!AQ$11/G$112*T$109*AG$109,"*") -> * | AU86: =IFERROR('Level 2'!AR$11/H$112*U$109*AH$109,"*") -> * | AV86: =IFERROR('Level 2'!AS$11/I$112*V$109*AI$109,"*") -> * | AW86: =IFERROR('Level 2'!AT$11/J$112*W$109*AJ$109,"*") -> * | AX86: =IFERROR('Level 2'!AU$11/K$112*X$109*AK$109,"*") -> * | AY86: =IFERROR('Level 2'!AV$11/L$112*Y$109*AL$109,"*") -> * | AZ86: =IFERROR('Level 2'!AW$11/M$112*Z$109*AM$109,"*") -> * | BA86: =IFERROR('Level 2'!AX$11/N$112*AA$109*AN$109,"*") -> * | BB86: =IFERROR('Level 2'!AY$11/O$112*AB$109*AO$109,"*") -> * | BD86: ='Oversættelse af landenavne'!$B$11 -> Tyskland | BE86: =IFERROR('Level 2'!BB$11/E$112*R$109*AE$109,"*") -> * | BF86: =IFERROR('Level 2'!BC$11/F$112*S$109*AF$109,"*") -> * | BG86: =IFERROR('Level 2'!BD$11/G$112*T$109*AG$109,"*") -> * | BH86: =IFERROR('Level 2'!BE$11/H$112*U$109*AH$109,"*") -> * | BI86: =IFERROR('Level 2'!BF$11/I$112*V$109*AI$109,"*") -> * | BJ86: =IFERROR('Level 2'!BG$11/J$112*W$109*AJ$109,"*") -> * | BK86: =IFERROR('Level 2'!BH$11/K$112*X$109*AK$109,"*") -> * | BL86: =IFERROR('Level 2'!BI$11/L$112*Y$109*AL$109,"*") -> * | BM86: =IFERROR('Level 2'!BJ$11/M$112*Z$109*AM$109,"*") -> * | BN86: =IFERROR('Level 2'!BK$11/N$112*AA$109*AN$109,"*") -> * | BO86: =IFERROR('Level 2'!BL$11/O$112*AB$109*AO$109,"*") -> * | BQ86: ='Oversættelse af landenavne'!$B$11 -> Tyskland | BR86: =IFERROR('Level 2'!BO$11/E$112*R$109*AE$109,"*") -> * | BS86: =IFERROR('Level 2'!BP$11/F$112*S$109*AF$109,"*") -> * | BT86: =IFERROR('Level 2'!BQ$11/G$112*T$109*AG$109,"*") -> * | BU86: =IFERROR('Level 2'!BR$11/H$112*U$109*AH$109,"*") -> * | BV86: =IFERROR('Level 2'!BS$11/I$112*V$109*AI$109,"*") -> * | BW86: =IFERROR('Level 2'!BT$11/J$112*W$109*AJ$109,"*") -> * | BX86: =IFERROR('Level 2'!BU$11/K$112*X$109*AK$109,"*") -> * | BY86: =IFERROR('Level 2'!BV$11/L$112*Y$109*AL$109,"*") -> * | BZ86: =IFERROR('Level 2'!BW$11/M$112*Z$109*AM$109,"*") -> * | CA86: =IFERROR('Level 2'!BX$11/N$112*AA$109*AN$109,"*") -> * | CB86: =IFERROR('Level 2'!BY$11/O$112*AB$109*AO$109,"*") -> *
D87: ='Oversættelse af landenavne'!$B$16 -> Frankrig | E87: =IFERROR('Level 2'!B$16/E$113*R$109*AE$109,"*") -> 32.9978913 | F87: =IFERROR('Level 2'!C$16/F$113*S$109*AF$109,"*") -> 33.10263232 | G87: =IFERROR('Level 2'!D$16/G$113*T$109*AG$109,"*") -> 34.15985076 | H87: =IFERROR('Level 2'!E$16/H$113*U$109*AH$109,"*") -> 34.82068533 | I87: =IFERROR('Level 2'!F$16/I$113*V$109*AI$109,"*") -> 39.09899671 | J87: =IFERROR('Level 2'!G$16/J$113*W$109*AJ$109,"*") -> 45.71578261 | K87: =IFERROR('Level 2'!H$16/K$113*X$109*AK$109,"*") -> 46.96181003 | L87: =IFERROR('Level 2'!I$16/L$113*Y$109*AL$109,"*") -> 44.23590786 | M87: =IFERROR('Level 2'!J$16/M$113*Z$109*AM$109,"*") -> 41.02197676 | N87: =IFERROR('Level 2'!K$16/N$113*AA$109*AN$109,"*") -> 34.63952054 | O87: =IFERROR('Level 2'!L$16/O$113*AB$109*AO$109,"*") -> * | Q87: ='Oversættelse af landenavne'!$B$16 -> Frankrig | R87: =IFERROR('Level 2'!O$16/E$113*R$109*AE$109,"*") -> 27.72399252 | S87: =IFERROR('Level 2'!P$16/F$113*S$109*AF$109,"*") -> 30.09023514 | T87: =IFERROR('Level 2'!Q$16/G$113*T$109*AG$109,"*") -> 29.37999475 | U87: =IFERROR('Level 2'!R$16/H$113*U$109*AH$109,"*") -> 29.73919776 | V87: =IFERROR('Level 2'!S$16/I$113*V$109*AI$109,"*") -> 33.76794311 | W87: =IFERROR('Level 2'!T$16/J$113*W$109*AJ$109,"*") -> 37.49460207 | X87: =IFERROR('Level 2'!U$16/K$113*X$109*AK$109,"*") -> 37.51226055 | Y87: =IFERROR('Level 2'!V$16/L$113*Y$109*AL$109,"*") -> 36.26828653 | Z87: =IFERROR('Level 2'!W$16/M$113*Z$109*AM$109,"*") -> 33.05628398 | AA87: =IFERROR('Level 2'!X$16/N$113*AA$109*AN$109,"*") -> 29.10884079 | AB87: =IFERROR('Level 2'!Y$16/O$113*AB$109*AO$109,"*") -> * | AD87: ='Oversættelse af landenavne'!$B$16 -> Frankrig | AE87: =IFERROR('Level 2'!AB$16/E$113*R$109*AE$109,"*") -> * | AF87: =IFERROR('Level 2'!AC$16/F$113*S$109*AF$109,"*") -> * | AG87: =IFERROR('Level 2'!AD$16/G$113*T$109*AG$109,"*") -> * | AH87: =IFERROR('Level 2'!AE$16/H$113*U$109*AH$109,"*") -> * | AI87: =IFERROR('Level 2'!AF$16/I$113*V$109*AI$109,"*") -> * | AJ87: =IFERROR('Level 2'!AG$16/J$113*W$109*AJ$109,"*") -> 44.01956566 | AK87: =IFERROR('Level 2'!AH$16/K$113*X$109*AK$109,"*") -> 39.41850972 | AL87: =IFERROR('Level 2'!AI$16/L$113*Y$109*AL$109,"*") -> 36.15969884 | AM87: =IFERROR('Level 2'!AJ$16/M$113*Z$109*AM$109,"*") -> 28.885694 | AN87: =IFERROR('Level 2'!AK$16/N$113*AA$109*AN$109,"*") -> 21.72578026 | AO87: =IFERROR('Level 2'!AL$16/O$113*AB$109*AO$109,"*") -> * | AQ87: ='Oversættelse af landenavne'!$B$16 -> Frankrig | AR87: =IFERROR('Level 2'!AO$16/E$113*R$109*AE$109,"*") -> 18.37103562 | AS87: =IFERROR('Level 2'!AP$16/F$113*S$109*AF$109,"*") -> 25.94049287 | AT87: =IFERROR('Level 2'!AQ$16/G$113*T$109*AG$109,"*") -> 21.21134697 | AU87: =IFERROR('Level 2'!AR$16/H$113*U$109*AH$109,"*") -> 22.75118048 | AV87: =IFERROR('Level 2'!AS$16/I$113*V$109*AI$109,"*") -> 23.83947729 | AW87: =IFERROR('Level 2'!AT$16/J$113*W$109*AJ$109,"*") -> 24.1862754 | AX87: =IFERROR('Level 2'!AU$16/K$113*X$109*AK$109,"*") -> 23.26046091 | AY87: =IFERROR('Level 2'!AV$16/L$113*Y$109*AL$109,"*") -> 21.8977924 | AZ87: =IFERROR('Level 2'!AW$16/M$113*Z$109*AM$109,"*") -> 19.92147347 | BA87: =IFERROR('Level 2'!AX$16/N$113*AA$109*AN$109,"*") -> 16.73096781 | BB87: =IFERROR('Level 2'!AY$16/O$113*AB$109*AO$109,"*") -> * | BD87: ='Oversættelse af landenavne'!$B$16 -> Frankrig | BE87: =IFERROR('Level 2'!BB$16/E$113*R$109*AE$109,"*") -> 17.71857077 | BF87: =IFERROR('Level 2'!BC$16/F$113*S$109*AF$109,"*") -> 25.400145 | BG87: =IFERROR('Level 2'!BD$16/G$113*T$109*AG$109,"*") -> 20.36709264 | BH87: =IFERROR('Level 2'!BE$16/H$113*U$109*AH$109,"*") -> 22.14195733 | BI87: =IFERROR('Level 2'!BF$16/I$113*V$109*AI$109,"*") -> 21.39851767 | BJ87: =IFERROR('Level 2'!BG$16/J$113*W$109*AJ$109,"*") -> 23.23954012 | BK87: =IFERROR('Level 2'!BH$16/K$113*X$109*AK$109,"*") -> 22.55120006 | BL87: =IFERROR('Level 2'!BI$16/L$113*Y$109*AL$109,"*") -> 21.00737339 | BM87: =IFERROR('Level 2'!BJ$16/M$113*Z$109*AM$109,"*") -> 18.79179341 | BN87: =IFERROR('Level 2'!BK$16/N$113*AA$109*AN$109,"*") -> 16.91091337 | BO87: =IFERROR('Level 2'!BL$16/O$113*AB$109*AO$109,"*") -> * | BQ87: ='Oversættelse af landenavne'!$B$16 -> Frankrig | BR87: =IFERROR('Level 2'!BO$16/E$113*R$109*AE$109,"*") -> * | BS87: =IFERROR('Level 2'!BP$16/F$113*S$109*AF$109,"*") -> * | BT87: =IFERROR('Level 2'!BQ$16/G$113*T$109*AG$109,"*") -> * | BU87: =IFERROR('Level 2'!BR$16/H$113*U$109*AH$109,"*") -> * | BV87: =IFERROR('Level 2'!BS$16/I$113*V$109*AI$109,"*") -> * | BW87: =IFERROR('Level 2'!BT$16/J$113*W$109*AJ$109,"*") -> * | BX87: =IFERROR('Level 2'!BU$16/K$113*X$109*AK$109,"*") -> * | BY87: =IFERROR('Level 2'!BV$16/L$113*Y$109*AL$109,"*") -> * | BZ87: =IFERROR('Level 2'!BW$16/M$113*Z$109*AM$109,"*") -> * | CA87: =IFERROR('Level 2'!BX$16/N$113*AA$109*AN$109,"*") -> * | CB87: =IFERROR('Level 2'!BY$16/O$113*AB$109*AO$109,"*") -> *
D88: ='Oversættelse af landenavne'!$B$18 -> Italien | E88: =IFERROR('Level 2'!B$18/E$114*R$109*AE$109,"*") -> 35.7070212 | F88: =IFERROR('Level 2'!C$18/F$114*S$109*AF$109,"*") -> 37.72265621 | G88: =IFERROR('Level 2'!D$18/G$114*T$109*AG$109,"*") -> 41.64371129 | H88: =IFERROR('Level 2'!E$18/H$114*U$109*AH$109,"*") -> 35.88521582 | I88: =IFERROR('Level 2'!F$18/I$114*V$109*AI$109,"*") -> 41.40077729 | J88: =IFERROR('Level 2'!G$18/J$114*W$109*AJ$109,"*") -> 48.32024025 | K88: =IFERROR('Level 2'!H$18/K$114*X$109*AK$109,"*") -> 49.23639946 | L88: =IFERROR('Level 2'!I$18/L$114*Y$109*AL$109,"*") -> 46.34767208 | M88: =IFERROR('Level 2'!J$18/M$114*Z$109*AM$109,"*") -> 44.80366929 | N88: =IFERROR('Level 2'!K$18/N$114*AA$109*AN$109,"*") -> 40.5937387 | O88: =IFERROR('Level 2'!L$18/O$114*AB$109*AO$109,"*") -> * | Q88: ='Oversættelse af landenavne'!$B$18 -> Italien | R88: =IFERROR('Level 2'!O$18/E$114*R$109*AE$109,"*") -> 32.97959594 | S88: =IFERROR('Level 2'!P$18/F$114*S$109*AF$109,"*") -> 34.95289094 | T88: =IFERROR('Level 2'!Q$18/G$114*T$109*AG$109,"*") -> 35.38579951 | U88: =IFERROR('Level 2'!R$18/H$114*U$109*AH$109,"*") -> 29.22637884 | V88: =IFERROR('Level 2'!S$18/I$114*V$109*AI$109,"*") -> 33.37876949 | W88: =IFERROR('Level 2'!T$18/J$114*W$109*AJ$109,"*") -> 40.73844019 | X88: =IFERROR('Level 2'!U$18/K$114*X$109*AK$109,"*") -> 40.74267888 | Y88: =IFERROR('Level 2'!V$18/L$114*Y$109*AL$109,"*") -> 37.1132905 | Z88: =IFERROR('Level 2'!W$18/M$114*Z$109*AM$109,"*") -> 35.25556616 | AA88: =IFERROR('Level 2'!X$18/N$114*AA$109*AN$109,"*") -> 32.91599624 | AB88: =IFERROR('Level 2'!Y$18/O$114*AB$109*AO$109,"*") -> * | AD88: ='Oversættelse af landenavne'!$B$18 -> Italien | AE88: =IFERROR('Level 2'!AB$18/E$114*R$109*AE$109,"*") -> 25.07875627 | AF88: =IFERROR('Level 2'!AC$18/F$114*S$109*AF$109,"*") -> 28.76173518 | AG88: =IFERROR('Level 2'!AD$18/G$114*T$109*AG$109,"*") -> 26.36902341 | AH88: =IFERROR('Level 2'!AE$18/H$114*U$109*AH$109,"*") -> 26.52855925 | AI88: =IFERROR('Level 2'!AF$18/I$114*V$109*AI$109,"*") -> 28.63218356 | AJ88: =IFERROR('Level 2'!AG$18/J$114*W$109*AJ$109,"*") -> 30.21731909 | AK88: =IFERROR('Level 2'!AH$18/K$114*X$109*AK$109,"*") -> 30.07456583 | AL88: =IFERROR('Level 2'!AI$18/L$114*Y$109*AL$109,"*") -> 28.7442097 | AM88: =IFERROR('Level 2'!AJ$18/M$114*Z$109*AM$109,"*") -> 27.71900162 | AN88: =IFERROR('Level 2'!AK$18/N$114*AA$109*AN$109,"*") -> 24.5740892 | AO88: =IFERROR('Level 2'!AL$18/O$114*AB$109*AO$109,"*") -> * | AQ88: ='Oversættelse af landenavne'!$B$18 -> Italien | AR88: =IFERROR('Level 2'!AO$18/E$114*R$109*AE$109,"*") -> 25.579742 | AS88: =IFERROR('Level 2'!AP$18/F$114*S$109*AF$109,"*") -> 31.13479673 | AT88: =IFERROR('Level 2'!AQ$18/G$114*T$109*AG$109,"*") -> 26.77556337 | AU88: =IFERROR('Level 2'!AR$18/H$114*U$109*AH$109,"*") -> 26.57071268 | AV88: =IFERROR('Level 2'!AS$18/I$114*V$109*AI$109,"*") -> 27.86884371 | AW88: =IFERROR('Level 2'!AT$18/J$114*W$109*AJ$109,"*") -> 26.49509478 | AX88: =IFERROR('Level 2'!AU$18/K$114*X$109*AK$109,"*") -> 28.37582171 | AY88: =IFERROR('Level 2'!AV$18/L$114*Y$109*AL$109,"*") -> 25.255966 | AZ88: =IFERROR('Level 2'!AW$18/M$114*Z$109*AM$109,"*") -> 22.91812954 | BA88: =IFERROR('Level 2'!AX$18/N$114*AA$109*AN$109,"*") -> 19.57957161 | BB88: =IFERROR('Level 2'!AY$18/O$114*AB$109*AO$109,"*") -> * | BD88: ='Oversættelse af landenavne'!$B$18 -> Italien | BE88: =IFERROR('Level 2'!BB$18/E$114*R$109*AE$109,"*") -> 21.18874942 | BF88: =IFERROR('Level 2'!BC$18/F$114*S$109*AF$109,"*") -> 27.23936678 | BG88: =IFERROR('Level 2'!BD$18/G$114*T$109*AG$109,"*") -> 23.03259195 | BH88: =IFERROR('Level 2'!BE$18/H$114*U$109*AH$109,"*") -> 24.05555797 | BI88: =IFERROR('Level 2'!BF$18/I$114*V$109*AI$109,"*") -> 25.92579684 | BJ88: =IFERROR('Level 2'!BG$18/J$114*W$109*AJ$109,"*") -> 24.87434767 | BK88: =IFERROR('Level 2'!BH$18/K$114*X$109*AK$109,"*") -> 24.99192343 | BL88: =IFERROR('Level 2'!BI$18/L$114*Y$109*AL$109,"*") -> 22.75470598 | BM88: =IFERROR('Level 2'!BJ$18/M$114*Z$109*AM$109,"*") -> 20.69202685 | BN88: =IFERROR('Level 2'!BK$18/N$114*AA$109*AN$109,"*") -> 16.36501508 | BO88: =IFERROR('Level 2'!BL$18/O$114*AB$109*AO$109,"*") -> * | BQ88: ='Oversættelse af landenavne'!$B$18 -> Italien | BR88: =IFERROR('Level 2'!BO$18/E$114*R$109*AE$109,"*") -> * | BS88: =IFERROR('Level 2'!BP$18/F$114*S$109*AF$109,"*") -> * | BT88: =IFERROR('Level 2'!BQ$18/G$114*T$109*AG$109,"*") -> * | BU88: =IFERROR('Level 2'!BR$18/H$114*U$109*AH$109,"*") -> 25.03913802 | BV88: =IFERROR('Level 2'!BS$18/I$114*V$109*AI$109,"*") -> 24.88487887 | BW88: =IFERROR('Level 2'!BT$18/J$114*W$109*AJ$109,"*") -> 23.62444947 | BX88: =IFERROR('Level 2'!BU$18/K$114*X$109*AK$109,"*") -> 24.3667856 | BY88: =IFERROR('Level 2'!BV$18/L$114*Y$109*AL$109,"*") -> 21.42971419 | BZ88: =IFERROR('Level 2'!BW$18/M$114*Z$109*AM$109,"*") -> 19.4851037 | CA88: =IFERROR('Level 2'!BX$18/N$114*AA$109*AN$109,"*") -> 15.24921859 | CB88: =IFERROR('Level 2'!BY$18/O$114*AB$109*AO$109,"*") -> *
D89: ='Oversættelse af landenavne'!$B$23 -> Holland | E89: =IFERROR('Level 2'!B$23/E$115*R$109*AE$109,"*") -> 45.34881084 | F89: =IFERROR('Level 2'!C$23/F$115*S$109*AF$109,"*") -> 45.41716999 | G89: =IFERROR('Level 2'!D$23/G$115*T$109*AG$109,"*") -> 45.86423681 | H89: =IFERROR('Level 2'!E$23/H$115*U$109*AH$109,"*") -> 41.17659765 | I89: =IFERROR('Level 2'!F$23/I$115*V$109*AI$109,"*") -> 42.95128367 | J89: =IFERROR('Level 2'!G$23/J$115*W$109*AJ$109,"*") -> 46.46174925 | K89: =IFERROR('Level 2'!H$23/K$115*X$109*AK$109,"*") -> 47.79531876 | L89: =IFERROR('Level 2'!I$23/L$115*Y$109*AL$109,"*") -> 46.97690401 | M89: =IFERROR('Level 2'!J$23/M$115*Z$109*AM$109,"*") -> 45.21938726 | N89: =IFERROR('Level 2'!K$23/N$115*AA$109*AN$109,"*") -> 46.96471652 | O89: =IFERROR('Level 2'!L$23/O$115*AB$109*AO$109,"*") -> * | Q89: ='Oversættelse af landenavne'!$B$23 -> Holland | R89: =IFERROR('Level 2'!O$23/E$115*R$109*AE$109,"*") -> 41.23664854 | S89: =IFERROR('Level 2'!P$23/F$115*S$109*AF$109,"*") -> 37.68150981 | T89: =IFERROR('Level 2'!Q$23/G$115*T$109*AG$109,"*") -> 42.56525483 | U89: =IFERROR('Level 2'!R$23/H$115*U$109*AH$109,"*") -> 37.65391129 | V89: =IFERROR('Level 2'!S$23/I$115*V$109*AI$109,"*") -> 39.11090098 | W89: =IFERROR('Level 2'!T$23/J$115*W$109*AJ$109,"*") -> 39.7756238 | X89: =IFERROR('Level 2'!U$23/K$115*X$109*AK$109,"*") -> 43.13799083 | Y89: =IFERROR('Level 2'!V$23/L$115*Y$109*AL$109,"*") -> 43.31146572 | Z89: =IFERROR('Level 2'!W$23/M$115*Z$109*AM$109,"*") -> 41.54497679 | AA89: =IFERROR('Level 2'!X$23/N$115*AA$109*AN$109,"*") -> 42.75335148 | AB89: =IFERROR('Level 2'!Y$23/O$115*AB$109*AO$109,"*") -> * | AD89: ='Oversættelse af landenavne'!$B$23 -> Holland | AE89: =IFERROR('Level 2'!AB$23/E$115*R$109*AE$109,"*") -> 25.10431951 | AF89: =IFERROR('Level 2'!AC$23/F$115*S$109*AF$109,"*") -> 30.63377586 | AG89: =IFERROR('Level 2'!AD$23/G$115*T$109*AG$109,"*") -> 29.69083785 | AH89: =IFERROR('Level 2'!AE$23/H$115*U$109*AH$109,"*") -> 30.48371898 | AI89: =IFERROR('Level 2'!AF$23/I$115*V$109*AI$109,"*") -> 35.38143187 | AJ89: =IFERROR('Level 2'!AG$23/J$115*W$109*AJ$109,"*") -> 38.67036633 | AK89: =IFERROR('Level 2'!AH$23/K$115*X$109*AK$109,"*") -> 36.15878803 | AL89: =IFERROR('Level 2'!AI$23/L$115*Y$109*AL$109,"*") -> 30.69804571 | AM89: =IFERROR('Level 2'!AJ$23/M$115*Z$109*AM$109,"*") -> 28.56384782 | AN89: =IFERROR('Level 2'!AK$23/N$115*AA$109*AN$109,"*") -> 26.09447076 | AO89: =IFERROR('Level 2'!AL$23/O$115*AB$109*AO$109,"*") -> * | AQ89: ='Oversættelse af landenavne'!$B$23 -> Holland | AR89: =IFERROR('Level 2'!AO$23/E$115*R$109*AE$109,"*") -> 21.88360498 | AS89: =IFERROR('Level 2'!AP$23/F$115*S$109*AF$109,"*") -> 25.25391202 | AT89: =IFERROR('Level 2'!AQ$23/G$115*T$109*AG$109,"*") -> 22.3100646 | AU89: =IFERROR('Level 2'!AR$23/H$115*U$109*AH$109,"*") -> 21.20546238 | AV89: =IFERROR('Level 2'!AS$23/I$115*V$109*AI$109,"*") -> 21.48950603 | AW89: =IFERROR('Level 2'!AT$23/J$115*W$109*AJ$109,"*") -> 23.16947143 | AX89: =IFERROR('Level 2'!AU$23/K$115*X$109*AK$109,"*") -> 24.5222573 | AY89: =IFERROR('Level 2'!AV$23/L$115*Y$109*AL$109,"*") -> 23.20545861 | AZ89: =IFERROR('Level 2'!AW$23/M$115*Z$109*AM$109,"*") -> 22.16715514 | BA89: =IFERROR('Level 2'!AX$23/N$115*AA$109*AN$109,"*") -> 17.72504909 | BB89: =IFERROR('Level 2'!AY$23/O$115*AB$109*AO$109,"*") -> * | BD89: ='Oversættelse af landenavne'!$B$23 -> Holland | BE89: =IFERROR('Level 2'!BB$23/E$115*R$109*AE$109,"*") -> 20.53205513 | BF89: =IFERROR('Level 2'!BC$23/F$115*S$109*AF$109,"*") -> 24.62635483 | BG89: =IFERROR('Level 2'!BD$23/G$115*T$109*AG$109,"*") -> 19.89174306 | BH89: =IFERROR('Level 2'!BE$23/H$115*U$109*AH$109,"*") -> 18.12657903 | BI89: =IFERROR('Level 2'!BF$23/I$115*V$109*AI$109,"*") -> 21.86383936 | BJ89: =IFERROR('Level 2'!BG$23/J$115*W$109*AJ$109,"*") -> 23.71527759 | BK89: =IFERROR('Level 2'!BH$23/K$115*X$109*AK$109,"*") -> 22.75708928 | BL89: =IFERROR('Level 2'!BI$23/L$115*Y$109*AL$109,"*") -> 20.98193906 | BM89: =IFERROR('Level 2'!BJ$23/M$115*Z$109*AM$109,"*") -> 18.70730879 | BN89: =IFERROR('Level 2'!BK$23/N$115*AA$109*AN$109,"*") -> 13.00725407 | BO89: =IFERROR('Level 2'!BL$23/O$115*AB$109*AO$109,"*") -> * | BQ89: ='Oversættelse af landenavne'!$B$23 -> Holland | BR89: =IFERROR('Level 2'!BO$23/E$115*R$109*AE$109,"*") -> * | BS89: =IFERROR('Level 2'!BP$23/F$115*S$109*AF$109,"*") -> * | BT89: =IFERROR('Level 2'!BQ$23/G$115*T$109*AG$109,"*") -> * | BU89: =IFERROR('Level 2'!BR$23/H$115*U$109*AH$109,"*") -> * | BV89: =IFERROR('Level 2'!BS$23/I$115*V$109*AI$109,"*") -> * | BW89: =IFERROR('Level 2'!BT$23/J$115*W$109*AJ$109,"*") -> * | BX89: =IFERROR('Level 2'!BU$23/K$115*X$109*AK$109,"*") -> * | BY89: =IFERROR('Level 2'!BV$23/L$115*Y$109*AL$109,"*") -> * | BZ89: =IFERROR('Level 2'!BW$23/M$115*Z$109*AM$109,"*") -> * | CA89: =IFERROR('Level 2'!BX$23/N$115*AA$109*AN$109,"*") -> * | CB89: =IFERROR('Level 2'!BY$23/O$115*AB$109*AO$109,"*") -> *
D90: ='Oversættelse af landenavne'!$B$31 -> Sverige | E90: =IFERROR('Level 2'!B$31/E$116*R$109*AE$109,"*") -> 46.55461785 | F90: =IFERROR('Level 2'!C$31/F$116*S$109*AF$109,"*") -> 54.78788348 | G90: =IFERROR('Level 2'!D$31/G$116*T$109*AG$109,"*") -> 49.1891427 | H90: =IFERROR('Level 2'!E$31/H$116*U$109*AH$109,"*") -> 49.71045482 | I90: =IFERROR('Level 2'!F$31/I$116*V$109*AI$109,"*") -> 50.81731016 | J90: =IFERROR('Level 2'!G$31/J$116*W$109*AJ$109,"*") -> 54.17804631 | K90: =IFERROR('Level 2'!H$31/K$116*X$109*AK$109,"*") -> 53.79345669 | L90: =IFERROR('Level 2'!I$31/L$116*Y$109*AL$109,"*") -> 48.99404714 | M90: =IFERROR('Level 2'!J$31/M$116*Z$109*AM$109,"*") -> 50.88575733 | N90: =IFERROR('Level 2'!K$31/N$116*AA$109*AN$109,"*") -> 45.6065139 | O90: =IFERROR('Level 2'!L$31/O$116*AB$109*AO$109,"*") -> * | Q90: ='Oversættelse af landenavne'!$B$31 -> Sverige | R90: =IFERROR('Level 2'!O$31/E$116*R$109*AE$109,"*") -> 42.09017055 | S90: =IFERROR('Level 2'!P$31/F$116*S$109*AF$109,"*") -> 49.07122174 | T90: =IFERROR('Level 2'!Q$31/G$116*T$109*AG$109,"*") -> 44.77764536 | U90: =IFERROR('Level 2'!R$31/H$116*U$109*AH$109,"*") -> 42.86565792 | V90: =IFERROR('Level 2'!S$31/I$116*V$109*AI$109,"*") -> 45.54039581 | W90: =IFERROR('Level 2'!T$31/J$116*W$109*AJ$109,"*") -> 45.98341282 | X90: =IFERROR('Level 2'!U$31/K$116*X$109*AK$109,"*") -> 45.69178784 | Y90: =IFERROR('Level 2'!V$31/L$116*Y$109*AL$109,"*") -> 41.15726229 | Z90: =IFERROR('Level 2'!W$31/M$116*Z$109*AM$109,"*") -> 40.8210911 | AA90: =IFERROR('Level 2'!X$31/N$116*AA$109*AN$109,"*") -> 36.44246463 | AB90: =IFERROR('Level 2'!Y$31/O$116*AB$109*AO$109,"*") -> * | AD90: ='Oversættelse af landenavne'!$B$31 -> Sverige | AE90: =IFERROR('Level 2'!AB$31/E$116*R$109*AE$109,"*") -> 24.1286418 | AF90: =IFERROR('Level 2'!AC$31/F$116*S$109*AF$109,"*") -> 34.22174369 | AG90: =IFERROR('Level 2'!AD$31/G$116*T$109*AG$109,"*") -> 33.3016561 | AH90: =IFERROR('Level 2'!AE$31/H$116*U$109*AH$109,"*") -> 28.34687192 | AI90: =IFERROR('Level 2'!AF$31/I$116*V$109*AI$109,"*") -> 28.79191063 | AJ90: =IFERROR('Level 2'!AG$31/J$116*W$109*AJ$109,"*") -> 29.3403946 | AK90: =IFERROR('Level 2'!AH$31/K$116*X$109*AK$109,"*") -> 27.06143048 | AL90: =IFERROR('Level 2'!AI$31/L$116*Y$109*AL$109,"*") -> 27.5915946 | AM90: =IFERROR('Level 2'!AJ$31/M$116*Z$109*AM$109,"*") -> 25.85497587 | AN90: =IFERROR('Level 2'!AK$31/N$116*AA$109*AN$109,"*") -> 22.88448608 | AO90: =IFERROR('Level 2'!AL$31/O$116*AB$109*AO$109,"*") -> * | AQ90: ='Oversættelse af landenavne'!$B$31 -> Sverige | AR90: =IFERROR('Level 2'!AO$31/E$116*R$109*AE$109,"*") -> * | AS90: =IFERROR('Level 2'!AP$31/F$116*S$109*AF$109,"*") -> * | AT90: =IFERROR('Level 2'!AQ$31/G$116*T$109*AG$109,"*") -> 23.74217615 | AU90: =IFERROR('Level 2'!AR$31/H$116*U$109*AH$109,"*") -> 21.34597797 | AV90: =IFERROR('Level 2'!AS$31/I$116*V$109*AI$109,"*") -> 22.89890984 | AW90: =IFERROR('Level 2'!AT$31/J$116*W$109*AJ$109,"*") -> 27.14182801 | AX90: =IFERROR('Level 2'!AU$31/K$116*X$109*AK$109,"*") -> 27.17746329 | AY90: =IFERROR('Level 2'!AV$31/L$116*Y$109*AL$109,"*") -> 26.15411644 | AZ90: =IFERROR('Level 2'!AW$31/M$116*Z$109*AM$109,"*") -> 24.84920658 | BA90: =IFERROR('Level 2'!AX$31/N$116*AA$109*AN$109,"*") -> 24.61161711 | BB90: =IFERROR('Level 2'!AY$31/O$116*AB$109*AO$109,"*") -> * | BD90: ='Oversættelse af landenavne'!$B$31 -> Sverige | BE90: =IFERROR('Level 2'!BB$31/E$116*R$109*AE$109,"*") -> * | BF90: =IFERROR('Level 2'!BC$31/F$116*S$109*AF$109,"*") -> * | BG90: =IFERROR('Level 2'!BD$31/G$116*T$109*AG$109,"*") -> 24.23646157 | BH90: =IFERROR('Level 2'!BE$31/H$116*U$109*AH$109,"*") -> 21.46334417 | BI90: =IFERROR('Level 2'!BF$31/I$116*V$109*AI$109,"*") -> 23.09122222 | BJ90: =IFERROR('Level 2'!BG$31/J$116*W$109*AJ$109,"*") -> 27.96629048 | BK90: =IFERROR('Level 2'!BH$31/K$116*X$109*AK$109,"*") -> 24.57317127 | BL90: =IFERROR('Level 2'!BI$31/L$116*Y$109*AL$109,"*") -> 25.02276789 | BM90: =IFERROR('Level 2'!BJ$31/M$116*Z$109*AM$109,"*") -> 25.21128353 | BN90: =IFERROR('Level 2'!BK$31/N$116*AA$109*AN$109,"*") -> 23.85599728 | BO90: =IFERROR('Level 2'!BL$31/O$116*AB$109*AO$109,"*") -> * | BQ90: ='Oversættelse af landenavne'!$B$31 -> Sverige | BR90: =IFERROR('Level 2'!BO$31/E$116*R$109*AE$109,"*") -> * | BS90: =IFERROR('Level 2'!BP$31/F$116*S$109*AF$109,"*") -> * | BT90: =IFERROR('Level 2'!BQ$31/G$116*T$109*AG$109,"*") -> * | BU90: =IFERROR('Level 2'!BR$31/H$116*U$109*AH$109,"*") -> * | BV90: =IFERROR('Level 2'!BS$31/I$116*V$109*AI$109,"*") -> * | BW90: =IFERROR('Level 2'!BT$31/J$116*W$109*AJ$109,"*") -> * | BX90: =IFERROR('Level 2'!BU$31/K$116*X$109*AK$109,"*") -> * | BY90: =IFERROR('Level 2'!BV$31/L$116*Y$109*AL$109,"*") -> * | BZ90: =IFERROR('Level 2'!BW$31/M$116*Z$109*AM$109,"*") -> * | CA90: =IFERROR('Level 2'!BX$31/N$116*AA$109*AN$109,"*") -> * | CB90: =IFERROR('Level 2'!BY$31/O$116*AB$109*AO$109,"*") -> *
D91: ='Oversættelse af landenavne'!$B$32 -> UK | E91: =IFERROR('Level 2'!B$32/E$117*R$109*AE$109,"*") -> 33.56217479 | F91: =IFERROR('Level 2'!C$32/F$117*S$109*AF$109,"*") -> 38.09370228 | G91: =IFERROR('Level 2'!D$32/G$117*T$109*AG$109,"*") -> 40.04892485 | H91: =IFERROR('Level 2'!E$32/H$117*U$109*AH$109,"*") -> 35.54912092 | I91: =IFERROR('Level 2'!F$32/I$117*V$109*AI$109,"*") -> 37.77121188 | J91: =IFERROR('Level 2'!G$32/J$117*W$109*AJ$109,"*") -> 43.74085856 | K91: =IFERROR('Level 2'!H$32/K$117*X$109*AK$109,"*") -> 44.9595853 | L91: =IFERROR('Level 2'!I$32/L$117*Y$109*AL$109,"*") -> 46.54596816 | M91: =IFERROR('Level 2'!J$32/M$117*Z$109*AM$109,"*") -> 44.64931723 | N91: =IFERROR('Level 2'!K$32/N$117*AA$109*AN$109,"*") -> 34.40811037 | O91: =IFERROR('Level 2'!L$32/O$117*AB$109*AO$109,"*") -> * | Q91: ='Oversættelse af landenavne'!$B$32 -> UK | R91: =IFERROR('Level 2'!O$32/E$117*R$109*AE$109,"*") -> 28.91008388 | S91: =IFERROR('Level 2'!P$32/F$117*S$109*AF$109,"*") -> 30.88089558 | T91: =IFERROR('Level 2'!Q$32/G$117*T$109*AG$109,"*") -> 29.16602959 | U91: =IFERROR('Level 2'!R$32/H$117*U$109*AH$109,"*") -> 26.46833629 | V91: =IFERROR('Level 2'!S$32/I$117*V$109*AI$109,"*") -> 28.74028137 | W91: =IFERROR('Level 2'!T$32/J$117*W$109*AJ$109,"*") -> 32.21175435 | X91: =IFERROR('Level 2'!U$32/K$117*X$109*AK$109,"*") -> 34.24765005 | Y91: =IFERROR('Level 2'!V$32/L$117*Y$109*AL$109,"*") -> 33.46314366 | Z91: =IFERROR('Level 2'!W$32/M$117*Z$109*AM$109,"*") -> 29.62996327 | AA91: =IFERROR('Level 2'!X$32/N$117*AA$109*AN$109,"*") -> 21.83710934 | AB91: =IFERROR('Level 2'!Y$32/O$117*AB$109*AO$109,"*") -> * | AD91: ='Oversættelse af landenavne'!$B$32 -> UK | AE91: =IFERROR('Level 2'!AB$32/E$117*R$109*AE$109,"*") -> 19.29486067 | AF91: =IFERROR('Level 2'!AC$32/F$117*S$109*AF$109,"*") -> 28.5051871 | AG91: =IFERROR('Level 2'!AD$32/G$117*T$109*AG$109,"*") -> 29.72779483 | AH91: =IFERROR('Level 2'!AE$32/H$117*U$109*AH$109,"*") -> 29.8537479 | AI91: =IFERROR('Level 2'!AF$32/I$117*V$109*AI$109,"*") -> 41.45077583 | AJ91: =IFERROR('Level 2'!AG$32/J$117*W$109*AJ$109,"*") -> 41.05134161 | AK91: =IFERROR('Level 2'!AH$32/K$117*X$109*AK$109,"*") -> 42.47750653 | AL91: =IFERROR('Level 2'!AI$32/L$117*Y$109*AL$109,"*") -> 38.7003063 | AM91: =IFERROR('Level 2'!AJ$32/M$117*Z$109*AM$109,"*") -> 32.35895061 | AN91: =IFERROR('Level 2'!AK$32/N$117*AA$109*AN$109,"*") -> 27.67904771 | AO91: =IFERROR('Level 2'!AL$32/O$117*AB$109*AO$109,"*") -> * | AQ91: ='Oversættelse af landenavne'!$B$32 -> UK | AR91: =IFERROR('Level 2'!AO$32/E$117*R$109*AE$109,"*") -> 18.47277019 | AS91: =IFERROR('Level 2'!AP$32/F$117*S$109*AF$109,"*") -> 26.04628326 | AT91: =IFERROR('Level 2'!AQ$32/G$117*T$109*AG$109,"*") -> 25.26322055 | AU91: =IFERROR('Level 2'!AR$32/H$117*U$109*AH$109,"*") -> 26.07000248 | AV91: =IFERROR('Level 2'!AS$32/I$117*V$109*AI$109,"*") -> 26.51982553 | AW91: =IFERROR('Level 2'!AT$32/J$117*W$109*AJ$109,"*") -> 27.69657397 | AX91: =IFERROR('Level 2'!AU$32/K$117*X$109*AK$109,"*") -> 28.81316 | AY91: =IFERROR('Level 2'!AV$32/L$117*Y$109*AL$109,"*") -> 26.69185965 | AZ91: =IFERROR('Level 2'!AW$32/M$117*Z$109*AM$109,"*") -> 22.89922108 | BA91: =IFERROR('Level 2'!AX$32/N$117*AA$109*AN$109,"*") -> 15.13185402 | BB91: =IFERROR('Level 2'!AY$32/O$117*AB$109*AO$109,"*") -> * | BD91: ='Oversættelse af landenavne'!$B$32 -> UK | BE91: =IFERROR('Level 2'!BB$32/E$117*R$109*AE$109,"*") -> 17.04330338 | BF91: =IFERROR('Level 2'!BC$32/F$117*S$109*AF$109,"*") -> 23.75658753 | BG91: =IFERROR('Level 2'!BD$32/G$117*T$109*AG$109,"*") -> 22.57186419 | BH91: =IFERROR('Level 2'!BE$32/H$117*U$109*AH$109,"*") -> 23.46933743 | BI91: =IFERROR('Level 2'!BF$32/I$117*V$109*AI$109,"*") -> 24.29545925 | BJ91: =IFERROR('Level 2'!BG$32/J$117*W$109*AJ$109,"*") -> 25.82185451 | BK91: =IFERROR('Level 2'!BH$32/K$117*X$109*AK$109,"*") -> 26.52357748 | BL91: =IFERROR('Level 2'!BI$32/L$117*Y$109*AL$109,"*") -> 24.5910499 | BM91: =IFERROR('Level 2'!BJ$32/M$117*Z$109*AM$109,"*") -> 18.7655093 | BN91: =IFERROR('Level 2'!BK$32/N$117*AA$109*AN$109,"*") -> 11.57037099 | BO91: =IFERROR('Level 2'!BL$32/O$117*AB$109*AO$109,"*") -> * | BQ91: ='Oversættelse af landenavne'!$B$32 -> UK | BR91: =IFERROR('Level 2'!BO$32/E$117*R$109*AE$109,"*") -> * | BS91: =IFERROR('Level 2'!BP$32/F$117*S$109*AF$109,"*") -> * | BT91: =IFERROR('Level 2'!BQ$32/G$117*T$109*AG$109,"*") -> 22.0446913 | BU91: =IFERROR('Level 2'!BR$32/H$117*U$109*AH$109,"*") -> * | BV91: =IFERROR('Level 2'!BS$32/I$117*V$109*AI$109,"*") -> * | BW91: =IFERROR('Level 2'!BT$32/J$117*W$109*AJ$109,"*") -> * | BX91: =IFERROR('Level 2'!BU$32/K$117*X$109*AK$109,"*") -> * | BY91: =IFERROR('Level 2'!BV$32/L$117*Y$109*AL$109,"*") -> * | BZ91: =IFERROR('Level 2'!BW$32/M$117*Z$109*AM$109,"*") -> * | CA91: =IFERROR('Level 2'!BX$32/N$117*AA$109*AN$109,"*") -> * | CB91: =IFERROR('Level 2'!BY$32/O$117*AB$109*AO$109,"*") -> *
D92: Kilde: Eurostat | Q92: Kilde: Eurostat | AD92: Kilde: Eurostat | AQ92: Kilde: Eurostat | BD92: Kilde: Eurostat | BQ92: Kilde: Eurostat
D100: Baggrundstabeller
D101: Herunder vises de tabeller, der framkoller som resultatet er valgene truffet øverst i valgmenuen. De ganges på rådata for at få resultattabellerne som kan ses længere oppe.
D104: Tabel B - BVT Deflatoren | Q104: Tabel C - Valutakurs | AD104: Tabel D - Omregningsfaktor for valgt enhed
D105: Tabel B fremkommer som resultat af valgene truffet for faste/løbende priser og basisår. BVT deflatoren vises for samtlige lande for det valgte år. Væles løbende priser deflaterer man ikke, hvorfor der vil stå et 1-tal i alle celler. Formlen gør at "fejlværdien" svarer til at man har valgt løbende priser (gælder både for overskrift og formler). Med denne metode kan indeksværdien ganges direkte på rådata uanset hvilken valuta der vælges. | Q105: Tabel C viser hvilken kurs der ganges på rådata (opgivet i euro) for at få priserne vist i den valuta der er valgt i valgmenuen øverst. Kursen ændres efter valgt år og valuta. | AD105: Tabel D viser hvilken faktor der ganges på den oprindelige (opgivet i GJ), for at få vist priserne i den enhed der er valgt i valgmenuen øverst. Formlen gør så "fejlværdien" svarer til at man har valgt GJ (gælder både for overskrift og formler). Med denne metode kan omregningsfaktoren ganges direkte på rådata uanset hvilken enhed der vælges.
D107: =IF($E$12="faste priser","BVT deflatoren med basisåret "&$E$13&"","Prisindeks for løbende priser år "&$E$11) -> BVT deflatoren med basisåret 2015 | Q107: ="Valutakursen for "&E14&" i fht. Euro" -> Valutakursen for DKK øre i fht. Euro | AD107: ="Omregningsfaktoren for "&$E$15&" i fht. GJ" -> Omregningsfaktoren for Kwh i fht. GJ
E108: ='Baggrundsdata - BVT - deflator'!C22 -> 2007 | F108: ='Baggrundsdata - BVT - deflator'!D22 -> 2008 | G108: ='Baggrundsdata - BVT - deflator'!E22 -> 2009 | H108: ='Baggrundsdata - BVT - deflator'!F22 -> 2010 | I108: ='Baggrundsdata - BVT - deflator'!G22 -> 2011 | J108: ='Baggrundsdata - BVT - deflator'!H22 -> 2012 | K108: ='Baggrundsdata - BVT - deflator'!I22 -> 2013 | L108: ='Baggrundsdata - BVT - deflator'!J22 -> 2014 | M108: ='Baggrundsdata - BVT - deflator'!K22 -> 2015 | N108: ='Baggrundsdata - BVT - deflator'!L22 -> 2016 | O108: ='Baggrundsdata - BVT - deflator'!M22 -> 2017 | R108: =Forside!E55 -> 2007 | S108: =Forside!F55 -> 2008 | T108: =Forside!G55 -> 2009 | U108: =Forside!H55 -> 2010 | V108: =Forside!I55 -> 2011 | W108: =Forside!J55 -> 2012 | X108: =Forside!K55 -> 2013 | Y108: =Forside!L55 -> 2014 | Z108: =Forside!M55 -> 2015 | AA108: =Forside!N55 -> 2016 | AB108: =Forside!O55 -> 2017 | AE108: =Forside!E62 -> 2007 | AF108: =Forside!F62 -> 2008 | AG108: =Forside!G62 -> 2009 | AH108: =Forside!H62 -> 2010 | AI108: =Forside!I62 -> 2011 | AJ108: =Forside!J62 -> 2012 | AK108: =Forside!K62 -> 2013 | AL108: =Forside!L62 -> 2014 | AM108: =Forside!M62 -> 2015 | AN108: =Forside!N62 -> 2016 | AO108: =Forside!O62 -> 2017
D109: ='Baggrundsdata - BVT - deflator'!Q23 -> EU-28 | E109: =IF($E$12="faste priser",HLOOKUP(E$108,'Baggrundsdata - BVT - deflator'!$R$22:$AB$31,2,FALSE),1) -> 0.9117232094 | F109: =IF($E$12="faste priser",HLOOKUP(F$108,'Baggrundsdata - BVT - deflator'!$R$22:$AB$31,2,FALSE),1) -> 0.9147386184 | G109: =IF($E$12="faste priser",HLOOKUP(G$108,'Baggrundsdata - BVT - deflator'!$R$22:$AB$31,2,FALSE),1) -> 0.9058399343 | H109: =IF($E$12="faste priser",HLOOKUP(H$108,'Baggrundsdata - BVT - deflator'!$R$22:$AB$31,2,FALSE),1) -> 0.9221434302 | I109: =IF($E$12="faste priser",HLOOKUP(I$108,'Baggrundsdata - BVT - deflator'!$R$22:$AB$31,2,FALSE),1) -> 0.9309960071 | J109: =IF($E$12="faste priser",HLOOKUP(J$108,'Baggrundsdata - BVT - deflator'!$R$22:$AB$31,2,FALSE),1) -> 0.9523067418 | K109: =IF($E$12="faste priser",HLOOKUP(K$108,'Baggrundsdata - BVT - deflator'!$R$22:$AB$31,2,FALSE),1) -> 0.9574430807 | L109: =IF($E$12="faste priser",HLOOKUP(L$108,'Baggrundsdata - BVT - deflator'!$R$22:$AB$31,2,FALSE),1) -> 0.9724740186 | M109: =IF($E$12="faste priser",HLOOKUP(M$108,'Baggrundsdata - BVT - deflator'!$R$22:$AB$31,2,FALSE),1) -> 1 | N109: =IF($E$12="faste priser",HLOOKUP(N$108,'Baggrundsdata - BVT - deflator'!$R$22:$AB$31,2,FALSE),1) -> 1.028305107 | O109: =IF($E$12="faste priser",HLOOKUP(O$108,'Baggrundsdata - BVT - deflator'!$R$22:$AB$31,2,FALSE),1) -> 0 | Q109: Alle lande | R109: =IF($E$14="Euro",1,IF($E$14="eurocent",100,IF($E$14="DKK øre",HLOOKUP(R108,Forside!$E$55:$O$56,2,FALSE),IF($E$14="DKK",((HLOOKUP(R108,Forside!$E$55:$O$56,2,FALSE))/100),"F")))) -> 745.5974 | S109: =IF($E$14="Euro",1,IF($E$14="eurocent",100,IF($E$14="DKK øre",HLOOKUP(S108,Forside!$E$55:$O$56,2,FALSE),IF($E$14="DKK",((HLOOKUP(S108,Forside!$E$55:$O$56,2,FALSE))/100),"F")))) -> 744.6251 | T109: =IF($E$14="Euro",1,IF($E$14="eurocent",100,IF($E$14="DKK øre",HLOOKUP(T108,Forside!$E$55:$O$56,2,FALSE),IF($E$14="DKK",((HLOOKUP(T108,Forside!$E$55:$O$56,2,FALSE))/100),"F")))) -> 744.6251 | U109: =IF($E$14="Euro",1,IF($E$14="eurocent",100,IF($E$14="DKK øre",HLOOKUP(U108,Forside!$E$55:$O$56,2,FALSE),IF($E$14="DKK",((HLOOKUP(U108,Forside!$E$55:$O$56,2,FALSE))/100),"F")))) -> 744.7366 | V109: =IF($E$14="Euro",1,IF($E$14="eurocent",100,IF($E$14="DKK øre",HLOOKUP(V108,Forside!$E$55:$O$56,2,FALSE),IF($E$14="DKK",((HLOOKUP(V108,Forside!$E$55:$O$56,2,FALSE))/100),"F")))) -> 745.0529 | W109: =IF($E$14="Euro",1,IF($E$14="eurocent",100,IF($E$14="DKK øre",HLOOKUP(W108,Forside!$E$55:$O$56,2,FALSE),IF($E$14="DKK",((HLOOKUP(W108,Forside!$E$55:$O$56,2,FALSE))/100),"F")))) -> 744.3751 | X109: =IF($E$14="Euro",1,IF($E$14="eurocent",100,IF($E$14="DKK øre",HLOOKUP(X108,Forside!$E$55:$O$56,2,FALSE),IF($E$14="DKK",((HLOOKUP(X108,Forside!$E$55:$O$56,2,FALSE))/100),"F")))) -> 745.7982 | Y109: =IF($E$14="Euro",1,IF($E$14="eurocent",100,IF($E$14="DKK øre",HLOOKUP(Y108,Forside!$E$55:$O$56,2,FALSE),IF($E$14="DKK",((HLOOKUP(Y108,Forside!$E$55:$O$56,2,FALSE))/100),"F")))) -> 745.4741 | Z109: =IF($E$14="Euro",1,IF($E$14="eurocent",100,IF($E$14="DKK øre",HLOOKUP(Z108,Forside!$E$55:$O$56,2,FALSE),IF($E$14="DKK",((HLOOKUP(Z108,Forside!$E$55:$O$56,2,FALSE))/100),"F")))) -> 745.6103 | AA109: =IF($E$14="Euro",1,IF($E$14="eurocent",100,IF($E$14="DKK øre",HLOOKUP(AA108,Forside!$E$55:$O$56,2,FALSE),IF($E$14="DKK",((HLOOKUP(AA108,Forside!$E$55:$O$56,2,FALSE))/100),"F")))) -> 744.7488444 | AB109: =IF($E$14="Euro",1,IF($E$14="eurocent",100,IF($E$14="DKK øre",HLOOKUP(AB108,Forside!$E$55:$O$56,2,FALSE),IF($E$14="DKK",((HLOOKUP(AB108,Forside!$E$55:$O$56,2,FALSE))/100),"F")))) -> 0 | AD109: Alle lande | AE109: =IF($E$15="Nm3",HLOOKUP(AE108,Forside!$E$70:$O$72,2,FALSE),IF($E$15="Kwh",1/278,1)) -> 0.003597122302 | AF109: =IF($E$15="Nm3",HLOOKUP(AF108,Forside!$E$70:$O$72,2,FALSE),IF($E$15="Kwh",1/278,1)) -> 0.003597122302 | AG109: =IF($E$15="Nm3",HLOOKUP(AG108,Forside!$E$70:$O$72,2,FALSE),IF($E$15="Kwh",1/278,1)) -> 0.003597122302 | AH109: =IF($E$15="Nm3",HLOOKUP(AH108,Forside!$E$70:$O$72,2,FALSE),IF($E$15="Kwh",1/278,1)) -> 0.003597122302 | AI109: =IF($E$15="Nm3",HLOOKUP(AI108,Forside!$E$70:$O$72,2,FALSE),IF($E$15="Kwh",1/278,1)) -> 0.003597122302 | AJ109: =IF($E$15="Nm3",HLOOKUP(AJ108,Forside!$E$70:$O$72,2,FALSE),IF($E$15="Kwh",1/278,1)) -> 0.003597122302 | AK109: =IF($E$15="Nm3",HLOOKUP(AK108,Forside!$E$70:$O$72,2,FALSE),IF($E$15="Kwh",1/278,1)) -> 0.003597122302 | AL109: =IF($E$15="Nm3",HLOOKUP(AL108,Forside!$E$70:$O$72,2,FALSE),IF($E$15="Kwh",1/278,1)) -> 0.003597122302 | AM109: =IF($E$15="Nm3",HLOOKUP(AM108,Forside!$E$70:$O$72,2,FALSE),IF($E$15="Kwh",1/278,1)) -> 0.003597122302 | AN109: =IF($E$15="Nm3",HLOOKUP(AN108,Forside!$E$70:$O$72,2,FALSE),IF($E$15="Kwh",1/278,1)) -> 0.003597122302 | AO109: =IF($E$15="Nm3",HLOOKUP(AO108,Forside!$E$70:$O$72,2,FALSE),IF($E$15="Kwh",1/278,1)) -> 0.003597122302
D110: ='Baggrundsdata - BVT - deflator'!Q24 -> Belgien | E110: =IF($E$12="faste priser",HLOOKUP(E$108,'Baggrundsdata - BVT - deflator'!$R$22:$AB$31,3,FALSE),1) -> 0.8948579769 | F110: =IF($E$12="faste priser",HLOOKUP(F$108,'Baggrundsdata - BVT - deflator'!$R$22:$AB$31,3,FALSE),1) -> 0.9097994087 | G110: =IF($E$12="faste priser",HLOOKUP(G$108,'Baggrundsdata - BVT - deflator'!$R$22:$AB$31,3,FALSE),1) -> 0.9181449048 | H110: =IF($E$12="faste priser",HLOOKUP(H$108,'Baggrundsdata - BVT - deflator'!$R$22:$AB$31,3,FALSE),1) -> 0.9355937278 | I110: =IF($E$12="faste priser",HLOOKUP(I$108,'Baggrundsdata - BVT - deflator'!$R$22:$AB$31,3,FALSE),1) -> 0.9527338049 | J110: =IF($E$12="faste priser",HLOOKUP(J$108,'Baggrundsdata - BVT - deflator'!$R$22:$AB$31,3,FALSE),1) -> 0.9713146963 | K110: =IF($E$12="faste priser",HLOOKUP(K$108,'Baggrundsdata - BVT - deflator'!$R$22:$AB$31,3,FALSE),1) -> 0.9846656188 | L110: =IF($E$12="faste priser",HLOOKUP(L$108,'Baggrundsdata - BVT - deflator'!$R$22:$AB$31,3,FALSE),1) -> 0.9914112496 | M110: =IF($E$12="faste priser",HLOOKUP(M$108,'Baggrundsdata - BVT - deflator'!$R$22:$AB$31,3,FALSE),1) -> 1 | N110: =IF($E$12="faste priser",HLOOKUP(N$108,'Baggrundsdata - BVT - deflator'!$R$22:$AB$31,3,FALSE),1) -> 1.008663156 | O110: =IF($E$12="faste priser",HLOOKUP(O$108,'Baggrundsdata - BVT - deflator'!$R$22:$AB$31,3,FALSE),1) -> 0
D111: ='Baggrundsdata - BVT - deflator'!Q25 -> Danmark | E111: =IF($E$12="faste priser",HLOOKUP(E$108,'Baggrundsdata - BVT - deflator'!$R$22:$AB$31,4,FALSE),1) -> 0.8556478343 | F111: =IF($E$12="faste priser",HLOOKUP(F$108,'Baggrundsdata - BVT - deflator'!$R$22:$AB$31,4,FALSE),1) -> 0.895404268 | G111: =IF($E$12="faste priser",HLOOKUP(G$108,'Baggrundsdata - BVT - deflator'!$R$22:$AB$31,4,FALSE),1) -> 0.9009534096 | H111: =IF($E$12="faste priser",HLOOKUP(H$108,'Baggrundsdata - BVT - deflator'!$R$22:$AB$31,4,FALSE),1) -> 0.93106402 | I111: =IF($E$12="faste priser",HLOOKUP(I$108,'Baggrundsdata - BVT - deflator'!$R$22:$AB$31,4,FALSE),1) -> 0.9360545231 | J111: =IF($E$12="faste priser",HLOOKUP(J$108,'Baggrundsdata - BVT - deflator'!$R$22:$AB$31,4,FALSE),1) -> 0.9638095415 | K111: =IF($E$12="faste priser",HLOOKUP(K$108,'Baggrundsdata - BVT - deflator'!$R$22:$AB$31,4,FALSE),1) -> 0.9782131019 | L111: =IF($E$12="faste priser",HLOOKUP(L$108,'Baggrundsdata - BVT - deflator'!$R$22:$AB$31,4,FALSE),1) -> 0.9875889166 | M111: =IF($E$12="faste priser",HLOOKUP(M$108,'Baggrundsdata - BVT - deflator'!$R$22:$AB$31,4,FALSE),1) -> 1 | N111: =IF($E$12="faste priser",HLOOKUP(N$108,'Baggrundsdata - BVT - deflator'!$R$22:$AB$31,4,FALSE),1) -> 1.012567054 | O111: =IF($E$12="faste priser",HLOOKUP(O$108,'Baggrundsdata - BVT - deflator'!$R$22:$AB$31,4,FALSE),1) -> 0
D112: ='Baggrundsdata - BVT - deflator'!Q26 -> Tyskland | E112: =IF($E$12="faste priser",HLOOKUP(E$108,'Baggrundsdata - BVT - deflator'!$R$22:$AB$31,5,FALSE),1) -> 0.8849312303 | F112: =IF($E$12="faste priser",HLOOKUP(F$108,'Baggrundsdata - BVT - deflator'!$R$22:$AB$31,5,FALSE),1) -> 0.8912897869 | G112: =IF($E$12="faste priser",HLOOKUP(G$108,'Baggrundsdata - BVT - deflator'!$R$22:$AB$31,5,FALSE),1) -> 0.9094112142 | H112: =IF($E$12="faste priser",HLOOKUP(H$108,'Baggrundsdata - BVT - deflator'!$R$22:$AB$31,5,FALSE),1) -> 0.9175406241 | I112: =IF($E$12="faste priser",HLOOKUP(I$108,'Baggrundsdata - BVT - deflator'!$R$22:$AB$31,5,FALSE),1) -> 0.9265967501 | J112: =IF($E$12="faste priser",HLOOKUP(J$108,'Baggrundsdata - BVT - deflator'!$R$22:$AB$31,5,FALSE),1) -> 0.9397359318 | K112: =IF($E$12="faste priser",HLOOKUP(K$108,'Baggrundsdata - BVT - deflator'!$R$22:$AB$31,5,FALSE),1) -> 0.960316368 | L112: =IF($E$12="faste priser",HLOOKUP(L$108,'Baggrundsdata - BVT - deflator'!$R$22:$AB$31,5,FALSE),1) -> 0.9782542872 | M112: =IF($E$12="faste priser",HLOOKUP(M$108,'Baggrundsdata - BVT - deflator'!$R$22:$AB$31,5,FALSE),1) -> 1 | N112: =IF($E$12="faste priser",HLOOKUP(N$108,'Baggrundsdata - BVT - deflator'!$R$22:$AB$31,5,FALSE),1) -> 1.0222291 | O112: =IF($E$12="faste priser",HLOOKUP(O$108,'Baggrundsdata - BVT - deflator'!$R$22:$AB$31,5,FALSE),1) -> 0
D113: ='Baggrundsdata - BVT - deflator'!Q27 -> Frankrig | E113: =IF($E$12="faste priser",HLOOKUP(E$108,'Baggrundsdata - BVT - deflator'!$R$22:$AB$31,6,FALSE),1) -> 0.9306339421 | F113: =IF($E$12="faste priser",HLOOKUP(F$108,'Baggrundsdata - BVT - deflator'!$R$22:$AB$31,6,FALSE),1) -> 0.9527365344 | G113: =IF($E$12="faste priser",HLOOKUP(G$108,'Baggrundsdata - BVT - deflator'!$R$22:$AB$31,6,FALSE),1) -> 0.9554378552 | H113: =IF($E$12="faste priser",HLOOKUP(H$108,'Baggrundsdata - BVT - deflator'!$R$22:$AB$31,6,FALSE),1) -> 0.9647574117 | I113: =IF($E$12="faste priser",HLOOKUP(I$108,'Baggrundsdata - BVT - deflator'!$R$22:$AB$31,6,FALSE),1) -> 0.970256529 | J113: =IF($E$12="faste priser",HLOOKUP(J$108,'Baggrundsdata - BVT - deflator'!$R$22:$AB$31,6,FALSE),1) -> 0.9787174515 | K113: =IF($E$12="faste priser",HLOOKUP(K$108,'Baggrundsdata - BVT - deflator'!$R$22:$AB$31,6,FALSE),1) -> 0.9851330883 | L113: =IF($E$12="faste priser",HLOOKUP(L$108,'Baggrundsdata - BVT - deflator'!$R$22:$AB$31,6,FALSE),1) -> 0.9877958187 | M113: =IF($E$12="faste priser",HLOOKUP(M$108,'Baggrundsdata - BVT - deflator'!$R$22:$AB$31,6,FALSE),1) -> 1 | N113: =IF($E$12="faste priser",HLOOKUP(N$108,'Baggrundsdata - BVT - deflator'!$R$22:$AB$31,6,FALSE),1) -> 1.012354963 | O113: =IF($E$12="faste priser",HLOOKUP(O$108,'Baggrundsdata - BVT - deflator'!$R$22:$AB$31,6,FALSE),1) -> 0
D114: ='Baggrundsdata - BVT - deflator'!Q28 -> Italien | E114: =IF($E$12="faste priser",HLOOKUP(E$108,'Baggrundsdata - BVT - deflator'!$R$22:$AB$31,7,FALSE),1) -> 0.9100875102 | F114: =IF($E$12="faste priser",HLOOKUP(F$108,'Baggrundsdata - BVT - deflator'!$R$22:$AB$31,7,FALSE),1) -> 0.9351394635 | G114: =IF($E$12="faste priser",HLOOKUP(G$108,'Baggrundsdata - BVT - deflator'!$R$22:$AB$31,7,FALSE),1) -> 0.955339269 | H114: =IF($E$12="faste priser",HLOOKUP(H$108,'Baggrundsdata - BVT - deflator'!$R$22:$AB$31,7,FALSE),1) -> 0.9532706717 | I114: =IF($E$12="faste priser",HLOOKUP(I$108,'Baggrundsdata - BVT - deflator'!$R$22:$AB$31,7,FALSE),1) -> 0.9655106671 | J114: =IF($E$12="faste priser",HLOOKUP(J$108,'Baggrundsdata - BVT - deflator'!$R$22:$AB$31,7,FALSE),1) -> 0.9747287945 | K114: =IF($E$12="faste priser",HLOOKUP(K$108,'Baggrundsdata - BVT - deflator'!$R$22:$AB$31,7,FALSE),1) -> 0.9870259862 | L114: =IF($E$12="faste priser",HLOOKUP(L$108,'Baggrundsdata - BVT - deflator'!$R$22:$AB$31,7,FALSE),1) -> 0.991677947 | M114: =IF($E$12="faste priser",HLOOKUP(M$108,'Baggrundsdata - BVT - deflator'!$R$22:$AB$31,7,FALSE),1) -> 1 | N114: =IF($E$12="faste priser",HLOOKUP(N$108,'Baggrundsdata - BVT - deflator'!$R$22:$AB$31,7,FALSE),1) -> 1.008391891 | O114: =IF($E$12="faste priser",HLOOKUP(O$108,'Baggrundsdata - BVT - deflator'!$R$22:$AB$31,7,FALSE),1) -> 0
D115: ='Baggrundsdata - BVT - deflator'!Q29 -> Holland | E115: =IF($E$12="faste priser",HLOOKUP(E$108,'Baggrundsdata - BVT - deflator'!$R$22:$AB$31,8,FALSE),1) -> 0.9326643552 | F115: =IF($E$12="faste priser",HLOOKUP(F$108,'Baggrundsdata - BVT - deflator'!$R$22:$AB$31,8,FALSE),1) -> 0.9539312929 | G115: =IF($E$12="faste priser",HLOOKUP(G$108,'Baggrundsdata - BVT - deflator'!$R$22:$AB$31,8,FALSE),1) -> 0.9580649211 | H115: =IF($E$12="faste priser",HLOOKUP(H$108,'Baggrundsdata - BVT - deflator'!$R$22:$AB$31,8,FALSE),1) -> 0.965800987 | I115: =IF($E$12="faste priser",HLOOKUP(I$108,'Baggrundsdata - BVT - deflator'!$R$22:$AB$31,8,FALSE),1) -> 0.9665349958 | J115: =IF($E$12="faste priser",HLOOKUP(J$108,'Baggrundsdata - BVT - deflator'!$R$22:$AB$31,8,FALSE),1) -> 0.9811572227 | K115: =IF($E$12="faste priser",HLOOKUP(K$108,'Baggrundsdata - BVT - deflator'!$R$22:$AB$31,8,FALSE),1) -> 0.9878791976 | L115: =IF($E$12="faste priser",HLOOKUP(L$108,'Baggrundsdata - BVT - deflator'!$R$22:$AB$31,8,FALSE),1) -> 0.9949488608 | M115: =IF($E$12="faste priser",HLOOKUP(M$108,'Baggrundsdata - BVT - deflator'!$R$22:$AB$31,8,FALSE),1) -> 1 | N115: =IF($E$12="faste priser",HLOOKUP(N$108,'Baggrundsdata - BVT - deflator'!$R$22:$AB$31,8,FALSE),1) -> 1.005076783 | O115: =IF($E$12="faste priser",HLOOKUP(O$108,'Baggrundsdata - BVT - deflator'!$R$22:$AB$31,8,FALSE),1) -> 0
D116: ='Baggrundsdata - BVT - deflator'!Q30 -> Sverige | E116: =IF($E$12="faste priser",HLOOKUP(E$108,'Baggrundsdata - BVT - deflator'!$R$22:$AB$31,9,FALSE),1) -> 0.8828883938 | F116: =IF($E$12="faste priser",HLOOKUP(F$108,'Baggrundsdata - BVT - deflator'!$R$22:$AB$31,9,FALSE),1) -> 0.8765521145 | G116: =IF($E$12="faste priser",HLOOKUP(G$108,'Baggrundsdata - BVT - deflator'!$R$22:$AB$31,9,FALSE),1) -> 0.8128423782 | H116: =IF($E$12="faste priser",HLOOKUP(H$108,'Baggrundsdata - BVT - deflator'!$R$22:$AB$31,9,FALSE),1) -> 0.9130085458 | I116: =IF($E$12="faste priser",HLOOKUP(I$108,'Baggrundsdata - BVT - deflator'!$R$22:$AB$31,9,FALSE),1) -> 0.9755131108 | J116: =IF($E$12="faste priser",HLOOKUP(J$108,'Baggrundsdata - BVT - deflator'!$R$22:$AB$31,9,FALSE),1) -> 1.023026076 | K116: =IF($E$12="faste priser",HLOOKUP(K$108,'Baggrundsdata - BVT - deflator'!$R$22:$AB$31,9,FALSE),1) -> 1.040418888 | L116: =IF($E$12="faste priser",HLOOKUP(L$108,'Baggrundsdata - BVT - deflator'!$R$22:$AB$31,9,FALSE),1) -> 1.007349719 | M116: =IF($E$12="faste priser",HLOOKUP(M$108,'Baggrundsdata - BVT - deflator'!$R$22:$AB$31,9,FALSE),1) -> 1 | N116: =IF($E$12="faste priser",HLOOKUP(N$108,'Baggrundsdata - BVT - deflator'!$R$22:$AB$31,9,FALSE),1) -> 0.9927039054 | O116: =IF($E$12="faste priser",HLOOKUP(O$108,'Baggrundsdata - BVT - deflator'!$R$22:$AB$31,9,FALSE),1) -> 0
D117: ='Baggrundsdata - BVT - deflator'!Q31 -> UK | E117: =IF($E$12="faste priser",HLOOKUP(E$108,'Baggrundsdata - BVT - deflator'!$R$22:$AB$31,10,FALSE),1) -> 0.9118465967 | F117: =IF($E$12="faste priser",HLOOKUP(F$108,'Baggrundsdata - BVT - deflator'!$R$22:$AB$31,10,FALSE),1) -> 0.8081043243 | G117: =IF($E$12="faste priser",HLOOKUP(G$108,'Baggrundsdata - BVT - deflator'!$R$22:$AB$31,10,FALSE),1) -> 0.7433342247 | H117: =IF($E$12="faste priser",HLOOKUP(H$108,'Baggrundsdata - BVT - deflator'!$R$22:$AB$31,10,FALSE),1) -> 0.7865221563 | I117: =IF($E$12="faste priser",HLOOKUP(I$108,'Baggrundsdata - BVT - deflator'!$R$22:$AB$31,10,FALSE),1) -> 0.7881581224 | J117: =IF($E$12="faste priser",HLOOKUP(J$108,'Baggrundsdata - BVT - deflator'!$R$22:$AB$31,10,FALSE),1) -> 0.8596765821 | K117: =IF($E$12="faste priser",HLOOKUP(K$108,'Baggrundsdata - BVT - deflator'!$R$22:$AB$31,10,FALSE),1) -> 0.8361910305 | L117: =IF($E$12="faste priser",HLOOKUP(L$108,'Baggrundsdata - BVT - deflator'!$R$22:$AB$31,10,FALSE),1) -> 0.897657737 | M117: =IF($E$12="faste priser",HLOOKUP(M$108,'Baggrundsdata - BVT - deflator'!$R$22:$AB$31,10,FALSE),1) -> 1 | N117: =IF($E$12="faste priser",HLOOKUP(N$108,'Baggrundsdata - BVT - deflator'!$R$22:$AB$31,10,FALSE),1) -> 1.114010339 | O117: =IF($E$12="faste priser",HLOOKUP(O$108,'Baggrundsdata - BVT - deflator'!$R$22:$AB$31,10,FALSE),1) -> 0

Sheet Alle lande, valgt år
D1: NAVN PÅ ARK: | F1: Alle lande, valgt år
D2: Data hentes fra: | F2: 'Baggrundstabeller for alle lande'
D4: Sådan bruges arket:
D5: Arket 'alle lande, udvalgt år' viser figurer og tabeller (de grå-blå) for gasprisen for industrielle forbrugere opdelt på level 1, 2 og 3 for hvert interval. Prisen vises for alle lande i det valgte år.
D6: Året, pristypen, basisået, valuta og enhed kan ændres. Dette gøres i de farvede rullemenuer nedenfor. Til hver resultattabel hører tre figurer. En for hvert level. I resultattabellen er totalprisen for hvert level opgjort i hver sin totalprissøjle. Hvis man ønsker at sortere figurerne efter stigende priser kan man kopiere de ønskede tabeller og figurer over i et seperat ark.
D7: ="Rent teknisk styrer hver menu styrer en tabel i tilsvarende farve i arket '"&'Baggrundstabeller for alle land'!E1&"'. Disse tabeller ganges sammen og heraf fremkommer resultattabellen som følge af de valg der træffes i rullemenuerne." -> Rent teknisk styrer hver menu styrer en tabel i tilsvarende farve i arket 'Baggrundstabeller for alle lande, valgt år'. Disse tabeller ganges sammen og heraf fremkommer resultattabellen som følge af de valg der træffes i rullemenuerne.
D11: Vælg | G11: Resultater vises i
D12: Vælg år | F12: 2016 | G12: Tabel A
D13: Vælg pristype | F13: faste priser | G13: Tabel B
D14: Vælg Basisår (kun ved fast pris) | F14: 2015 | G14: Tabel B
D15: Vælg valuta | F15: DKK | G15: Tabel C
D16: Vælg enhed (NM3/GJ) | F16: GJ | G16: Tabel D
D19: Resultatfigurer og -tabeller
D20: Valgene truffet ovenfor giver tabeller og figurer der er:
D21: ="Oppgjort for året "&F12&" i "&$F$13&" med basisår "&$F$14 -> Oppgjort for året 2016 i faste priser med basisår 2015
D22: ="Vist i "&F15&" / "&F16&"." -> Vist i DKK / GJ.
D24: IA: < 1000 GJ | J24: IB: 1 000 GJ < 10 000 GJ | P24: IC: 10 000 GJ < 100 000 GJ | V24: ID: 100 000 GJ < 1 000 000 GJ | AB24: IE: 1 000 000 GJ < 4 000 000 GJ | AH24: IF: > 4 000 000 GJ
B26: Level 1: Gaspris | D26: ="Figur XX: "&F73&" for forbrugsintervallet "&D$24&" Priserne er vist for år "&'Baggrundstabeller for alle land'!$E$10&" i "&'Baggrundstabeller for alle land'!$E$11&" med basisår "&'Baggrundstabeller for alle land'!$E$12&". Priserne er vist i "&$F$15&" / "&$F$16&". " -> Figur XX: Gaspris for forbrugsintervallet IA: < 1000 GJ Priserne er vist for år 2016 i faste priser med basisår 2015. Priserne er vist i DKK / GJ. | J26: ="Figur XX: "&L73&" for forbrugsintervallet "&J$24&" Priserne er vist for år "&'Baggrundstabeller for alle land'!$E$10&" i "&'Baggrundstabeller for alle land'!$E$11&" med basisår "&'Baggrundstabeller for alle land'!$E$12&". Priserne er vist i "&$F$15&" / "&$F$16&". " -> Figur XX: Gaspris for forbrugsintervallet IB: 1 000 GJ < 10 000 GJ Priserne er vist for år 2016 i faste priser med basisår 2015. Priserne er vist i DKK / GJ. | P26: ="Figur XX: "&R73&" for forbrugsintervallet "&P$24&" Priserne er vist for år "&'Baggrundstabeller for alle land'!$E$10&" i "&'Baggrundstabeller for alle land'!$E$11&" med basisår "&'Baggrundstabeller for alle land'!$E$12&". Priserne er vist i "&$F$15&" / "&$F$16&". " -> Figur XX: Gaspris for forbrugsintervallet IC: 10 000 GJ < 100 000 GJ Priserne er vist for år 2016 i faste priser med basisår 2015. Priserne er vist i DKK / GJ. | V26: ="Figur XX: "&X73&" for forbrugsintervallet "&V$24&" Priserne er vist for år "&'Baggrundstabeller for alle land'!$E$10&" i "&'Baggrundstabeller for alle land'!$E$11&" med basisår "&'Baggrundstabeller for alle land'!$E$12&". Priserne er vist i "&$F$15&" / "&$F$16&". " -> Figur XX: Gaspris for forbrugsintervallet ID: 100 000 GJ < 1 000 000 GJ Priserne er vist for år 2016 i faste priser med basisår 2015. Priserne er vist i DKK / GJ. | AB26: ="Figur XX: "&AD73&" for forbrugsintervallet "&AB$24&" Priserne er vist for år "&'Baggrundstabeller for alle land'!$E$10&" i "&'Baggrundstabeller for alle land'!$E$11&" med basisår "&'Baggrundstabeller for alle land'!$E$12&". Priserne er vist i "&$F$15&" / "&$F$16&". " -> Figur XX: Gaspris for forbrugsintervallet IE: 1 000 000 GJ < 4 000 000 GJ Priserne er vist for år 2016 i faste priser med basisår 2015. Priserne er vist i DKK / GJ. | AH26: ="Figur XX: "&AJ73&" for forbrugsintervallet "&AH$24&" Priserne er vist for år "&'Baggrundstabeller for alle land'!$E$10&" i "&'Baggrundstabeller for alle land'!$E$11&" med basisår "&'Baggrundstabeller for alle land'!$E$12&". Priserne er vist i "&$F$15&" / "&$F$16&". " -> Figur XX: Gaspris for forbrugsintervallet IF: > 4 000 000 GJ Priserne er vist for år 2016 i faste priser med basisår 2015. Priserne er vist i DKK / GJ. | AN26: =B26 -> Level 1: Gaspris
D45: Kilde: Eurostat | J45: Kilde: Eurostat | P45: Kilde: Eurostat | V45: Kilde: Eurostat | AB45: Kilde: Eurostat | AH45: Kilde: Eurostat
B49: Level 2: Gaspris inkl. ikke-refunderbare afgifter | D49: ="Figur XX: Gasprisen inkl. ikke refunderbare afgifter for forbrugsintervallet "&D$24&". Priserne er vist for år "&'Baggrundstabeller for alle land'!$E$10&" i "&'Baggrundstabeller for alle land'!$E$11&" med basisår "&'Baggrundstabeller for alle land'!$E$12&". Priserne er vist i "&'Baggrundstabeller for alle land'!$E$13&" / "&'Baggrundstabeller for alle land'!$E$14&". " -> Figur XX: Gasprisen inkl. ikke refunderbare afgifter for forbrugsintervallet IA: < 1000 GJ. Priserne er vist for år 2016 i faste priser med basisår 2015. Priserne er vist i DKK / GJ. | J49: ="Figur XX: Gasprisen inkl. ikke refunderbare afgifter for forbrugsintervallet "&J$24&". Priserne er vist for år "&'Baggrundstabeller for alle land'!$E$10&" i "&'Baggrundstabeller for alle land'!$E$11&" med basisår "&'Baggrundstabeller for alle land'!$E$12&". Priserne er vist i "&'Baggrundstabeller for alle land'!$E$13&" / "&'Baggrundstabeller for alle land'!$E$14&". " -> Figur XX: Gasprisen inkl. ikke refunderbare afgifter for forbrugsintervallet IB: 1 000 GJ < 10 000 GJ. Priserne er vist for år 2016 i faste priser med basisår 2015. Priserne er vist i DKK / GJ. | P49: ="Figur XX: Gasprisen inkl. ikke refunderbare afgifter for forbrugsintervallet "&P$24&". Priserne er vist for år "&'Baggrundstabeller for alle land'!$E$10&" i "&'Baggrundstabeller for alle land'!$E$11&" med basisår "&'Baggrundstabeller for alle land'!$E$12&". Priserne er vist i "&'Baggrundstabeller for alle land'!$E$13&" / "&'Baggrundstabeller for alle land'!$E$14&". " -> Figur XX: Gasprisen inkl. ikke refunderbare afgifter for forbrugsintervallet IC: 10 000 GJ < 100 000 GJ. Priserne er vist for år 2016 i faste priser med basisår 2015. Priserne er vist i DKK / GJ. | V49: ="Figur XX: Gasprisen inkl. ikke refunderbare afgifter for forbrugsintervallet "&V$24&". Priserne er vist for år "&'Baggrundstabeller for alle land'!$E$10&" i "&'Baggrundstabeller for alle land'!$E$11&" med basisår "&'Baggrundstabeller for alle land'!$E$12&". Priserne er vist i "&'Baggrundstabeller for alle land'!$E$13&" / "&'Baggrundstabeller for alle land'!$E$14&". " -> Figur XX: Gasprisen inkl. ikke refunderbare afgifter for forbrugsintervallet ID: 100 000 GJ < 1 000 000 GJ. Priserne er vist for år 2016 i faste priser med basisår 2015. Priserne er vist i DKK / GJ. | AB49: ="Figur XX: Gasprisen inkl. ikke refunderbare afgifter for forbrugsintervallet "&AB$24&". Priserne er vist for år "&'Baggrundstabeller for alle land'!$E$10&" i "&'Baggrundstabeller for alle land'!$E$11&" med basisår "&'Baggrundstabeller for alle land'!$E$12&". Priserne er vist i "&'Baggrundstabeller for alle land'!$E$13&" / "&'Baggrundstabeller for alle land'!$E$14&". " -> Figur XX: Gasprisen inkl. ikke refunderbare afgifter for forbrugsintervallet IE: 1 000 000 GJ < 4 000 000 GJ. Priserne er vist for år 2016 i faste priser med basisår 2015. Priserne er vist i DKK / GJ. | AH49: ="Figur XX: Gasprisen inkl. ikke refunderbare afgifter for forbrugsintervallet "&AH$24&". Priserne er vist for år "&'Baggrundstabeller for alle land'!$E$10&" i "&'Baggrundstabeller for alle land'!$E$11&" med basisår "&'Baggrundstabeller for alle land'!$E$12&". Priserne er vist i "&'Baggrundstabeller for alle land'!$E$13&" / "&'Baggrundstabeller for alle land'!$E$14&". " -> Figur XX: Gasprisen inkl. ikke refunderbare afgifter for forbrugsintervallet IF: > 4 000 000 GJ. Priserne er vist for år 2016 i faste priser med basisår 2015. Priserne er vist i DKK / GJ. | AN49: =B49 -> Level 2: Gaspris inkl. ikke-refunderbare afgifter
D68: Kilde: Eurostat | J68: Kilde: Eurostat | P68: Kilde: Eurostat | V68: Kilde: Eurostat | AB68: Kilde: Eurostat | AH68: Kilde: Eurostat
D71: IA: < 1000 GJ | J71: IB: 1 000 GJ < 10 000 GJ | P71: IC: 10 000 GJ < 100 000 GJ | V71: ID: 100 000 GJ < 1 000 000 GJ | AB71: IE: 1 000 000 GJ < 4 000 000 GJ | AH71: IF: > 4 000 000 GJ
D73: =$F$15 &" / kWh "&$F$12 -> DKK / kWh 2016 | F73: Gaspris | G73: Ikke-refunderbare afgifter | H73: Gaspris inkl. ikke-refunderbare afgifter | J73: =$F$15 &" / kWh "&$F$12 -> DKK / kWh 2016 | L73: Gaspris | M73: Ikke-refunderbare afgifter | N73: Gaspris inkl. ikke-refunderbare afgifter | P73: =$F$15 &" / kWh "&$F$12 -> DKK / kWh 2016 | R73: Gaspris | S73: Ikke-refunderbare afgifter | T73: Gaspris inkl. ikke-refunderbare afgifter | V73: =$F$15 &" / kWh "&$F$12 -> DKK / kWh 2016 | X73: Gaspris | Y73: Ikke-refunderbare afgifter | Z73: Gaspris inkl. ikke-refunderbare afgifter | AB73: =$F$15 &" / kWh "&$F$12 -> DKK / kWh 2016 | AD73: Gaspris | AE73: Ikke-refunderbare afgifter | AF73: Gaspris inkl. ikke-refunderbare afgifter | AH73: =$F$15 &" / kWh "&$F$12 -> DKK / kWh 2016 | AJ73: Gaspris | AK73: Ikke-refunderbare afgifter | AL73: Gaspris inkl. ikke-refunderbare afgifter
E74: original rækkefølge | F74: (Total pris level 1) | H74: (Total pris level 2) | K74: original rækkefølge | L74: (Total pris level 1) | N74: (Total pris level 2) | Q74: original rækkefølge | R74: (Total pris level 1) | T74: (Total pris level 2) | W74: original rækkefølge | X74: (Total pris level 1) | Z74: (Total pris level 2) | AC74: original rækkefølge | AD74: (Total pris level 1) | AF74: (Total pris level 2) | AI74: original rækkefølge | AJ74: (Total pris level 1) | AL74: (Total pris level 2)
D75: ='Baggrundstabeller for alle land'!D29 -> EU-28 | E75: 1 | F75: ='Baggrundstabeller for alle land'!E29 -> 83.1437739 | G75: ='Baggrundstabeller for alle land'!F29 -> 11.44313265 | H75: =SUM(F75:G75) -> 94.58690655 | J75: ='Baggrundstabeller for alle land'!J29 -> EU-28 | K75: 1 | L75: ='Baggrundstabeller for alle land'!K29 -> 65.90665005 | M75: ='Baggrundstabeller for alle land'!L29 -> 10.64645885 | N75: =SUM(L75:M75) -> 76.5531089 | P75: ='Baggrundstabeller for alle land'!P29 -> EU-28 | Q75: 1 | R75: ='Baggrundstabeller for alle land'!Q29 -> 55.54989075 | S75: ='Baggrundstabeller for alle land'!R29 -> 7.894313028 | T75: =SUM(R75:S75) -> 63.44420378 | V75: ='Baggrundstabeller for alle land'!V29 -> EU-28 | W75: 1 | X75: ='Baggrundstabeller for alle land'!W29 -> 45.26555635 | Y75: ='Baggrundstabeller for alle land'!X29 -> * | Z75: =SUM(X75:Y75) -> 45.26555635 | AB75: ='Baggrundstabeller for alle land'!AB29 -> EU-28 | AC75: 1 | AD75: ='Baggrundstabeller for alle land'!AC29 -> 38.96459091 | AE75: ='Baggrundstabeller for alle land'!AD29 -> * | AF75: =SUM(AD75:AE75) -> 38.96459091 | AH75: ='Baggrundstabeller for alle land'!AH29 -> EU-28 | AI75: 1 | AJ75: ='Baggrundstabeller for alle land'!AI29 -> * | AK75: ='Baggrundstabeller for alle land'!AJ29 -> * | AL75: =SUM(AJ75:AK75) -> 0
D76: ='Baggrundstabeller for alle land'!D30 -> Belgien | E76: 4 | F76: ='Baggrundstabeller for alle land'!E30 -> 79.88972779 | G76: ='Baggrundstabeller for alle land'!F30 -> 4.060938104 | H76: 83.95066589 | J76: ='Baggrundstabeller for alle land'!J30 -> Belgien | K76: 4 | L76: ='Baggrundstabeller for alle land'!K30 -> 62.98145823 | M76: ='Baggrundstabeller for alle land'!L30 -> 4.356279057 | N76: 67.33773728 | P76: ='Baggrundstabeller for alle land'!P30 -> Belgien | Q76: 4 | R76: ='Baggrundstabeller for alle land'!Q30 -> 48.95276296 | S76: ='Baggrundstabeller for alle land'!R30 -> * | T76: 48.95276296 | V76: ='Baggrundstabeller for alle land'!V30 -> Belgien | W76: 4 | X76: ='Baggrundstabeller for alle land'!W30 -> 41.79074485 | Y76: ='Baggrundstabeller for alle land'!X30 -> * | Z76: 41.79074485 | AB76: ='Baggrundstabeller for alle land'!AB30 -> Belgien | AC76: 4 | AD76: ='Baggrundstabeller for alle land'!AC30 -> 33.29969245 | AE76: ='Baggrundstabeller for alle land'!AD30 -> * | AF76: 33.29969245 | AH76: ='Baggrundstabeller for alle land'!AH30 -> Belgien | AI76: 4 | AJ76: ='Baggrundstabeller for alle land'!AI30 -> 27.54054387 | AK76: ='Baggrundstabeller for alle land'!AJ30 -> * | AL76: 27.54054387
D77: ='Baggrundstabeller for alle land'!D31 -> Bulgarien | E77: 5 | F77: ='Baggrundstabeller for alle land'!E31 -> 54.67446712 | G77: ='Baggrundstabeller for alle land'!F31 -> 2.281418091 | H77: 56.95588521 | J77: ='Baggrundstabeller for alle land'!J31 -> Bulgarien | K77: 5 | L77: ='Baggrundstabeller for alle land'!K31 -> 49.76956695 | M77: ='Baggrundstabeller for alle land'!L31 -> 2.281418091 | N77: 52.05098504 | P77: ='Baggrundstabeller for alle land'!P31 -> Bulgarien | Q77: 5 | R77: ='Baggrundstabeller for alle land'!Q31 -> 45.24539887 | S77: ='Baggrundstabeller for alle land'!R31 -> * | T77: 45.24539887 | V77: ='Baggrundstabeller for alle land'!V31 -> Bulgarien | W77: 5 | X77: ='Baggrundstabeller for alle land'!W31 -> 37.86871456 | Y77: ='Baggrundstabeller for alle land'!X31 -> * | Z77: 37.86871456 | AB77: ='Baggrundstabeller for alle land'!AB31 -> Bulgarien | AC77: 5 | AD77: ='Baggrundstabeller for alle land'!AC31 -> 35.96802856 | AE77: ='Baggrundstabeller for alle land'!AD31 -> * | AF77: 35.96802856 | AH77: ='Baggrundstabeller for alle land'!AH31 -> Bulgarien | AI77: 5 | AJ77: ='Baggrundstabeller for alle land'!AI31 -> * | AK77: ='Baggrundstabeller for alle land'!AJ31 -> * | AL77: 0
D78: ='Baggrundstabeller for alle land'!D32 -> Tjekkiet | E78: 6 | F78: ='Baggrundstabeller for alle land'!E32 -> 75.24296109 | G78: ='Baggrundstabeller for alle land'!F32 -> 2.30279541 | H78: 77.5457565 | J78: ='Baggrundstabeller for alle land'!J32 -> Tjekkiet | K78: 6 | L78: ='Baggrundstabeller for alle land'!K32 -> 55.75416329 | M78: ='Baggrundstabeller for alle land'!L32 -> 2.302062969 | N78: 58.05622626 | P78: ='Baggrundstabeller for alle land'!P32 -> Tjekkiet | Q78: 6 | R78: ='Baggrundstabeller for alle land'!Q32 -> 51.06507417 | S78: ='Baggrundstabeller for alle land'!R32 -> 1.304477934 | T78: 52.3695521 | V78: ='Baggrundstabeller for alle land'!V32 -> Tjekkiet | W78: 6 | X78: ='Baggrundstabeller for alle land'!W32 -> 44.00580503 | Y78: ='Baggrundstabeller for alle land'!X32 -> * | Z78: 44.00580503 | AB78: ='Baggrundstabeller for alle land'!AB32 -> Tjekkiet | AC78: 6 | AD78: ='Baggrundstabeller for alle land'!AC32 -> 44.50459755 | AE78: ='Baggrundstabeller for alle land'!AD32 -> * | AF78: 44.50459755 | AH78: ='Baggrundstabeller for alle land'!AH32 -> Tjekkiet | AI78: 6 | AJ78: ='Baggrundstabeller for alle land'!AI32 -> * | AK78: ='Baggrundstabeller for alle land'!AJ32 -> * | AL78: 0
D79: ='Baggrundstabeller for alle land'!D33 -> Danmark | E79: 7 | F79: ='Baggrundstabeller for alle land'!E33 -> 56.81708016 | G79: ='Baggrundstabeller for alle land'!F33 -> 48.06971082 | H79: 104.886791 | J79: ='Baggrundstabeller for alle land'!J33 -> Danmark | K79: 7 | L79: ='Baggrundstabeller for alle land'!K33 -> 52.10763714 | M79: ='Baggrundstabeller for alle land'!L33 -> 38.31543417 | N79: 90.4230713 | P79: ='Baggrundstabeller for alle land'!P33 -> Danmark | Q79: 7 | R79: ='Baggrundstabeller for alle land'!Q33 -> 39.85558311 | S79: ='Baggrundstabeller for alle land'!R33 -> 7.077035888 | T79: 46.932619 | V79: ='Baggrundstabeller for alle land'!V33 -> Danmark | W79: 7 | X79: ='Baggrundstabeller for alle land'!W33 -> 37.585077 | Y79: ='Baggrundstabeller for alle land'!X33 -> * | Z79: 37.585077 | AB79: ='Baggrundstabeller for alle land'!AB33 -> Danmark | AC79: 7 | AD79: ='Baggrundstabeller for alle land'!AC33 -> 35.14687559 | AE79: ='Baggrundstabeller for alle land'!AD33 -> * | AF79: 35.14687559 | AH79: ='Baggrundstabeller for alle land'!AH33 -> Danmark | AI79: 7 | AJ79: ='Baggrundstabeller for alle land'!AI33 -> * | AK79: ='Baggrundstabeller for alle land'!AJ33 -> * | AL79: 0
D80: ='Baggrundstabeller for alle land'!D34 -> Tyskland | E80: 8 | F80: ='Baggrundstabeller for alle land'!E34 -> 83.41940437 | G80: ='Baggrundstabeller for alle land'!F34 -> 8.159802 | H80: 91.57920637 | J80: ='Baggrundstabeller for alle land'!J34 -> Tyskland | K80: 8 | L80: ='Baggrundstabeller for alle land'!K34 -> 63.74845312 | M80: ='Baggrundstabeller for alle land'!L34 -> 8.159802 | N80: 71.90825512 | P80: ='Baggrundstabeller for alle land'!P34 -> Tyskland | Q80: 8 | R80: ='Baggrundstabeller for alle land'!Q34 -> 60.46996125 | S80: ='Baggrundstabeller for alle land'!R34 -> -7.386077917 | T80: 53.08388333 | V80: ='Baggrundstabeller for alle land'!V34 -> Tyskland | W80: 8 | X80: ='Baggrundstabeller for alle land'!W34 -> 45.53460937 | Y80: ='Baggrundstabeller for alle land'!X34 -> * | Z80: 45.53460937 | AB80: ='Baggrundstabeller for alle land'!AB34 -> Tyskland | AC80: 8 | AD80: ='Baggrundstabeller for alle land'!AC34 -> 36.719109 | AE80: ='Baggrundstabeller for alle land'!AD34 -> * | AF80: 36.719109 | AH80: ='Baggrundstabeller for alle land'!AH34 -> Tyskland | AI80: 8 | AJ80: ='Baggrundstabeller for alle land'!AI34 -> 33.65918325 | AK80: ='Baggrundstabeller for alle land'!AJ34 -> * | AL80: 33.65918325
D81: ='Baggrundstabeller for alle land'!D35 -> Estland | E81: 9 | F81: ='Baggrundstabeller for alle land'!E35 -> 65.41202095 | G81: ='Baggrundstabeller for alle land'!F35 -> 7.268002327 | H81: 72.68002327 | J81: ='Baggrundstabeller for alle land'!J35 -> Estland | K81: 9 | L81: ='Baggrundstabeller for alle land'!K35 -> 60.56668606 | M81: ='Baggrundstabeller for alle land'!L35 -> 7.268002327 | N81: 67.83468839 | P81: ='Baggrundstabeller for alle land'!P35 -> Estland | Q81: 9 | R81: ='Baggrundstabeller for alle land'!Q35 -> 55.72135118 | S81: ='Baggrundstabeller for alle land'!R35 -> 2.754499468 | T81: 58.47585064 | V81: ='Baggrundstabeller for alle land'!V35 -> Estland | W81: 9 | X81: ='Baggrundstabeller for alle land'!W35 -> 55.72135118 | Y81: ='Baggrundstabeller for alle land'!X35 -> * | Z81: 55.72135118 | AB81: ='Baggrundstabeller for alle land'!AB35 -> Estland | AC81: 9 | AD81: ='Baggrundstabeller for alle land'!AC35 -> 53.29868373 | AE81: ='Baggrundstabeller for alle land'!AD35 -> * | AF81: 53.29868373 | AH81: ='Baggrundstabeller for alle land'!AH35 -> Estland | AI81: 9 | AJ81: ='Baggrundstabeller for alle land'!AI35 -> * | AK81: ='Baggrundstabeller for alle land'!AJ35 -> * | AL81: 0
D82: ='Baggrundstabeller for alle land'!D36 -> Irland | E82: 10 | F82: ='Baggrundstabeller for alle land'!E36 -> 92.65927041 | G82: ='Baggrundstabeller for alle land'!F36 -> 7.457769676 | H82: 100.1170401 | J82: ='Baggrundstabeller for alle land'!J36 -> Irland | K82: 10 | L82: ='Baggrundstabeller for alle land'!K36 -> 69.51204188 | M82: ='Baggrundstabeller for alle land'!L36 -> 8.23168917 | N82: 77.74373105 | P82: ='Baggrundstabeller for alle land'!P36 -> Irland | Q82: 10 | R82: ='Baggrundstabeller for alle land'!Q36 -> 56.42576679 | S82: ='Baggrundstabeller for alle land'!R36 -> 9.849884478 | T82: 66.27565127 | V82: ='Baggrundstabeller for alle land'!V36 -> Irland | W82: 10 | X82: ='Baggrundstabeller for alle land'!W36 -> 45.02804333 | Y82: ='Baggrundstabeller for alle land'!X36 -> 4.010310109 | Z82: 49.03835343 | AB82: ='Baggrundstabeller for alle land'!AB36 -> Irland | AC82: 10 | AD82: ='Baggrundstabeller for alle land'!AC36 -> * | AE82: ='Baggrundstabeller for alle land'!AD36 -> * | AF82: 0 | AH82: ='Baggrundstabeller for alle land'!AH36 -> Irland | AI82: 10 | AJ82: ='Baggrundstabeller for alle land'!AI36 -> * | AK82: ='Baggrundstabeller for alle land'!AJ36 -> * | AL82: 0
D83: ='Baggrundstabeller for alle land'!D37 -> Grækenland | E83: 11 | F83: ='Baggrundstabeller for alle land'!E37 -> 56.61301866 | G83: ='Baggrundstabeller for alle land'!F37 -> 12.15292801 | H83: 68.76594667 | J83: ='Baggrundstabeller for alle land'!J37 -> Grækenland | K83: 11 | L83: ='Baggrundstabeller for alle land'!K37 -> 56.99043879 | M83: ='Baggrundstabeller for alle land'!L37 -> 12.07744398 | N83: 69.06788277 | P83: ='Baggrundstabeller for alle land'!P37 -> Grækenland | Q83: 11 | R83: ='Baggrundstabeller for alle land'!Q37 -> 50.12139252 | S83: ='Baggrundstabeller for alle land'!R37 -> 14.64390083 | T83: 64.76529335 | V83: ='Baggrundstabeller for alle land'!V37 -> Grækenland | W83: 11 | X83: ='Baggrundstabeller for alle land'!W37 -> 40.83685746 | Y83: ='Baggrundstabeller for alle land'!X37 -> 4.076137344 | Z83: 44.91299481 | AB83: ='Baggrundstabeller for alle land'!AB37 -> Grækenland | AC83: 11 | AD83: ='Baggrundstabeller for alle land'!AC37 -> * | AE83: ='Baggrundstabeller for alle land'!AD37 -> * | AF83: 0 | AH83: ='Baggrundstabeller for alle land'!AH37 -> Grækenland | AI83: 11 | AJ83: ='Baggrundstabeller for alle land'!AI37 -> * | AK83: ='Baggrundstabeller for alle land'!AJ37 -> * | AL83: 0
D84: ='Baggrundstabeller for alle land'!D38 -> Spanien | E84: 12 | F84: ='Baggrundstabeller for alle land'!E38 -> 88.08955886 | G84: ='Baggrundstabeller for alle land'!F38 -> 1.114117524 | H84: 89.20367639 | J84: ='Baggrundstabeller for alle land'!J38 -> Spanien | K84: 12 | L84: ='Baggrundstabeller for alle land'!K38 -> 73.75458006 | M84: ='Baggrundstabeller for alle land'!L38 -> 1.114117524 | N84: 74.86869758 | P84: ='Baggrundstabeller for alle land'!P38 -> Spanien | Q84: 12 | R84: ='Baggrundstabeller for alle land'!Q38 -> 56.8942682 | S84: ='Baggrundstabeller for alle land'!R38 -> 10.76980273 | T84: 67.66407093 | V84: ='Baggrundstabeller for alle land'!V38 -> Spanien | W84: 12 | X84: ='Baggrundstabeller for alle land'!W38 -> 49.31826904 | Y84: ='Baggrundstabeller for alle land'!X38 -> -10.08870555 | Z84: 39.22956349 | AB84: ='Baggrundstabeller for alle land'!AB38 -> Spanien | AC84: 12 | AD84: ='Baggrundstabeller for alle land'!AC38 -> 42.11364239 | AE84: ='Baggrundstabeller for alle land'!AD38 -> -5.048437872 | AF84: 37.06520452 | AH84: ='Baggrundstabeller for alle land'!AH38 -> Spanien | AI84: 12 | AJ84: ='Baggrundstabeller for alle land'!AI38 -> 40.33105435 | AK84: ='Baggrundstabeller for alle land'!AJ38 -> * | AL84: 40.33105435
D85: ='Baggrundstabeller for alle land'!D39 -> Frankrig | E85: 13 | F85: ='Baggrundstabeller for alle land'!E39 -> 85.26297019 | G85: ='Baggrundstabeller for alle land'!F39 -> 11.03489692 | H85: 96.29786711 | J85: ='Baggrundstabeller for alle land'!J39 -> Frankrig | K85: 13 | L85: ='Baggrundstabeller for alle land'!K39 -> 70.9176042 | M85: ='Baggrundstabeller for alle land'!L39 -> 10.00497321 | N85: 80.9225774 | P85: ='Baggrundstabeller for alle land'!P39 -> Frankrig | Q85: 13 | R85: ='Baggrundstabeller for alle land'!Q39 -> 58.26425573 | S85: ='Baggrundstabeller for alle land'!R39 -> 2.133413404 | T85: 60.39766913 | V85: ='Baggrundstabeller for alle land'!V39 -> Frankrig | W85: 13 | X85: ='Baggrundstabeller for alle land'!W39 -> 43.99245571 | Y85: ='Baggrundstabeller for alle land'!X39 -> 2.519634796 | Z85: 46.51209051 | AB85: ='Baggrundstabeller for alle land'!AB39 -> Frankrig | AC85: 13 | AD85: ='Baggrundstabeller for alle land'!AC39 -> 33.91391653 | AE85: ='Baggrundstabeller for alle land'!AD39 -> 13.09842264 | AF85: 47.01233917 | AH85: ='Baggrundstabeller for alle land'!AH39 -> Frankrig | AI85: 13 | AJ85: ='Baggrundstabeller for alle land'!AI39 -> * | AK85: ='Baggrundstabeller for alle land'!AJ39 -> * | AL85: 0
D86: ='Baggrundstabeller for alle land'!D40 -> Kroatien | E86: 14 | F86: ='Baggrundstabeller for alle land'!E40 -> 82.82555252 | G86: ='Baggrundstabeller for alle land'!F40 -> 1.260335437 | H86: 84.08588795 | J86: ='Baggrundstabeller for alle land'!J40 -> Kroatien | K86: 14 | L86: ='Baggrundstabeller for alle land'!K40 -> 75.40126113 | M86: ='Baggrundstabeller for alle land'!L40 -> 1.053381361 | N86: 76.45464249 | P86: ='Baggrundstabeller for alle land'!P40 -> Kroatien | Q86: 14 | R86: ='Baggrundstabeller for alle land'!Q40 -> 66.82532242 | S86: ='Baggrundstabeller for alle land'!R40 -> -8.684626823 | T86: 58.1406956 | V86: ='Baggrundstabeller for alle land'!V40 -> Kroatien | W86: 14 | X86: ='Baggrundstabeller for alle land'!W40 -> 53.14923127 | Y86: ='Baggrundstabeller for alle land'!X40 -> -4.585745005 | Z86: 48.56348627 | AB86: ='Baggrundstabeller for alle land'!AB40 -> Kroatien | AC86: 14 | AD86: ='Baggrundstabeller for alle land'!AC40 -> * | AE86: ='Baggrundstabeller for alle land'!AD40 -> * | AF86: 0 | AH86: ='Baggrundstabeller for alle land'!AH40 -> Kroatien | AI86: 14 | AJ86: ='Baggrundstabeller for alle land'!AI40 -> * | AK86: ='Baggrundstabeller for alle land'!AJ40 -> * | AL86: 0
D87: ='Baggrundstabeller for alle land'!D41 -> Italien | E87: 15 | F87: ='Baggrundstabeller for alle land'!E41 -> 90.25093283 | G87: ='Baggrundstabeller for alle land'!F41 -> 22.59966076 | H87: 112.8505936 | J87: ='Baggrundstabeller for alle land'!J41 -> Italien | K87: 15 | L87: ='Baggrundstabeller for alle land'!K41 -> 75.55376782 | M87: ='Baggrundstabeller for alle land'!L41 -> 15.95270171 | N87: 91.50646953 | P87: ='Baggrundstabeller for alle land'!P41 -> Italien | Q87: 15 | R87: ='Baggrundstabeller for alle land'!Q41 -> 59.08408041 | S87: ='Baggrundstabeller for alle land'!R41 -> 9.231887564 | T87: 68.31596797 | V87: ='Baggrundstabeller for alle land'!V41 -> Italien | W87: 15 | X87: ='Baggrundstabeller for alle land'!W41 -> 50.22146835 | Y87: ='Baggrundstabeller for alle land'!X41 -> 4.209740729 | Z87: 54.43120908 | AB87: ='Baggrundstabeller for alle land'!AB41 -> Italien | AC87: 15 | AD87: ='Baggrundstabeller for alle land'!AC41 -> 47.78425003 | AE87: ='Baggrundstabeller for alle land'!AD41 -> -2.289508116 | AF87: 45.49474192 | AH87: ='Baggrundstabeller for alle land'!AH41 -> Italien | AI87: 15 | AJ87: ='Baggrundstabeller for alle land'!AI41 -> 45.93787252 | AK87: ='Baggrundstabeller for alle land'!AJ41 -> -3.545044825 | AL87: 42.39282769
D88: ='Baggrundstabeller for alle land'!D42 -> Letland | E88: 16 | F88: ='Baggrundstabeller for alle land'!E42 -> 65.4019983 | G88: ='Baggrundstabeller for alle land'!F42 -> 3.551239726 | H88: 68.95323802 | J88: ='Baggrundstabeller for alle land'!J42 -> Letland | K88: 16 | L88: ='Baggrundstabeller for alle land'!K42 -> 58.44748716 | M88: ='Baggrundstabeller for alle land'!L42 -> 3.403271405 | N88: 61.85075857 | P88: ='Baggrundstabeller for alle land'!P42 -> Letland | Q88: 16 | R88: ='Baggrundstabeller for alle land'!Q42 -> 51.49297603 | S88: ='Baggrundstabeller for alle land'!R42 -> 15.78082153 | T88: 67.27379757 | V88: ='Baggrundstabeller for alle land'!V42 -> Letland | W88: 16 | X88: ='Baggrundstabeller for alle land'!W42 -> 47.71978382 | Y88: ='Baggrundstabeller for alle land'!X42 -> 15.75862629 | Z88: 63.47841011 | AB88: ='Baggrundstabeller for alle land'!AB42 -> Letland | AC88: 16 | AD88: ='Baggrundstabeller for alle land'!AC42 -> 45.94416396 | AE88: ='Baggrundstabeller for alle land'!AD42 -> 15.09276884 | AF88: 61.0369328 | AH88: ='Baggrundstabeller for alle land'!AH42 -> Letland | AI88: 16 | AJ88: ='Baggrundstabeller for alle land'!AI42 -> * | AK88: ='Baggrundstabeller for alle land'!AJ42 -> * | AL88: 0
D89: ='Baggrundstabeller for alle land'!D43 -> Litaun | E89: 17 | F89: ='Baggrundstabeller for alle land'!E43 -> 74.71474519 | G89: ='Baggrundstabeller for alle land'!F43 -> 0 | H89: 74.71474519 | J89: ='Baggrundstabeller for alle land'!J43 -> Litaun | K89: 17 | L89: ='Baggrundstabeller for alle land'!K43 -> 62.77232838 | M89: ='Baggrundstabeller for alle land'!L43 -> 0 | N89: 62.77232838 | P89: ='Baggrundstabeller for alle land'!P43 -> Litaun | Q89: 17 | R89: ='Baggrundstabeller for alle land'!Q43 -> 55.60687829 | S89: ='Baggrundstabeller for alle land'!R43 -> 9.106092821 | T89: 64.71297111 | V89: ='Baggrundstabeller for alle land'!V43 -> Litaun | W89: 17 | X89: ='Baggrundstabeller for alle land'!W43 -> 43.88838179 | Y89: ='Baggrundstabeller for alle land'!X43 -> 6.344408933 | Z89: 50.23279072 | AB89: ='Baggrundstabeller for alle land'!AB43 -> Litaun | AC89: 17 | AD89: ='Baggrundstabeller for alle land'!AC43 -> * | AE89: ='Baggrundstabeller for alle land'!AD43 -> * | AF89: 0 | AH89: ='Baggrundstabeller for alle land'!AH43 -> Litaun | AI89: 17 | AJ89: ='Baggrundstabeller for alle land'!AI43 -> * | AK89: ='Baggrundstabeller for alle land'!AJ43 -> * | AL89: 0
D90: ='Baggrundstabeller for alle land'!D44 -> luxembourg | E90: 18 | F90: ='Baggrundstabeller for alle land'!E44 -> 78.33609212 | G90: ='Baggrundstabeller for alle land'!F44 -> 2.169974851 | H90: 80.50606697 | J90: ='Baggrundstabeller for alle land'!J44 -> luxembourg | K90: 18 | L90: ='Baggrundstabeller for alle land'!K44 -> 79.20408206 | M90: ='Baggrundstabeller for alle land'!L44 -> 1.15731992 | N90: 80.36140198 | P90: ='Baggrundstabeller for alle land'!P44 -> luxembourg | Q90: 18 | R90: ='Baggrundstabeller for alle land'!Q44 -> 68.64353778 | S90: ='Baggrundstabeller for alle land'!R44 -> -14.97282647 | T90: 53.67071131 | V90: ='Baggrundstabeller for alle land'!V44 -> luxembourg | W90: 18 | X90: ='Baggrundstabeller for alle land'!W44 -> 51.42840396 | Y90: ='Baggrundstabeller for alle land'!X44 -> -1.15731992 | Z90: 50.27108404 | AB90: ='Baggrundstabeller for alle land'!AB44 -> luxembourg | AC90: 18 | AD90: ='Baggrundstabeller for alle land'!AC44 -> * | AE90: ='Baggrundstabeller for alle land'!AD44 -> * | AF90: 0 | AH90: ='Baggrundstabeller for alle land'!AH44 -> luxembourg | AI90: 18 | AJ90: ='Baggrundstabeller for alle land'!AI44 -> * | AK90: ='Baggrundstabeller for alle land'!AJ44 -> * | AL90: 0
D91: ='Baggrundstabeller for alle land'!D45 -> Ungarn | E91: 19 | F91: ='Baggrundstabeller for alle land'!E45 -> 66.86240909 | G91: ='Baggrundstabeller for alle land'!F45 -> 3.476413769 | H91: 70.33882286 | J91: ='Baggrundstabeller for alle land'!J45 -> Ungarn | K91: 19 | L91: ='Baggrundstabeller for alle land'!K45 -> 59.97386381 | M91: ='Baggrundstabeller for alle land'!L45 -> 3.208201612 | N91: 63.18206542 | P91: ='Baggrundstabeller for alle land'!P45 -> Ungarn | Q91: 19 | R91: ='Baggrundstabeller for alle land'!Q45 -> 61.4338837 | S91: ='Baggrundstabeller for alle land'!R45 -> -6.387587042 | T91: 55.04629666 | V91: ='Baggrundstabeller for alle land'!V45 -> Ungarn | W91: 19 | X91: ='Baggrundstabeller for alle land'!W45 -> 51.83070628 | Y91: ='Baggrundstabeller for alle land'!X45 -> -1.660994294 | Z91: 50.16971199 | AB91: ='Baggrundstabeller for alle land'!AB45 -> Ungarn | AC91: 19 | AD91: ='Baggrundstabeller for alle land'!AC45 -> 44.92812234 | AE91: ='Baggrundstabeller for alle land'!AD45 -> -1.925512068 | AF91: 43.00261028 | AH91: ='Baggrundstabeller for alle land'!AH45 -> Ungarn | AI91: 19 | AJ91: ='Baggrundstabeller for alle land'!AI45 -> 44.70572053 | AK91: ='Baggrundstabeller for alle land'!AJ45 -> -3.476413769 | AL91: 41.22930676
D92: ='Baggrundstabeller for alle land'!D46 -> Holland | E92: 20 | F92: ='Baggrundstabeller for alle land'!E46 -> 75.21018196 | G92: ='Baggrundstabeller for alle land'!F46 -> 55.35172997 | H92: 130.5619119 | J92: ='Baggrundstabeller for alle land'!J46 -> Holland | K92: 20 | L92: ='Baggrundstabeller for alle land'!K46 -> 63.50258713 | M92: ='Baggrundstabeller for alle land'!L46 -> 55.35172997 | N92: 118.8543171 | P92: ='Baggrundstabeller for alle land'!P46 -> Holland | Q92: 20 | R92: ='Baggrundstabeller for alle land'!Q46 -> 46.60808321 | S92: ='Baggrundstabeller for alle land'!R46 -> 25.9345455 | T92: 72.54262871 | V92: ='Baggrundstabeller for alle land'!V46 -> Holland | W92: 20 | X92: ='Baggrundstabeller for alle land'!W46 -> 42.01396372 | Y92: ='Baggrundstabeller for alle land'!X46 -> 7.261672741 | Z92: 49.27563646 | AB92: ='Baggrundstabeller for alle land'!AB46 -> Holland | AC92: 20 | AD92: ='Baggrundstabeller for alle land'!AC46 -> 40.53198969 | AE92: ='Baggrundstabeller for alle land'!AD46 -> -4.371823385 | AF92: 36.1601663 | AH92: ='Baggrundstabeller for alle land'!AH46 -> Holland | AI92: 20 | AJ92: ='Baggrundstabeller for alle land'!AI46 -> * | AK92: ='Baggrundstabeller for alle land'!AJ46 -> * | AL92: 0
D93: ='Baggrundstabeller for alle land'!D47 -> Østrig | E93: 21 | F93: ='Baggrundstabeller for alle land'!E47 -> 93.51630761 | G93: ='Baggrundstabeller for alle land'!F47 -> 14.37584023 | H93: 107.8921478 | J93: ='Baggrundstabeller for alle land'!J47 -> Østrig | K93: 21 | L93: ='Baggrundstabeller for alle land'!K47 -> 71.87920115 | M93: ='Baggrundstabeller for alle land'!L47 -> 15.76941658 | N93: 87.64861773 | P93: ='Baggrundstabeller for alle land'!P47 -> Østrig | Q93: 21 | R93: ='Baggrundstabeller for alle land'!Q47 -> 57.1366303 | S93: ='Baggrundstabeller for alle land'!R47 -> 7.473236536 | T93: 64.60986684 | V93: ='Baggrundstabeller for alle land'!V47 -> Østrig | W93: 21 | X93: ='Baggrundstabeller for alle land'!W47 -> 52.44247839 | Y93: ='Baggrundstabeller for alle land'!X47 -> 0.5244247839 | Z93: 52.96690317 | AB93: ='Baggrundstabeller for alle land'!AB47 -> Østrig | AC93: 21 | AD93: ='Baggrundstabeller for alle land'!AC47 -> 53.02924738 | AE93: ='Baggrundstabeller for alle land'!AD47 -> * | AF93: 53.02924738 | AH93: ='Baggrundstabeller for alle land'!AH47 -> Østrig | AI93: 21 | AJ93: ='Baggrundstabeller for alle land'!AI47 -> * | AK93: ='Baggrundstabeller for alle land'!AJ47 -> * | AL93: 0
D94: ='Baggrundstabeller for alle land'!D48 -> Polen | E94: 22 | F94: ='Baggrundstabeller for alle land'!E48 -> 73.43506593 | G94: ='Baggrundstabeller for alle land'!F48 -> 1.473880618 | H94: 74.90894655 | J94: ='Baggrundstabeller for alle land'!J48 -> Polen | K94: 22 | L94: ='Baggrundstabeller for alle land'!K48 -> 68.72708281 | M94: ='Baggrundstabeller for alle land'!L48 -> 1.507176114 | N94: 70.23425893 | P94: ='Baggrundstabeller for alle land'!P48 -> Polen | Q94: 22 | R94: ='Baggrundstabeller for alle land'!Q48 -> 54.48400957 | S94: ='Baggrundstabeller for alle land'!R48 -> 24.38932069 | T94: 78.87333026 | V94: ='Baggrundstabeller for alle land'!V48 -> Polen | W94: 22 | X94: ='Baggrundstabeller for alle land'!W48 -> 46.03287282 | Y94: ='Baggrundstabeller for alle land'!X48 -> 5.612140807 | Z94: 51.64501362 | AB94: ='Baggrundstabeller for alle land'!AB48 -> Polen | AC94: 22 | AD94: ='Baggrundstabeller for alle land'!AC48 -> 35.5995442 | AE94: ='Baggrundstabeller for alle land'!AD48 -> 13.23384977 | AF94: 48.83339397 | AH94: ='Baggrundstabeller for alle land'!AH48 -> Polen | AI94: 22 | AJ94: ='Baggrundstabeller for alle land'!AI48 -> * | AK94: ='Baggrundstabeller for alle land'!AJ48 -> * | AL94: 0
D95: ='Baggrundstabeller for alle land'!D49 -> Portugal | E95: 23 | F95: ='Baggrundstabeller for alle land'!E49 -> 129.9403307 | G95: ='Baggrundstabeller for alle land'!F49 -> 7.46699365 | H95: 137.4073243 | J95: ='Baggrundstabeller for alle land'!J49 -> Portugal | K95: 23 | L95: ='Baggrundstabeller for alle land'!K49 -> 86.09004443 | M95: ='Baggrundstabeller for alle land'!L49 -> 2.562203703 | N95: 88.65224814 | P95: ='Baggrundstabeller for alle land'!P49 -> Portugal | Q95: 23 | R95: ='Baggrundstabeller for alle land'!Q49 -> 67.64217777 | S95: ='Baggrundstabeller for alle land'!R49 -> 4.172731745 | T95: 71.81490951 | V95: ='Baggrundstabeller for alle land'!V49 -> Portugal | W95: 23 | X95: ='Baggrundstabeller for alle land'!W49 -> 55.78283491 | Y95: ='Baggrundstabeller for alle land'!X49 -> -5.124407407 | Z95: 50.65842751 | AB95: ='Baggrundstabeller for alle land'!AB49 -> Portugal | AC95: 23 | AD95: ='Baggrundstabeller for alle land'!AC49 -> 53.87948359 | AE95: ='Baggrundstabeller for alle land'!AD49 -> -4.977995766 | AF95: 48.90148782 | AH95: ='Baggrundstabeller for alle land'!AH49 -> Portugal | AI95: 23 | AJ95: ='Baggrundstabeller for alle land'!AI49 -> * | AK95: ='Baggrundstabeller for alle land'!AJ49 -> * | AL95: 0
D96: ='Baggrundstabeller for alle land'!D50 -> Rumænien | E96: 24 | F96: ='Baggrundstabeller for alle land'!E50 -> 46.99845062 | G96: ='Baggrundstabeller for alle land'!F50 -> 18.43016641 | H96: 65.42861702 | J96: ='Baggrundstabeller for alle land'!J50 -> Rumænien | K96: 24 | L96: ='Baggrundstabeller for alle land'!K50 -> 43.6515417 | M96: ='Baggrundstabeller for alle land'!L50 -> 17.70336751 | N96: 61.35490921 | P96: ='Baggrundstabeller for alle land'!P50 -> Rumænien | Q96: 24 | R96: ='Baggrundstabeller for alle land'!Q50 -> 39.20571285 | S96: ='Baggrundstabeller for alle land'!R50 -> 15.37833784 | T96: 54.5840507 | V96: ='Baggrundstabeller for alle land'!V50 -> Rumænien | W96: 24 | X96: ='Baggrundstabeller for alle land'!W50 -> 36.92574472 | Y96: ='Baggrundstabeller for alle land'!X50 -> 5.810030376 | Z96: 42.73577509 | AB96: ='Baggrundstabeller for alle land'!AB50 -> Rumænien | AC96: 24 | AD96: ='Baggrundstabeller for alle land'!AC50 -> 32.81933095 | AE96: ='Baggrundstabeller for alle land'!AD50 -> * | AF96: 32.81933095 | AH96: ='Baggrundstabeller for alle land'!AH50 -> Rumænien | AI96: 24 | AJ96: ='Baggrundstabeller for alle land'!AI50 -> 30.54008961 | AK96: ='Baggrundstabeller for alle land'!AJ50 -> * | AL96: 30.54008961
D97: ='Baggrundstabeller for alle land'!D51 -> Slovenien | E97: 25 | F97: ='Baggrundstabeller for alle land'!E51 -> 88.28800661 | G97: ='Baggrundstabeller for alle land'!F51 -> 10.67462045 | H97: 98.96262705 | J97: ='Baggrundstabeller for alle land'!J51 -> Slovenien | K97: 25 | L97: ='Baggrundstabeller for alle land'!K51 -> 85.47109288 | M97: ='Baggrundstabeller for alle land'!L51 -> 11.49004284 | N97: 96.96113572 | P97: ='Baggrundstabeller for alle land'!P51 -> Slovenien | Q97: 25 | R97: ='Baggrundstabeller for alle land'!Q51 -> 60.63777448 | S97: ='Baggrundstabeller for alle land'!R51 -> 9.34029289 | T97: 69.97806737 | V97: ='Baggrundstabeller for alle land'!V51 -> Slovenien | W97: 25 | X97: ='Baggrundstabeller for alle land'!W51 -> 50.18554196 | Y97: ='Baggrundstabeller for alle land'!X51 -> 2.891043038 | Z97: 53.076585 | AB97: ='Baggrundstabeller for alle land'!AB51 -> Slovenien | AC97: 25 | AD97: ='Baggrundstabeller for alle land'!AC51 -> * | AE97: ='Baggrundstabeller for alle land'!AD51 -> * | AF97: 0 | AH97: ='Baggrundstabeller for alle land'!AH51 -> Slovenien | AI97: 25 | AJ97: ='Baggrundstabeller for alle land'!AI51 -> * | AK97: ='Baggrundstabeller for alle land'!AJ51 -> * | AL97: 0
D98: ='Baggrundstabeller for alle land'!D52 -> Slovakiet | E98: 26 | F98: ='Baggrundstabeller for alle land'!E52 -> 90.87527898 | G98: ='Baggrundstabeller for alle land'!F52 -> 2.688175878 | H98: 93.56345486 | J98: ='Baggrundstabeller for alle land'!J52 -> Slovakiet | K98: 26 | L98: ='Baggrundstabeller for alle land'!K52 -> 71.98337629 | M98: ='Baggrundstabeller for alle land'!L52 -> 2.76284743 | N98: 74.74622372 | P98: ='Baggrundstabeller for alle land'!P52 -> Slovakiet | Q98: 26 | R98: ='Baggrundstabeller for alle land'!Q52 -> 60.55862881 | S98: ='Baggrundstabeller for alle land'!R52 -> -2.688175878 | T98: 57.87045293 | V98: ='Baggrundstabeller for alle land'!V52 -> Slovakiet | W98: 26 | X98: ='Baggrundstabeller for alle land'!W52 -> 55.63030636 | Y98: ='Baggrundstabeller for alle land'!X52 -> 0.2673241568 | Z98: 55.89763052 | AB98: ='Baggrundstabeller for alle land'!AB52 -> Slovakiet | AC98: 26 | AD98: ='Baggrundstabeller for alle land'!AC52 -> 57.49709517 | AE98: ='Baggrundstabeller for alle land'!AD52 -> -8.616350404 | AF98: 48.88074476 | AH98: ='Baggrundstabeller for alle land'!AH52 -> Slovakiet | AI98: 26 | AJ98: ='Baggrundstabeller for alle land'!AI52 -> * | AK98: ='Baggrundstabeller for alle land'!AJ52 -> * | AL98: 0
D99: ='Baggrundstabeller for alle land'!D53 -> Finland | E99: 27 | F99: ='Baggrundstabeller for alle land'!E53 -> * | G99: ='Baggrundstabeller for alle land'!F53 -> * | H99: 0 | J99: ='Baggrundstabeller for alle land'!J53 -> Finland | K99: 27 | L99: ='Baggrundstabeller for alle land'!K53 -> 63.01178017 | M99: ='Baggrundstabeller for alle land'!L53 -> 32.35940654 | N99: 95.37118671 | P99: ='Baggrundstabeller for alle land'!P53 -> Finland | Q99: 27 | R99: ='Baggrundstabeller for alle land'!Q53 -> 53.06645798 | S99: ='Baggrundstabeller for alle land'!R53 -> 18.10939265 | T99: 71.17585063 | V99: ='Baggrundstabeller for alle land'!V53 -> Finland | W99: 27 | X99: ='Baggrundstabeller for alle land'!W53 -> 50.54301802 | Y99: ='Baggrundstabeller for alle land'!X53 -> 2.003908203 | Z99: 52.54692622 | AB99: ='Baggrundstabeller for alle land'!AB53 -> Finland | AC99: 27 | AD99: ='Baggrundstabeller for alle land'!AC53 -> 50.24614273 | AE99: ='Baggrundstabeller for alle land'!AD53 -> -4.675785808 | AF99: 45.57035692 | AH99: ='Baggrundstabeller for alle land'!AH53 -> Finland | AI99: 27 | AJ99: ='Baggrundstabeller for alle land'!AI53 -> * | AK99: ='Baggrundstabeller for alle land'!AJ53 -> * | AL99: 0
D100: ='Baggrundstabeller for alle land'!D54 -> Sverige | E100: 28 | F100: ='Baggrundstabeller for alle land'!E54 -> 108.4229116 | G100: ='Baggrundstabeller for alle land'!F54 -> 18.36319709 | H100: 126.7861086 | J100: ='Baggrundstabeller for alle land'!J54 -> Sverige | K100: 28 | L100: ='Baggrundstabeller for alle land'!K54 -> 82.93860213 | M100: ='Baggrundstabeller for alle land'!L54 -> 18.37144954 | N100: 101.3100517 | P100: ='Baggrundstabeller for alle land'!P54 -> Sverige | Q100: 28 | R100: ='Baggrundstabeller for alle land'!Q54 -> 59.46188822 | S100: ='Baggrundstabeller for alle land'!R54 -> 4.156983089 | T100: 63.61887131 | V100: ='Baggrundstabeller for alle land'!V54 -> Sverige | W100: 28 | X100: ='Baggrundstabeller for alle land'!W54 -> 52.66337157 | Y100: ='Baggrundstabeller for alle land'!X54 -> 15.75692399 | Z100: 68.42029556 | AB100: ='Baggrundstabeller for alle land'!AB54 -> Sverige | AC100: 28 | AD100: ='Baggrundstabeller for alle land'!AC54 -> 52.46981416 | AE100: ='Baggrundstabeller for alle land'!AD54 -> 13.84985829 | AF100: 66.31967245 | AH100: ='Baggrundstabeller for alle land'!AH54 -> Sverige | AI100: 28 | AJ100: ='Baggrundstabeller for alle land'!AI54 -> * | AK100: ='Baggrundstabeller for alle land'!AJ54 -> * | AL100: 0
D101: ='Baggrundstabeller for alle land'!D55 -> UK | E101: 29 | F101: ='Baggrundstabeller for alle land'!E55 -> 92.47769436 | G101: ='Baggrundstabeller for alle land'!F55 -> 3.17685248 | H101: 95.65454684 | J101: ='Baggrundstabeller for alle land'!J55 -> UK | K101: 29 | L101: ='Baggrundstabeller for alle land'!K55 -> 57.53031149 | M101: ='Baggrundstabeller for alle land'!L55 -> 3.17685248 | N101: 60.70716397 | P101: ='Baggrundstabeller for alle land'!P55 -> UK | Q101: 29 | R101: ='Baggrundstabeller for alle land'!Q55 -> 51.09036621 | S101: ='Baggrundstabeller for alle land'!R55 -> 25.85738641 | T101: 76.94775263 | V101: ='Baggrundstabeller for alle land'!V55 -> UK | W101: 29 | X101: ='Baggrundstabeller for alle land'!W55 -> 39.6698757 | Y101: ='Baggrundstabeller for alle land'!X55 -> 2.396678481 | Z101: 42.06655418 | AB101: ='Baggrundstabeller for alle land'!AB55 -> UK | AC101: 29 | AD101: ='Baggrundstabeller for alle land'!AC55 -> 32.80073445 | AE101: ='Baggrundstabeller for alle land'!AD55 -> -0.6351030842 | AF101: 32.16563136 | AH101: ='Baggrundstabeller for alle land'!AH55 -> UK | AI101: 29 | AJ101: ='Baggrundstabeller for alle land'!AI55 -> * | AK101: ='Baggrundstabeller for alle land'!AJ55 -> * | AL101: 0
D102: Level 1 | J102: Level 1 | P102: Level 1 | V102: Level 1 | AB102: Level 1 | AH102: Level 1
D103: Level 2 | J103: Level 2 | P103: Level 2 | V103: Level 2 | AB103: Level 2 | AH103: Level 2

Sheet Baggrundstabeller for alle land
D1: NAVN PÅ ARK: | E1: Baggrundstabeller for alle lande, valgt år
D2: Data hentes fra: | E2: 'Level 1', 'Level 2', 'Afgifter og moms' og 'Baggrindsdata -BVT-deflator'
D4: Sådan bruges arket:
D5: Arket 'Baggrundstabeller for alle lande, valgt år' skal give et indblik i hvordan de grå-blå resultatfigurer og -tabeller i arket 'Alle lande, valgt år' fremkommer. Værdierne i resultattabellerne er ens for de to ark, men i dette ark ses udregningen. Nedenstående resultattabeller (de grå-blå) viser gasprisen for industrielle forbrugere opdelt på level 1, 2 og 3 for hvert forbrugsintervalinterval. Prisen vises for alle lande i det valgte år. Resultattabellerne er fremkommet ved at gange tabel A, B, C og D sammen. Disse tabeller ses under resultattabellerne. Taballerne A, B, C og D er et resultat af valgene truffet i rullemenuerne i arket 'Alle lande, valgt år', disse valg kan ses i de farvede kasser nedenfor. Hvis år, pristype, basiså, valuta eller enhed ønskes ændret, gøres det i arket 'Alle lande, valgt år'.
D9: ="Valg truffet i arket: "&'Baggrundstabeller for alle land'!E1 -> Valg truffet i arket: Baggrundstabeller for alle lande, valgt år
D10: Valgt år | E10: ='Alle lande, valgt år'!F12 -> 2016
D11: Valgt pristype | E11: ='Alle lande, valgt år'!F13 -> faste priser
D12: Valgt basisår | E12: ='Alle lande, valgt år'!F14 -> 2015
D13: Valgt valuta | E13: ='Alle lande, valgt år'!F15 -> DKK
D14: Valgt enhed | E14: ='Alle lande, valgt år'!F16 -> GJ
D19: Resultattabeller:
D20: Valgene truffet ovenfor giver tabeller og figurer der er:
D21: ="Oppgjort for året "&E10&" i "&$E$11&" med basisår "&$E$12 -> Oppgjort for året 2016 i faste priser med basisår 2015
D22: ="Vist i "&E13&" / "&E14&"." -> Vist i DKK / GJ.
D25: ="Tal hentet for år "&'Alle lande, valgt år'!F12 -> Tal hentet for år 2016
D26: IA: < 1000 GJ | J26: IB: 1 000 GJ < 10 000 GJ | P26: IC: 10 000 GJ < 100 000 GJ | V26: ID: 100 000 GJ < 1 000 000 GJ | AB26: IE: 1 000 000 GJ < 4 000 000 GJ | AH26: IF: > 4 000 000 GJ
D28: ='Alle lande, valgt år'!$F$15&" / "&'Alle lande, valgt år'!$F$16&" år "&'Alle lande, valgt år'!$F$12 -> DKK / GJ år 2016 | E28: Gaspris | F28: Ikke-refunderbare afgifter | J28: ='Alle lande, valgt år'!$F$15&" / "&'Alle lande, valgt år'!$F$16&" år "&'Alle lande, valgt år'!$F$12 -> DKK / GJ år 2016 | K28: Gaspris | L28: Ikke-refunderbare afgifter | P28: ='Alle lande, valgt år'!$F$15&" / "&'Alle lande, valgt år'!$F$16&" år "&'Alle lande, valgt år'!$F$12 -> DKK / GJ år 2016 | Q28: Gaspris | R28: Ikke-refunderbare afgifter | V28: ='Alle lande, valgt år'!$F$15&" / "&'Alle lande, valgt år'!$F$16&" år "&'Alle lande, valgt år'!$F$12 -> DKK / GJ år 2016 | W28: Gaspris | X28: Ikke-refunderbare afgifter | AB28: ='Alle lande, valgt år'!$F$15&" / "&'Alle lande, valgt år'!$F$16&" år "&'Alle lande, valgt år'!$F$12 -> DKK / GJ år 2016 | AC28: Gaspris | AD28: Ikke-refunderbare afgifter | AH28: ='Alle lande, valgt år'!$F$15&"/"&'Alle lande, valgt år'!$F$16&" år "&'Alle lande, valgt år'!$F$12 -> DKK/GJ år 2016 | AI28: Gaspris | AJ28: Ikke-refunderbare afgifter
D29: =D72 -> EU-28 | E29: =IFERROR(E72/$E113*$I$113*$K$113,"*") -> 83.1437739 | F29: =IFERROR(F72/$E113*$I$113*$K$113,"*") -> 11.44313265 | H29: =SUM(E29:F29) -> 94.58690655 | J29: =J72 -> EU-28 | K29: =IFERROR(K72/$E113*$I$113*$K$113,"*") -> 65.90665005 | L29: =IFERROR(L72/$E113*$I$113*$K$113,"*") -> 10.64645885 | N29: =SUM(K29:L29) -> 76.5531089 | P29: =P72 -> EU-28 | Q29: =IFERROR(Q72/$E113*$I$113*$K$113,"*") -> 55.54989075 | R29: =IFERROR(R72/$E113*$I$113*$K$113,"*") -> 7.894313028 | T29: =SUM(Q29:R29) -> 63.44420378 | V29: =V72 -> EU-28 | W29: =IFERROR(W72/$E113*$I$113*$K$113,"*") -> 45.26555635 | X29: =IFERROR(X72/$E113*$I$113*$K$113,"*") -> * | Z29: =SUM(W29:X29) -> 45.26555635 | AB29: =AB72 -> EU-28 | AC29: =IFERROR(AC72/$E113*$I$113*$K$113,"*") -> 38.96459091 | AD29: =IFERROR(AD72/$E113*$I$113*$K$113,"*") -> * | AF29: =SUM(AC29:AD29) -> 38.96459091 | AH29: =AH72 -> EU-28 | AI29: =IFERROR(AI72/$E113*$I$113*$K$113,"*") -> * | AJ29: =IFERROR(AJ72/$E113*$I$113*$K$113,"*") -> * | AL29: =SUM(AI29:AJ29) -> 0
D30: =D73 -> Belgien | E30: =IFERROR(E73/$E114*$I$113*$K$113,"*") -> 79.88972779 | F30: 4.060938104 | H30: 83.95066589 | J30: =J73 -> Belgien | K30: =IFERROR(K73/$E114*$I$113*$K$113,"*") -> 62.98145823 | L30: 4.356279057 | N30: 67.33773728 | P30: =P73 -> Belgien | Q30: =IFERROR(Q73/$E114*$I$113*$K$113,"*") -> 48.95276296 | R30: * | T30: 48.95276296 | V30: =V73 -> Belgien | W30: =IFERROR(W73/$E114*$I$113*$K$113,"*") -> 41.79074485 | X30: * | Z30: 41.79074485 | AB30: =AB73 -> Belgien | AC30: =IFERROR(AC73/$E114*$I$113*$K$113,"*") -> 33.29969245 | AD30: * | AF30: 33.29969245 | AH30: =AH73 -> Belgien | AI30: =IFERROR(AI73/$E114*$I$113*$K$113,"*") -> 27.54054387 | AJ30: * | AL30: 27.54054387
D31: Bulgarien | E31: =IFERROR(E74/$E115*$I$113*$K$113,"*") -> 54.67446712 | F31: 2.281418091 | H31: 56.95588521 | J31: Bulgarien | K31: =IFERROR(K74/$E115*$I$113*$K$113,"*") -> 49.76956695 | L31: 2.281418091 | N31: 52.05098504 | P31: Bulgarien | Q31: =IFERROR(Q74/$E115*$I$113*$K$113,"*") -> 45.24539887 | R31: * | T31: 45.24539887 | V31: Bulgarien | W31: =IFERROR(W74/$E115*$I$113*$K$113,"*") -> 37.86871456 | X31: * | Z31: 37.86871456 | AB31: Bulgarien | AC31: =IFERROR(AC74/$E115*$I$113*$K$113,"*") -> 35.96802856 | AD31: * | AF31: 35.96802856 | AH31: Bulgarien | AI31: =IFERROR(AI74/$E115*$I$113*$K$113,"*") -> * | AJ31: * | AL31: 0
D32: Tjekkiet | E32: =IFERROR(E75/$E116*$I$113*$K$113,"*") -> 75.24296109 | F32: 2.30279541 | H32: 77.5457565 | J32: Tjekkiet | K32: =IFERROR(K75/$E116*$I$113*$K$113,"*") -> 55.75416329 | L32: 2.302062969 | N32: 58.05622626 | P32: Tjekkiet | Q32: =IFERROR(Q75/$E116*$I$113*$K$113,"*") -> 51.06507417 | R32: 1.304477934 | T32: 52.3695521 | V32: Tjekkiet | W32: =IFERROR(W75/$E116*$I$113*$K$113,"*") -> 44.00580503 | X32: * | Z32: 44.00580503 | AB32: Tjekkiet | AC32: =IFERROR(AC75/$E116*$I$113*$K$113,"*") -> 44.50459755 | AD32: * | AF32: 44.50459755 | AH32: Tjekkiet | AI32: =IFERROR(AI75/$E116*$I$113*$K$113,"*") -> * | AJ32: * | AL32: 0
D33: Danmark | E33: =IFERROR(E76/$E117*$I$113*$K$113,"*") -> 56.81708016 | F33: 48.06971082 | H33: 104.886791 | J33: Danmark | K33: =IFERROR(K76/$E117*$I$113*$K$113,"*") -> 52.10763714 | L33: 38.31543417 | N33: 90.4230713 | P33: Danmark | Q33: =IFERROR(Q76/$E117*$I$113*$K$113,"*") -> 39.85558311 | R33: 7.077035888 | T33: 46.932619 | V33: Danmark | W33: =IFERROR(W76/$E117*$I$113*$K$113,"*") -> 37.585077 | X33: * | Z33: 37.585077 | AB33: Danmark | AC33: =IFERROR(AC76/$E117*$I$113*$K$113,"*") -> 35.14687559 | AD33: * | AF33: 35.14687559 | AH33: Danmark | AI33: =IFERROR(AI76/$E117*$I$113*$K$113,"*") -> * | AJ33: * | AL33: 0
D34: Tyskland | E34: =IFERROR(E77/$E118*$I$113*$K$113,"*") -> 83.41940437 | F34: 8.159802 | H34: 91.57920637 | J34: Tyskland | K34: =IFERROR(K77/$E118*$I$113*$K$113,"*") -> 63.74845312 | L34: 8.159802 | N34: 71.90825512 | P34: Tyskland | Q34: =IFERROR(Q77/$E118*$I$113*$K$113,"*") -> 60.46996125 | R34: -7.386077917 | T34: 53.08388333 | V34: Tyskland | W34: =IFERROR(W77/$E118*$I$113*$K$113,"*") -> 45.53460937 | X34: * | Z34: 45.53460937 | AB34: Tyskland | AC34: =IFERROR(AC77/$E118*$I$113*$K$113,"*") -> 36.719109 | AD34: * | AF34: 36.719109 | AH34: Tyskland | AI34: =IFERROR(AI77/$E118*$I$113*$K$113,"*") -> 33.65918325 | AJ34: * | AL34: 33.65918325
D35: Estland | E35: =IFERROR(E78/$E119*$I$113*$K$113,"*") -> 65.41202095 | F35: 7.268002327 | H35: 72.68002327 | J35: Estland | K35: =IFERROR(K78/$E119*$I$113*$K$113,"*") -> 60.56668606 | L35: 7.268002327 | N35: 67.83468839 | P35: Estland | Q35: =IFERROR(Q78/$E119*$I$113*$K$113,"*") -> 55.72135118 | R35: 2.754499468 | T35: 58.47585064 | V35: Estland | W35: =IFERROR(W78/$E119*$I$113*$K$113,"*") -> 55.72135118 | X35: * | Z35: 55.72135118 | AB35: Estland | AC35: =IFERROR(AC78/$E119*$I$113*$K$113,"*") -> 53.29868373 | AD35: * | AF35: 53.29868373 | AH35: Estland | AI35: =IFERROR(AI78/$E119*$I$113*$K$113,"*") -> * | AJ35: * | AL35: 0
D36: Irland | E36: =IFERROR(E79/$E120*$I$113*$K$113,"*") -> 92.65927041 | F36: 7.457769676 | H36: 100.1170401 | J36: Irland | K36: =IFERROR(K79/$E120*$I$113*$K$113,"*") -> 69.51204188 | L36: 8.23168917 | N36: 77.74373105 | P36: Irland | Q36: =IFERROR(Q79/$E120*$I$113*$K$113,"*") -> 56.42576679 | R36: 9.849884478 | T36: 66.27565127 | V36: Irland | W36: =IFERROR(W79/$E120*$I$113*$K$113,"*") -> 45.02804333 | X36: 4.010310109 | Z36: 49.03835343 | AB36: Irland | AC36: =IFERROR(AC79/$E120*$I$113*$K$113,"*") -> * | AD36: * | AF36: 0 | AH36: Irland | AI36: =IFERROR(AI79/$E120*$I$113*$K$113,"*") -> * | AJ36: * | AL36: 0
D37: Grækenland | E37: =IFERROR(E80/$E121*$I$113*$K$113,"*") -> 56.61301866 | F37: 12.15292801 | H37: 68.76594667 | J37: Grækenland | K37: =IFERROR(K80/$E121*$I$113*$K$113,"*") -> 56.99043879 | L37: 12.07744398 | N37: 69.06788277 | P37: Grækenland | Q37: =IFERROR(Q80/$E121*$I$113*$K$113,"*") -> 50.12139252 | R37: 14.64390083 | T37: 64.76529335 | V37: Grækenland | W37: =IFERROR(W80/$E121*$I$113*$K$113,"*") -> 40.83685746 | X37: 4.076137344 | Z37: 44.91299481 | AB37: Grækenland | AC37: =IFERROR(AC80/$E121*$I$113*$K$113,"*") -> * | AD37: * | AF37: 0 | AH37: Grækenland | AI37: =IFERROR(AI80/$E121*$I$113*$K$113,"*") -> * | AJ37: * | AL37: 0
D38: Spanien | E38: =IFERROR(E81/$E122*$I$113*$K$113,"*") -> 88.08955886 | F38: 1.114117524 | H38: 89.20367639 | J38: Spanien | K38: =IFERROR(K81/$E122*$I$113*$K$113,"*") -> 73.75458006 | L38: 1.114117524 | N38: 74.86869758 | P38: Spanien | Q38: =IFERROR(Q81/$E122*$I$113*$K$113,"*") -> 56.8942682 | R38: 10.76980273 | T38: 67.66407093 | V38: Spanien | W38: =IFERROR(W81/$E122*$I$113*$K$113,"*") -> 49.31826904 | X38: -10.08870555 | Z38: 39.22956349 | AB38: Spanien | AC38: =IFERROR(AC81/$E122*$I$113*$K$113,"*") -> 42.11364239 | AD38: -5.048437872 | AF38: 37.06520452 | AH38: Spanien | AI38: =IFERROR(AI81/$E122*$I$113*$K$113,"*") -> 40.33105435 | AJ38: * | AL38: 40.33105435
D39: Frankrig | E39: =IFERROR(E82/$E123*$I$113*$K$113,"*") -> 85.26297019 | F39: 11.03489692 | H39: 96.29786711 | J39: Frankrig | K39: =IFERROR(K82/$E123*$I$113*$K$113,"*") -> 70.9176042 | L39: 10.00497321 | N39: 80.9225774 | P39: Frankrig | Q39: =IFERROR(Q82/$E123*$I$113*$K$113,"*") -> 58.26425573 | R39: 2.133413404 | T39: 60.39766913 | V39: Frankrig | W39: =IFERROR(W82/$E123*$I$113*$K$113,"*") -> 43.99245571 | X39: 2.519634796 | Z39: 46.51209051 | AB39: Frankrig | AC39: =IFERROR(AC82/$E123*$I$113*$K$113,"*") -> 33.91391653 | AD39: 13.09842264 | AF39: 47.01233917 | AH39: Frankrig | AI39: =IFERROR(AI82/$E123*$I$113*$K$113,"*") -> * | AJ39: * | AL39: 0
D40: Kroatien | E40: =IFERROR(E83/$E124*$I$113*$K$113,"*") -> 82.82555252 | F40: 1.260335437 | H40: 84.08588795 | J40: Kroatien | K40: =IFERROR(K83/$E124*$I$113*$K$113,"*") -> 75.40126113 | L40: 1.053381361 | N40: 76.45464249 | P40: Kroatien | Q40: =IFERROR(Q83/$E124*$I$113*$K$113,"*") -> 66.82532242 | R40: -8.684626823 | T40: 58.1406956 | V40: Kroatien | W40: =IFERROR(W83/$E124*$I$113*$K$113,"*") -> 53.14923127 | X40: -4.585745005 | Z40: 48.56348627 | AB40: Kroatien | AC40: =IFERROR(AC83/$E124*$I$113*$K$113,"*") -> * | AD40: * | AF40: 0 | AH40: Kroatien | AI40: =IFERROR(AI83/$E124*$I$113*$K$113,"*") -> * | AJ40: * | AL40: 0
D41: Italien | E41: =IFERROR(E84/$E125*$I$113*$K$113,"*") -> 90.25093283 | F41: 22.59966076 | H41: 112.8505936 | J41: Italien | K41: =IFERROR(K84/$E125*$I$113*$K$113,"*") -> 75.55376782 | L41: 15.95270171 | N41: 91.50646953 | P41: Italien | Q41: =IFERROR(Q84/$E125*$I$113*$K$113,"*") -> 59.08408041 | R41: 9.231887564 | T41: 68.31596797 | V41: Italien | W41: =IFERROR(W84/$E125*$I$113*$K$113,"*") -> 50.22146835 | X41: 4.209740729 | Z41: 54.43120908 | AB41: Italien | AC41: =IFERROR(AC84/$E125*$I$113*$K$113,"*") -> 47.78425003 | AD41: -2.289508116 | AF41: 45.49474192 | AH41: Italien | AI41: =IFERROR(AI84/$E125*$I$113*$K$113,"*") -> 45.93787252 | AJ41: -3.545044825 | AL41: 42.39282769
D42: Letland | E42: =IFERROR(E85/$E126*$I$113*$K$113,"*") -> 65.4019983 | F42: 3.551239726 | H42: 68.95323802 | J42: Letland | K42: =IFERROR(K85/$E126*$I$113*$K$113,"*") -> 58.44748716 | L42: 3.403271405 | N42: 61.85075857 | P42: Letland | Q42: =IFERROR(Q85/$E126*$I$113*$K$113,"*") -> 51.49297603 | R42: 15.78082153 | T42: 67.27379757 | V42: Letland | W42: =IFERROR(W85/$E126*$I$113*$K$113,"*") -> 47.71978382 | X42: 15.75862629 | Z42: 63.47841011 | AB42: Letland | AC42: =IFERROR(AC85/$E126*$I$113*$K$113,"*") -> 45.94416396 | AD42: 15.09276884 | AF42: 61.0369328 | AH42: Letland | AI42: =IFERROR(AI85/$E126*$I$113*$K$113,"*") -> * | AJ42: * | AL42: 0
D43: Litaun | E43: =IFERROR(E86/$E127*$I$113*$K$113,"*") -> 74.71474519 | F43: 0 | H43: 74.71474519 | J43: Litaun | K43: =IFERROR(K86/$E127*$I$113*$K$113,"*") -> 62.77232838 | L43: 0 | N43: 62.77232838 | P43: Litaun | Q43: =IFERROR(Q86/$E127*$I$113*$K$113,"*") -> 55.60687829 | R43: 9.106092821 | T43: 64.71297111 | V43: Litaun | W43: =IFERROR(W86/$E127*$I$113*$K$113,"*") -> 43.88838179 | X43: 6.344408933 | Z43: 50.23279072 | AB43: Litaun | AC43: =IFERROR(AC86/$E127*$I$113*$K$113,"*") -> * | AD43: * | AF43: 0 | AH43: Litaun | AI43: =IFERROR(AI86/$E127*$I$113*$K$113,"*") -> * | AJ43: * | AL43: 0
D44: luxembourg | E44: =IFERROR(E87/$E128*$I$113*$K$113,"*") -> 78.33609212 | F44: 2.169974851 | H44: 80.50606697 | J44: luxembourg | K44: =IFERROR(K87/$E128*$I$113*$K$113,"*") -> 79.20408206 | L44: 1.15731992 | N44: 80.36140198 | P44: luxembourg | Q44: =IFERROR(Q87/$E128*$I$113*$K$113,"*") -> 68.64353778 | R44: -14.97282647 | T44: 53.67071131 | V44: luxembourg | W44: =IFERROR(W87/$E128*$I$113*$K$113,"*") -> 51.42840396 | X44: -1.15731992 | Z44: 50.27108404 | AB44: luxembourg | AC44: =IFERROR(AC87/$E128*$I$113*$K$113,"*") -> * | AD44: * | AF44: 0 | AH44: luxembourg | AI44: =IFERROR(AI87/$E128*$I$113*$K$113,"*") -> * | AJ44: * | AL44: 0
D45: Ungarn | E45: =IFERROR(E88/$E129*$I$113*$K$113,"*") -> 66.86240909 | F45: 3.476413769 | H45: 70.33882286 | J45: Ungarn | K45: =IFERROR(K88/$E129*$I$113*$K$113,"*") -> 59.97386381 | L45: 3.208201612 | N45: 63.18206542 | P45: Ungarn | Q45: =IFERROR(Q88/$E129*$I$113*$K$113,"*") -> 61.4338837 | R45: -6.387587042 | T45: 55.04629666 | V45: Ungarn | W45: =IFERROR(W88/$E129*$I$113*$K$113,"*") -> 51.83070628 | X45: -1.660994294 | Z45: 50.16971199 | AB45: Ungarn | AC45: =IFERROR(AC88/$E129*$I$113*$K$113,"*") -> 44.92812234 | AD45: -1.925512068 | AF45: 43.00261028 | AH45: Ungarn | AI45: =IFERROR(AI88/$E129*$I$113*$K$113,"*") -> 44.70572053 | AJ45: -3.476413769 | AL45: 41.22930676
D46: Holland | E46: =IFERROR(E89/$E130*$I$113*$K$113,"*") -> 75.21018196 | F46: 55.35172997 | H46: 130.5619119 | J46: Holland | K46: =IFERROR(K89/$E130*$I$113*$K$113,"*") -> 63.50258713 | L46: 55.35172997 | N46: 118.8543171 | P46: Holland | Q46: =IFERROR(Q89/$E130*$I$113*$K$113,"*") -> 46.60808321 | R46: 25.9345455 | T46: 72.54262871 | V46: Holland | W46: =IFERROR(W89/$E130*$I$113*$K$113,"*") -> 42.01396372 | X46: 7.261672741 | Z46: 49.27563646 | AB46: Holland | AC46: =IFERROR(AC89/$E130*$I$113*$K$113,"*") -> 40.53198969 | AD46: -4.371823385 | AF46: 36.1601663 | AH46: Holland | AI46: =IFERROR(AI89/$E130*$I$113*$K$113,"*") -> * | AJ46: * | AL46: 0
D47: Østrig | E47: =IFERROR(E90/$E131*$I$113*$K$113,"*") -> 93.51630761 | F47: 14.37584023 | H47: 107.8921478 | J47: Østrig | K47: =IFERROR(K90/$E131*$I$113*$K$113,"*") -> 71.87920115 | L47: 15.76941658 | N47: 87.64861773 | P47: Østrig | Q47: =IFERROR(Q90/$E131*$I$113*$K$113,"*") -> 57.1366303 | R47: 7.473236536 | T47: 64.60986684 | V47: Østrig | W47: =IFERROR(W90/$E131*$I$113*$K$113,"*") -> 52.44247839 | X47: 0.5244247839 | Z47: 52.96690317 | AB47: Østrig | AC47: =IFERROR(AC90/$E131*$I$113*$K$113,"*") -> 53.02924738 | AD47: * | AF47: 53.02924738 | AH47: Østrig | AI47: =IFERROR(AI90/$E131*$I$113*$K$113,"*") -> * | AJ47: * | AL47: 0
D48: Polen | E48: =IFERROR(E91/$E132*$I$113*$K$113,"*") -> 73.43506593 | F48: 1.473880618 | H48: 74.90894655 | J48: Polen | K48: =IFERROR(K91/$E132*$I$113*$K$113,"*") -> 68.72708281 | L48: 1.507176114 | N48: 70.23425893 | P48: Polen | Q48: =IFERROR(Q91/$E132*$I$113*$K$113,"*") -> 54.48400957 | R48: 24.38932069 | T48: 78.87333026 | V48: Polen | W48: =IFERROR(W91/$E132*$I$113*$K$113,"*") -> 46.03287282 | X48: 5.612140807 | Z48: 51.64501362 | AB48: Polen | AC48: =IFERROR(AC91/$E132*$I$113*$K$113,"*") -> 35.5995442 | AD48: 13.23384977 | AF48: 48.83339397 | AH48: Polen | AI48: =IFERROR(AI91/$E132*$I$113*$K$113,"*") -> * | AJ48: * | AL48: 0
D49: Portugal | E49: =IFERROR(E92/$E133*$I$113*$K$113,"*") -> 129.9403307 | F49: 7.46699365 | H49: 137.4073243 | J49: Portugal | K49: =IFERROR(K92/$E133*$I$113*$K$113,"*") -> 86.09004443 | L49: 2.562203703 | N49: 88.65224814 | P49: Portugal | Q49: =IFERROR(Q92/$E133*$I$113*$K$113,"*") -> 67.64217777 | R49: 4.172731745 | T49: 71.81490951 | V49: Portugal | W49: =IFERROR(W92/$E133*$I$113*$K$113,"*") -> 55.78283491 | X49: -5.124407407 | Z49: 50.65842751 | AB49: Portugal | AC49: =IFERROR(AC92/$E133*$I$113*$K$113,"*") -> 53.87948359 | AD49: -4.977995766 | AF49: 48.90148782 | AH49: Portugal | AI49: =IFERROR(AI92/$E133*$I$113*$K$113,"*") -> * | AJ49: * | AL49: 0
D50: Rumænien | E50: =IFERROR(E93/$E134*$I$113*$K$113,"*") -> 46.99845062 | F50: 18.43016641 | H50: 65.42861702 | J50: Rumænien | K50: =IFERROR(K93/$E134*$I$113*$K$113,"*") -> 43.6515417 | L50: 17.70336751 | N50: 61.35490921 | P50: Rumænien | Q50: =IFERROR(Q93/$E134*$I$113*$K$113,"*") -> 39.20571285 | R50: 15.37833784 | T50: 54.5840507 | V50: Rumænien | W50: =IFERROR(W93/$E134*$I$113*$K$113,"*") -> 36.92574472 | X50: 5.810030376 | Z50: 42.73577509 | AB50: Rumænien | AC50: =IFERROR(AC93/$E134*$I$113*$K$113,"*") -> 32.81933095 | AD50: * | AF50: 32.81933095 | AH50: Rumænien | AI50: =IFERROR(AI93/$E134*$I$113*$K$113,"*") -> 30.54008961 | AJ50: * | AL50: 30.54008961
D51: =D94 -> Slovenien | E51: =IFERROR(E94/$E135*$I$113*$K$113,"*") -> 88.28800661 | F51: 10.67462045 | H51: =SUM(E51:F51) -> 98.96262705 | J51: =J94 -> Slovenien | K51: =IFERROR(K94/$E135*$I$113*$K$113,"*") -> 85.47109288 | L51: 11.49004284 | N51: =SUM(K51:L51) -> 96.96113572 | P51: =P94 -> Slovenien | Q51: =IFERROR(Q94/$E135*$I$113*$K$113,"*") -> 60.63777448 | R51: 9.34029289 | T51: =SUM(Q51:R51) -> 69.97806737 | V51: =V94 -> Slovenien | W51: =IFERROR(W94/$E135*$I$113*$K$113,"*") -> 50.18554196 | X51: 2.891043038 | Z51: =SUM(W51:X51) -> 53.076585 | AB51: =AB94 -> Slovenien | AC51: =IFERROR(AC94/$E135*$I$113*$K$113,"*") -> * | AD51: * | AF51: =SUM(AC51:AD51) -> 0 | AH51: =AH94 -> Slovenien | AI51: =IFERROR(AI94/$E135*$I$113*$K$113,"*") -> * | AJ51: * | AL51: 0
D52: Slovakiet | E52: =IFERROR(E95/$E136*$I$113*$K$113,"*") -> 90.87527898 | F52: 2.688175878 | H52: 93.56345486 | J52: Slovakiet | K52: =IFERROR(K95/$E136*$I$113*$K$113,"*") -> 71.98337629 | L52: 2.76284743 | N52: 74.74622372 | P52: Slovakiet | Q52: =IFERROR(Q95/$E136*$I$113*$K$113,"*") -> 60.55862881 | R52: -2.688175878 | T52: 57.87045293 | V52: Slovakiet | W52: =IFERROR(W95/$E136*$I$113*$K$113,"*") -> 55.63030636 | X52: 0.2673241568 | Z52: 55.89763052 | AB52: Slovakiet | AC52: =IFERROR(AC95/$E136*$I$113*$K$113,"*") -> 57.49709517 | AD52: -8.616350404 | AF52: 48.88074476 | AH52: Slovakiet | AI52: =IFERROR(AI95/$E136*$I$113*$K$113,"*") -> * | AJ52: * | AL52: 0
D53: Finland | E53: =IFERROR(E96/$E137*$I$113*$K$113,"*") -> * | F53: * | H53: 0 | J53: Finland | K53: =IFERROR(K96/$E137*$I$113*$K$113,"*") -> 63.01178017 | L53: 32.35940654 | N53: 95.37118671 | P53: Finland | Q53: =IFERROR(Q96/$E137*$I$113*$K$113,"*") -> 53.06645798 | R53: 18.10939265 | T53: 71.17585063 | V53: Finland | W53: =IFERROR(W96/$E137*$I$113*$K$113,"*") -> 50.54301802 | X53: 2.003908203 | Z53: 52.54692622 | AB53: Finland | AC53: =IFERROR(AC96/$E137*$I$113*$K$113,"*") -> 50.24614273 | AD53: -4.675785808 | AF53: 45.57035692 | AH53: Finland | AI53: =IFERROR(AI96/$E137*$I$113*$K$113,"*") -> * | AJ53: * | AL53: 0
D54: Sverige | E54: =IFERROR(E97/$E138*$I$113*$K$113,"*") -> 108.4229116 | F54: 18.36319709 | H54: 126.7861086 | J54: Sverige | K54: =IFERROR(K97/$E138*$I$113*$K$113,"*") -> 82.93860213 | L54: 18.37144954 | N54: 101.3100517 | P54: Sverige | Q54: =IFERROR(Q97/$E138*$I$113*$K$113,"*") -> 59.46188822 | R54: 4.156983089 | T54: 63.61887131 | V54: Sverige | W54: =IFERROR(W97/$E138*$I$113*$K$113,"*") -> 52.66337157 | X54: 15.75692399 | Z54: 68.42029556 | AB54: Sverige | AC54: =IFERROR(AC97/$E138*$I$113*$K$113,"*") -> 52.46981416 | AD54: 13.84985829 | AF54: 66.31967245 | AH54: Sverige | AI54: =IFERROR(AI97/$E138*$I$113*$K$113,"*") -> * | AJ54: * | AL54: 0
D55: UK | E55: =IFERROR(E98/$E139*$I$113*$K$113,"*") -> 92.47769436 | F55: 3.17685248 | H55: 95.65454684 | J55: UK | K55: =IFERROR(K98/$E139*$I$113*$K$113,"*") -> 57.53031149 | L55: 3.17685248 | N55: 60.70716397 | P55: UK | Q55: =IFERROR(Q98/$E139*$I$113*$K$113,"*") -> 51.09036621 | R55: 25.85738641 | T55: 76.94775263 | V55: UK | W55: =IFERROR(W98/$E139*$I$113*$K$113,"*") -> 39.6698757 | X55: 2.396678481 | Z55: 42.06655418 | AB55: UK | AC55: =IFERROR(AC98/$E139*$I$113*$K$113,"*") -> 32.80073445 | AD55: -0.6351030842 | AF55: 32.16563136 | AH55: UK | AI55: =IFERROR(AI98/$E139*$I$113*$K$113,"*") -> * | AJ55: * | AL55: 0
D56: Level 1 | J56: Level 1 | P56: Level 1 | V56: Level 1 | AB56: Level 1 | AH56: Level 1
D57: Level 2 | J57: Level 2 | P57: Level 2 | V57: Level 2 | AB57: Level 2 | AH57: Level 2
D62: Baggrundstabeller
D64: Tabel A
D65: Nedenstående tabeller (de orange) henter data fra 'Level 1' og 'Afgifter og moms', der hentes data fra det år der er valgt i valgmenuen øverst. Priserne vises i original enheden i Eurostat EURO / GJ.
D66: 'Gaspris inkl. PSO, eksl. afgifter' udgør level 1 prisen. 'Ikke refundrebare afgifter' svarer til level 2 prisen fratrukket level 1 prisen. 'Ikke refunderbare afgifter' er level 3 prisen fratrukket level 2 prisen. Beregningen er foretaget i arket "Afgifter og moms".
D68: ="Data er hentet for år "&'Alle lande, valgt år'!F12 -> Data er hentet for år 2016
D69: IA: < 1000 GJ | J69: IB: 1 000 GJ < 10 000 GJ | P69: IC: 10 000 GJ < 100 000 GJ | V69: ID: 100 000 GJ < 1 000 000 GJ | AB69: IE: 1 000 000 GJ < 4 000 000 GJ | AH69: IF: > 4 000 000 GJ
D71: ="Euro/GJ år "&'Alle lande, valgt år'!$F$12 -> Euro/GJ år 2016 | E71: Gaspris | F71: Ikke-refunderbare afgifter | J71: ='Alle lande, valgt år'!$F$15&" / "&'Alle lande, valgt år'!$F$16&" år "&'Alle lande, valgt år'!$F$12 -> DKK / GJ år 2016 | K71: Gaspris | L71: Ikke-refunderbare afgifter | P71: ="Euro/GJ år "&'Alle lande, valgt år'!$F$12 -> Euro/GJ år 2016 | Q71: Gaspris | R71: Ikke-refunderbare afgifter | V71: ="Euro/GJ år "&'Alle lande, valgt år'!$F$12 -> Euro/GJ år 2016 | W71: Gaspris | X71: Ikke-refunderbare afgifter | AB71: ="Euro/GJ år "&'Alle lande, valgt år'!$F$12 -> Euro/GJ år 2016 | AC71: Gaspris | AD71: Ikke-refunderbare afgifter | AH71: ="Euro/GJ år "&'Alle lande, valgt år'!$F$12 -> Euro/GJ år 2016 | AI71: Gaspris | AJ71: Ikke-refunderbare afgifter
D72: ='Oversættelse af landenavne'!$B6 -> EU-28 | E72: =HLOOKUP('Alle lande, valgt år'!$F$12,'Level 1'!$B$5:$L$32,'Oversættelse af landenavne'!$C6,FALSE) -> 11.48 | F72: =HLOOKUP('Alle lande, valgt år'!$F$12,'Afgifter og moms'!$A$5:$L$32,'Oversættelse af landenavne'!$C6,FALSE) -> 1.58 | J72: ='Oversættelse af landenavne'!$B6 -> EU-28 | K72: =HLOOKUP('Alle lande, valgt år'!$F$12,'Level 1'!$O$5:$Y$32,'Oversættelse af landenavne'!$C6,FALSE) -> 9.1 | L72: =HLOOKUP('Alle lande, valgt år'!$F$12,'Afgifter og moms'!$O$5:$Y$32,'Oversættelse af landenavne'!$C6,FALSE) -> 1.47 | P72: ='Oversættelse af landenavne'!$B6 -> EU-28 | Q72: =HLOOKUP('Alle lande, valgt år'!$F$12,'Level 1'!$AB$5:$AL$32,'Oversættelse af landenavne'!$C6,FALSE) -> 7.67 | R72: =HLOOKUP('Alle lande, valgt år'!$F$12,'Afgifter og moms'!$AA$5:$AL$32,'Oversættelse af landenavne'!$C6,FALSE) -> 1.09 | V72: ='Oversættelse af landenavne'!$B6 -> EU-28 | W72: =HLOOKUP('Alle lande, valgt år'!$F$12,'Level 1'!$AO$5:$AY$32,'Oversættelse af landenavne'!$C6,FALSE) -> 6.25 | X72: =HLOOKUP('Alle lande, valgt år'!$F$12,'Afgifter og moms'!$AO$5:$AY$32,'Oversættelse af landenavne'!$C6,FALSE) -> * | AB72: ='Oversættelse af landenavne'!$B6 -> EU-28 | AC72: =HLOOKUP('Alle lande, valgt år'!$F$12,'Level 1'!$BB$5:$BL$32,'Oversættelse af landenavne'!$C6,FALSE) -> 5.38 | AD72: =HLOOKUP('Alle lande, valgt år'!$F$12,'Afgifter og moms'!$BB$5:$BL$32,'Oversættelse af landenavne'!$C6,FALSE) -> * | AH72: ='Oversættelse af landenavne'!$B6 -> EU-28 | AI72: =HLOOKUP('Alle lande, valgt år'!$F$12,'Level 1'!$BO$5:$BY$32,'Oversættelse af landenavne'!$C6,FALSE) -> * | AJ72: =HLOOKUP('Alle lande, valgt år'!$F$12,'Afgifter og moms'!$BO$5:$BY$32,'Oversættelse af landenavne'!$C6,FALSE) -> *
D73: ='Oversættelse af landenavne'!$B7 -> Belgien | E73: =HLOOKUP('Alle lande, valgt år'!$F$12,'Level 1'!$B$5:$L$32,'Oversættelse af landenavne'!$C7,FALSE) -> 10.82 | F73: =HLOOKUP('Alle lande, valgt år'!$F$12,'Afgifter og moms'!$A$5:$L$32,'Oversættelse af landenavne'!$C7,FALSE) -> 0.55 | J73: ='Oversættelse af landenavne'!$B7 -> Belgien | K73: =HLOOKUP('Alle lande, valgt år'!$F$12,'Level 1'!$O$5:$Y$32,'Oversættelse af landenavne'!$C7,FALSE) -> 8.53 | L73: =HLOOKUP('Alle lande, valgt år'!$F$12,'Afgifter og moms'!$O$5:$Y$32,'Oversættelse af landenavne'!$C7,FALSE) -> 0.59 | P73: ='Oversættelse af landenavne'!$B7 -> Belgien | Q73: =HLOOKUP('Alle lande, valgt år'!$F$12,'Level 1'!$AB$5:$AL$32,'Oversættelse af landenavne'!$C7,FALSE) -> 6.63 | R73: =HLOOKUP('Alle lande, valgt år'!$F$12,'Afgifter og moms'!$AA$5:$AL$32,'Oversættelse af landenavne'!$C7,FALSE) -> * | V73: ='Oversættelse af landenavne'!$B7 -> Belgien | W73: =HLOOKUP('Alle lande, valgt år'!$F$12,'Level 1'!$AO$5:$AY$32,'Oversættelse af landenavne'!$C7,FALSE) -> 5.66 | X73: =HLOOKUP('Alle lande, valgt år'!$F$12,'Afgifter og moms'!$AO$5:$AY$32,'Oversættelse af landenavne'!$C7,FALSE) -> * | AB73: ='Oversættelse af landenavne'!$B7 -> Belgien | AC73: =HLOOKUP('Alle lande, valgt år'!$F$12,'Level 1'!$BB$5:$BL$32,'Oversættelse af landenavne'!$C7,FALSE) -> 4.51 | AD73: =HLOOKUP('Alle lande, valgt år'!$F$12,'Afgifter og moms'!$BB$5:$BL$32,'Oversættelse af landenavne'!$C7,FALSE) -> * | AH73: ='Oversættelse af landenavne'!$B7 -> Belgien | AI73: =HLOOKUP('Alle lande, valgt år'!$F$12,'Level 1'!$BO$5:$BY$32,'Oversættelse af landenavne'!$C7,FALSE) -> 3.73 | AJ73: =HLOOKUP('Alle lande, valgt år'!$F$12,'Afgifter og moms'!$BO$5:$BY$32,'Oversættelse af landenavne'!$C7,FALSE) -> *
D74: ='Oversættelse af landenavne'!$B8 -> Bulgarien | E74: =HLOOKUP('Alle lande, valgt år'!$F$12,'Level 1'!$B$5:$L$32,'Oversættelse af landenavne'!$C8,FALSE) -> 7.3525 | F74: =HLOOKUP('Alle lande, valgt år'!$F$12,'Afgifter og moms'!$A$5:$L$32,'Oversættelse af landenavne'!$C8,FALSE) -> 0.3068 | J74: ='Oversættelse af landenavne'!$B8 -> Bulgarien | K74: =HLOOKUP('Alle lande, valgt år'!$F$12,'Level 1'!$O$5:$Y$32,'Oversættelse af landenavne'!$C8,FALSE) -> 6.6929 | L74: =HLOOKUP('Alle lande, valgt år'!$F$12,'Afgifter og moms'!$O$5:$Y$32,'Oversættelse af landenavne'!$C8,FALSE) -> 0.3068 | P74: ='Oversættelse af landenavne'!$B8 -> Bulgarien | Q74: =HLOOKUP('Alle lande, valgt år'!$F$12,'Level 1'!$AB$5:$AL$32,'Oversættelse af landenavne'!$C8,FALSE) -> 6.0845 | R74: =HLOOKUP('Alle lande, valgt år'!$F$12,'Afgifter og moms'!$AA$5:$AL$32,'Oversættelse af landenavne'!$C8,FALSE) -> * | V74: ='Oversættelse af landenavne'!$B8 -> Bulgarien | W74: =HLOOKUP('Alle lande, valgt år'!$F$12,'Level 1'!$AO$5:$AY$32,'Oversættelse af landenavne'!$C8,FALSE) -> 5.0925 | X74: =HLOOKUP('Alle lande, valgt år'!$F$12,'Afgifter og moms'!$AO$5:$AY$32,'Oversættelse af landenavne'!$C8,FALSE) -> * | AB74: ='Oversættelse af landenavne'!$B8 -> Bulgarien | AC74: =HLOOKUP('Alle lande, valgt år'!$F$12,'Level 1'!$BB$5:$BL$32,'Oversættelse af landenavne'!$C8,FALSE) -> 4.8369 | AD74: =HLOOKUP('Alle lande, valgt år'!$F$12,'Afgifter og moms'!$BB$5:$BL$32,'Oversættelse af landenavne'!$C8,FALSE) -> * | AH74: ='Oversættelse af landenavne'!$B8 -> Bulgarien | AI74: =HLOOKUP('Alle lande, valgt år'!$F$12,'Level 1'!$BO$5:$BY$32,'Oversættelse af landenavne'!$C8,FALSE) -> * | AJ74: =HLOOKUP('Alle lande, valgt år'!$F$12,'Afgifter og moms'!$BO$5:$BY$32,'Oversættelse af landenavne'!$C8,FALSE) -> *
D75: ='Oversættelse af landenavne'!$B9 -> Tjekkiet | E75: =HLOOKUP('Alle lande, valgt år'!$F$12,'Level 1'!$B$5:$L$32,'Oversættelse af landenavne'!$C9,FALSE) -> 10.2729 | F75: =HLOOKUP('Alle lande, valgt år'!$F$12,'Afgifter og moms'!$A$5:$L$32,'Oversættelse af landenavne'!$C9,FALSE) -> 0.3144 | J75: ='Oversættelse af landenavne'!$B9 -> Tjekkiet | K75: =HLOOKUP('Alle lande, valgt år'!$F$12,'Level 1'!$O$5:$Y$32,'Oversættelse af landenavne'!$C9,FALSE) -> 7.6121 | L75: =HLOOKUP('Alle lande, valgt år'!$F$12,'Afgifter og moms'!$O$5:$Y$32,'Oversættelse af landenavne'!$C9,FALSE) -> 0.3143 | P75: ='Oversættelse af landenavne'!$B9 -> Tjekkiet | Q75: =HLOOKUP('Alle lande, valgt år'!$F$12,'Level 1'!$AB$5:$AL$32,'Oversættelse af landenavne'!$C9,FALSE) -> 6.9719 | R75: =HLOOKUP('Alle lande, valgt år'!$F$12,'Afgifter og moms'!$AA$5:$AL$32,'Oversættelse af landenavne'!$C9,FALSE) -> 0.1781 | V75: ='Oversættelse af landenavne'!$B9 -> Tjekkiet | W75: =HLOOKUP('Alle lande, valgt år'!$F$12,'Level 1'!$AO$5:$AY$32,'Oversættelse af landenavne'!$C9,FALSE) -> 6.0081 | X75: =HLOOKUP('Alle lande, valgt år'!$F$12,'Afgifter og moms'!$AO$5:$AY$32,'Oversættelse af landenavne'!$C9,FALSE) -> * | AB75: ='Oversættelse af landenavne'!$B9 -> Tjekkiet | AC75: =HLOOKUP('Alle lande, valgt år'!$F$12,'Level 1'!$BB$5:$BL$32,'Oversættelse af landenavne'!$C9,FALSE) -> 6.0762 | AD75: =HLOOKUP('Alle lande, valgt år'!$F$12,'Afgifter og moms'!$BB$5:$BL$32,'Oversættelse af landenavne'!$C9,FALSE) -> * | AH75: ='Oversættelse af landenavne'!$B9 -> Tjekkiet | AI75: =HLOOKUP('Alle lande, valgt år'!$F$12,'Level 1'!$BO$5:$BY$32,'Oversættelse af landenavne'!$C9,FALSE) -> * | AJ75: =HLOOKUP('Alle lande, valgt år'!$F$12,'Afgifter og moms'!$BO$5:$BY$32,'Oversættelse af landenavne'!$C9,FALSE) -> *
D76: ='Oversættelse af landenavne'!$B10 -> Danmark | E76: =HLOOKUP('Alle lande, valgt år'!$F$12,'Level 1'!$B$5:$L$32,'Oversættelse af landenavne'!$C10,FALSE) -> 7.7249 | F76: =HLOOKUP('Alle lande, valgt år'!$F$12,'Afgifter og moms'!$A$5:$L$32,'Oversættelse af landenavne'!$C10,FALSE) -> 6.5356 | J76: ='Oversættelse af landenavne'!$B10 -> Danmark | K76: =HLOOKUP('Alle lande, valgt år'!$F$12,'Level 1'!$O$5:$Y$32,'Oversættelse af landenavne'!$C10,FALSE) -> 7.0846 | L76: =HLOOKUP('Alle lande, valgt år'!$F$12,'Afgifter og moms'!$O$5:$Y$32,'Oversættelse af landenavne'!$C10,FALSE) -> 5.2094 | P76: ='Oversættelse af landenavne'!$B10 -> Danmark | Q76: =HLOOKUP('Alle lande, valgt år'!$F$12,'Level 1'!$AB$5:$AL$32,'Oversættelse af landenavne'!$C10,FALSE) -> 5.4188 | R76: =HLOOKUP('Alle lande, valgt år'!$F$12,'Afgifter og moms'!$AA$5:$AL$32,'Oversættelse af landenavne'!$C10,FALSE) -> 0.9622 | V76: ='Oversættelse af landenavne'!$B10 -> Danmark | W76: =HLOOKUP('Alle lande, valgt år'!$F$12,'Level 1'!$AO$5:$AY$32,'Oversættelse af landenavne'!$C10,FALSE) -> 5.1101 | X76: =HLOOKUP('Alle lande, valgt år'!$F$12,'Afgifter og moms'!$AO$5:$AY$32,'Oversættelse af landenavne'!$C10,FALSE) -> * | AB76: ='Oversættelse af landenavne'!$B10 -> Danmark | AC76: =HLOOKUP('Alle lande, valgt år'!$F$12,'Level 1'!$BB$5:$BL$32,'Oversættelse af landenavne'!$C10,FALSE) -> 4.7786 | AD76: =HLOOKUP('Alle lande, valgt år'!$F$12,'Afgifter og moms'!$BB$5:$BL$32,'Oversættelse af landenavne'!$C10,FALSE) -> * | AH76: ='Oversættelse af landenavne'!$B10 -> Danmark | AI76: =HLOOKUP('Alle lande, valgt år'!$F$12,'Level 1'!$BO$5:$BY$32,'Oversættelse af landenavne'!$C10,FALSE) -> * | AJ76: =HLOOKUP('Alle lande, valgt år'!$F$12,'Afgifter og moms'!$BO$5:$BY$32,'Oversættelse af landenavne'!$C10,FALSE) -> *
D77: ='Oversættelse af landenavne'!$B11 -> Tyskland | E77: =HLOOKUP('Alle lande, valgt år'!$F$12,'Level 1'!$B$5:$L$32,'Oversættelse af landenavne'!$C11,FALSE) -> 11.45 | F77: =HLOOKUP('Alle lande, valgt år'!$F$12,'Afgifter og moms'!$A$5:$L$32,'Oversættelse af landenavne'!$C11,FALSE) -> 1.12 | J77: ='Oversættelse af landenavne'!$B11 -> Tyskland | K77: =HLOOKUP('Alle lande, valgt år'!$F$12,'Level 1'!$O$5:$Y$32,'Oversættelse af landenavne'!$C11,FALSE) -> 8.75 | L77: =HLOOKUP('Alle lande, valgt år'!$F$12,'Afgifter og moms'!$O$5:$Y$32,'Oversættelse af landenavne'!$C11,FALSE) -> 1.12 | P77: ='Oversættelse af landenavne'!$B11 -> Tyskland | Q77: =HLOOKUP('Alle lande, valgt år'!$F$12,'Level 1'!$AB$5:$AL$32,'Oversættelse af landenavne'!$C11,FALSE) -> 8.3 | R77: =HLOOKUP('Alle lande, valgt år'!$F$12,'Afgifter og moms'!$AA$5:$AL$32,'Oversættelse af landenavne'!$C11,FALSE) -> -1.0138 | V77: ='Oversættelse af landenavne'!$B11 -> Tyskland | W77: =HLOOKUP('Alle lande, valgt år'!$F$12,'Level 1'!$AO$5:$AY$32,'Oversættelse af landenavne'!$C11,FALSE) -> 6.25 | X77: =HLOOKUP('Alle lande, valgt år'!$F$12,'Afgifter og moms'!$AO$5:$AY$32,'Oversættelse af landenavne'!$C11,FALSE) -> * | AB77: ='Oversættelse af landenavne'!$B11 -> Tyskland | AC77: =HLOOKUP('Alle lande, valgt år'!$F$12,'Level 1'!$BB$5:$BL$32,'Oversættelse af landenavne'!$C11,FALSE) -> 5.04 | AD77: =HLOOKUP('Alle lande, valgt år'!$F$12,'Afgifter og moms'!$BB$5:$BL$32,'Oversættelse af landenavne'!$C11,FALSE) -> * | AH77: ='Oversættelse af landenavne'!$B11 -> Tyskland | AI77: =HLOOKUP('Alle lande, valgt år'!$F$12,'Level 1'!$BO$5:$BY$32,'Oversættelse af landenavne'!$C11,FALSE) -> 4.62 | AJ77: =HLOOKUP('Alle lande, valgt år'!$F$12,'Afgifter og moms'!$BO$5:$BY$32,'Oversættelse af landenavne'!$C11,FALSE) -> *
D78: ='Oversættelse af landenavne'!$B12 -> Estland | E78: =HLOOKUP('Alle lande, valgt år'!$F$12,'Level 1'!$B$5:$L$32,'Oversættelse af landenavne'!$C12,FALSE) -> 8.91 | F78: =HLOOKUP('Alle lande, valgt år'!$F$12,'Afgifter og moms'!$A$5:$L$32,'Oversættelse af landenavne'!$C12,FALSE) -> 0.99 | J78: ='Oversættelse af landenavne'!$B12 -> Estland | K78: =HLOOKUP('Alle lande, valgt år'!$F$12,'Level 1'!$O$5:$Y$32,'Oversættelse af landenavne'!$C12,FALSE) -> 8.25 | L78: =HLOOKUP('Alle lande, valgt år'!$F$12,'Afgifter og moms'!$O$5:$Y$32,'Oversættelse af landenavne'!$C12,FALSE) -> 0.99 | P78: ='Oversættelse af landenavne'!$B12 -> Estland | Q78: =HLOOKUP('Alle lande, valgt år'!$F$12,'Level 1'!$AB$5:$AL$32,'Oversættelse af landenavne'!$C12,FALSE) -> 7.59 | R78: =HLOOKUP('Alle lande, valgt år'!$F$12,'Afgifter og moms'!$AA$5:$AL$32,'Oversættelse af landenavne'!$C12,FALSE) -> 0.3752 | V78: ='Oversættelse af landenavne'!$B12 -> Estland | W78: =HLOOKUP('Alle lande, valgt år'!$F$12,'Level 1'!$AO$5:$AY$32,'Oversættelse af landenavne'!$C12,FALSE) -> 7.59 | X78: =HLOOKUP('Alle lande, valgt år'!$F$12,'Afgifter og moms'!$AO$5:$AY$32,'Oversættelse af landenavne'!$C12,FALSE) -> * | AB78: ='Oversættelse af landenavne'!$B12 -> Estland | AC78: =HLOOKUP('Alle lande, valgt år'!$F$12,'Level 1'!$BB$5:$BL$32,'Oversættelse af landenavne'!$C12,FALSE) -> 7.26 | AD78: =HLOOKUP('Alle lande, valgt år'!$F$12,'Afgifter og moms'!$BB$5:$BL$32,'Oversættelse af landenavne'!$C12,FALSE) -> * | AH78: ='Oversættelse af landenavne'!$B12 -> Estland | AI78: =HLOOKUP('Alle lande, valgt år'!$F$12,'Level 1'!$BO$5:$BY$32,'Oversættelse af landenavne'!$C12,FALSE) -> * | AJ78: =HLOOKUP('Alle lande, valgt år'!$F$12,'Afgifter og moms'!$BO$5:$BY$32,'Oversættelse af landenavne'!$C12,FALSE) -> *
D79: ='Oversættelse af landenavne'!$B13 -> Irland | E79: =HLOOKUP('Alle lande, valgt år'!$F$12,'Level 1'!$B$5:$L$32,'Oversættelse af landenavne'!$C13,FALSE) -> 13.17 | F79: =HLOOKUP('Alle lande, valgt år'!$F$12,'Afgifter og moms'!$A$5:$L$32,'Oversættelse af landenavne'!$C13,FALSE) -> 1.06 | J79: ='Oversættelse af landenavne'!$B13 -> Irland | K79: =HLOOKUP('Alle lande, valgt år'!$F$12,'Level 1'!$O$5:$Y$32,'Oversættelse af landenavne'!$C13,FALSE) -> 9.88 | L79: =HLOOKUP('Alle lande, valgt år'!$F$12,'Afgifter og moms'!$O$5:$Y$32,'Oversættelse af landenavne'!$C13,FALSE) -> 1.17 | P79: ='Oversættelse af landenavne'!$B13 -> Irland | Q79: =HLOOKUP('Alle lande, valgt år'!$F$12,'Level 1'!$AB$5:$AL$32,'Oversættelse af landenavne'!$C13,FALSE) -> 8.02 | R79: =HLOOKUP('Alle lande, valgt år'!$F$12,'Afgifter og moms'!$AA$5:$AL$32,'Oversættelse af landenavne'!$C13,FALSE) -> 1.4 | V79: ='Oversættelse af landenavne'!$B13 -> Irland | W79: =HLOOKUP('Alle lande, valgt år'!$F$12,'Level 1'!$AO$5:$AY$32,'Oversættelse af landenavne'!$C13,FALSE) -> 6.4 | X79: =HLOOKUP('Alle lande, valgt år'!$F$12,'Afgifter og moms'!$AO$5:$AY$32,'Oversættelse af landenavne'!$C13,FALSE) -> 0.57 | AB79: ='Oversættelse af landenavne'!$B13 -> Irland | AC79: =HLOOKUP('Alle lande, valgt år'!$F$12,'Level 1'!$BB$5:$BL$32,'Oversættelse af landenavne'!$C13,FALSE) -> * | AD79: =HLOOKUP('Alle lande, valgt år'!$F$12,'Afgifter og moms'!$BB$5:$BL$32,'Oversættelse af landenavne'!$C13,FALSE) -> * | AH79: ='Oversættelse af landenavne'!$B13 -> Irland | AI79: =HLOOKUP('Alle lande, valgt år'!$F$12,'Level 1'!$BO$5:$BY$32,'Oversættelse af landenavne'!$C13,FALSE) -> * | AJ79: =HLOOKUP('Alle lande, valgt år'!$F$12,'Afgifter og moms'!$BO$5:$BY$32,'Oversættelse af landenavne'!$C13,FALSE) -> *
D80: ='Oversættelse af landenavne'!$B14 -> Grækenland | E80: =HLOOKUP('Alle lande, valgt år'!$F$12,'Level 1'!$B$5:$L$32,'Oversættelse af landenavne'!$C14,FALSE) -> 7.5 | F80: =HLOOKUP('Alle lande, valgt år'!$F$12,'Afgifter og moms'!$A$5:$L$32,'Oversættelse af landenavne'!$C14,FALSE) -> 1.61 | J80: ='Oversættelse af landenavne'!$B14 -> Grækenland | K80: =HLOOKUP('Alle lande, valgt år'!$F$12,'Level 1'!$O$5:$Y$32,'Oversættelse af landenavne'!$C14,FALSE) -> 7.55 | L80: =HLOOKUP('Alle lande, valgt år'!$F$12,'Afgifter og moms'!$O$5:$Y$32,'Oversættelse af landenavne'!$C14,FALSE) -> 1.6 | P80: ='Oversættelse af landenavne'!$B14 -> Grækenland | Q80: =HLOOKUP('Alle lande, valgt år'!$F$12,'Level 1'!$AB$5:$AL$32,'Oversættelse af landenavne'!$C14,FALSE) -> 6.64 | R80: =HLOOKUP('Alle lande, valgt år'!$F$12,'Afgifter og moms'!$AA$5:$AL$32,'Oversættelse af landenavne'!$C14,FALSE) -> 1.94 | V80: ='Oversættelse af landenavne'!$B14 -> Grækenland | W80: =HLOOKUP('Alle lande, valgt år'!$F$12,'Level 1'!$AO$5:$AY$32,'Oversættelse af landenavne'!$C14,FALSE) -> 5.41 | X80: =HLOOKUP('Alle lande, valgt år'!$F$12,'Afgifter og moms'!$AO$5:$AY$32,'Oversættelse af landenavne'!$C14,FALSE) -> 0.54 | AB80: ='Oversættelse af landenavne'!$B14 -> Grækenland | AC80: =HLOOKUP('Alle lande, valgt år'!$F$12,'Level 1'!$BB$5:$BL$32,'Oversættelse af landenavne'!$C14,FALSE) -> * | AD80: =HLOOKUP('Alle lande, valgt år'!$F$12,'Afgifter og moms'!$BB$5:$BL$32,'Oversættelse af landenavne'!$C14,FALSE) -> * | AH80: ='Oversættelse af landenavne'!$B14 -> Grækenland | AI80: =HLOOKUP('Alle lande, valgt år'!$F$12,'Level 1'!$BO$5:$BY$32,'Oversættelse af landenavne'!$C14,FALSE) -> * | AJ80: =HLOOKUP('Alle lande, valgt år'!$F$12,'Afgifter og moms'!$BO$5:$BY$32,'Oversættelse af landenavne'!$C14,FALSE) -> *
D81: ='Oversættelse af landenavne'!$B15 -> Spanien | E81: =HLOOKUP('Alle lande, valgt år'!$F$12,'Level 1'!$B$5:$L$32,'Oversættelse af landenavne'!$C15,FALSE) -> 11.86 | F81: =HLOOKUP('Alle lande, valgt år'!$F$12,'Afgifter og moms'!$A$5:$L$32,'Oversættelse af landenavne'!$C15,FALSE) -> 0.15 | J81: ='Oversættelse af landenavne'!$B15 -> Spanien | K81: =HLOOKUP('Alle lande, valgt år'!$F$12,'Level 1'!$O$5:$Y$32,'Oversættelse af landenavne'!$C15,FALSE) -> 9.93 | L81: =HLOOKUP('Alle lande, valgt år'!$F$12,'Afgifter og moms'!$O$5:$Y$32,'Oversættelse af landenavne'!$C15,FALSE) -> 0.15 | P81: ='Oversættelse af landenavne'!$B15 -> Spanien | Q81: =HLOOKUP('Alle lande, valgt år'!$F$12,'Level 1'!$AB$5:$AL$32,'Oversættelse af landenavne'!$C15,FALSE) -> 7.66 | R81: =HLOOKUP('Alle lande, valgt år'!$F$12,'Afgifter og moms'!$AA$5:$AL$32,'Oversættelse af landenavne'!$C15,FALSE) -> 1.45 | V81: ='Oversættelse af landenavne'!$B15 -> Spanien | W81: =HLOOKUP('Alle lande, valgt år'!$F$12,'Level 1'!$AO$5:$AY$32,'Oversættelse af landenavne'!$C15,FALSE) -> 6.64 | X81: =HLOOKUP('Alle lande, valgt år'!$F$12,'Afgifter og moms'!$AO$5:$AY$32,'Oversættelse af landenavne'!$C15,FALSE) -> -1.3583 | AB81: ='Oversættelse af landenavne'!$B15 -> Spanien | AC81: =HLOOKUP('Alle lande, valgt år'!$F$12,'Level 1'!$BB$5:$BL$32,'Oversættelse af landenavne'!$C15,FALSE) -> 5.67 | AD81: =HLOOKUP('Alle lande, valgt år'!$F$12,'Afgifter og moms'!$BB$5:$BL$32,'Oversættelse af landenavne'!$C15,FALSE) -> -0.6797 | AH81: ='Oversættelse af landenavne'!$B15 -> Spanien | AI81: =HLOOKUP('Alle lande, valgt år'!$F$12,'Level 1'!$BO$5:$BY$32,'Oversættelse af landenavne'!$C15,FALSE) -> 5.43 | AJ81: =HLOOKUP('Alle lande, valgt år'!$F$12,'Afgifter og moms'!$BO$5:$BY$32,'Oversættelse af landenavne'!$C15,FALSE) -> *
D82: ='Oversættelse af landenavne'!$B16 -> Frankrig | E82: =HLOOKUP('Alle lande, valgt år'!$F$12,'Level 1'!$B$5:$L$32,'Oversættelse af landenavne'!$C16,FALSE) -> 11.59 | F82: =HLOOKUP('Alle lande, valgt år'!$F$12,'Afgifter og moms'!$A$5:$L$32,'Oversættelse af landenavne'!$C16,FALSE) -> 1.5 | J82: ='Oversættelse af landenavne'!$B16 -> Frankrig | K82: =HLOOKUP('Alle lande, valgt år'!$F$12,'Level 1'!$O$5:$Y$32,'Oversættelse af landenavne'!$C16,FALSE) -> 9.64 | L82: =HLOOKUP('Alle lande, valgt år'!$F$12,'Afgifter og moms'!$O$5:$Y$32,'Oversættelse af landenavne'!$C16,FALSE) -> 1.36 | P82: ='Oversættelse af landenavne'!$B16 -> Frankrig | Q82: =HLOOKUP('Alle lande, valgt år'!$F$12,'Level 1'!$AB$5:$AL$32,'Oversættelse af landenavne'!$C16,FALSE) -> 7.92 | R82: =HLOOKUP('Alle lande, valgt år'!$F$12,'Afgifter og moms'!$AA$5:$AL$32,'Oversættelse af landenavne'!$C16,FALSE) -> 0.29 | V82: ='Oversættelse af landenavne'!$B16 -> Frankrig | W82: =HLOOKUP('Alle lande, valgt år'!$F$12,'Level 1'!$AO$5:$AY$32,'Oversættelse af landenavne'!$C16,FALSE) -> 5.98 | X82: =HLOOKUP('Alle lande, valgt år'!$F$12,'Afgifter og moms'!$AO$5:$AY$32,'Oversættelse af landenavne'!$C16,FALSE) -> 0.3425 | AB82: ='Oversættelse af landenavne'!$B16 -> Frankrig | AC82: =HLOOKUP('Alle lande, valgt år'!$F$12,'Level 1'!$BB$5:$BL$32,'Oversættelse af landenavne'!$C16,FALSE) -> 4.61 | AD82: =HLOOKUP('Alle lande, valgt år'!$F$12,'Afgifter og moms'!$BB$5:$BL$32,'Oversættelse af landenavne'!$C16,FALSE) -> 1.7805 | AH82: ='Oversættelse af landenavne'!$B16 -> Frankrig | AI82: =HLOOKUP('Alle lande, valgt år'!$F$12,'Level 1'!$BO$5:$BY$32,'Oversættelse af landenavne'!$C16,FALSE) -> * | AJ82: =HLOOKUP('Alle lande, valgt år'!$F$12,'Afgifter og moms'!$BO$5:$BY$32,'Oversættelse af landenavne'!$C16,FALSE) -> *
D83: ='Oversættelse af landenavne'!$B17 -> Kroatien | E83: =HLOOKUP('Alle lande, valgt år'!$F$12,'Level 1'!$B$5:$L$32,'Oversættelse af landenavne'!$C17,FALSE) -> 11.1259 | F83: =HLOOKUP('Alle lande, valgt år'!$F$12,'Afgifter og moms'!$A$5:$L$32,'Oversættelse af landenavne'!$C17,FALSE) -> 0.1693 | J83: ='Oversættelse af landenavne'!$B17 -> Kroatien | K83: =HLOOKUP('Alle lande, valgt år'!$F$12,'Level 1'!$O$5:$Y$32,'Oversættelse af landenavne'!$C17,FALSE) -> 10.1286 | L83: =HLOOKUP('Alle lande, valgt år'!$F$12,'Afgifter og moms'!$O$5:$Y$32,'Oversættelse af landenavne'!$C17,FALSE) -> 0.1415 | P83: ='Oversættelse af landenavne'!$B17 -> Kroatien | Q83: =HLOOKUP('Alle lande, valgt år'!$F$12,'Level 1'!$AB$5:$AL$32,'Oversættelse af landenavne'!$C17,FALSE) -> 8.9766 | R83: =HLOOKUP('Alle lande, valgt år'!$F$12,'Afgifter og moms'!$AA$5:$AL$32,'Oversættelse af landenavne'!$C17,FALSE) -> -1.1666 | V83: ='Oversættelse af landenavne'!$B17 -> Kroatien | W83: =HLOOKUP('Alle lande, valgt år'!$F$12,'Level 1'!$AO$5:$AY$32,'Oversættelse af landenavne'!$C17,FALSE) -> 7.1395 | X83: =HLOOKUP('Alle lande, valgt år'!$F$12,'Afgifter og moms'!$AO$5:$AY$32,'Oversættelse af landenavne'!$C17,FALSE) -> -0.616 | AB83: ='Oversættelse af landenavne'!$B17 -> Kroatien | AC83: =HLOOKUP('Alle lande, valgt år'!$F$12,'Level 1'!$BB$5:$BL$32,'Oversættelse af landenavne'!$C17,FALSE) -> * | AD83: =HLOOKUP('Alle lande, valgt år'!$F$12,'Afgifter og moms'!$BB$5:$BL$32,'Oversættelse af landenavne'!$C17,FALSE) -> * | AH83: ='Oversættelse af landenavne'!$B17 -> Kroatien | AI83: =HLOOKUP('Alle lande, valgt år'!$F$12,'Level 1'!$BO$5:$BY$32,'Oversættelse af landenavne'!$C17,FALSE) -> * | AJ83: =HLOOKUP('Alle lande, valgt år'!$F$12,'Afgifter og moms'!$BO$5:$BY$32,'Oversættelse af landenavne'!$C17,FALSE) -> *
D84: ='Oversættelse af landenavne'!$B18 -> Italien | E84: =HLOOKUP('Alle lande, valgt år'!$F$12,'Level 1'!$B$5:$L$32,'Oversættelse af landenavne'!$C18,FALSE) -> 12.22 | F84: =HLOOKUP('Alle lande, valgt år'!$F$12,'Afgifter og moms'!$A$5:$L$32,'Oversættelse af landenavne'!$C18,FALSE) -> 3.06 | J84: ='Oversættelse af landenavne'!$B18 -> Italien | K84: =HLOOKUP('Alle lande, valgt år'!$F$12,'Level 1'!$O$5:$Y$32,'Oversættelse af landenavne'!$C18,FALSE) -> 10.23 | L84: =HLOOKUP('Alle lande, valgt år'!$F$12,'Afgifter og moms'!$O$5:$Y$32,'Oversættelse af landenavne'!$C18,FALSE) -> 2.16 | P84: ='Oversættelse af landenavne'!$B18 -> Italien | Q84: =HLOOKUP('Alle lande, valgt år'!$F$12,'Level 1'!$AB$5:$AL$32,'Oversættelse af landenavne'!$C18,FALSE) -> 8 | R84: =HLOOKUP('Alle lande, valgt år'!$F$12,'Afgifter og moms'!$AA$5:$AL$32,'Oversættelse af landenavne'!$C18,FALSE) -> 1.25 | V84: ='Oversættelse af landenavne'!$B18 -> Italien | W84: =HLOOKUP('Alle lande, valgt år'!$F$12,'Level 1'!$AO$5:$AY$32,'Oversættelse af landenavne'!$C18,FALSE) -> 6.8 | X84: =HLOOKUP('Alle lande, valgt år'!$F$12,'Afgifter og moms'!$AO$5:$AY$32,'Oversættelse af landenavne'!$C18,FALSE) -> 0.57 | AB84: ='Oversættelse af landenavne'!$B18 -> Italien | AC84: =HLOOKUP('Alle lande, valgt år'!$F$12,'Level 1'!$BB$5:$BL$32,'Oversættelse af landenavne'!$C18,FALSE) -> 6.47 | AD84: =HLOOKUP('Alle lande, valgt år'!$F$12,'Afgifter og moms'!$BB$5:$BL$32,'Oversættelse af landenavne'!$C18,FALSE) -> -0.31 | AH84: ='Oversættelse af landenavne'!$B18 -> Italien | AI84: =HLOOKUP('Alle lande, valgt år'!$F$12,'Level 1'!$BO$5:$BY$32,'Oversættelse af landenavne'!$C18,FALSE) -> 6.22 | AJ84: =HLOOKUP('Alle lande, valgt år'!$F$12,'Afgifter og moms'!$BO$5:$BY$32,'Oversættelse af landenavne'!$C18,FALSE) -> -0.48
D85: ='Oversættelse af landenavne'!$B19 -> Letland | E85: =HLOOKUP('Alle lande, valgt år'!$F$12,'Level 1'!$B$5:$L$32,'Oversættelse af landenavne'!$C19,FALSE) -> 8.84 | F85: =HLOOKUP('Alle lande, valgt år'!$F$12,'Afgifter og moms'!$A$5:$L$32,'Oversættelse af landenavne'!$C19,FALSE) -> 0.48 | J85: ='Oversættelse af landenavne'!$B19 -> Letland | K85: =HLOOKUP('Alle lande, valgt år'!$F$12,'Level 1'!$O$5:$Y$32,'Oversættelse af landenavne'!$C19,FALSE) -> 7.9 | L85: =HLOOKUP('Alle lande, valgt år'!$F$12,'Afgifter og moms'!$O$5:$Y$32,'Oversættelse af landenavne'!$C19,FALSE) -> 0.46 | P85: ='Oversættelse af landenavne'!$B19 -> Letland | Q85: =HLOOKUP('Alle lande, valgt år'!$F$12,'Level 1'!$AB$5:$AL$32,'Oversættelse af landenavne'!$C19,FALSE) -> 6.96 | R85: =HLOOKUP('Alle lande, valgt år'!$F$12,'Afgifter og moms'!$AA$5:$AL$32,'Oversættelse af landenavne'!$C19,FALSE) -> 2.133 | V85: ='Oversættelse af landenavne'!$B19 -> Letland | W85: =HLOOKUP('Alle lande, valgt år'!$F$12,'Level 1'!$AO$5:$AY$32,'Oversættelse af landenavne'!$C19,FALSE) -> 6.45 | X85: =HLOOKUP('Alle lande, valgt år'!$F$12,'Afgifter og moms'!$AO$5:$AY$32,'Oversættelse af landenavne'!$C19,FALSE) -> 2.13 | AB85: ='Oversættelse af landenavne'!$B19 -> Letland | AC85: =HLOOKUP('Alle lande, valgt år'!$F$12,'Level 1'!$BB$5:$BL$32,'Oversættelse af landenavne'!$C19,FALSE) -> 6.21 | AD85: =HLOOKUP('Alle lande, valgt år'!$F$12,'Afgifter og moms'!$BB$5:$BL$32,'Oversættelse af landenavne'!$C19,FALSE) -> 2.04 | AH85: ='Oversættelse af landenavne'!$B19 -> Letland | AI85: =HLOOKUP('Alle lande, valgt år'!$F$12,'Level 1'!$BO$5:$BY$32,'Oversættelse af landenavne'!$C19,FALSE) -> * | AJ85: =HLOOKUP('Alle lande, valgt år'!$F$12,'Afgifter og moms'!$BO$5:$BY$32,'Oversættelse af landenavne'!$C19,FALSE) -> *
D86: ='Oversættelse af landenavne'!$B20 -> Litaun | E86: =HLOOKUP('Alle lande, valgt år'!$F$12,'Level 1'!$B$5:$L$32,'Oversættelse af landenavne'!$C20,FALSE) -> 10.01 | F86: =HLOOKUP('Alle lande, valgt år'!$F$12,'Afgifter og moms'!$A$5:$L$32,'Oversættelse af landenavne'!$C20,FALSE) -> 0 | J86: ='Oversættelse af landenavne'!$B20 -> Litaun | K86: =HLOOKUP('Alle lande, valgt år'!$F$12,'Level 1'!$O$5:$Y$32,'Oversættelse af landenavne'!$C20,FALSE) -> 8.41 | L86: =HLOOKUP('Alle lande, valgt år'!$F$12,'Afgifter og moms'!$O$5:$Y$32,'Oversættelse af landenavne'!$C20,FALSE) -> 0 | P86: ='Oversættelse af landenavne'!$B20 -> Litaun | Q86: =HLOOKUP('Alle lande, valgt år'!$F$12,'Level 1'!$AB$5:$AL$32,'Oversættelse af landenavne'!$C20,FALSE) -> 7.45 | R86: =HLOOKUP('Alle lande, valgt år'!$F$12,'Afgifter og moms'!$AA$5:$AL$32,'Oversættelse af landenavne'!$C20,FALSE) -> 1.22 | V86: ='Oversættelse af landenavne'!$B20 -> Litaun | W86: =HLOOKUP('Alle lande, valgt år'!$F$12,'Level 1'!$AO$5:$AY$32,'Oversættelse af landenavne'!$C20,FALSE) -> 5.88 | X86: =HLOOKUP('Alle lande, valgt år'!$F$12,'Afgifter og moms'!$AO$5:$AY$32,'Oversættelse af landenavne'!$C20,FALSE) -> 0.85 | AB86: ='Oversættelse af landenavne'!$B20 -> Litaun | AC86: =HLOOKUP('Alle lande, valgt år'!$F$12,'Level 1'!$BB$5:$BL$32,'Oversættelse af landenavne'!$C20,FALSE) -> * | AD86: =HLOOKUP('Alle lande, valgt år'!$F$12,'Afgifter og moms'!$BB$5:$BL$32,'Oversættelse af landenavne'!$C20,FALSE) -> * | AH86: ='Oversættelse af landenavne'!$B20 -> Litaun | AI86: =HLOOKUP('Alle lande, valgt år'!$F$12,'Level 1'!$BO$5:$BY$32,'Oversættelse af landenavne'!$C20,FALSE) -> * | AJ86: =HLOOKUP('Alle lande, valgt år'!$F$12,'Afgifter og moms'!$BO$5:$BY$32,'Oversættelse af landenavne'!$C20,FALSE) -> *
D87: ='Oversættelse af landenavne'!$B21 -> luxembourg | E87: =HLOOKUP('Alle lande, valgt år'!$F$12,'Level 1'!$B$5:$L$32,'Oversættelse af landenavne'!$C21,FALSE) -> 10.83 | F87: =HLOOKUP('Alle lande, valgt år'!$F$12,'Afgifter og moms'!$A$5:$L$32,'Oversættelse af landenavne'!$C21,FALSE) -> 0.3 | J87: ='Oversættelse af landenavne'!$B21 -> luxembourg | K87: =HLOOKUP('Alle lande, valgt år'!$F$12,'Level 1'!$O$5:$Y$32,'Oversættelse af landenavne'!$C21,FALSE) -> 10.95 | L87: =HLOOKUP('Alle lande, valgt år'!$F$12,'Afgifter og moms'!$O$5:$Y$32,'Oversættelse af landenavne'!$C21,FALSE) -> 0.16 | P87: ='Oversættelse af landenavne'!$B21 -> luxembourg | Q87: =HLOOKUP('Alle lande, valgt år'!$F$12,'Level 1'!$AB$5:$AL$32,'Oversættelse af landenavne'!$C21,FALSE) -> 9.49 | R87: =HLOOKUP('Alle lande, valgt år'!$F$12,'Afgifter og moms'!$AA$5:$AL$32,'Oversættelse af landenavne'!$C21,FALSE) -> -2.07 | V87: ='Oversættelse af landenavne'!$B21 -> luxembourg | W87: =HLOOKUP('Alle lande, valgt år'!$F$12,'Level 1'!$AO$5:$AY$32,'Oversættelse af landenavne'!$C21,FALSE) -> 7.11 | X87: =HLOOKUP('Alle lande, valgt år'!$F$12,'Afgifter og moms'!$AO$5:$AY$32,'Oversættelse af landenavne'!$C21,FALSE) -> -0.16 | AB87: ='Oversættelse af landenavne'!$B21 -> luxembourg | AC87: =HLOOKUP('Alle lande, valgt år'!$F$12,'Level 1'!$BB$5:$BL$32,'Oversættelse af landenavne'!$C21,FALSE) -> * | AD87: =HLOOKUP('Alle lande, valgt år'!$F$12,'Afgifter og moms'!$BB$5:$BL$32,'Oversættelse af landenavne'!$C21,FALSE) -> * | AH87: ='Oversættelse af landenavne'!$B21 -> luxembourg | AI87: =HLOOKUP('Alle lande, valgt år'!$F$12,'Level 1'!$BO$5:$BY$32,'Oversættelse af landenavne'!$C21,FALSE) -> * | AJ87: =HLOOKUP('Alle lande, valgt år'!$F$12,'Afgifter og moms'!$BO$5:$BY$32,'Oversættelse af landenavne'!$C21,FALSE) -> *
D88: ='Oversættelse af landenavne'!$B22 -> Ungarn | E88: =HLOOKUP('Alle lande, valgt år'!$F$12,'Level 1'!$B$5:$L$32,'Oversættelse af landenavne'!$C22,FALSE) -> 9.0492 | F88: =HLOOKUP('Alle lande, valgt år'!$F$12,'Afgifter og moms'!$A$5:$L$32,'Oversættelse af landenavne'!$C22,FALSE) -> 0.4705 | J88: ='Oversættelse af landenavne'!$B22 -> Ungarn | K88: =HLOOKUP('Alle lande, valgt år'!$F$12,'Level 1'!$O$5:$Y$32,'Oversættelse af landenavne'!$C22,FALSE) -> 8.1169 | L88: =HLOOKUP('Alle lande, valgt år'!$F$12,'Afgifter og moms'!$O$5:$Y$32,'Oversættelse af landenavne'!$C22,FALSE) -> 0.4342 | P88: ='Oversættelse af landenavne'!$B22 -> Ungarn | Q88: =HLOOKUP('Alle lande, valgt år'!$F$12,'Level 1'!$AB$5:$AL$32,'Oversættelse af landenavne'!$C22,FALSE) -> 8.3145 | R88: =HLOOKUP('Alle lande, valgt år'!$F$12,'Afgifter og moms'!$AA$5:$AL$32,'Oversættelse af landenavne'!$C22,FALSE) -> -0.8645 | V88: ='Oversættelse af landenavne'!$B22 -> Ungarn | W88: =HLOOKUP('Alle lande, valgt år'!$F$12,'Level 1'!$AO$5:$AY$32,'Oversættelse af landenavne'!$C22,FALSE) -> 7.0148 | X88: =HLOOKUP('Alle lande, valgt år'!$F$12,'Afgifter og moms'!$AO$5:$AY$32,'Oversættelse af landenavne'!$C22,FALSE) -> -0.2248 | AB88: ='Oversættelse af landenavne'!$B22 -> Ungarn | AC88: =HLOOKUP('Alle lande, valgt år'!$F$12,'Level 1'!$BB$5:$BL$32,'Oversættelse af landenavne'!$C22,FALSE) -> 6.0806 | AD88: =HLOOKUP('Alle lande, valgt år'!$F$12,'Afgifter og moms'!$BB$5:$BL$32,'Oversættelse af landenavne'!$C22,FALSE) -> -0.2606 | AH88: ='Oversættelse af landenavne'!$B22 -> Ungarn | AI88: =HLOOKUP('Alle lande, valgt år'!$F$12,'Level 1'!$BO$5:$BY$32,'Oversættelse af landenavne'!$C22,FALSE) -> 6.0505 | AJ88: =HLOOKUP('Alle lande, valgt år'!$F$12,'Afgifter og moms'!$BO$5:$BY$32,'Oversættelse af landenavne'!$C22,FALSE) -> -0.4705
D89: ='Oversættelse af landenavne'!$B23 -> Holland | E89: =HLOOKUP('Alle lande, valgt år'!$F$12,'Level 1'!$B$5:$L$32,'Oversættelse af landenavne'!$C23,FALSE) -> 10.15 | F89: =HLOOKUP('Alle lande, valgt år'!$F$12,'Afgifter og moms'!$A$5:$L$32,'Oversættelse af landenavne'!$C23,FALSE) -> 7.47 | J89: ='Oversættelse af landenavne'!$B23 -> Holland | K89: =HLOOKUP('Alle lande, valgt år'!$F$12,'Level 1'!$O$5:$Y$32,'Oversættelse af landenavne'!$C23,FALSE) -> 8.57 | L89: =HLOOKUP('Alle lande, valgt år'!$F$12,'Afgifter og moms'!$O$5:$Y$32,'Oversættelse af landenavne'!$C23,FALSE) -> 7.47 | P89: ='Oversættelse af landenavne'!$B23 -> Holland | Q89: =HLOOKUP('Alle lande, valgt år'!$F$12,'Level 1'!$AB$5:$AL$32,'Oversættelse af landenavne'!$C23,FALSE) -> 6.29 | R89: =HLOOKUP('Alle lande, valgt år'!$F$12,'Afgifter og moms'!$AA$5:$AL$32,'Oversættelse af landenavne'!$C23,FALSE) -> 3.5 | V89: ='Oversættelse af landenavne'!$B23 -> Holland | W89: =HLOOKUP('Alle lande, valgt år'!$F$12,'Level 1'!$AO$5:$AY$32,'Oversættelse af landenavne'!$C23,FALSE) -> 5.67 | X89: =HLOOKUP('Alle lande, valgt år'!$F$12,'Afgifter og moms'!$AO$5:$AY$32,'Oversættelse af landenavne'!$C23,FALSE) -> 0.98 | AB89: ='Oversættelse af landenavne'!$B23 -> Holland | AC89: =HLOOKUP('Alle lande, valgt år'!$F$12,'Level 1'!$BB$5:$BL$32,'Oversættelse af landenavne'!$C23,FALSE) -> 5.47 | AD89: =HLOOKUP('Alle lande, valgt år'!$F$12,'Afgifter og moms'!$BB$5:$BL$32,'Oversættelse af landenavne'!$C23,FALSE) -> -0.59 | AH89: ='Oversættelse af landenavne'!$B23 -> Holland | AI89: =HLOOKUP('Alle lande, valgt år'!$F$12,'Level 1'!$BO$5:$BY$32,'Oversættelse af landenavne'!$C23,FALSE) -> * | AJ89: =HLOOKUP('Alle lande, valgt år'!$F$12,'Afgifter og moms'!$BO$5:$BY$32,'Oversættelse af landenavne'!$C23,FALSE) -> *
D90: ='Oversættelse af landenavne'!$B24 -> Østrig | E90: =HLOOKUP('Alle lande, valgt år'!$F$12,'Level 1'!$B$5:$L$32,'Oversættelse af landenavne'!$C24,FALSE) -> 12.75 | F90: =HLOOKUP('Alle lande, valgt år'!$F$12,'Afgifter og moms'!$A$5:$L$32,'Oversættelse af landenavne'!$C24,FALSE) -> 1.96 | J90: ='Oversættelse af landenavne'!$B24 -> Østrig | K90: =HLOOKUP('Alle lande, valgt år'!$F$12,'Level 1'!$O$5:$Y$32,'Oversættelse af landenavne'!$C24,FALSE) -> 9.8 | L90: =HLOOKUP('Alle lande, valgt år'!$F$12,'Afgifter og moms'!$O$5:$Y$32,'Oversættelse af landenavne'!$C24,FALSE) -> 2.15 | P90: ='Oversættelse af landenavne'!$B24 -> Østrig | Q90: =HLOOKUP('Alle lande, valgt år'!$F$12,'Level 1'!$AB$5:$AL$32,'Oversættelse af landenavne'!$C24,FALSE) -> 7.79 | R90: =HLOOKUP('Alle lande, valgt år'!$F$12,'Afgifter og moms'!$AA$5:$AL$32,'Oversættelse af landenavne'!$C24,FALSE) -> 1.0189 | V90: ='Oversættelse af landenavne'!$B24 -> Østrig | W90: =HLOOKUP('Alle lande, valgt år'!$F$12,'Level 1'!$AO$5:$AY$32,'Oversættelse af landenavne'!$C24,FALSE) -> 7.15 | X90: =HLOOKUP('Alle lande, valgt år'!$F$12,'Afgifter og moms'!$AO$5:$AY$32,'Oversættelse af landenavne'!$C24,FALSE) -> 0.0715 | AB90: ='Oversættelse af landenavne'!$B24 -> Østrig | AC90: =HLOOKUP('Alle lande, valgt år'!$F$12,'Level 1'!$BB$5:$BL$32,'Oversættelse af landenavne'!$C24,FALSE) -> 7.23 | AD90: =HLOOKUP('Alle lande, valgt år'!$F$12,'Afgifter og moms'!$BB$5:$BL$32,'Oversættelse af landenavne'!$C24,FALSE) -> * | AH90: ='Oversættelse af landenavne'!$B24 -> Østrig | AI90: =HLOOKUP('Alle lande, valgt år'!$F$12,'Level 1'!$BO$5:$BY$32,'Oversættelse af landenavne'!$C24,FALSE) -> * | AJ90: =HLOOKUP('Alle lande, valgt år'!$F$12,'Afgifter og moms'!$BO$5:$BY$32,'Oversættelse af landenavne'!$C24,FALSE) -> *
D91: ='Oversættelse af landenavne'!$B25 -> Polen | E91: =HLOOKUP('Alle lande, valgt år'!$F$12,'Level 1'!$B$5:$L$32,'Oversættelse af landenavne'!$C25,FALSE) -> 9.925 | F91: =HLOOKUP('Alle lande, valgt år'!$F$12,'Afgifter og moms'!$A$5:$L$32,'Oversættelse af landenavne'!$C25,FALSE) -> 0.1992 | J91: ='Oversættelse af landenavne'!$B25 -> Polen | K91: =HLOOKUP('Alle lande, valgt år'!$F$12,'Level 1'!$O$5:$Y$32,'Oversættelse af landenavne'!$C25,FALSE) -> 9.2887 | L91: =HLOOKUP('Alle lande, valgt år'!$F$12,'Afgifter og moms'!$O$5:$Y$32,'Oversættelse af landenavne'!$C25,FALSE) -> 0.2037 | P91: ='Oversættelse af landenavne'!$B25 -> Polen | Q91: =HLOOKUP('Alle lande, valgt år'!$F$12,'Level 1'!$AB$5:$AL$32,'Oversættelse af landenavne'!$C25,FALSE) -> 7.3637 | R91: =HLOOKUP('Alle lande, valgt år'!$F$12,'Afgifter og moms'!$AA$5:$AL$32,'Oversættelse af landenavne'!$C25,FALSE) -> 3.2963 | V91: ='Oversættelse af landenavne'!$B25 -> Polen | W91: =HLOOKUP('Alle lande, valgt år'!$F$12,'Level 1'!$AO$5:$AY$32,'Oversættelse af landenavne'!$C25,FALSE) -> 6.2215 | X91: =HLOOKUP('Alle lande, valgt år'!$F$12,'Afgifter og moms'!$AO$5:$AY$32,'Oversættelse af landenavne'!$C25,FALSE) -> 0.7585 | AB91: ='Oversættelse af landenavne'!$B25 -> Polen | AC91: =HLOOKUP('Alle lande, valgt år'!$F$12,'Level 1'!$BB$5:$BL$32,'Oversættelse af landenavne'!$C25,FALSE) -> 4.8114 | AD91: =HLOOKUP('Alle lande, valgt år'!$F$12,'Afgifter og moms'!$BB$5:$BL$32,'Oversættelse af landenavne'!$C25,FALSE) -> 1.7886 | AH91: ='Oversættelse af landenavne'!$B25 -> Polen | AI91: =HLOOKUP('Alle lande, valgt år'!$F$12,'Level 1'!$BO$5:$BY$32,'Oversættelse af landenavne'!$C25,FALSE) -> * | AJ91: =HLOOKUP('Alle lande, valgt år'!$F$12,'Afgifter og moms'!$BO$5:$BY$32,'Oversættelse af landenavne'!$C25,FALSE) -> *
D92: ='Oversættelse af landenavne'!$B26 -> Portugal | E92: =HLOOKUP('Alle lande, valgt år'!$F$12,'Level 1'!$B$5:$L$32,'Oversættelse af landenavne'!$C26,FALSE) -> 17.75 | F92: =HLOOKUP('Alle lande, valgt år'!$F$12,'Afgifter og moms'!$A$5:$L$32,'Oversættelse af landenavne'!$C26,FALSE) -> 1.02 | J92: ='Oversættelse af landenavne'!$B26 -> Portugal | K92: =HLOOKUP('Alle lande, valgt år'!$F$12,'Level 1'!$O$5:$Y$32,'Oversættelse af landenavne'!$C26,FALSE) -> 11.76 | L92: =HLOOKUP('Alle lande, valgt år'!$F$12,'Afgifter og moms'!$O$5:$Y$32,'Oversættelse af landenavne'!$C26,FALSE) -> 0.35 | P92: ='Oversættelse af landenavne'!$B26 -> Portugal | Q92: =HLOOKUP('Alle lande, valgt år'!$F$12,'Level 1'!$AB$5:$AL$32,'Oversættelse af landenavne'!$C26,FALSE) -> 9.24 | R92: =HLOOKUP('Alle lande, valgt år'!$F$12,'Afgifter og moms'!$AA$5:$AL$32,'Oversættelse af landenavne'!$C26,FALSE) -> 0.57 | V92: ='Oversættelse af landenavne'!$B26 -> Portugal | W92: =HLOOKUP('Alle lande, valgt år'!$F$12,'Level 1'!$AO$5:$AY$32,'Oversættelse af landenavne'!$C26,FALSE) -> 7.62 | X92: =HLOOKUP('Alle lande, valgt år'!$F$12,'Afgifter og moms'!$AO$5:$AY$32,'Oversættelse af landenavne'!$C26,FALSE) -> -0.7 | AB92: ='Oversættelse af landenavne'!$B26 -> Portugal | AC92: =HLOOKUP('Alle lande, valgt år'!$F$12,'Level 1'!$BB$5:$BL$32,'Oversættelse af landenavne'!$C26,FALSE) -> 7.36 | AD92: =HLOOKUP('Alle lande, valgt år'!$F$12,'Afgifter og moms'!$BB$5:$BL$32,'Oversættelse af landenavne'!$C26,FALSE) -> -0.68 | AH92: ='Oversættelse af landenavne'!$B26 -> Portugal | AI92: =HLOOKUP('Alle lande, valgt år'!$F$12,'Level 1'!$BO$5:$BY$32,'Oversættelse af landenavne'!$C26,FALSE) -> * | AJ92: =HLOOKUP('Alle lande, valgt år'!$F$12,'Afgifter og moms'!$BO$5:$BY$32,'Oversættelse af landenavne'!$C26,FALSE) -> *
D93: ='Oversættelse af landenavne'!$B27 -> Rumænien | E93: =HLOOKUP('Alle lande, valgt år'!$F$12,'Level 1'!$B$5:$L$32,'Oversættelse af landenavne'!$C27,FALSE) -> 6.4665 | F93: =HLOOKUP('Alle lande, valgt år'!$F$12,'Afgifter og moms'!$A$5:$L$32,'Oversættelse af landenavne'!$C27,FALSE) -> 2.5358 | J93: ='Oversættelse af landenavne'!$B27 -> Rumænien | K93: =HLOOKUP('Alle lande, valgt år'!$F$12,'Level 1'!$O$5:$Y$32,'Oversættelse af landenavne'!$C27,FALSE) -> 6.006 | L93: =HLOOKUP('Alle lande, valgt år'!$F$12,'Afgifter og moms'!$O$5:$Y$32,'Oversættelse af landenavne'!$C27,FALSE) -> 2.4358 | P93: ='Oversættelse af landenavne'!$B27 -> Rumænien | Q93: =HLOOKUP('Alle lande, valgt år'!$F$12,'Level 1'!$AB$5:$AL$32,'Oversættelse af landenavne'!$C27,FALSE) -> 5.3943 | R93: =HLOOKUP('Alle lande, valgt år'!$F$12,'Afgifter og moms'!$AA$5:$AL$32,'Oversættelse af landenavne'!$C27,FALSE) -> 2.1159 | V93: ='Oversættelse af landenavne'!$B27 -> Rumænien | W93: =HLOOKUP('Alle lande, valgt år'!$F$12,'Level 1'!$AO$5:$AY$32,'Oversættelse af landenavne'!$C27,FALSE) -> 5.0806 | X93: =HLOOKUP('Alle lande, valgt år'!$F$12,'Afgifter og moms'!$AO$5:$AY$32,'Oversættelse af landenavne'!$C27,FALSE) -> 0.7994 | AB93: ='Oversættelse af landenavne'!$B27 -> Rumænien | AC93: =HLOOKUP('Alle lande, valgt år'!$F$12,'Level 1'!$BB$5:$BL$32,'Oversættelse af landenavne'!$C27,FALSE) -> 4.5156 | AD93: =HLOOKUP('Alle lande, valgt år'!$F$12,'Afgifter og moms'!$BB$5:$BL$32,'Oversættelse af landenavne'!$C27,FALSE) -> * | AH93: ='Oversættelse af landenavne'!$B27 -> Rumænien | AI93: =HLOOKUP('Alle lande, valgt år'!$F$12,'Level 1'!$BO$5:$BY$32,'Oversættelse af landenavne'!$C27,FALSE) -> 4.202 | AJ93: =HLOOKUP('Alle lande, valgt år'!$F$12,'Afgifter og moms'!$BO$5:$BY$32,'Oversættelse af landenavne'!$C27,FALSE) -> *
D94: ='Oversættelse af landenavne'!$B28 -> Slovenien | E94: =HLOOKUP('Alle lande, valgt år'!$F$12,'Level 1'!$B$5:$L$32,'Oversættelse af landenavne'!$C28,FALSE) -> 11.91 | F94: =HLOOKUP('Alle lande, valgt år'!$F$12,'Afgifter og moms'!$A$5:$L$32,'Oversættelse af landenavne'!$C28,FALSE) -> 1.44 | J94: ='Oversættelse af landenavne'!$B28 -> Slovenien | K94: =HLOOKUP('Alle lande, valgt år'!$F$12,'Level 1'!$O$5:$Y$32,'Oversættelse af landenavne'!$C28,FALSE) -> 11.53 | L94: =HLOOKUP('Alle lande, valgt år'!$F$12,'Afgifter og moms'!$O$5:$Y$32,'Oversættelse af landenavne'!$C28,FALSE) -> 1.55 | P94: ='Oversættelse af landenavne'!$B28 -> Slovenien | Q94: =HLOOKUP('Alle lande, valgt år'!$F$12,'Level 1'!$AB$5:$AL$32,'Oversættelse af landenavne'!$C28,FALSE) -> 8.18 | R94: =HLOOKUP('Alle lande, valgt år'!$F$12,'Afgifter og moms'!$AA$5:$AL$32,'Oversættelse af landenavne'!$C28,FALSE) -> 1.26 | V94: ='Oversættelse af landenavne'!$B28 -> Slovenien | W94: =HLOOKUP('Alle lande, valgt år'!$F$12,'Level 1'!$AO$5:$AY$32,'Oversættelse af landenavne'!$C28,FALSE) -> 6.77 | X94: =HLOOKUP('Alle lande, valgt år'!$F$12,'Afgifter og moms'!$AO$5:$AY$32,'Oversættelse af landenavne'!$C28,FALSE) -> 0.39 | AB94: ='Oversættelse af landenavne'!$B28 -> Slovenien | AC94: =HLOOKUP('Alle lande, valgt år'!$F$12,'Level 1'!$BB$5:$BL$32,'Oversættelse af landenavne'!$C28,FALSE) -> * | AD94: =HLOOKUP('Alle lande, valgt år'!$F$12,'Afgifter og moms'!$BB$5:$BL$32,'Oversættelse af landenavne'!$C28,FALSE) -> * | AH94: ='Oversættelse af landenavne'!$B28 -> Slovenien | AI94: =HLOOKUP('Alle lande, valgt år'!$F$12,'Level 1'!$BO$5:$BY$32,'Oversættelse af landenavne'!$C28,FALSE) -> * | AJ94: =HLOOKUP('Alle lande, valgt år'!$F$12,'Afgifter og moms'!$BO$5:$BY$32,'Oversættelse af landenavne'!$C28,FALSE) -> *
D95: ='Oversættelse af landenavne'!$B29 -> Slovakiet | E95: =HLOOKUP('Alle lande, valgt år'!$F$12,'Level 1'!$B$5:$L$32,'Oversættelse af landenavne'!$C29,FALSE) -> 12.17 | F95: =HLOOKUP('Alle lande, valgt år'!$F$12,'Afgifter og moms'!$A$5:$L$32,'Oversættelse af landenavne'!$C29,FALSE) -> 0.36 | J95: ='Oversættelse af landenavne'!$B29 -> Slovakiet | K95: =HLOOKUP('Alle lande, valgt år'!$F$12,'Level 1'!$O$5:$Y$32,'Oversættelse af landenavne'!$C29,FALSE) -> 9.64 | L95: =HLOOKUP('Alle lande, valgt år'!$F$12,'Afgifter og moms'!$O$5:$Y$32,'Oversættelse af landenavne'!$C29,FALSE) -> 0.37 | P95: ='Oversættelse af landenavne'!$B29 -> Slovakiet | Q95: =HLOOKUP('Alle lande, valgt år'!$F$12,'Level 1'!$AB$5:$AL$32,'Oversættelse af landenavne'!$C29,FALSE) -> 8.11 | R95: =HLOOKUP('Alle lande, valgt år'!$F$12,'Afgifter og moms'!$AA$5:$AL$32,'Oversættelse af landenavne'!$C29,FALSE) -> -0.36 | V95: ='Oversættelse af landenavne'!$B29 -> Slovakiet | W95: =HLOOKUP('Alle lande, valgt år'!$F$12,'Level 1'!$AO$5:$AY$32,'Oversættelse af landenavne'!$C29,FALSE) -> 7.45 | X95: =HLOOKUP('Alle lande, valgt år'!$F$12,'Afgifter og moms'!$AO$5:$AY$32,'Oversættelse af landenavne'!$C29,FALSE) -> 0.0358 | AB95: ='Oversættelse af landenavne'!$B29 -> Slovakiet | AC95: =HLOOKUP('Alle lande, valgt år'!$F$12,'Level 1'!$BB$5:$BL$32,'Oversættelse af landenavne'!$C29,FALSE) -> 7.7 | AD95: =HLOOKUP('Alle lande, valgt år'!$F$12,'Afgifter og moms'!$BB$5:$BL$32,'Oversættelse af landenavne'!$C29,FALSE) -> -1.1539 | AH95: ='Oversættelse af landenavne'!$B29 -> Slovakiet | AI95: =HLOOKUP('Alle lande, valgt år'!$F$12,'Level 1'!$BO$5:$BY$32,'Oversættelse af landenavne'!$C29,FALSE) -> * | AJ95: =HLOOKUP('Alle lande, valgt år'!$F$12,'Afgifter og moms'!$BO$5:$BY$32,'Oversættelse af landenavne'!$C29,FALSE) -> *
D96: ='Oversættelse af landenavne'!$B30 -> Finland | E96: =HLOOKUP('Alle lande, valgt år'!$F$12,'Level 1'!$B$5:$L$32,'Oversættelse af landenavne'!$C30,FALSE) -> * | F96: =HLOOKUP('Alle lande, valgt år'!$F$12,'Afgifter og moms'!$A$5:$L$32,'Oversættelse af landenavne'!$C30,FALSE) -> * | J96: ='Oversættelse af landenavne'!$B30 -> Finland | K96: =HLOOKUP('Alle lande, valgt år'!$F$12,'Level 1'!$O$5:$Y$32,'Oversættelse af landenavne'!$C30,FALSE) -> 8.49 | L96: =HLOOKUP('Alle lande, valgt år'!$F$12,'Afgifter og moms'!$O$5:$Y$32,'Oversættelse af landenavne'!$C30,FALSE) -> 4.36 | P96: ='Oversættelse af landenavne'!$B30 -> Finland | Q96: =HLOOKUP('Alle lande, valgt år'!$F$12,'Level 1'!$AB$5:$AL$32,'Oversættelse af landenavne'!$C30,FALSE) -> 7.15 | R96: =HLOOKUP('Alle lande, valgt år'!$F$12,'Afgifter og moms'!$AA$5:$AL$32,'Oversættelse af landenavne'!$C30,FALSE) -> 2.44 | V96: ='Oversættelse af landenavne'!$B30 -> Finland | W96: =HLOOKUP('Alle lande, valgt år'!$F$12,'Level 1'!$AO$5:$AY$32,'Oversættelse af landenavne'!$C30,FALSE) -> 6.81 | X96: =HLOOKUP('Alle lande, valgt år'!$F$12,'Afgifter og moms'!$AO$5:$AY$32,'Oversættelse af landenavne'!$C30,FALSE) -> 0.27 | AB96: ='Oversættelse af landenavne'!$B30 -> Finland | AC96: =HLOOKUP('Alle lande, valgt år'!$F$12,'Level 1'!$BB$5:$BL$32,'Oversættelse af landenavne'!$C30,FALSE) -> 6.77 | AD96: =HLOOKUP('Alle lande, valgt år'!$F$12,'Afgifter og moms'!$BB$5:$BL$32,'Oversættelse af landenavne'!$C30,FALSE) -> -0.63 | AH96: ='Oversættelse af landenavne'!$B30 -> Finland | AI96: =HLOOKUP('Alle lande, valgt år'!$F$12,'Level 1'!$BO$5:$BY$32,'Oversættelse af landenavne'!$C30,FALSE) -> * | AJ96: =HLOOKUP('Alle lande, valgt år'!$F$12,'Afgifter og moms'!$BO$5:$BY$32,'Oversættelse af landenavne'!$C30,FALSE) -> *
D97: ='Oversættelse af landenavne'!$B31 -> Sverige | E97: =HLOOKUP('Alle lande, valgt år'!$F$12,'Level 1'!$B$5:$L$32,'Oversættelse af landenavne'!$C31,FALSE) -> 14.4521 | F97: =HLOOKUP('Alle lande, valgt år'!$F$12,'Afgifter og moms'!$A$5:$L$32,'Oversættelse af landenavne'!$C31,FALSE) -> 2.4477 | J97: ='Oversættelse af landenavne'!$B31 -> Sverige | K97: =HLOOKUP('Alle lande, valgt år'!$F$12,'Level 1'!$O$5:$Y$32,'Oversættelse af landenavne'!$C31,FALSE) -> 11.0552 | L97: =HLOOKUP('Alle lande, valgt år'!$F$12,'Afgifter og moms'!$O$5:$Y$32,'Oversættelse af landenavne'!$C31,FALSE) -> 2.4488 | P97: ='Oversættelse af landenavne'!$B31 -> Sverige | Q97: =HLOOKUP('Alle lande, valgt år'!$F$12,'Level 1'!$AB$5:$AL$32,'Oversættelse af landenavne'!$C31,FALSE) -> 7.9259 | R97: =HLOOKUP('Alle lande, valgt år'!$F$12,'Afgifter og moms'!$AA$5:$AL$32,'Oversættelse af landenavne'!$C31,FALSE) -> 0.5541 | V97: ='Oversættelse af landenavne'!$B31 -> Sverige | W97: =HLOOKUP('Alle lande, valgt år'!$F$12,'Level 1'!$AO$5:$AY$32,'Oversættelse af landenavne'!$C31,FALSE) -> 7.0197 | X97: =HLOOKUP('Alle lande, valgt år'!$F$12,'Afgifter og moms'!$AO$5:$AY$32,'Oversættelse af landenavne'!$C31,FALSE) -> 2.1003 | AB97: ='Oversættelse af landenavne'!$B31 -> Sverige | AC97: =HLOOKUP('Alle lande, valgt år'!$F$12,'Level 1'!$BB$5:$BL$32,'Oversættelse af landenavne'!$C31,FALSE) -> 6.9939 | AD97: =HLOOKUP('Alle lande, valgt år'!$F$12,'Afgifter og moms'!$BB$5:$BL$32,'Oversættelse af landenavne'!$C31,FALSE) -> 1.8461 | AH97: ='Oversættelse af landenavne'!$B31 -> Sverige | AI97: =HLOOKUP('Alle lande, valgt år'!$F$12,'Level 1'!$BO$5:$BY$32,'Oversættelse af landenavne'!$C31,FALSE) -> * | AJ97: =HLOOKUP('Alle lande, valgt år'!$F$12,'Afgifter og moms'!$BO$5:$BY$32,'Oversættelse af landenavne'!$C31,FALSE) -> *
D98: ='Oversættelse af landenavne'!$B32 -> UK | E98: =HLOOKUP('Alle lande, valgt år'!$F$12,'Level 1'!$B$5:$L$32,'Oversættelse af landenavne'!$C32,FALSE) -> 13.833 | F98: =HLOOKUP('Alle lande, valgt år'!$F$12,'Afgifter og moms'!$A$5:$L$32,'Oversættelse af landenavne'!$C32,FALSE) -> 0.4752 | J98: ='Oversættelse af landenavne'!$B32 -> UK | K98: =HLOOKUP('Alle lande, valgt år'!$F$12,'Level 1'!$O$5:$Y$32,'Oversættelse af landenavne'!$C32,FALSE) -> 8.6055 | L98: =HLOOKUP('Alle lande, valgt år'!$F$12,'Afgifter og moms'!$O$5:$Y$32,'Oversættelse af landenavne'!$C32,FALSE) -> 0.4752 | P98: ='Oversættelse af landenavne'!$B32 -> UK | Q98: =HLOOKUP('Alle lande, valgt år'!$F$12,'Level 1'!$AB$5:$AL$32,'Oversættelse af landenavne'!$C32,FALSE) -> 7.6422 | R98: =HLOOKUP('Alle lande, valgt år'!$F$12,'Afgifter og moms'!$AA$5:$AL$32,'Oversættelse af landenavne'!$C32,FALSE) -> 3.8678 | V98: ='Oversættelse af landenavne'!$B32 -> UK | W98: =HLOOKUP('Alle lande, valgt år'!$F$12,'Level 1'!$AO$5:$AY$32,'Oversættelse af landenavne'!$C32,FALSE) -> 5.9339 | X98: =HLOOKUP('Alle lande, valgt år'!$F$12,'Afgifter og moms'!$AO$5:$AY$32,'Oversættelse af landenavne'!$C32,FALSE) -> 0.3585 | AB98: ='Oversættelse af landenavne'!$B32 -> UK | AC98: =HLOOKUP('Alle lande, valgt år'!$F$12,'Level 1'!$BB$5:$BL$32,'Oversættelse af landenavne'!$C32,FALSE) -> 4.9064 | AD98: =HLOOKUP('Alle lande, valgt år'!$F$12,'Afgifter og moms'!$BB$5:$BL$32,'Oversættelse af landenavne'!$C32,FALSE) -> -0.095 | AH98: ='Oversættelse af landenavne'!$B32 -> UK | AI98: =HLOOKUP('Alle lande, valgt år'!$F$12,'Level 1'!$BO$5:$BY$32,'Oversættelse af landenavne'!$C32,FALSE) -> * | AJ98: =HLOOKUP('Alle lande, valgt år'!$F$12,'Afgifter og moms'!$BO$5:$BY$32,'Oversættelse af landenavne'!$C32,FALSE) -> *
D99: Level 1 | J99: Level 1 | P99: Level 1 | V99: Level 1 | AB99: Level 1 | AH99: Level 1
D100: Level 2 | J100: Level 2 | P100: Level 2 | V100: Level 2 | AB100: Level 2 | AH100: Level 2
D106: Herunder vises de tabeller der er resultatet er valgene truffet øverst i valgmenuen
D107: Man kunne have valgt at vise tallene for alle år, men jeg synes at formlen er overskuelig nok til at vi lavder årstalsvalgt indgå direkte
D109: Tabel B - BVT Deflatoren | I109: Tabel C | K109: Tabel D
D110: Tabel B fremkommer som resultat af valgene truffet for faste/løbende priser og basisår. BVT deflatoren vises for samtlige lande for det valgte år. Væles løbende priser deflaterer man ikke, hvorfor der vil stå et 1-tal i alle celler. Formlen gør at "fejlværdien" svarer til at man har valgt løbende priser (gælder både for overskrift og formler). Med denne metode kan indeksværdien ganges direkte på rådata uanset hvilken valuta der vælges. | I110: Tabel C viser hvilken kurs der ganges på rådata (opgivet i euro) for at få priserne vist i den valuta der er valgt i valgmenuen øverst. Kursen ændres efter valgt år og valuta. | K110: Tabel D viser hvilken faktor der ganges på den oprindelige (opgivet i GJ), for at få vist priserne i den enhed der er valgt i valgmenuen øverst. Formlen gør så "fejlværdien" svarer til at man har valgt GJ (gælder både for overskrift og formler). Med denne metode kan omregningsfaktoren ganges direkte på rådata uanset hvilken enhed der vælges.
E112: =IF('Alle lande, valgt år'!F13="faste priser","BVT deflatoenfor år "&'Alle lande, valgt år'!F12&" med basisåret "&'Alle lande, valgt år'!F14&"","Prisindeks for løbende priser år "&'Alle lande, valgt år'!F12) -> BVT deflatoenfor år 2016 med basisåret 2015 | I112: ="Valutakursen for "&'Alle lande, valgt år'!F15&" i fht. Euro år "&'Alle lande, valgt år'!F12 -> Valutakursen for DKK i fht. Euro år 2016 | K112: ="Omregningsfaktoren for "&'Alle lande, valgt år'!F16&" i fht. GJ år "&'Alle lande, valgt år'!F12 -> Omregningsfaktoren for GJ i fht. GJ år 2016
D113: ='Baggrundsdata - BVT - deflator'!B23 -> EU-28 | E113: =IF('Alle lande, valgt år'!$F$13="faste priser",HLOOKUP('Alle lande, valgt år'!$F$12,'Baggrundsdata - BVT - deflator'!$B$22:$M$49,'Oversættelse af landenavne'!C6,FALSE),1) -> 1.028305107 | I113: =IF($E$13="Euro",1,IF($E$13="eurocent",100,IF($E$13="DKK øre",HLOOKUP(E10,Forside!$E$55:$O$56,2,FALSE),IF($E$13="DKK",((HLOOKUP(E10,Forside!$E$55:$O$56,2,FALSE))/100),"F")))) -> 7.447488444 | K113: =IF('Alle lande, valgt år'!$F$16="Nm3",(HLOOKUP('Alle lande, valgt år'!F12,Forside!$E$70:$O$72,2,FALSE)),IF('Alle lande, valgt år'!$F$16="Kwh",1/278,1)) -> 1
D114: ='Baggrundsdata - BVT - deflator'!B24 -> Belgien | E114: =IF('Alle lande, valgt år'!$F$13="faste priser",HLOOKUP('Alle lande, valgt år'!$F$12,'Baggrundsdata - BVT - deflator'!$B$22:$M$49,'Oversættelse af landenavne'!C7,FALSE),1) -> 1.008663156
D115: ='Baggrundsdata - BVT - deflator'!B25 -> Bulgarien | E115: =IF('Alle lande, valgt år'!$F$13="faste priser",HLOOKUP('Alle lande, valgt år'!$F$12,'Baggrundsdata - BVT - deflator'!$B$22:$M$49,'Oversættelse af landenavne'!C8,FALSE),1) -> 1.001521582
D116: ='Baggrundsdata - BVT - deflator'!B26 -> Tjekkiet | E116: =IF('Alle lande, valgt år'!$F$13="faste priser",HLOOKUP('Alle lande, valgt år'!$F$12,'Baggrundsdata - BVT - deflator'!$B$22:$M$49,'Oversættelse af landenavne'!C9,FALSE),1) -> 1.016803472
D117: ='Baggrundsdata - BVT - deflator'!B27 -> Danmark | E117: =IF('Alle lande, valgt år'!$F$13="faste priser",HLOOKUP('Alle lande, valgt år'!$F$12,'Baggrundsdata - BVT - deflator'!$B$22:$M$49,'Oversættelse af landenavne'!C10,FALSE),1) -> 1.012567054
D118: ='Baggrundsdata - BVT - deflator'!B28 -> Tyskland | E118: =IF('Alle lande, valgt år'!$F$13="faste priser",HLOOKUP('Alle lande, valgt år'!$F$12,'Baggrundsdata - BVT - deflator'!$B$22:$M$49,'Oversættelse af landenavne'!C11,FALSE),1) -> 1.0222291
D119: ='Baggrundsdata - BVT - deflator'!B29 -> Estland | E119: =IF('Alle lande, valgt år'!$F$13="faste priser",HLOOKUP('Alle lande, valgt år'!$F$12,'Baggrundsdata - BVT - deflator'!$B$22:$M$49,'Oversættelse af landenavne'!C12,FALSE),1) -> 1.014448431
D120: ='Baggrundsdata - BVT - deflator'!B30 -> Irland | E120: =IF('Alle lande, valgt år'!$F$13="faste priser",HLOOKUP('Alle lande, valgt år'!$F$12,'Baggrundsdata - BVT - deflator'!$B$22:$M$49,'Oversættelse af landenavne'!C13,FALSE),1) -> 1.058538691
D121: ='Baggrundsdata - BVT - deflator'!B31 -> Grækenland | E121: =IF('Alle lande, valgt år'!$F$13="faste priser",HLOOKUP('Alle lande, valgt år'!$F$12,'Baggrundsdata - BVT - deflator'!$B$22:$M$49,'Oversættelse af landenavne'!C14,FALSE),1) -> 0.9866310727
D122: ='Baggrundsdata - BVT - deflator'!B32 -> Spanien | E122: =IF('Alle lande, valgt år'!$F$13="faste priser",HLOOKUP('Alle lande, valgt år'!$F$12,'Baggrundsdata - BVT - deflator'!$B$22:$M$49,'Oversættelse af landenavne'!C15,FALSE),1) -> 1.002697869
D123: ='Baggrundsdata - BVT - deflator'!B33 -> Frankrig | E123: =IF('Alle lande, valgt år'!$F$13="faste priser",HLOOKUP('Alle lande, valgt år'!$F$12,'Baggrundsdata - BVT - deflator'!$B$22:$M$49,'Oversættelse af landenavne'!C16,FALSE),1) -> 1.012354963
D124: ='Baggrundsdata - BVT - deflator'!B34 -> Kroatien | E124: =IF('Alle lande, valgt år'!$F$13="faste priser",HLOOKUP('Alle lande, valgt år'!$F$12,'Baggrundsdata - BVT - deflator'!$B$22:$M$49,'Oversættelse af landenavne'!C17,FALSE),1) -> 1.000416045
D125: ='Baggrundsdata - BVT - deflator'!B35 -> Italien | E125: =IF('Alle lande, valgt år'!$F$13="faste priser",HLOOKUP('Alle lande, valgt år'!$F$12,'Baggrundsdata - BVT - deflator'!$B$22:$M$49,'Oversættelse af landenavne'!C18,FALSE),1) -> 1.008391891
D126: ='Baggrundsdata - BVT - deflator'!B36 -> Letland | E126: =IF('Alle lande, valgt år'!$F$13="faste priser",HLOOKUP('Alle lande, valgt år'!$F$12,'Baggrundsdata - BVT - deflator'!$B$22:$M$49,'Oversættelse af landenavne'!C19,FALSE),1) -> 1.006632818
D127: ='Baggrundsdata - BVT - deflator'!B37 -> Litaun | E127: =IF('Alle lande, valgt år'!$F$13="faste priser",HLOOKUP('Alle lande, valgt år'!$F$12,'Baggrundsdata - BVT - deflator'!$B$22:$M$49,'Oversættelse af landenavne'!C20,FALSE),1) -> 0.9977864361
D128: ='Baggrundsdata - BVT - deflator'!B38 -> luxembourg | E128: =IF('Alle lande, valgt år'!$F$13="faste priser",HLOOKUP('Alle lande, valgt år'!$F$12,'Baggrundsdata - BVT - deflator'!$B$22:$M$49,'Oversættelse af landenavne'!C21,FALSE),1) -> 1.02961863
D129: ='Baggrundsdata - BVT - deflator'!B39 -> Ungarn | E129: =IF('Alle lande, valgt år'!$F$13="faste priser",HLOOKUP('Alle lande, valgt år'!$F$12,'Baggrundsdata - BVT - deflator'!$B$22:$M$49,'Oversættelse af landenavne'!C22,FALSE),1) -> 1.007947715
D130: ='Baggrundsdata - BVT - deflator'!B40 -> Holland | E130: =IF('Alle lande, valgt år'!$F$13="faste priser",HLOOKUP('Alle lande, valgt år'!$F$12,'Baggrundsdata - BVT - deflator'!$B$22:$M$49,'Oversættelse af landenavne'!C23,FALSE),1) -> 1.005076783
D131: ='Baggrundsdata - BVT - deflator'!B41 -> Østrig | E131: =IF('Alle lande, valgt år'!$F$13="faste priser",HLOOKUP('Alle lande, valgt år'!$F$12,'Baggrundsdata - BVT - deflator'!$B$22:$M$49,'Oversættelse af landenavne'!C24,FALSE),1) -> 1.015389509
D132: ='Baggrundsdata - BVT - deflator'!B42 -> Polen | E132: =IF('Alle lande, valgt år'!$F$13="faste priser",HLOOKUP('Alle lande, valgt år'!$F$12,'Baggrundsdata - BVT - deflator'!$B$22:$M$49,'Oversættelse af landenavne'!C25,FALSE),1) -> 1.006553502
D133: ='Baggrundsdata - BVT - deflator'!B43 -> Portugal | E133: =IF('Alle lande, valgt år'!$F$13="faste priser",HLOOKUP('Alle lande, valgt år'!$F$12,'Baggrundsdata - BVT - deflator'!$B$22:$M$49,'Oversættelse af landenavne'!C26,FALSE),1) -> 1.017335566
D134: ='Baggrundsdata - BVT - deflator'!B44 -> Rumænien | E134: =IF('Alle lande, valgt år'!$F$13="faste priser",HLOOKUP('Alle lande, valgt år'!$F$12,'Baggrundsdata - BVT - deflator'!$B$22:$M$49,'Oversættelse af landenavne'!C27,FALSE),1) -> 1.02469727
D135: ='Baggrundsdata - BVT - deflator'!B45 -> Slovenien | E135: =IF('Alle lande, valgt år'!$F$13="faste priser",HLOOKUP('Alle lande, valgt år'!$F$12,'Baggrundsdata - BVT - deflator'!$B$22:$M$49,'Oversættelse af landenavne'!C28,FALSE),1) -> 1.004661797
D136: ='Baggrundsdata - BVT - deflator'!B46 -> Slovakiet | E136: =IF('Alle lande, valgt år'!$F$13="faste priser",HLOOKUP('Alle lande, valgt år'!$F$12,'Baggrundsdata - BVT - deflator'!$B$22:$M$49,'Oversættelse af landenavne'!C29,FALSE),1) -> 0.9973662296
D137: ='Baggrundsdata - BVT - deflator'!B47 -> Finland | E137: =IF('Alle lande, valgt år'!$F$13="faste priser",HLOOKUP('Alle lande, valgt år'!$F$12,'Baggrundsdata - BVT - deflator'!$B$22:$M$49,'Oversættelse af landenavne'!C30,FALSE),1) -> 1.003450096
D138: ='Baggrundsdata - BVT - deflator'!B48 -> Sverige | E138: =IF('Alle lande, valgt år'!$F$13="faste priser",HLOOKUP('Alle lande, valgt år'!$F$12,'Baggrundsdata - BVT - deflator'!$B$22:$M$49,'Oversættelse af landenavne'!C31,FALSE),1) -> 0.9927039054
D139: ='Baggrundsdata - BVT - deflator'!B49 -> UK | E139: =IF('Alle lande, valgt år'!$F$13="faste priser",HLOOKUP('Alle lande, valgt år'!$F$12,'Baggrundsdata - BVT - deflator'!$B$22:$M$49,'Oversættelse af landenavne'!C32,FALSE),1) -> 1.114010339

Sheet Baggrundsdata - BVT - deflator
B1: Samlet BVT-deflator for forskellige basisår
B2: NAVN PÅ ARK: | C2: Baggrundsdata - BVT deflator
B3: Data hentes fra: | C3: Kun baggrundsdata længere nede på BVT arket benyttes
B5: Sådan bruges arket:
B6: ="Arket 'Baggrundsdata -BVT deflator' viser deflatoren for det enkelte land i det enkte år for "&C15&" til "&I15&". Basisået retter sig efter de valg der er truffuet i akrene '"&'Udvalgte lande, 10 års oversigt'!E1&"' og ' "&'Alle lande, valgt år'!F1&"'" -> Arket 'Baggrundsdata -BVT deflator' viser deflatoren for det enkelte land i det enkte år for til . Basisået retter sig efter de valg der er truffuet i akrene 'Udvalgte lande, 10 års oversigt' og ' Alle lande, valgt år'
B7: Nederst i arket er der en baggrundsdata tabel men rådata for eurostat. De øverste tabeller er bearbejdet og fungerer som baggrundsdata for deflatortabellerne (de røde) i ovennævnte ark. Der træffes ingen valg i arket, det bruges som baggrundsdata og til at kontrollere at man har trukket korrekt data.
B9: BVT-indekset er hentet for alle erhverv samlet (Total - all NACE activities)
B10: Bemærk:
B11: Indtil nu fungerer BVT-deflatoren for et interval på 7 år. Dvs. at man kan hente ny data hvis man ønsker 7 andre år og indsætte dem i baggrundsdata. Deflatoren vil automatisk opdatere. Ønsker man et længere tidsinterval må man udvide formlen for deflator tabellen.
B17: ="Baggrundsdata til tabel B i arket '"&'Baggrundstabeller for alle land'!E1&"'" -> Baggrundsdata til tabel B i arket 'Baggrundstabeller for alle lande, valgt år' | Q17: ="Baggrundsdata til tabel B i arket '"&'Udvalgte lande, 10 års oversigt'!E1&"'" -> Baggrundsdata til tabel B i arket 'Udvalgte lande, 10 års oversigt'
B18: Baggrundstal til tabel B: BVT-deflator for forskellige basisår | Q18: Baggrundstal til tabel B: BVT-deflator for forskellige basisår
B20: Vælg Basisår | C20: ='Alle lande, valgt år'!F14 -> 2015 | Q20: Valgt Basisår | R20: ='Udvalgte lande, 10 års oversigt'!$E$13 -> 2015
B22: Dansk | C22: ='Baggrundsdata - BVT - deflator'!B71 -> 2007 | D22: =C22+1 -> 2008 | E22: 2009 | F22: 2010 | G22: 2011 | H22: 2012 | I22: 2013 | J22: =I22+1 -> 2014 | K22: =J22+1 -> 2015 | L22: =K22+1 -> 2016 | M22: =L22+1 -> 2017 | O22: Tjek: Er BVT trukket for de korrekte lande (jf. level 1) | Q22: Dansk | R22: ='Baggrundsdata - BVT - deflator'!C22 -> 2007 | S22: ='Baggrundsdata - BVT - deflator'!D22 -> 2008 | T22: ='Baggrundsdata - BVT - deflator'!E22 -> 2009 | U22: ='Baggrundsdata - BVT - deflator'!F22 -> 2010 | V22: ='Baggrundsdata - BVT - deflator'!G22 -> 2011 | W22: ='Baggrundsdata - BVT - deflator'!H22 -> 2012 | X22: ='Baggrundsdata - BVT - deflator'!I22 -> 2013 | Y22: ='Baggrundsdata - BVT - deflator'!J22 -> 2014 | Z22: ='Baggrundsdata - BVT - deflator'!K22 -> 2015 | AA22: ='Baggrundsdata - BVT - deflator'!L22 -> 2016 | AB22: ='Baggrundsdata - BVT - deflator'!M22 -> 2017 | AD22: Tjek: Er BVT trukket for de korrekte lande (jf liste på forsiden)
B23: =IF(A72="European Union (28 countries)","EU-28",IF(A72="European Union (27 countries)","EU-27",IF(A72="Euro area (EA11-2000, EA12-2006, EA13-2007, EA15-2008, EA16-2010, EA17-2013, EA18)","EU-området",IF(A72="Belgium","Belgien",IF(A72="Bulgaria","Bulgarien",IF(A72="czech republic","Tjekkiet",IF(A72="Denmark","Danmark",IF(A72="Germany (until 1990 former territory of the FRG)","Tyskland",IF(A72="Estonia","Estland",IF(A72="Ireland","Irland",IF(A72="Greece","Grækenland",IF(A72="Spain","Spanien",IF(A72="france","Frankrig",IF(A72="Croatia","Kroatien",IF(A72="italy","Italien",IF(A72="Cyprus","Cypern",IF(A72="Latvia","Letland",IF(A72="Lithuania","Litaun",IF(A72="Luxembourg","luxembourg",IF(A72="Hungary","Ungarn",IF(A72="Malta","Malta",IF(A72="Netherlands","Holland",IF(A72="Austria","Østrig",IF(A72="Poland","Polen",IF(A72="portugal","Portugal",IF(A72="Romania","Rumænien",IF(A72="Slovenia","Slovenien",IF(A72="slovakia","Slovakiet",IF(A72="Finland","Finland",IF(A72="sweden","Sverige",IF(A72="United kingdom","UK",IF(A72="liechtenstein","Liechtenstein",IF(A72="Norway","Norge",IF(A72="Montenegro","Montenegro",IF(A72="Former Yugoslav Republic of Macedonia, the","Republikken Makedonien",IF(A72="Serbia","Serbien",IF(A72="Turkey","Tyrkiet",IF(A72="Bosnia and Herzegovina","Bosnien-Hercegovina",IF(A72="Kosovo (under United Nations Security Council Resolution 1244/99)","Kosovo",IF(A72="New Country","Nyt land",0)))))))))))))))))))))))))))))))))))))))) -> EU-28 | C23: =IFERROR('Baggrundsdata - BVT - deflator'!B72/IF($M$22=$C$20,$L72,IF($L$22=$C$20,$K72,IF($K$22=$C$20,$J72,IF($J$22=$C$20,$I72,IF($I$22=$C$20,'Baggrundsdata - BVT - deflator'!$H72,IF($H$22=$C$20,'Baggrundsdata - BVT - deflator'!$G72,IF($C$20=$G$22,'Baggrundsdata - BVT - deflator'!$F72,IF($F$22=$C$20,'Baggrundsdata - BVT - deflator'!$E72,IF($E$22=$C$20,'Baggrundsdata - BVT - deflator'!$D72,IF($D$22=$C$20,'Baggrundsdata - BVT - deflator'!$C72,IF('Baggrundsdata - BVT - deflator'!$C$22='Baggrundsdata - BVT - deflator'!$C$20,'Baggrundsdata - BVT - deflator'!$B72,"*"))))))))))),"*") -> 0.9117232094 | D23: =IFERROR('Baggrundsdata - BVT - deflator'!C72/IF($M$22=$C$20,$L72,IF($L$22=$C$20,$K72,IF($K$22=$C$20,$J72,IF($J$22=$C$20,$I72,IF($I$22=$C$20,'Baggrundsdata - BVT - deflator'!$H72,IF($H$22=$C$20,'Baggrundsdata - BVT - deflator'!$G72,IF($C$20=$G$22,'Baggrundsdata - BVT - deflator'!$F72,IF($F$22=$C$20,'Baggrundsdata - BVT - deflator'!$E72,IF($E$22=$C$20,'Baggrundsdata - BVT - deflator'!$D72,IF($D$22=$C$20,'Baggrundsdata - BVT - deflator'!$C72,IF('Baggrundsdata - BVT - deflator'!$C$22='Baggrundsdata - BVT - deflator'!$C$20,'Baggrundsdata - BVT - deflator'!$B72,"*"))))))))))),"*") -> 0.9147386184 | E23: =IFERROR('Baggrundsdata - BVT - deflator'!D72/IF($M$22=$C$20,$L72,IF($L$22=$C$20,$K72,IF($K$22=$C$20,$J72,IF($J$22=$C$20,$I72,IF($I$22=$C$20,'Baggrundsdata - BVT - deflator'!$H72,IF($H$22=$C$20,'Baggrundsdata - BVT - deflator'!$G72,IF($C$20=$G$22,'Baggrundsdata - BVT - deflator'!$F72,IF($F$22=$C$20,'Baggrundsdata - BVT - deflator'!$E72,IF($E$22=$C$20,'Baggrundsdata - BVT - deflator'!$D72,IF($D$22=$C$20,'Baggrundsdata - BVT - deflator'!$C72,IF('Baggrundsdata - BVT - deflator'!$C$22='Baggrundsdata - BVT - deflator'!$C$20,'Baggrundsdata - BVT - deflator'!$B72,"*"))))))))))),"*") -> 0.9058399343 | F23: =IFERROR('Baggrundsdata - BVT - deflator'!E72/IF($M$22=$C$20,$L72,IF($L$22=$C$20,$K72,IF($K$22=$C$20,$J72,IF($J$22=$C$20,$I72,IF($I$22=$C$20,'Baggrundsdata - BVT - deflator'!$H72,IF($H$22=$C$20,'Baggrundsdata - BVT - deflator'!$G72,IF($C$20=$G$22,'Baggrundsdata - BVT - deflator'!$F72,IF($F$22=$C$20,'Baggrundsdata - BVT - deflator'!$E72,IF($E$22=$C$20,'Baggrundsdata - BVT - deflator'!$D72,IF($D$22=$C$20,'Baggrundsdata - BVT - deflator'!$C72,IF('Baggrundsdata - BVT - deflator'!$C$22='Baggrundsdata - BVT - deflator'!$C$20,'Baggrundsdata - BVT - deflator'!$B72,"*"))))))))))),"*") -> 0.9221434302 | G23: =IFERROR('Baggrundsdata - BVT - deflator'!F72/IF($M$22=$C$20,$L72,IF($L$22=$C$20,$K72,IF($K$22=$C$20,$J72,IF($J$22=$C$20,$I72,IF($I$22=$C$20,'Baggrundsdata - BVT - deflator'!$H72,IF($H$22=$C$20,'Baggrundsdata - BVT - deflator'!$G72,IF($C$20=$G$22,'Baggrundsdata - BVT - deflator'!$F72,IF($F$22=$C$20,'Baggrundsdata - BVT - deflator'!$E72,IF($E$22=$C$20,'Baggrundsdata - BVT - deflator'!$D72,IF($D$22=$C$20,'Baggrundsdata - BVT - deflator'!$C72,IF('Baggrundsdata - BVT - deflator'!$C$22='Baggrundsdata - BVT - deflator'!$C$20,'Baggrundsdata - BVT - deflator'!$B72,"*"))))))))))),"*") -> 0.9309960071 | H23: =IFERROR('Baggrundsdata - BVT - deflator'!G72/IF($M$22=$C$20,$L72,IF($L$22=$C$20,$K72,IF($K$22=$C$20,$J72,IF($J$22=$C$20,$I72,IF($I$22=$C$20,'Baggrundsdata - BVT - deflator'!$H72,IF($H$22=$C$20,'Baggrundsdata - BVT - deflator'!$G72,IF($C$20=$G$22,'Baggrundsdata - BVT - deflator'!$F72,IF($F$22=$C$20,'Baggrundsdata - BVT - deflator'!$E72,IF($E$22=$C$20,'Baggrundsdata - BVT - deflator'!$D72,IF($D$22=$C$20,'Baggrundsdata - BVT - deflator'!$C72,IF('Baggrundsdata - BVT - deflator'!$C$22='Baggrundsdata - BVT - deflator'!$C$20,'Baggrundsdata - BVT - deflator'!$B72,"*"))))))))))),"*") -> 0.9523067418 | I23: =IFERROR('Baggrundsdata - BVT - deflator'!H72/IF($M$22=$C$20,$L72,IF($L$22=$C$20,$K72,IF($K$22=$C$20,$J72,IF($J$22=$C$20,$I72,IF($I$22=$C$20,'Baggrundsdata - BVT - deflator'!$H72,IF($H$22=$C$20,'Baggrundsdata - BVT - deflator'!$G72,IF($C$20=$G$22,'Baggrundsdata - BVT - deflator'!$F72,IF($F$22=$C$20,'Baggrundsdata - BVT - deflator'!$E72,IF($E$22=$C$20,'Baggrundsdata - BVT - deflator'!$D72,IF($D$22=$C$20,'Baggrundsdata - BVT - deflator'!$C72,IF('Baggrundsdata - BVT - deflator'!$C$22='Baggrundsdata - BVT - deflator'!$C$20,'Baggrundsdata - BVT - deflator'!$B72,"*"))))))))))),"*") -> 0.9574430807 | J23: =IFERROR('Baggrundsdata - BVT - deflator'!I72/IF($M$22=$C$20,$L72,IF($L$22=$C$20,$K72,IF($K$22=$C$20,$J72,IF($J$22=$C$20,$I72,IF($I$22=$C$20,'Baggrundsdata - BVT - deflator'!$H72,IF($H$22=$C$20,'Baggrundsdata - BVT - deflator'!$G72,IF($C$20=$G$22,'Baggrundsdata - BVT - deflator'!$F72,IF($F$22=$C$20,'Baggrundsdata - BVT - deflator'!$E72,IF($E$22=$C$20,'Baggrundsdata - BVT - deflator'!$D72,IF($D$22=$C$20,'Baggrundsdata - BVT - deflator'!$C72,IF('Baggrundsdata - BVT - deflator'!$C$22='Baggrundsdata - BVT - deflator'!$C$20,'Baggrundsdata - BVT - deflator'!$B72,"*"))))))))))),"*") -> 0.9724740186 | K23: =IFERROR('Baggrundsdata - BVT - deflator'!J72/IF($M$22=$C$20,$L72,IF($L$22=$C$20,$K72,IF($K$22=$C$20,$J72,IF($J$22=$C$20,$I72,IF($I$22=$C$20,'Baggrundsdata - BVT - deflator'!$H72,IF($H$22=$C$20,'Baggrundsdata - BVT - deflator'!$G72,IF($C$20=$G$22,'Baggrundsdata - BVT - deflator'!$F72,IF($F$22=$C$20,'Baggrundsdata - BVT - deflator'!$E72,IF($E$22=$C$20,'Baggrundsdata - BVT - deflator'!$D72,IF($D$22=$C$20,'Baggrundsdata - BVT - deflator'!$C72,IF('Baggrundsdata - BVT - deflator'!$C$22='Baggrundsdata - BVT - deflator'!$C$20,'Baggrundsdata - BVT - deflator'!$B72,"*"))))))))))),"*") -> 1 | L23: =IFERROR('Baggrundsdata - BVT - deflator'!K72/IF($M$22=$C$20,$L72,IF($L$22=$C$20,$K72,IF($K$22=$C$20,$J72,IF($J$22=$C$20,$I72,IF($I$22=$C$20,'Baggrundsdata - BVT - deflator'!$H72,IF($H$22=$C$20,'Baggrundsdata - BVT - deflator'!$G72,IF($C$20=$G$22,'Baggrundsdata - BVT - deflator'!$F72,IF($F$22=$C$20,'Baggrundsdata - BVT - deflator'!$E72,IF($E$22=$C$20,'Baggrundsdata - BVT - deflator'!$D72,IF($D$22=$C$20,'Baggrundsdata - BVT - deflator'!$C72,IF('Baggrundsdata - BVT - deflator'!$C$22='Baggrundsdata - BVT - deflator'!$C$20,'Baggrundsdata - BVT - deflator'!$B72,"*"))))))))))),"*") -> 1.028305107 | M23: =IFERROR('Baggrundsdata - BVT - deflator'!L72/IF($M$22=$C$20,$L72,IF($L$22=$C$20,$K72,IF($K$22=$C$20,$J72,IF($J$22=$C$20,$I72,IF($I$22=$C$20,'Baggrundsdata - BVT - deflator'!$H72,IF($H$22=$C$20,'Baggrundsdata - BVT - deflator'!$G72,IF($C$20=$G$22,'Baggrundsdata - BVT - deflator'!$F72,IF($F$22=$C$20,'Baggrundsdata - BVT - deflator'!$E72,IF($E$22=$C$20,'Baggrundsdata - BVT - deflator'!$D72,IF($D$22=$C$20,'Baggrundsdata - BVT - deflator'!$C72,IF('Baggrundsdata - BVT - deflator'!$C$22='Baggrundsdata - BVT - deflator'!$C$20,'Baggrundsdata - BVT - deflator'!$B72,"*"))))))))))),"*") -> 0 | O23: =IF(A72='Level 1'!A52,"S","falsk") -> S | Q23: EU-28 | R23: =IFERROR('Baggrundsdata - BVT - deflator'!B72/IF($AB$22=$R$20,$L72,IF($AA$22=$R$20,$K72,IF($Z$22=$R$20,$J72,IF($Y$22=$R$20,$I72,IF($X$22=$R$20,'Baggrundsdata - BVT - deflator'!$H72,IF($W$22=$R$20,'Baggrundsdata - BVT - deflator'!$G72,IF($R$20=$V$22,'Baggrundsdata - BVT - deflator'!$F72,IF($U$22=$R$20,'Baggrundsdata - BVT - deflator'!$E72,IF($T$22=$R$20,'Baggrundsdata - BVT - deflator'!$D72,IF($S$22=$R$20,'Baggrundsdata - BVT - deflator'!$C72,IF($R$22=$R$20,'Baggrundsdata - BVT - deflator'!$B72,"*"))))))))))),"*") -> 0.9117232094 | S23: =IFERROR('Baggrundsdata - BVT - deflator'!C72/IF($AB$22=$R$20,$L72,IF($AA$22=$R$20,$K72,IF($Z$22=$R$20,$J72,IF($Y$22=$R$20,$I72,IF($X$22=$R$20,'Baggrundsdata - BVT - deflator'!$H72,IF($W$22=$R$20,'Baggrundsdata - BVT - deflator'!$G72,IF($R$20=$V$22,'Baggrundsdata - BVT - deflator'!$F72,IF($U$22=$R$20,'Baggrundsdata - BVT - deflator'!$E72,IF($T$22=$R$20,'Baggrundsdata - BVT - deflator'!$D72,IF($S$22=$R$20,'Baggrundsdata - BVT - deflator'!$C72,IF($R$22=$R$20,'Baggrundsdata - BVT - deflator'!$B72,"*"))))))))))),"*") -> 0.9147386184 | T23: =IFERROR('Baggrundsdata - BVT - deflator'!D72/IF($AB$22=$R$20,$L72,IF($AA$22=$R$20,$K72,IF($Z$22=$R$20,$J72,IF($Y$22=$R$20,$I72,IF($X$22=$R$20,'Baggrundsdata - BVT - deflator'!$H72,IF($W$22=$R$20,'Baggrundsdata - BVT - deflator'!$G72,IF($R$20=$V$22,'Baggrundsdata - BVT - deflator'!$F72,IF($U$22=$R$20,'Baggrundsdata - BVT - deflator'!$E72,IF($T$22=$R$20,'Baggrundsdata - BVT - deflator'!$D72,IF($S$22=$R$20,'Baggrundsdata - BVT - deflator'!$C72,IF($R$22=$R$20,'Baggrundsdata - BVT - deflator'!$B72,"*"))))))))))),"*") -> 0.9058399343 | U23: =IFERROR('Baggrundsdata - BVT - deflator'!E72/IF($AB$22=$R$20,$L72,IF($AA$22=$R$20,$K72,IF($Z$22=$R$20,$J72,IF($Y$22=$R$20,$I72,IF($X$22=$R$20,'Baggrundsdata - BVT - deflator'!$H72,IF($W$22=$R$20,'Baggrundsdata - BVT - deflator'!$G72,IF($R$20=$V$22,'Baggrundsdata - BVT - deflator'!$F72,IF($U$22=$R$20,'Baggrundsdata - BVT - deflator'!$E72,IF($T$22=$R$20,'Baggrundsdata - BVT - deflator'!$D72,IF($S$22=$R$20,'Baggrundsdata - BVT - deflator'!$C72,IF($R$22=$R$20,'Baggrundsdata - BVT - deflator'!$B72,"*"))))))))))),"*") -> 0.9221434302 | V23: =IFERROR('Baggrundsdata - BVT - deflator'!F72/IF($AB$22=$R$20,$L72,IF($AA$22=$R$20,$K72,IF($Z$22=$R$20,$J72,IF($Y$22=$R$20,$I72,IF($X$22=$R$20,'Baggrundsdata - BVT - deflator'!$H72,IF($W$22=$R$20,'Baggrundsdata - BVT - deflator'!$G72,IF($R$20=$V$22,'Baggrundsdata - BVT - deflator'!$F72,IF($U$22=$R$20,'Baggrundsdata - BVT - deflator'!$E72,IF($T$22=$R$20,'Baggrundsdata - BVT - deflator'!$D72,IF($S$22=$R$20,'Baggrundsdata - BVT - deflator'!$C72,IF($R$22=$R$20,'Baggrundsdata - BVT - deflator'!$B72,"*"))))))))))),"*") -> 0.9309960071 | W23: =IFERROR('Baggrundsdata - BVT - deflator'!G72/IF($AB$22=$R$20,$L72,IF($AA$22=$R$20,$K72,IF($Z$22=$R$20,$J72,IF($Y$22=$R$20,$I72,IF($X$22=$R$20,'Baggrundsdata - BVT - deflator'!$H72,IF($W$22=$R$20,'Baggrundsdata - BVT - deflator'!$G72,IF($R$20=$V$22,'Baggrundsdata - BVT - deflator'!$F72,IF($U$22=$R$20,'Baggrundsdata - BVT - deflator'!$E72,IF($T$22=$R$20,'Baggrundsdata - BVT - deflator'!$D72,IF($S$22=$R$20,'Baggrundsdata - BVT - deflator'!$C72,IF($R$22=$R$20,'Baggrundsdata - BVT - deflator'!$B72,"*"))))))))))),"*") -> 0.9523067418 | X23: =IFERROR('Baggrundsdata - BVT - deflator'!H72/IF($AB$22=$R$20,$L72,IF($AA$22=$R$20,$K72,IF($Z$22=$R$20,$J72,IF($Y$22=$R$20,$I72,IF($X$22=$R$20,'Baggrundsdata - BVT - deflator'!$H72,IF($W$22=$R$20,'Baggrundsdata - BVT - deflator'!$G72,IF($R$20=$V$22,'Baggrundsdata - BVT - deflator'!$F72,IF($U$22=$R$20,'Baggrundsdata - BVT - deflator'!$E72,IF($T$22=$R$20,'Baggrundsdata - BVT - deflator'!$D72,IF($S$22=$R$20,'Baggrundsdata - BVT - deflator'!$C72,IF($R$22=$R$20,'Baggrundsdata - BVT - deflator'!$B72,"*"))))))))))),"*") -> 0.9574430807 | Y23: =IFERROR('Baggrundsdata - BVT - deflator'!I72/IF($AB$22=$R$20,$L72,IF($AA$22=$R$20,$K72,IF($Z$22=$R$20,$J72,IF($Y$22=$R$20,$I72,IF($X$22=$R$20,'Baggrundsdata - BVT - deflator'!$H72,IF($W$22=$R$20,'Baggrundsdata - BVT - deflator'!$G72,IF($R$20=$V$22,'Baggrundsdata - BVT - deflator'!$F72,IF($U$22=$R$20,'Baggrundsdata - BVT - deflator'!$E72,IF($T$22=$R$20,'Baggrundsdata - BVT - deflator'!$D72,IF($S$22=$R$20,'Baggrundsdata - BVT - deflator'!$C72,IF($R$22=$R$20,'Baggrundsdata - BVT - deflator'!$B72,"*"))))))))))),"*") -> 0.9724740186 | Z23: =IFERROR('Baggrundsdata - BVT - deflator'!J72/IF($AB$22=$R$20,$L72,IF($AA$22=$R$20,$K72,IF($Z$22=$R$20,$J72,IF($Y$22=$R$20,$I72,IF($X$22=$R$20,'Baggrundsdata - BVT - deflator'!$H72,IF($W$22=$R$20,'Baggrundsdata - BVT - deflator'!$G72,IF($R$20=$V$22,'Baggrundsdata - BVT - deflator'!$F72,IF($U$22=$R$20,'Baggrundsdata - BVT - deflator'!$E72,IF($T$22=$R$20,'Baggrundsdata - BVT - deflator'!$D72,IF($S$22=$R$20,'Baggrundsdata - BVT - deflator'!$C72,IF($R$22=$R$20,'Baggrundsdata - BVT - deflator'!$B72,"*"))))))))))),"*") -> 1 | AA23: =IFERROR('Baggrundsdata - BVT - deflator'!K72/IF($AB$22=$R$20,$L72,IF($AA$22=$R$20,$K72,IF($Z$22=$R$20,$J72,IF($Y$22=$R$20,$I72,IF($X$22=$R$20,'Baggrundsdata - BVT - deflator'!$H72,IF($W$22=$R$20,'Baggrundsdata - BVT - deflator'!$G72,IF($R$20=$V$22,'Baggrundsdata - BVT - deflator'!$F72,IF($U$22=$R$20,'Baggrundsdata - BVT - deflator'!$E72,IF($T$22=$R$20,'Baggrundsdata - BVT - deflator'!$D72,IF($S$22=$R$20,'Baggrundsdata - BVT - deflator'!$C72,IF($R$22=$R$20,'Baggrundsdata - BVT - deflator'!$B72,"*"))))))))))),"*") -> 1.028305107 | AB23: =IFERROR('Baggrundsdata - BVT - deflator'!L72/IF($AB$22=$R$20,$L72,IF($AA$22=$R$20,$K72,IF($Z$22=$R$20,$J72,IF($Y$22=$R$20,$I72,IF($X$22=$R$20,'Baggrundsdata - BVT - deflator'!$H72,IF($W$22=$R$20,'Baggrundsdata - BVT - deflator'!$G72,IF($R$20=$V$22,'Baggrundsdata - BVT - deflator'!$F72,IF($U$22=$R$20,'Baggrundsdata - BVT - deflator'!$E72,IF($T$22=$R$20,'Baggrundsdata - BVT - deflator'!$D72,IF($S$22=$R$20,'Baggrundsdata - BVT - deflator'!$C72,IF($R$22=$R$20,'Baggrundsdata - BVT - deflator'!$B72,"*"))))))))))),"*") -> 0 | AD23: =IF(Q23=Forside!B39,"S","falsk") -> S
B24: =IF(A73="European Union (28 countries)","EU-28",IF(A73="European Union (27 countries)","EU-27",IF(A73="Euro area (EA11-2000, EA12-2006, EA13-2007, EA15-2008, EA16-2010, EA17-2013, EA18)","EU-området",IF(A73="Belgium","Belgien",IF(A73="Bulgaria","Bulgarien",IF(A73="czech republic","Tjekkiet",IF(A73="Denmark","Danmark",IF(A73="Germany (until 1990 former territory of the FRG)","Tyskland",IF(A73="Estonia","Estland",IF(A73="Ireland","Irland",IF(A73="Greece","Grækenland",IF(A73="Spain","Spanien",IF(A73="france","Frankrig",IF(A73="Croatia","Kroatien",IF(A73="italy","Italien",IF(A73="Cyprus","Cypern",IF(A73="Latvia","Letland",IF(A73="Lithuania","Litaun",IF(A73="Luxembourg","luxembourg",IF(A73="Hungary","Ungarn",IF(A73="Malta","Malta",IF(A73="Netherlands","Holland",IF(A73="Austria","Østrig",IF(A73="Poland","Polen",IF(A73="portugal","Portugal",IF(A73="Romania","Rumænien",IF(A73="Slovenia","Slovenien",IF(A73="slovakia","Slovakiet",IF(A73="Finland","Finland",IF(A73="sweden","Sverige",IF(A73="United kingdom","UK",IF(A73="liechtenstein","Liechtenstein",IF(A73="Norway","Norge",IF(A73="Montenegro","Montenegro",IF(A73="Former Yugoslav Republic of Macedonia, the","Republikken Makedonien",IF(A73="Serbia","Serbien",IF(A73="Turkey","Tyrkiet",IF(A73="Bosnia and Herzegovina","Bosnien-Hercegovina",IF(A73="Kosovo (under United Nations Security Council Resolution 1244/99)","Kosovo",IF(A73="New Country","Nyt land",0)))))))))))))))))))))))))))))))))))))))) -> Belgien | C24: =IFERROR('Baggrundsdata - BVT - deflator'!B73/IF($M$22=$C$20,$L73,IF($L$22=$C$20,$K73,IF($K$22=$C$20,$J73,IF($J$22=$C$20,$I73,IF($I$22=$C$20,'Baggrundsdata - BVT - deflator'!$H73,IF($H$22=$C$20,'Baggrundsdata - BVT - deflator'!$G73,IF($C$20=$G$22,'Baggrundsdata - BVT - deflator'!$F73,IF($F$22=$C$20,'Baggrundsdata - BVT - deflator'!$E73,IF($E$22=$C$20,'Baggrundsdata - BVT - deflator'!$D73,IF($D$22=$C$20,'Baggrundsdata - BVT - deflator'!$C73,IF('Baggrundsdata - BVT - deflator'!$C$22='Baggrundsdata - BVT - deflator'!$C$20,'Baggrundsdata - BVT - deflator'!$B73,"*"))))))))))),"*") -> 0.8948579769 | D24: =IFERROR('Baggrundsdata - BVT - deflator'!C73/IF($M$22=$C$20,$L73,IF($L$22=$C$20,$K73,IF($K$22=$C$20,$J73,IF($J$22=$C$20,$I73,IF($I$22=$C$20,'Baggrundsdata - BVT - deflator'!$H73,IF($H$22=$C$20,'Baggrundsdata - BVT - deflator'!$G73,IF($C$20=$G$22,'Baggrundsdata - BVT - deflator'!$F73,IF($F$22=$C$20,'Baggrundsdata - BVT - deflator'!$E73,IF($E$22=$C$20,'Baggrundsdata - BVT - deflator'!$D73,IF($D$22=$C$20,'Baggrundsdata - BVT - deflator'!$C73,IF('Baggrundsdata - BVT - deflator'!$C$22='Baggrundsdata - BVT - deflator'!$C$20,'Baggrundsdata - BVT - deflator'!$B73,"*"))))))))))),"*") -> 0.9097994087 | E24: =IFERROR('Baggrundsdata - BVT - deflator'!D73/IF($M$22=$C$20,$L73,IF($L$22=$C$20,$K73,IF($K$22=$C$20,$J73,IF($J$22=$C$20,$I73,IF($I$22=$C$20,'Baggrundsdata - BVT - deflator'!$H73,IF($H$22=$C$20,'Baggrundsdata - BVT - deflator'!$G73,IF($C$20=$G$22,'Baggrundsdata - BVT - deflator'!$F73,IF($F$22=$C$20,'Baggrundsdata - BVT - deflator'!$E73,IF($E$22=$C$20,'Baggrundsdata - BVT - deflator'!$D73,IF($D$22=$C$20,'Baggrundsdata - BVT - deflator'!$C73,IF('Baggrundsdata - BVT - deflator'!$C$22='Baggrundsdata - BVT - deflator'!$C$20,'Baggrundsdata - BVT - deflator'!$B73,"*"))))))))))),"*") -> 0.9181449048 | F24: =IFERROR('Baggrundsdata - BVT - deflator'!E73/IF($M$22=$C$20,$L73,IF($L$22=$C$20,$K73,IF($K$22=$C$20,$J73,IF($J$22=$C$20,$I73,IF($I$22=$C$20,'Baggrundsdata - BVT - deflator'!$H73,IF($H$22=$C$20,'Baggrundsdata - BVT - deflator'!$G73,IF($C$20=$G$22,'Baggrundsdata - BVT - deflator'!$F73,IF($F$22=$C$20,'Baggrundsdata - BVT - deflator'!$E73,IF($E$22=$C$20,'Baggrundsdata - BVT - deflator'!$D73,IF($D$22=$C$20,'Baggrundsdata - BVT - deflator'!$C73,IF('Baggrundsdata - BVT - deflator'!$C$22='Baggrundsdata - BVT - deflator'!$C$20,'Baggrundsdata - BVT - deflator'!$B73,"*"))))))))))),"*") -> 0.9355937278 | G24: =IFERROR('Baggrundsdata - BVT - deflator'!F73/IF($M$22=$C$20,$L73,IF($L$22=$C$20,$K73,IF($K$22=$C$20,$J73,IF($J$22=$C$20,$I73,IF($I$22=$C$20,'Baggrundsdata - BVT - deflator'!$H73,IF($H$22=$C$20,'Baggrundsdata - BVT - deflator'!$G73,IF($C$20=$G$22,'Baggrundsdata - BVT - deflator'!$F73,IF($F$22=$C$20,'Baggrundsdata - BVT - deflator'!$E73,IF($E$22=$C$20,'Baggrundsdata - BVT - deflator'!$D73,IF($D$22=$C$20,'Baggrundsdata - BVT - deflator'!$C73,IF('Baggrundsdata - BVT - deflator'!$C$22='Baggrundsdata - BVT - deflator'!$C$20,'Baggrundsdata - BVT - deflator'!$B73,"*"))))))))))),"*") -> 0.9527338049 | H24: =IFERROR('Baggrundsdata - BVT - deflator'!G73/IF($M$22=$C$20,$L73,IF($L$22=$C$20,$K73,IF($K$22=$C$20,$J73,IF($J$22=$C$20,$I73,IF($I$22=$C$20,'Baggrundsdata - BVT - deflator'!$H73,IF($H$22=$C$20,'Baggrundsdata - BVT - deflator'!$G73,IF($C$20=$G$22,'Baggrundsdata - BVT - deflator'!$F73,IF($F$22=$C$20,'Baggrundsdata - BVT - deflator'!$E73,IF($E$22=$C$20,'Baggrundsdata - BVT - deflator'!$D73,IF($D$22=$C$20,'Baggrundsdata - BVT - deflator'!$C73,IF('Baggrundsdata - BVT - deflator'!$C$22='Baggrundsdata - BVT - deflator'!$C$20,'Baggrundsdata - BVT - deflator'!$B73,"*"))))))))))),"*") -> 0.9713146963 | I24: =IFERROR('Baggrundsdata - BVT - deflator'!H73/IF($M$22=$C$20,$L73,IF($L$22=$C$20,$K73,IF($K$22=$C$20,$J73,IF($J$22=$C$20,$I73,IF($I$22=$C$20,'Baggrundsdata - BVT - deflator'!$H73,IF($H$22=$C$20,'Baggrundsdata - BVT - deflator'!$G73,IF($C$20=$G$22,'Baggrundsdata - BVT - deflator'!$F73,IF($F$22=$C$20,'Baggrundsdata - BVT - deflator'!$E73,IF($E$22=$C$20,'Baggrundsdata - BVT - deflator'!$D73,IF($D$22=$C$20,'Baggrundsdata - BVT - deflator'!$C73,IF('Baggrundsdata - BVT - deflator'!$C$22='Baggrundsdata - BVT - deflator'!$C$20,'Baggrundsdata - BVT - deflator'!$B73,"*"))))))))))),"*") -> 0.9846656188 | J24: =IFERROR('Baggrundsdata - BVT - deflator'!I73/IF($M$22=$C$20,$L73,IF($L$22=$C$20,$K73,IF($K$22=$C$20,$J73,IF($J$22=$C$20,$I73,IF($I$22=$C$20,'Baggrundsdata - BVT - deflator'!$H73,IF($H$22=$C$20,'Baggrundsdata - BVT - deflator'!$G73,IF($C$20=$G$22,'Baggrundsdata - BVT - deflator'!$F73,IF($F$22=$C$20,'Baggrundsdata - BVT - deflator'!$E73,IF($E$22=$C$20,'Baggrundsdata - BVT - deflator'!$D73,IF($D$22=$C$20,'Baggrundsdata - BVT - deflator'!$C73,IF('Baggrundsdata - BVT - deflator'!$C$22='Baggrundsdata - BVT - deflator'!$C$20,'Baggrundsdata - BVT - deflator'!$B73,"*"))))))))))),"*") -> 0.9914112496 | K24: =IFERROR('Baggrundsdata - BVT - deflator'!J73/IF($M$22=$C$20,$L73,IF($L$22=$C$20,$K73,IF($K$22=$C$20,$J73,IF($J$22=$C$20,$I73,IF($I$22=$C$20,'Baggrundsdata - BVT - deflator'!$H73,IF($H$22=$C$20,'Baggrundsdata - BVT - deflator'!$G73,IF($C$20=$G$22,'Baggrundsdata - BVT - deflator'!$F73,IF($F$22=$C$20,'Baggrundsdata - BVT - deflator'!$E73,IF($E$22=$C$20,'Baggrundsdata - BVT - deflator'!$D73,IF($D$22=$C$20,'Baggrundsdata - BVT - deflator'!$C73,IF('Baggrundsdata - BVT - deflator'!$C$22='Baggrundsdata - BVT - deflator'!$C$20,'Baggrundsdata - BVT - deflator'!$B73,"*"))))))))))),"*") -> 1 | L24: =IFERROR('Baggrundsdata - BVT - deflator'!K73/IF($M$22=$C$20,$L73,IF($L$22=$C$20,$K73,IF($K$22=$C$20,$J73,IF($J$22=$C$20,$I73,IF($I$22=$C$20,'Baggrundsdata - BVT - deflator'!$H73,IF($H$22=$C$20,'Baggrundsdata - BVT - deflator'!$G73,IF($C$20=$G$22,'Baggrundsdata - BVT - deflator'!$F73,IF($F$22=$C$20,'Baggrundsdata - BVT - deflator'!$E73,IF($E$22=$C$20,'Baggrundsdata - BVT - deflator'!$D73,IF($D$22=$C$20,'Baggrundsdata - BVT - deflator'!$C73,IF('Baggrundsdata - BVT - deflator'!$C$22='Baggrundsdata - BVT - deflator'!$C$20,'Baggrundsdata - BVT - deflator'!$B73,"*"))))))))))),"*") -> 1.008663156 | M24: =IFERROR('Baggrundsdata - BVT - deflator'!L73/IF($M$22=$C$20,$L73,IF($L$22=$C$20,$K73,IF($K$22=$C$20,$J73,IF($J$22=$C$20,$I73,IF($I$22=$C$20,'Baggrundsdata - BVT - deflator'!$H73,IF($H$22=$C$20,'Baggrundsdata - BVT - deflator'!$G73,IF($C$20=$G$22,'Baggrundsdata - BVT - deflator'!$F73,IF($F$22=$C$20,'Baggrundsdata - BVT - deflator'!$E73,IF($E$22=$C$20,'Baggrundsdata - BVT - deflator'!$D73,IF($D$22=$C$20,'Baggrundsdata - BVT - deflator'!$C73,IF('Baggrundsdata - BVT - deflator'!$C$22='Baggrundsdata - BVT - deflator'!$C$20,'Baggrundsdata - BVT - deflator'!$B73,"*"))))))))))),"*") -> 0 | O24: =IF(A73='Level 1'!A53,"S","falsk") -> S | Q24: Belgien | R24: =IFERROR('Baggrundsdata - BVT - deflator'!B73/IF($AB$22=$R$20,$L73,IF($AA$22=$R$20,$K73,IF($Z$22=$R$20,$J73,IF($Y$22=$R$20,$I73,IF($X$22=$R$20,'Baggrundsdata - BVT - deflator'!$H73,IF($W$22=$R$20,'Baggrundsdata - BVT - deflator'!$G73,IF($R$20=$V$22,'Baggrundsdata - BVT - deflator'!$F73,IF($U$22=$R$20,'Baggrundsdata - BVT - deflator'!$E73,IF($T$22=$R$20,'Baggrundsdata - BVT - deflator'!$D73,IF($S$22=$R$20,'Baggrundsdata - BVT - deflator'!$C73,IF($R$22=$R$20,'Baggrundsdata - BVT - deflator'!$B73,"*"))))))))))),"*") -> 0.8948579769 | S24: =IFERROR('Baggrundsdata - BVT - deflator'!C73/IF($AB$22=$R$20,$L73,IF($AA$22=$R$20,$K73,IF($Z$22=$R$20,$J73,IF($Y$22=$R$20,$I73,IF($X$22=$R$20,'Baggrundsdata - BVT - deflator'!$H73,IF($W$22=$R$20,'Baggrundsdata - BVT - deflator'!$G73,IF($R$20=$V$22,'Baggrundsdata - BVT - deflator'!$F73,IF($U$22=$R$20,'Baggrundsdata - BVT - deflator'!$E73,IF($T$22=$R$20,'Baggrundsdata - BVT - deflator'!$D73,IF($S$22=$R$20,'Baggrundsdata - BVT - deflator'!$C73,IF($R$22=$R$20,'Baggrundsdata - BVT - deflator'!$B73,"*"))))))))))),"*") -> 0.9097994087 | T24: =IFERROR('Baggrundsdata - BVT - deflator'!D73/IF($AB$22=$R$20,$L73,IF($AA$22=$R$20,$K73,IF($Z$22=$R$20,$J73,IF($Y$22=$R$20,$I73,IF($X$22=$R$20,'Baggrundsdata - BVT - deflator'!$H73,IF($W$22=$R$20,'Baggrundsdata - BVT - deflator'!$G73,IF($R$20=$V$22,'Baggrundsdata - BVT - deflator'!$F73,IF($U$22=$R$20,'Baggrundsdata - BVT - deflator'!$E73,IF($T$22=$R$20,'Baggrundsdata - BVT - deflator'!$D73,IF($S$22=$R$20,'Baggrundsdata - BVT - deflator'!$C73,IF($R$22=$R$20,'Baggrundsdata - BVT - deflator'!$B73,"*"))))))))))),"*") -> 0.9181449048 | U24: =IFERROR('Baggrundsdata - BVT - deflator'!E73/IF($AB$22=$R$20,$L73,IF($AA$22=$R$20,$K73,IF($Z$22=$R$20,$J73,IF($Y$22=$R$20,$I73,IF($X$22=$R$20,'Baggrundsdata - BVT - deflator'!$H73,IF($W$22=$R$20,'Baggrundsdata - BVT - deflator'!$G73,IF($R$20=$V$22,'Baggrundsdata - BVT - deflator'!$F73,IF($U$22=$R$20,'Baggrundsdata - BVT - deflator'!$E73,IF($T$22=$R$20,'Baggrundsdata - BVT - deflator'!$D73,IF($S$22=$R$20,'Baggrundsdata - BVT - deflator'!$C73,IF($R$22=$R$20,'Baggrundsdata - BVT - deflator'!$B73,"*"))))))))))),"*") -> 0.9355937278 | V24: =IFERROR('Baggrundsdata - BVT - deflator'!F73/IF($AB$22=$R$20,$L73,IF($AA$22=$R$20,$K73,IF($Z$22=$R$20,$J73,IF($Y$22=$R$20,$I73,IF($X$22=$R$20,'Baggrundsdata - BVT - deflator'!$H73,IF($W$22=$R$20,'Baggrundsdata - BVT - deflator'!$G73,IF($R$20=$V$22,'Baggrundsdata - BVT - deflator'!$F73,IF($U$22=$R$20,'Baggrundsdata - BVT - deflator'!$E73,IF($T$22=$R$20,'Baggrundsdata - BVT - deflator'!$D73,IF($S$22=$R$20,'Baggrundsdata - BVT - deflator'!$C73,IF($R$22=$R$20,'Baggrundsdata - BVT - deflator'!$B73,"*"))))))))))),"*") -> 0.9527338049 | W24: =IFERROR('Baggrundsdata - BVT - deflator'!G73/IF($AB$22=$R$20,$L73,IF($AA$22=$R$20,$K73,IF($Z$22=$R$20,$J73,IF($Y$22=$R$20,$I73,IF($X$22=$R$20,'Baggrundsdata - BVT - deflator'!$H73,IF($W$22=$R$20,'Baggrundsdata - BVT - deflator'!$G73,IF($R$20=$V$22,'Baggrundsdata - BVT - deflator'!$F73,IF($U$22=$R$20,'Baggrundsdata - BVT - deflator'!$E73,IF($T$22=$R$20,'Baggrundsdata - BVT - deflator'!$D73,IF($S$22=$R$20,'Baggrundsdata - BVT - deflator'!$C73,IF($R$22=$R$20,'Baggrundsdata - BVT - deflator'!$B73,"*"))))))))))),"*") -> 0.9713146963 | X24: =IFERROR('Baggrundsdata - BVT - deflator'!H73/IF($AB$22=$R$20,$L73,IF($AA$22=$R$20,$K73,IF($Z$22=$R$20,$J73,IF($Y$22=$R$20,$I73,IF($X$22=$R$20,'Baggrundsdata - BVT - deflator'!$H73,IF($W$22=$R$20,'Baggrundsdata - BVT - deflator'!$G73,IF($R$20=$V$22,'Baggrundsdata - BVT - deflator'!$F73,IF($U$22=$R$20,'Baggrundsdata - BVT - deflator'!$E73,IF($T$22=$R$20,'Baggrundsdata - BVT - deflator'!$D73,IF($S$22=$R$20,'Baggrundsdata - BVT - deflator'!$C73,IF($R$22=$R$20,'Baggrundsdata - BVT - deflator'!$B73,"*"))))))))))),"*") -> 0.9846656188 | Y24: =IFERROR('Baggrundsdata - BVT - deflator'!I73/IF($AB$22=$R$20,$L73,IF($AA$22=$R$20,$K73,IF($Z$22=$R$20,$J73,IF($Y$22=$R$20,$I73,IF($X$22=$R$20,'Baggrundsdata - BVT - deflator'!$H73,IF($W$22=$R$20,'Baggrundsdata - BVT - deflator'!$G73,IF($R$20=$V$22,'Baggrundsdata - BVT - deflator'!$F73,IF($U$22=$R$20,'Baggrundsdata - BVT - deflator'!$E73,IF($T$22=$R$20,'Baggrundsdata - BVT - deflator'!$D73,IF($S$22=$R$20,'Baggrundsdata - BVT - deflator'!$C73,IF($R$22=$R$20,'Baggrundsdata - BVT - deflator'!$B73,"*"))))))))))),"*") -> 0.9914112496 | Z24: =IFERROR('Baggrundsdata - BVT - deflator'!J73/IF($AB$22=$R$20,$L73,IF($AA$22=$R$20,$K73,IF($Z$22=$R$20,$J73,IF($Y$22=$R$20,$I73,IF($X$22=$R$20,'Baggrundsdata - BVT - deflator'!$H73,IF($W$22=$R$20,'Baggrundsdata - BVT - deflator'!$G73,IF($R$20=$V$22,'Baggrundsdata - BVT - deflator'!$F73,IF($U$22=$R$20,'Baggrundsdata - BVT - deflator'!$E73,IF($T$22=$R$20,'Baggrundsdata - BVT - deflator'!$D73,IF($S$22=$R$20,'Baggrundsdata - BVT - deflator'!$C73,IF($R$22=$R$20,'Baggrundsdata - BVT - deflator'!$B73,"*"))))))))))),"*") -> 1 | AA24: =IFERROR('Baggrundsdata - BVT - deflator'!K73/IF($AB$22=$R$20,$L73,IF($AA$22=$R$20,$K73,IF($Z$22=$R$20,$J73,IF($Y$22=$R$20,$I73,IF($X$22=$R$20,'Baggrundsdata - BVT - deflator'!$H73,IF($W$22=$R$20,'Baggrundsdata - BVT - deflator'!$G73,IF($R$20=$V$22,'Baggrundsdata - BVT - deflator'!$F73,IF($U$22=$R$20,'Baggrundsdata - BVT - deflator'!$E73,IF($T$22=$R$20,'Baggrundsdata - BVT - deflator'!$D73,IF($S$22=$R$20,'Baggrundsdata - BVT - deflator'!$C73,IF($R$22=$R$20,'Baggrundsdata - BVT - deflator'!$B73,"*"))))))))))),"*") -> 1.008663156 | AB24: =IFERROR('Baggrundsdata - BVT - deflator'!L73/IF($AB$22=$R$20,$L73,IF($AA$22=$R$20,$K73,IF($Z$22=$R$20,$J73,IF($Y$22=$R$20,$I73,IF($X$22=$R$20,'Baggrundsdata - BVT - deflator'!$H73,IF($W$22=$R$20,'Baggrundsdata - BVT - deflator'!$G73,IF($R$20=$V$22,'Baggrundsdata - BVT - deflator'!$F73,IF($U$22=$R$20,'Baggrundsdata - BVT - deflator'!$E73,IF($T$22=$R$20,'Baggrundsdata - BVT - deflator'!$D73,IF($S$22=$R$20,'Baggrundsdata - BVT - deflator'!$C73,IF($R$22=$R$20,'Baggrundsdata - BVT - deflator'!$B73,"*"))))))))))),"*") -> 0 | AD24: =IF(Q24=Forside!B40,"S","falsk") -> S
B25: Bulgarien | C25: =IFERROR('Baggrundsdata - BVT - deflator'!B74/IF($M$22=$C$20,$L74,IF($L$22=$C$20,$K74,IF($K$22=$C$20,$J74,IF($J$22=$C$20,$I74,IF($I$22=$C$20,'Baggrundsdata - BVT - deflator'!$H74,IF($H$22=$C$20,'Baggrundsdata - BVT - deflator'!$G74,IF($C$20=$G$22,'Baggrundsdata - BVT - deflator'!$F74,IF($F$22=$C$20,'Baggrundsdata - BVT - deflator'!$E74,IF($E$22=$C$20,'Baggrundsdata - BVT - deflator'!$D74,IF($D$22=$C$20,'Baggrundsdata - BVT - deflator'!$C74,IF('Baggrundsdata - BVT - deflator'!$C$22='Baggrundsdata - BVT - deflator'!$C$20,'Baggrundsdata - BVT - deflator'!$B74,"*"))))))))))),"*") -> 0.8067964453 | D25: =IFERROR('Baggrundsdata - BVT - deflator'!C74/IF($M$22=$C$20,$L74,IF($L$22=$C$20,$K74,IF($K$22=$C$20,$J74,IF($J$22=$C$20,$I74,IF($I$22=$C$20,'Baggrundsdata - BVT - deflator'!$H74,IF($H$22=$C$20,'Baggrundsdata - BVT - deflator'!$G74,IF($C$20=$G$22,'Baggrundsdata - BVT - deflator'!$F74,IF($F$22=$C$20,'Baggrundsdata - BVT - deflator'!$E74,IF($E$22=$C$20,'Baggrundsdata - BVT - deflator'!$D74,IF($D$22=$C$20,'Baggrundsdata - BVT - deflator'!$C74,IF('Baggrundsdata - BVT - deflator'!$C$22='Baggrundsdata - BVT - deflator'!$C$20,'Baggrundsdata - BVT - deflator'!$B74,"*"))))))))))),"*") -> 0.8644920971 | E25: =IFERROR('Baggrundsdata - BVT - deflator'!D74/IF($M$22=$C$20,$L74,IF($L$22=$C$20,$K74,IF($K$22=$C$20,$J74,IF($J$22=$C$20,$I74,IF($I$22=$C$20,'Baggrundsdata - BVT - deflator'!$H74,IF($H$22=$C$20,'Baggrundsdata - BVT - deflator'!$G74,IF($C$20=$G$22,'Baggrundsdata - BVT - deflator'!$F74,IF($F$22=$C$20,'Baggrundsdata - BVT - deflator'!$E74,IF($E$22=$C$20,'Baggrundsdata - BVT - deflator'!$D74,IF($D$22=$C$20,'Baggrundsdata - BVT - deflator'!$C74,IF('Baggrundsdata - BVT - deflator'!$C$22='Baggrundsdata - BVT - deflator'!$C$20,'Baggrundsdata - BVT - deflator'!$B74,"*"))))))))))),"*") -> 0.9054391697 | F25: =IFERROR('Baggrundsdata - BVT - deflator'!E74/IF($M$22=$C$20,$L74,IF($L$22=$C$20,$K74,IF($K$22=$C$20,$J74,IF($J$22=$C$20,$I74,IF($I$22=$C$20,'Baggrundsdata - BVT - deflator'!$H74,IF($H$22=$C$20,'Baggrundsdata - BVT - deflator'!$G74,IF($C$20=$G$22,'Baggrundsdata - BVT - deflator'!$F74,IF($F$22=$C$20,'Baggrundsdata - BVT - deflator'!$E74,IF($E$22=$C$20,'Baggrundsdata - BVT - deflator'!$D74,IF($D$22=$C$20,'Baggrundsdata - BVT - deflator'!$C74,IF('Baggrundsdata - BVT - deflator'!$C$22='Baggrundsdata - BVT - deflator'!$C$20,'Baggrundsdata - BVT - deflator'!$B74,"*"))))))))))),"*") -> 0.9152229025 | G25: =IFERROR('Baggrundsdata - BVT - deflator'!F74/IF($M$22=$C$20,$L74,IF($L$22=$C$20,$K74,IF($K$22=$C$20,$J74,IF($J$22=$C$20,$I74,IF($I$22=$C$20,'Baggrundsdata - BVT - deflator'!$H74,IF($H$22=$C$20,'Baggrundsdata - BVT - deflator'!$G74,IF($C$20=$G$22,'Baggrundsdata - BVT - deflator'!$F74,IF($F$22=$C$20,'Baggrundsdata - BVT - deflator'!$E74,IF($E$22=$C$20,'Baggrundsdata - BVT - deflator'!$D74,IF($D$22=$C$20,'Baggrundsdata - BVT - deflator'!$C74,IF('Baggrundsdata - BVT - deflator'!$C$22='Baggrundsdata - BVT - deflator'!$C$20,'Baggrundsdata - BVT - deflator'!$B74,"*"))))))))))),"*") -> 0.9830775285 | H25: =IFERROR('Baggrundsdata - BVT - deflator'!G74/IF($M$22=$C$20,$L74,IF($L$22=$C$20,$K74,IF($K$22=$C$20,$J74,IF($J$22=$C$20,$I74,IF($I$22=$C$20,'Baggrundsdata - BVT - deflator'!$H74,IF($H$22=$C$20,'Baggrundsdata - BVT - deflator'!$G74,IF($C$20=$G$22,'Baggrundsdata - BVT - deflator'!$F74,IF($F$22=$C$20,'Baggrundsdata - BVT - deflator'!$E74,IF($E$22=$C$20,'Baggrundsdata - BVT - deflator'!$D74,IF($D$22=$C$20,'Baggrundsdata - BVT - deflator'!$C74,IF('Baggrundsdata - BVT - deflator'!$C$22='Baggrundsdata - BVT - deflator'!$C$20,'Baggrundsdata - BVT - deflator'!$B74,"*"))))))))))),"*") -> 0.9960462371 | I25: =IFERROR('Baggrundsdata - BVT - deflator'!H74/IF($M$22=$C$20,$L74,IF($L$22=$C$20,$K74,IF($K$22=$C$20,$J74,IF($J$22=$C$20,$I74,IF($I$22=$C$20,'Baggrundsdata - BVT - deflator'!$H74,IF($H$22=$C$20,'Baggrundsdata - BVT - deflator'!$G74,IF($C$20=$G$22,'Baggrundsdata - BVT - deflator'!$F74,IF($F$22=$C$20,'Baggrundsdata - BVT - deflator'!$E74,IF($E$22=$C$20,'Baggrundsdata - BVT - deflator'!$D74,IF($D$22=$C$20,'Baggrundsdata - BVT - deflator'!$C74,IF('Baggrundsdata - BVT - deflator'!$C$22='Baggrundsdata - BVT - deflator'!$C$20,'Baggrundsdata - BVT - deflator'!$B74,"*"))))))))))),"*") -> 0.9880654934 | J25: =IFERROR('Baggrundsdata - BVT - deflator'!I74/IF($M$22=$C$20,$L74,IF($L$22=$C$20,$K74,IF($K$22=$C$20,$J74,IF($J$22=$C$20,$I74,IF($I$22=$C$20,'Baggrundsdata - BVT - deflator'!$H74,IF($H$22=$C$20,'Baggrundsdata - BVT - deflator'!$G74,IF($C$20=$G$22,'Baggrundsdata - BVT - deflator'!$F74,IF($F$22=$C$20,'Baggrundsdata - BVT - deflator'!$E74,IF($E$22=$C$20,'Baggrundsdata - BVT - deflator'!$D74,IF($D$22=$C$20,'Baggrundsdata - BVT - deflator'!$C74,IF('Baggrundsdata - BVT - deflator'!$C$22='Baggrundsdata - BVT - deflator'!$C$20,'Baggrundsdata - BVT - deflator'!$B74,"*"))))))))))),"*") -> 0.99848073 | K25: =IFERROR('Baggrundsdata - BVT - deflator'!J74/IF($M$22=$C$20,$L74,IF($L$22=$C$20,$K74,IF($K$22=$C$20,$J74,IF($J$22=$C$20,$I74,IF($I$22=$C$20,'Baggrundsdata - BVT - deflator'!$H74,IF($H$22=$C$20,'Baggrundsdata - BVT - deflator'!$G74,IF($C$20=$G$22,'Baggrundsdata - BVT - deflator'!$F74,IF($F$22=$C$20,'Baggrundsdata - BVT - deflator'!$E74,IF($E$22=$C$20,'Baggrundsdata - BVT - deflator'!$D74,IF($D$22=$C$20,'Baggrundsdata - BVT - deflator'!$C74,IF('Baggrundsdata - BVT - deflator'!$C$22='Baggrundsdata - BVT - deflator'!$C$20,'Baggrundsdata - BVT - deflator'!$B74,"*"))))))))))),"*") -> 1 | L25: =IFERROR('Baggrundsdata - BVT - deflator'!K74/IF($M$22=$C$20,$L74,IF($L$22=$C$20,$K74,IF($K$22=$C$20,$J74,IF($J$22=$C$20,$I74,IF($I$22=$C$20,'Baggrundsdata - BVT - deflator'!$H74,IF($H$22=$C$20,'Baggrundsdata - BVT - deflator'!$G74,IF($C$20=$G$22,'Baggrundsdata - BVT - deflator'!$F74,IF($F$22=$C$20,'Baggrundsdata - BVT - deflator'!$E74,IF($E$22=$C$20,'Baggrundsdata - BVT - deflator'!$D74,IF($D$22=$C$20,'Baggrundsdata - BVT - deflator'!$C74,IF('Baggrundsdata - BVT - deflator'!$C$22='Baggrundsdata - BVT - deflator'!$C$20,'Baggrundsdata - BVT - deflator'!$B74,"*"))))))))))),"*") -> 1.001521582 | M25: =IFERROR('Baggrundsdata - BVT - deflator'!L74/IF($M$22=$C$20,$L74,IF($L$22=$C$20,$K74,IF($K$22=$C$20,$J74,IF($J$22=$C$20,$I74,IF($I$22=$C$20,'Baggrundsdata - BVT - deflator'!$H74,IF($H$22=$C$20,'Baggrundsdata - BVT - deflator'!$G74,IF($C$20=$G$22,'Baggrundsdata - BVT - deflator'!$F74,IF($F$22=$C$20,'Baggrundsdata - BVT - deflator'!$E74,IF($E$22=$C$20,'Baggrundsdata - BVT - deflator'!$D74,IF($D$22=$C$20,'Baggrundsdata - BVT - deflator'!$C74,IF('Baggrundsdata - BVT - deflator'!$C$22='Baggrundsdata - BVT - deflator'!$C$20,'Baggrundsdata - BVT - deflator'!$B74,"*"))))))))))),"*") -> 0 | O25: =IF(A74='Level 1'!A54,"S","falsk") -> S | Q25: Danmark | R25: =IFERROR('Baggrundsdata - BVT - deflator'!B76/IF($AB$22=$R$20,$L76,IF($AA$22=$R$20,$K76,IF($Z$22=$R$20,$J76,IF($Y$22=$R$20,$I76,IF($X$22=$R$20,'Baggrundsdata - BVT - deflator'!$H76,IF($W$22=$R$20,'Baggrundsdata - BVT - deflator'!$G76,IF($R$20=$V$22,'Baggrundsdata - BVT - deflator'!$F76,IF($U$22=$R$20,'Baggrundsdata - BVT - deflator'!$E76,IF($T$22=$R$20,'Baggrundsdata - BVT - deflator'!$D76,IF($S$22=$R$20,'Baggrundsdata - BVT - deflator'!$C76,IF($R$22=$R$20,'Baggrundsdata - BVT - deflator'!$B76,"*"))))))))))),"*") -> 0.8556478343 | S25: =IFERROR('Baggrundsdata - BVT - deflator'!C76/IF($AB$22=$R$20,$L76,IF($AA$22=$R$20,$K76,IF($Z$22=$R$20,$J76,IF($Y$22=$R$20,$I76,IF($X$22=$R$20,'Baggrundsdata - BVT - deflator'!$H76,IF($W$22=$R$20,'Baggrundsdata - BVT - deflator'!$G76,IF($R$20=$V$22,'Baggrundsdata - BVT - deflator'!$F76,IF($U$22=$R$20,'Baggrundsdata - BVT - deflator'!$E76,IF($T$22=$R$20,'Baggrundsdata - BVT - deflator'!$D76,IF($S$22=$R$20,'Baggrundsdata - BVT - deflator'!$C76,IF($R$22=$R$20,'Baggrundsdata - BVT - deflator'!$B76,"*"))))))))))),"*") -> 0.895404268 | T25: =IFERROR('Baggrundsdata - BVT - deflator'!D76/IF($AB$22=$R$20,$L76,IF($AA$22=$R$20,$K76,IF($Z$22=$R$20,$J76,IF($Y$22=$R$20,$I76,IF($X$22=$R$20,'Baggrundsdata - BVT - deflator'!$H76,IF($W$22=$R$20,'Baggrundsdata - BVT - deflator'!$G76,IF($R$20=$V$22,'Baggrundsdata - BVT - deflator'!$F76,IF($U$22=$R$20,'Baggrundsdata - BVT - deflator'!$E76,IF($T$22=$R$20,'Baggrundsdata - BVT - deflator'!$D76,IF($S$22=$R$20,'Baggrundsdata - BVT - deflator'!$C76,IF($R$22=$R$20,'Baggrundsdata - BVT - deflator'!$B76,"*"))))))))))),"*") -> 0.9009534096 | U25: =IFERROR('Baggrundsdata - BVT - deflator'!E76/IF($AB$22=$R$20,$L76,IF($AA$22=$R$20,$K76,IF($Z$22=$R$20,$J76,IF($Y$22=$R$20,$I76,IF($X$22=$R$20,'Baggrundsdata - BVT - deflator'!$H76,IF($W$22=$R$20,'Baggrundsdata - BVT - deflator'!$G76,IF($R$20=$V$22,'Baggrundsdata - BVT - deflator'!$F76,IF($U$22=$R$20,'Baggrundsdata - BVT - deflator'!$E76,IF($T$22=$R$20,'Baggrundsdata - BVT - deflator'!$D76,IF($S$22=$R$20,'Baggrundsdata - BVT - deflator'!$C76,IF($R$22=$R$20,'Baggrundsdata - BVT - deflator'!$B76,"*"))))))))))),"*") -> 0.93106402 | V25: =IFERROR('Baggrundsdata - BVT - deflator'!F76/IF($AB$22=$R$20,$L76,IF($AA$22=$R$20,$K76,IF($Z$22=$R$20,$J76,IF($Y$22=$R$20,$I76,IF($X$22=$R$20,'Baggrundsdata - BVT - deflator'!$H76,IF($W$22=$R$20,'Baggrundsdata - BVT - deflator'!$G76,IF($R$20=$V$22,'Baggrundsdata - BVT - deflator'!$F76,IF($U$22=$R$20,'Baggrundsdata - BVT - deflator'!$E76,IF($T$22=$R$20,'Baggrundsdata - BVT - deflator'!$D76,IF($S$22=$R$20,'Baggrundsdata - BVT - deflator'!$C76,IF($R$22=$R$20,'Baggrundsdata - BVT - deflator'!$B76,"*"))))))))))),"*") -> 0.9360545231 | W25: =IFERROR('Baggrundsdata - BVT - deflator'!G76/IF($AB$22=$R$20,$L76,IF($AA$22=$R$20,$K76,IF($Z$22=$R$20,$J76,IF($Y$22=$R$20,$I76,IF($X$22=$R$20,'Baggrundsdata - BVT - deflator'!$H76,IF($W$22=$R$20,'Baggrundsdata - BVT - deflator'!$G76,IF($R$20=$V$22,'Baggrundsdata - BVT - deflator'!$F76,IF($U$22=$R$20,'Baggrundsdata - BVT - deflator'!$E76,IF($T$22=$R$20,'Baggrundsdata - BVT - deflator'!$D76,IF($S$22=$R$20,'Baggrundsdata - BVT - deflator'!$C76,IF($R$22=$R$20,'Baggrundsdata - BVT - deflator'!$B76,"*"))))))))))),"*") -> 0.9638095415 | X25: =IFERROR('Baggrundsdata - BVT - deflator'!H76/IF($AB$22=$R$20,$L76,IF($AA$22=$R$20,$K76,IF($Z$22=$R$20,$J76,IF($Y$22=$R$20,$I76,IF($X$22=$R$20,'Baggrundsdata - BVT - deflator'!$H76,IF($W$22=$R$20,'Baggrundsdata - BVT - deflator'!$G76,IF($R$20=$V$22,'Baggrundsdata - BVT - deflator'!$F76,IF($U$22=$R$20,'Baggrundsdata - BVT - deflator'!$E76,IF($T$22=$R$20,'Baggrundsdata - BVT - deflator'!$D76,IF($S$22=$R$20,'Baggrundsdata - BVT - deflator'!$C76,IF($R$22=$R$20,'Baggrundsdata - BVT - deflator'!$B76,"*"))))))))))),"*") -> 0.9782131019 | Y25: =IFERROR('Baggrundsdata - BVT - deflator'!I76/IF($AB$22=$R$20,$L76,IF($AA$22=$R$20,$K76,IF($Z$22=$R$20,$J76,IF($Y$22=$R$20,$I76,IF($X$22=$R$20,'Baggrundsdata - BVT - deflator'!$H76,IF($W$22=$R$20,'Baggrundsdata - BVT - deflator'!$G76,IF($R$20=$V$22,'Baggrundsdata - BVT - deflator'!$F76,IF($U$22=$R$20,'Baggrundsdata - BVT - deflator'!$E76,IF($T$22=$R$20,'Baggrundsdata - BVT - deflator'!$D76,IF($S$22=$R$20,'Baggrundsdata - BVT - deflator'!$C76,IF($R$22=$R$20,'Baggrundsdata - BVT - deflator'!$B76,"*"))))))))))),"*") -> 0.9875889166 | Z25: =IFERROR('Baggrundsdata - BVT - deflator'!J76/IF($AB$22=$R$20,$L76,IF($AA$22=$R$20,$K76,IF($Z$22=$R$20,$J76,IF($Y$22=$R$20,$I76,IF($X$22=$R$20,'Baggrundsdata - BVT - deflator'!$H76,IF($W$22=$R$20,'Baggrundsdata - BVT - deflator'!$G76,IF($R$20=$V$22,'Baggrundsdata - BVT - deflator'!$F76,IF($U$22=$R$20,'Baggrundsdata - BVT - deflator'!$E76,IF($T$22=$R$20,'Baggrundsdata - BVT - deflator'!$D76,IF($S$22=$R$20,'Baggrundsdata - BVT - deflator'!$C76,IF($R$22=$R$20,'Baggrundsdata - BVT - deflator'!$B76,"*"))))))))))),"*") -> 1 | AA25: =IFERROR('Baggrundsdata - BVT - deflator'!K76/IF($AB$22=$R$20,$L76,IF($AA$22=$R$20,$K76,IF($Z$22=$R$20,$J76,IF($Y$22=$R$20,$I76,IF($X$22=$R$20,'Baggrundsdata - BVT - deflator'!$H76,IF($W$22=$R$20,'Baggrundsdata - BVT - deflator'!$G76,IF($R$20=$V$22,'Baggrundsdata - BVT - deflator'!$F76,IF($U$22=$R$20,'Baggrundsdata - BVT - deflator'!$E76,IF($T$22=$R$20,'Baggrundsdata - BVT - deflator'!$D76,IF($S$22=$R$20,'Baggrundsdata - BVT - deflator'!$C76,IF($R$22=$R$20,'Baggrundsdata - BVT - deflator'!$B76,"*"))))))))))),"*") -> 1.012567054 | AB25: =IFERROR('Baggrundsdata - BVT - deflator'!L76/IF($AB$22=$R$20,$L76,IF($AA$22=$R$20,$K76,IF($Z$22=$R$20,$J76,IF($Y$22=$R$20,$I76,IF($X$22=$R$20,'Baggrundsdata - BVT - deflator'!$H76,IF($W$22=$R$20,'Baggrundsdata - BVT - deflator'!$G76,IF($R$20=$V$22,'Baggrundsdata - BVT - deflator'!$F76,IF($U$22=$R$20,'Baggrundsdata - BVT - deflator'!$E76,IF($T$22=$R$20,'Baggrundsdata - BVT - deflator'!$D76,IF($S$22=$R$20,'Baggrundsdata - BVT - deflator'!$C76,IF($R$22=$R$20,'Baggrundsdata - BVT - deflator'!$B76,"*"))))))))))),"*") -> 0 | AD25: =IF(Q25=Forside!B41,"S","falsk") -> S
